Workbook

Sheet OBO навігація
B1: Прайс-лист від 28.08.2023 | D1: м.Київ, вул.Новокостянтинівська, 9.
D2: тел. (044) 494-41-53, 494-30-89
D3: http://obo.ua/uk-ua
D4: orders@obo.com.ua
A5: Кабельні канали з ПВХ | C5: Коробка установча
A6: Кабельні канали Rapid45 | C6: Коробка розподільча
A7: Підлоговий/ плінтусний/ кутовий кабельні канали | C7: Аквазит
A8: Перфоровані кабельні канали | C8: Клемники
A9: Розетки Modul 45, RJ-45; вимикачі | C9: Кабельні вводи
A10: Кабелі підключення GSTi | C10: Тримачи та скоби
A11: Сервісні стійки | C11: Перфострічки/ кабельні стяжки/ сталевий трос
A12: Розеткові блоки | C12: Труби з ПВХ - Quick pipe
A13: Кабельні органайзери | C13: Електротехнічна труба
A14: Підлогові люки GES | C14: Профільна рейка та аксесуари
A15: Підлогові люки GES R2 | C15: U-подібний профіль
A16: Підлогові люки UDHOME | C16: І - подібний профіль
A17: Підлогові касетні рамки | C17: Метвироби для профільних рейок
A18: Система стальних підлогових коробів EUK | C18: Метвироби
A19: Підлогові розеткові башти Telitank | C19: Затискні скоби
C20: Системи протипожежного захисту
A21: Лоток RKSM перфорований Н=35мм | C21: Обмежувачі пренапруг
A22: Кабельний лоток Н=60мм | C22: Шини зрівнювання потенціалів
A23: Кабельний лоток Н=85мм | C23: Хомути зрівнювання потенціалів
A24: Кабельний лоток Н=110мм | C24: Провідники
A25: Підлоговий лоток BKRS | C25: Уземлення
A26: Дротяний лоток GRM Н=35мм | C26: З'єднувальні елементи
A27: Дротяний лоток GRM Н=55мм | C27: Блискавкоприймачі з елементами кріплення
A28: Дротяний лоток GRM Н=105мм | C28: Блискавкоприймальні щогли з елементами кріплення
A29: G-подібний дротяний лоток | C29: Елементи кріплення круглого провідника
A30: Аксесуари дротяного лотка | C30: Елементи кріплення плаского провідника
A31: Кріплення дротяного лотка | C31: Елементи приєднування
A32: Кабельростр VS Н=60мм | C32: Ізольований блискавкозахист
A33: Кабельростр VS Н=110мм
A34: Аксесуари кабельростру
A35: Перегородка
A36: Кришка
A37: Системи для великих відстаней між кріпленнями
A38: Кронштейни
A39: Кронштейн для підлоги/стіни

Sheet OBO специфікація
A1: Увага! Сума підраховується кратно пакуванню, близьким до вказаної Вами кількості! | E1: Колекція OBO | H1: OBO1 | I1: OBO2 | J1: OBO3 | K1: OBO4
E2: Знижка згідно договору | H2: 0 | I2: 0 | J2: 0 | K2: 0
A3: Шановні партнери, звертаємо Вашу увагу на зміну прайс-листа з 28.08.2023 року.
B6: orders@obo.com.ua | C6: =ROUND(техническая!P1,4) -> 39.6582 | D6: Валютний курс
B7: Валютний курс та наявність на : | C7: =техническая!O1 -> 04.12.2023 | H7: без ПДВ | I7: =ROUND((SUM(I9:I200))/1.2,2) -> 12480.6
A8: Артикул | B8: Найменування | C8: Кількість | D8: Кратність пакуванню | E8: Ціна роздрібна, євро без ПДВ | F8: Одиниця ціни | H8: Ціна зі знижкою, грн без ПДВ | I8: Сума, грн з ПДВ | J8: Наявність на складі | K8: Знижка | L8: Додаткова інформація
A9: 6005535 | B9: =IFERROR(VLOOKUP(A9,Лист1!A:J,2,0),"-") -> G-подібний дротяний лоток, 50х50х3050, G (2,5-10 мкм) | C9: 30 | D9: =IFERROR(IF(C9<=техническая!AF2,техническая!AF2,(ROUNDUP((C9/техническая!AF2),0)*техническая!AF2)),"") -> 30 | E9: =IFERROR(VLOOKUP(A9,'OBO прайс-лист'!A:J,3,0),"-") -> 7.54 | F9: =IFERROR(VLOOKUP(A9,'OBO прайс-лист'!A:J,5,0),"-") -> 1 | G9: =IFERROR(VLOOKUP(A9,'OBO прайс-лист'!A:J,6,0),"-") -> м | H9: =IFERROR(ROUND(E9*$C$6,2)*(1-K9),"-") -> 299.02 | I9: =IFERROR(ROUND(D9*ROUND((H9/F9),2)*1.2,2),"-") -> 10764.72 | J9: =IFERROR(IF(C9<=0,"",IF(C9<=техническая!AE2,"Достатньо",техническая!AE2)),0) -> 0 | K9: =IFERROR(VLOOKUP(техническая!Z2,техническая!A:I,9,0),"") -> 0 | L9: =IFERROR(HYPERLINK(M9,M9),"") -> https://www.obo.global/products/industrial-installations/mesh-cable-trays/mesh-cable-trays-plug-connection/g-mesh-cable-tray-magic-50-g.html | M9: =IFERROR(VLOOKUP(A9,'OBO прайс-лист'!A:J,10,0),"") -> https://www.obo.global/products/industrial-installations/mesh-cable-trays/mesh-cable-trays-plug-connection/g-mesh-cable-tray-magic-50-g.html
A10: 6005607 | B10: =IFERROR(VLOOKUP(A10,Лист1!A:J,2,0),"-") -> Зачіпний гак G-подібного дротяного лотка, FS (18-22 мкм) | C10: 30 | D10: =IFERROR(IF(C10<=техническая!AF3,техническая!AF3,(ROUNDUP((C10/техническая!AF3),0)*техническая!AF3)),"") -> 50 | E10: =IFERROR(VLOOKUP(A10,'OBO прайс-лист'!A:J,3,0),"-") -> 1.77 | F10: =IFERROR(VLOOKUP(A10,'OBO прайс-лист'!A:J,5,0),"-") -> 1 | G10: =IFERROR(VLOOKUP(A10,'OBO прайс-лист'!A:J,6,0),"-") -> шт. | H10: =IFERROR(ROUND(E10*$C$6,2)*(1-K10),"-") -> 70.2 | I10: =IFERROR(ROUND(D10*ROUND((H10/F10),2)*1.2,2),"-") -> 4212 | J10: =IFERROR(IF(C10<=0,"",IF(C10<=техническая!AE3,"Достатньо",техническая!AE3)),0) -> 0 | K10: =IFERROR(VLOOKUP(техническая!Z3,техническая!A:I,9,0),"") -> 0 | L10: =IFERROR(HYPERLINK(M10,M10),"") -> https://www.obo.global/search/?searchparam=6005607 | M10: =IFERROR(VLOOKUP(A10,'OBO прайс-лист'!A:J,10,0),"") -> https://www.obo.global/search/?searchparam=6005607
B11: =IFERROR(VLOOKUP(A11,Лист1!A:J,2,0),"-") -> - | D11: =IFERROR(IF(C11<=техническая!AF4,техническая!AF4,(ROUNDUP((C11/техническая!AF4),0)*техническая!AF4)),"") ->  | E11: =IFERROR(VLOOKUP(A11,'OBO прайс-лист'!A:J,3,0),"-") -> - | F11: =IFERROR(VLOOKUP(A11,'OBO прайс-лист'!A:J,5,0),"-") -> - | G11: =IFERROR(VLOOKUP(A11,'OBO прайс-лист'!A:J,6,0),"-") -> - | H11: - | I11: - | J11: =IFERROR(IF(C11<=0,"",IF(C11<=техническая!AE4,"Достатньо",техническая!AE4)),0) ->  | K11: =IFERROR(VLOOKUP(техническая!Z4,техническая!A:I,9,0),"") ->  | M11: =IFERROR(VLOOKUP(A11,'OBO прайс-лист'!A:J,10,0),"") -> 
B12: =IFERROR(VLOOKUP(A12,Лист1!A:J,2,0),"-") -> - | D12: =IFERROR(IF(C12<=техническая!AF5,техническая!AF5,(ROUNDUP((C12/техническая!AF5),0)*техническая!AF5)),"") ->  | E12: =IFERROR(VLOOKUP(A12,'OBO прайс-лист'!A:J,3,0),"-") -> - | F12: =IFERROR(VLOOKUP(A12,'OBO прайс-лист'!A:J,5,0),"-") -> - | G12: =IFERROR(VLOOKUP(A12,'OBO прайс-лист'!A:J,6,0),"-") -> - | H12: - | I12: - | J12: =IFERROR(IF(C12<=0,"",IF(C12<=техническая!AE5,"Достатньо",техническая!AE5)),0) ->  | K12: =IFERROR(VLOOKUP(техническая!Z5,техническая!A:I,9,0),"") ->  | M12: =IFERROR(VLOOKUP(A12,'OBO прайс-лист'!A:J,10,0),"") -> 
B13: =IFERROR(VLOOKUP(A13,Лист1!A:J,2,0),"-") -> - | D13: =IFERROR(IF(C13<=техническая!AF6,техническая!AF6,(ROUNDUP((C13/техническая!AF6),0)*техническая!AF6)),"") ->  | E13: =IFERROR(VLOOKUP(A13,'OBO прайс-лист'!A:J,3,0),"-") -> - | F13: =IFERROR(VLOOKUP(A13,'OBO прайс-лист'!A:J,5,0),"-") -> - | G13: =IFERROR(VLOOKUP(A13,'OBO прайс-лист'!A:J,6,0),"-") -> - | H13: - | I13: - | J13: =IFERROR(IF(C13<=0,"",IF(C13<=техническая!AE6,"Достатньо",техническая!AE6)),0) ->  | K13: =IFERROR(VLOOKUP(техническая!Z6,техническая!A:I,9,0),"") ->  | M13: =IFERROR(VLOOKUP(A13,'OBO прайс-лист'!A:J,10,0),"") -> 
B14: =IFERROR(VLOOKUP(A14,Лист1!A:J,2,0),"-") -> - | D14: =IFERROR(IF(C14<=техническая!AF7,техническая!AF7,(ROUNDUP((C14/техническая!AF7),0)*техническая!AF7)),"") ->  | E14: =IFERROR(VLOOKUP(A14,'OBO прайс-лист'!A:J,3,0),"-") -> - | F14: =IFERROR(VLOOKUP(A14,'OBO прайс-лист'!A:J,5,0),"-") -> - | G14: =IFERROR(VLOOKUP(A14,'OBO прайс-лист'!A:J,6,0),"-") -> - | H14: - | I14: - | J14: =IFERROR(IF(C14<=0,"",IF(C14<=техническая!AE7,"Достатньо",техническая!AE7)),0) ->  | K14: =IFERROR(VLOOKUP(техническая!Z7,техническая!A:I,9,0),"") ->  | M14: =IFERROR(VLOOKUP(A14,'OBO прайс-лист'!A:J,10,0),"") -> 
B15: =IFERROR(VLOOKUP(A15,Лист1!A:J,2,0),"-") -> - | D15: =IFERROR(IF(C15<=техническая!AF8,техническая!AF8,(ROUNDUP((C15/техническая!AF8),0)*техническая!AF8)),"") ->  | E15: =IFERROR(VLOOKUP(A15,'OBO прайс-лист'!A:J,3,0),"-") -> - | F15: =IFERROR(VLOOKUP(A15,'OBO прайс-лист'!A:J,5,0),"-") -> - | G15: =IFERROR(VLOOKUP(A15,'OBO прайс-лист'!A:J,6,0),"-") -> - | H15: - | I15: - | J15: =IFERROR(IF(C15<=0,"",IF(C15<=техническая!AE8,"Достатньо",техническая!AE8)),0) ->  | K15: =IFERROR(VLOOKUP(техническая!Z8,техническая!A:I,9,0),"") ->  | M15: =IFERROR(VLOOKUP(A15,'OBO прайс-лист'!A:J,10,0),"") -> 
B16: =IFERROR(VLOOKUP(A16,Лист1!A:J,2,0),"-") -> - | D16: =IFERROR(IF(C16<=техническая!AF9,техническая!AF9,(ROUNDUP((C16/техническая!AF9),0)*техническая!AF9)),"") ->  | E16: =IFERROR(VLOOKUP(A16,'OBO прайс-лист'!A:J,3,0),"-") -> - | F16: =IFERROR(VLOOKUP(A16,'OBO прайс-лист'!A:J,5,0),"-") -> - | G16: =IFERROR(VLOOKUP(A16,'OBO прайс-лист'!A:J,6,0),"-") -> - | H16: - | I16: - | J16: =IFERROR(IF(C16<=0,"",IF(C16<=техническая!AE9,"Достатньо",техническая!AE9)),0) ->  | K16: =IFERROR(VLOOKUP(техническая!Z9,техническая!A:I,9,0),"") ->  | M16: =IFERROR(VLOOKUP(A16,'OBO прайс-лист'!A:J,10,0),"") -> 
B17: =IFERROR(VLOOKUP(A17,Лист1!A:J,2,0),"-") -> - | D17: =IFERROR(IF(C17<=техническая!AF10,техническая!AF10,(ROUNDUP((C17/техническая!AF10),0)*техническая!AF10)),"") ->  | E17: =IFERROR(VLOOKUP(A17,'OBO прайс-лист'!A:J,3,0),"-") -> - | F17: =IFERROR(VLOOKUP(A17,'OBO прайс-лист'!A:J,5,0),"-") -> - | G17: =IFERROR(VLOOKUP(A17,'OBO прайс-лист'!A:J,6,0),"-") -> - | H17: - | I17: - | J17: =IFERROR(IF(C17<=0,"",IF(C17<=техническая!AE10,"Достатньо",техническая!AE10)),0) ->  | K17: =IFERROR(VLOOKUP(техническая!Z10,техническая!A:I,9,0),"") ->  | M17: =IFERROR(VLOOKUP(A17,'OBO прайс-лист'!A:J,10,0),"") -> 
B18: =IFERROR(VLOOKUP(A18,Лист1!A:J,2,0),"-") -> - | D18: =IFERROR(IF(C18<=техническая!AF11,техническая!AF11,(ROUNDUP((C18/техническая!AF11),0)*техническая!AF11)),"") ->  | E18: =IFERROR(VLOOKUP(A18,'OBO прайс-лист'!A:J,3,0),"-") -> - | F18: =IFERROR(VLOOKUP(A18,'OBO прайс-лист'!A:J,5,0),"-") -> - | G18: =IFERROR(VLOOKUP(A18,'OBO прайс-лист'!A:J,6,0),"-") -> - | H18: - | I18: - | J18: =IFERROR(IF(C18<=0,"",IF(C18<=техническая!AE11,"Достатньо",техническая!AE11)),0) ->  | K18: =IFERROR(VLOOKUP(техническая!Z11,техническая!A:I,9,0),"") ->  | M18: =IFERROR(VLOOKUP(A18,'OBO прайс-лист'!A:J,10,0),"") -> 
B19: =IFERROR(VLOOKUP(A19,Лист1!A:J,2,0),"-") -> - | D19: =IFERROR(IF(C19<=техническая!AF12,техническая!AF12,(ROUNDUP((C19/техническая!AF12),0)*техническая!AF12)),"") ->  | E19: =IFERROR(VLOOKUP(A19,'OBO прайс-лист'!A:J,3,0),"-") -> - | F19: =IFERROR(VLOOKUP(A19,'OBO прайс-лист'!A:J,5,0),"-") -> - | G19: =IFERROR(VLOOKUP(A19,'OBO прайс-лист'!A:J,6,0),"-") -> - | H19: - | I19: - | J19: =IFERROR(IF(C19<=0,"",IF(C19<=техническая!AE12,"Достатньо",техническая!AE12)),0) ->  | K19: =IFERROR(VLOOKUP(техническая!Z12,техническая!A:I,9,0),"") ->  | M19: =IFERROR(VLOOKUP(A19,'OBO прайс-лист'!A:J,10,0),"") -> 
B20: =IFERROR(VLOOKUP(A20,Лист1!A:J,2,0),"-") -> - | D20: =IFERROR(IF(C20<=техническая!AF13,техническая!AF13,(ROUNDUP((C20/техническая!AF13),0)*техническая!AF13)),"") ->  | E20: =IFERROR(VLOOKUP(A20,'OBO прайс-лист'!A:J,3,0),"-") -> - | F20: =IFERROR(VLOOKUP(A20,'OBO прайс-лист'!A:J,5,0),"-") -> - | G20: =IFERROR(VLOOKUP(A20,'OBO прайс-лист'!A:J,6,0),"-") -> - | H20: - | I20: - | J20: =IFERROR(IF(C20<=0,"",IF(C20<=техническая!AE13,"Достатньо",техническая!AE13)),0) ->  | K20: =IFERROR(VLOOKUP(техническая!Z13,техническая!A:I,9,0),"") ->  | M20: =IFERROR(VLOOKUP(A20,'OBO прайс-лист'!A:J,10,0),"") -> 
B21: =IFERROR(VLOOKUP(A21,Лист1!A:J,2,0),"-") -> - | D21: =IFERROR(IF(C21<=техническая!AF14,техническая!AF14,(ROUNDUP((C21/техническая!AF14),0)*техническая!AF14)),"") ->  | E21: =IFERROR(VLOOKUP(A21,'OBO прайс-лист'!A:J,3,0),"-") -> - | F21: =IFERROR(VLOOKUP(A21,'OBO прайс-лист'!A:J,5,0),"-") -> - | G21: =IFERROR(VLOOKUP(A21,'OBO прайс-лист'!A:J,6,0),"-") -> - | H21: - | I21: - | J21: =IFERROR(IF(C21<=0,"",IF(C21<=техническая!AE14,"Достатньо",техническая!AE14)),0) ->  | K21: =IFERROR(VLOOKUP(техническая!Z14,техническая!A:I,9,0),"") ->  | M21: =IFERROR(VLOOKUP(A21,'OBO прайс-лист'!A:J,10,0),"") -> 
B22: =IFERROR(VLOOKUP(A22,Лист1!A:J,2,0),"-") -> - | D22: =IFERROR(IF(C22<=техническая!AF15,техническая!AF15,(ROUNDUP((C22/техническая!AF15),0)*техническая!AF15)),"") ->  | E22: =IFERROR(VLOOKUP(A22,'OBO прайс-лист'!A:J,3,0),"-") -> - | F22: =IFERROR(VLOOKUP(A22,'OBO прайс-лист'!A:J,5,0),"-") -> - | G22: =IFERROR(VLOOKUP(A22,'OBO прайс-лист'!A:J,6,0),"-") -> - | H22: - | I22: - | J22: =IFERROR(IF(C22<=0,"",IF(C22<=техническая!AE15,"Достатньо",техническая!AE15)),0) ->  | K22: =IFERROR(VLOOKUP(техническая!Z15,техническая!A:I,9,0),"") ->  | M22: =IFERROR(VLOOKUP(A22,'OBO прайс-лист'!A:J,10,0),"") -> 
B23: =IFERROR(VLOOKUP(A23,Лист1!A:J,2,0),"-") -> - | D23: =IFERROR(IF(C23<=техническая!AF16,техническая!AF16,(ROUNDUP((C23/техническая!AF16),0)*техническая!AF16)),"") ->  | E23: =IFERROR(VLOOKUP(A23,'OBO прайс-лист'!A:J,3,0),"-") -> - | F23: =IFERROR(VLOOKUP(A23,'OBO прайс-лист'!A:J,5,0),"-") -> - | G23: =IFERROR(VLOOKUP(A23,'OBO прайс-лист'!A:J,6,0),"-") -> - | H23: - | I23: - | J23: =IFERROR(IF(C23<=0,"",IF(C23<=техническая!AE16,"Достатньо",техническая!AE16)),0) ->  | K23: =IFERROR(VLOOKUP(техническая!Z16,техническая!A:I,9,0),"") ->  | M23: =IFERROR(VLOOKUP(A23,'OBO прайс-лист'!A:J,10,0),"") -> 
B24: =IFERROR(VLOOKUP(A24,Лист1!A:J,2,0),"-") -> - | D24: =IFERROR(IF(C24<=техническая!AF17,техническая!AF17,(ROUNDUP((C24/техническая!AF17),0)*техническая!AF17)),"") ->  | E24: =IFERROR(VLOOKUP(A24,'OBO прайс-лист'!A:J,3,0),"-") -> - | F24: =IFERROR(VLOOKUP(A24,'OBO прайс-лист'!A:J,5,0),"-") -> - | G24: =IFERROR(VLOOKUP(A24,'OBO прайс-лист'!A:J,6,0),"-") -> - | H24: - | I24: - | J24: =IFERROR(IF(C24<=0,"",IF(C24<=техническая!AE17,"Достатньо",техническая!AE17)),0) ->  | K24: =IFERROR(VLOOKUP(техническая!Z17,техническая!A:I,9,0),"") ->  | M24: =IFERROR(VLOOKUP(A24,'OBO прайс-лист'!A:J,10,0),"") -> 
B25: =IFERROR(VLOOKUP(A25,Лист1!A:J,2,0),"-") -> - | D25: =IFERROR(IF(C25<=техническая!AF18,техническая!AF18,(ROUNDUP((C25/техническая!AF18),0)*техническая!AF18)),"") ->  | E25: =IFERROR(VLOOKUP(A25,'OBO прайс-лист'!A:J,3,0),"-") -> - | F25: =IFERROR(VLOOKUP(A25,'OBO прайс-лист'!A:J,5,0),"-") -> - | G25: =IFERROR(VLOOKUP(A25,'OBO прайс-лист'!A:J,6,0),"-") -> - | H25: - | I25: - | J25: =IFERROR(IF(C25<=0,"",IF(C25<=техническая!AE18,"Достатньо",техническая!AE18)),0) ->  | K25: =IFERROR(VLOOKUP(техническая!Z18,техническая!A:I,9,0),"") ->  | M25: =IFERROR(VLOOKUP(A25,'OBO прайс-лист'!A:J,10,0),"") -> 
B26: =IFERROR(VLOOKUP(A26,Лист1!A:J,2,0),"-") -> - | D26: =IFERROR(IF(C26<=техническая!AF19,техническая!AF19,(ROUNDUP((C26/техническая!AF19),0)*техническая!AF19)),"") ->  | E26: =IFERROR(VLOOKUP(A26,'OBO прайс-лист'!A:J,3,0),"-") -> - | F26: =IFERROR(VLOOKUP(A26,'OBO прайс-лист'!A:J,5,0),"-") -> - | G26: =IFERROR(VLOOKUP(A26,'OBO прайс-лист'!A:J,6,0),"-") -> - | H26: - | I26: - | J26: =IFERROR(IF(C26<=0,"",IF(C26<=техническая!AE19,"Достатньо",техническая!AE19)),0) ->  | K26: =IFERROR(VLOOKUP(техническая!Z19,техническая!A:I,9,0),"") ->  | M26: =IFERROR(VLOOKUP(A26,'OBO прайс-лист'!A:J,10,0),"") -> 
B27: =IFERROR(VLOOKUP(A27,Лист1!A:J,2,0),"-") -> - | D27: =IFERROR(IF(C27<=техническая!AF20,техническая!AF20,(ROUNDUP((C27/техническая!AF20),0)*техническая!AF20)),"") ->  | E27: =IFERROR(VLOOKUP(A27,'OBO прайс-лист'!A:J,3,0),"-") -> - | F27: =IFERROR(VLOOKUP(A27,'OBO прайс-лист'!A:J,5,0),"-") -> - | G27: =IFERROR(VLOOKUP(A27,'OBO прайс-лист'!A:J,6,0),"-") -> - | H27: - | I27: - | J27: =IFERROR(IF(C27<=0,"",IF(C27<=техническая!AE20,"Достатньо",техническая!AE20)),0) ->  | K27: =IFERROR(VLOOKUP(техническая!Z20,техническая!A:I,9,0),"") ->  | M27: =IFERROR(VLOOKUP(A27,'OBO прайс-лист'!A:J,10,0),"") -> 
B28: =IFERROR(VLOOKUP(A28,Лист1!A:J,2,0),"-") -> - | D28: =IFERROR(IF(C28<=техническая!AF21,техническая!AF21,(ROUNDUP((C28/техническая!AF21),0)*техническая!AF21)),"") ->  | E28: =IFERROR(VLOOKUP(A28,'OBO прайс-лист'!A:J,3,0),"-") -> - | F28: =IFERROR(VLOOKUP(A28,'OBO прайс-лист'!A:J,5,0),"-") -> - | G28: =IFERROR(VLOOKUP(A28,'OBO прайс-лист'!A:J,6,0),"-") -> - | H28: - | I28: - | J28: =IFERROR(IF(C28<=0,"",IF(C28<=техническая!AE21,"Достатньо",техническая!AE21)),0) ->  | K28: =IFERROR(VLOOKUP(техническая!Z21,техническая!A:I,9,0),"") ->  | M28: =IFERROR(VLOOKUP(A28,'OBO прайс-лист'!A:J,10,0),"") -> 
B29: =IFERROR(VLOOKUP(A29,Лист1!A:J,2,0),"-") -> - | D29: =IFERROR(IF(C29<=техническая!AF22,техническая!AF22,(ROUNDUP((C29/техническая!AF22),0)*техническая!AF22)),"") ->  | E29: =IFERROR(VLOOKUP(A29,'OBO прайс-лист'!A:J,3,0),"-") -> - | F29: =IFERROR(VLOOKUP(A29,'OBO прайс-лист'!A:J,5,0),"-") -> - | G29: =IFERROR(VLOOKUP(A29,'OBO прайс-лист'!A:J,6,0),"-") -> - | H29: - | I29: - | J29: =IFERROR(IF(C29<=0,"",IF(C29<=техническая!AE22,"Достатньо",техническая!AE22)),0) ->  | K29: =IFERROR(VLOOKUP(техническая!Z22,техническая!A:I,9,0),"") ->  | M29: =IFERROR(VLOOKUP(A29,'OBO прайс-лист'!A:J,10,0),"") -> 
B30: =IFERROR(VLOOKUP(A30,Лист1!A:J,2,0),"-") -> - | D30: =IFERROR(IF(C30<=техническая!AF23,техническая!AF23,(ROUNDUP((C30/техническая!AF23),0)*техническая!AF23)),"") ->  | E30: =IFERROR(VLOOKUP(A30,'OBO прайс-лист'!A:J,3,0),"-") -> - | F30: =IFERROR(VLOOKUP(A30,'OBO прайс-лист'!A:J,5,0),"-") -> - | G30: =IFERROR(VLOOKUP(A30,'OBO прайс-лист'!A:J,6,0),"-") -> - | H30: - | I30: - | J30: =IFERROR(IF(C30<=0,"",IF(C30<=техническая!AE23,"Достатньо",техническая!AE23)),0) ->  | K30: =IFERROR(VLOOKUP(техническая!Z23,техническая!A:I,9,0),"") ->  | M30: =IFERROR(VLOOKUP(A30,'OBO прайс-лист'!A:J,10,0),"") -> 
B31: =IFERROR(VLOOKUP(A31,Лист1!A:J,2,0),"-") -> - | D31: =IFERROR(IF(C31<=техническая!AF24,техническая!AF24,(ROUNDUP((C31/техническая!AF24),0)*техническая!AF24)),"") ->  | E31: =IFERROR(VLOOKUP(A31,'OBO прайс-лист'!A:J,3,0),"-") -> - | F31: =IFERROR(VLOOKUP(A31,'OBO прайс-лист'!A:J,5,0),"-") -> - | G31: =IFERROR(VLOOKUP(A31,'OBO прайс-лист'!A:J,6,0),"-") -> - | H31: - | I31: - | J31: =IFERROR(IF(C31<=0,"",IF(C31<=техническая!AE24,"Достатньо",техническая!AE24)),0) ->  | K31: =IFERROR(VLOOKUP(техническая!Z24,техническая!A:I,9,0),"") ->  | M31: =IFERROR(VLOOKUP(A31,'OBO прайс-лист'!A:J,10,0),"") -> 
B32: =IFERROR(VLOOKUP(A32,Лист1!A:J,2,0),"-") -> - | D32: =IFERROR(IF(C32<=техническая!AF25,техническая!AF25,(ROUNDUP((C32/техническая!AF25),0)*техническая!AF25)),"") ->  | E32: =IFERROR(VLOOKUP(A32,'OBO прайс-лист'!A:J,3,0),"-") -> - | F32: =IFERROR(VLOOKUP(A32,'OBO прайс-лист'!A:J,5,0),"-") -> - | G32: =IFERROR(VLOOKUP(A32,'OBO прайс-лист'!A:J,6,0),"-") -> - | H32: - | I32: - | J32: =IFERROR(IF(C32<=0,"",IF(C32<=техническая!AE25,"Достатньо",техническая!AE25)),0) ->  | K32: =IFERROR(VLOOKUP(техническая!Z25,техническая!A:I,9,0),"") ->  | M32: =IFERROR(VLOOKUP(A32,'OBO прайс-лист'!A:J,10,0),"") -> 
B33: =IFERROR(VLOOKUP(A33,Лист1!A:J,2,0),"-") -> - | D33: =IFERROR(IF(C33<=техническая!AF26,техническая!AF26,(ROUNDUP((C33/техническая!AF26),0)*техническая!AF26)),"") ->  | E33: =IFERROR(VLOOKUP(A33,'OBO прайс-лист'!A:J,3,0),"-") -> - | F33: =IFERROR(VLOOKUP(A33,'OBO прайс-лист'!A:J,5,0),"-") -> - | G33: =IFERROR(VLOOKUP(A33,'OBO прайс-лист'!A:J,6,0),"-") -> - | H33: - | I33: - | J33: =IFERROR(IF(C33<=0,"",IF(C33<=техническая!AE26,"Достатньо",техническая!AE26)),0) ->  | K33: =IFERROR(VLOOKUP(техническая!Z26,техническая!A:I,9,0),"") ->  | M33: =IFERROR(VLOOKUP(A33,'OBO прайс-лист'!A:J,10,0),"") -> 
B34: =IFERROR(VLOOKUP(A34,Лист1!A:J,2,0),"-") -> - | D34: =IFERROR(IF(C34<=техническая!AF27,техническая!AF27,(ROUNDUP((C34/техническая!AF27),0)*техническая!AF27)),"") ->  | E34: =IFERROR(VLOOKUP(A34,'OBO прайс-лист'!A:J,3,0),"-") -> - | F34: =IFERROR(VLOOKUP(A34,'OBO прайс-лист'!A:J,5,0),"-") -> - | G34: =IFERROR(VLOOKUP(A34,'OBO прайс-лист'!A:J,6,0),"-") -> - | H34: - | I34: - | J34: =IFERROR(IF(C34<=0,"",IF(C34<=техническая!AE27,"Достатньо",техническая!AE27)),0) ->  | K34: =IFERROR(VLOOKUP(техническая!Z27,техническая!A:I,9,0),"") ->  | M34: =IFERROR(VLOOKUP(A34,'OBO прайс-лист'!A:J,10,0),"") -> 
B35: =IFERROR(VLOOKUP(A35,Лист1!A:J,2,0),"-") -> - | D35: =IFERROR(IF(C35<=техническая!AF28,техническая!AF28,(ROUNDUP((C35/техническая!AF28),0)*техническая!AF28)),"") ->  | E35: =IFERROR(VLOOKUP(A35,'OBO прайс-лист'!A:J,3,0),"-") -> - | F35: =IFERROR(VLOOKUP(A35,'OBO прайс-лист'!A:J,5,0),"-") -> - | G35: =IFERROR(VLOOKUP(A35,'OBO прайс-лист'!A:J,6,0),"-") -> - | H35: - | I35: - | J35: =IFERROR(IF(C35<=0,"",IF(C35<=техническая!AE28,"Достатньо",техническая!AE28)),0) ->  | K35: =IFERROR(VLOOKUP(техническая!Z28,техническая!A:I,9,0),"") ->  | M35: =IFERROR(VLOOKUP(A35,'OBO прайс-лист'!A:J,10,0),"") -> 
B36: =IFERROR(VLOOKUP(A36,Лист1!A:J,2,0),"-") -> - | D36: =IFERROR(IF(C36<=техническая!AF29,техническая!AF29,(ROUNDUP((C36/техническая!AF29),0)*техническая!AF29)),"") ->  | E36: =IFERROR(VLOOKUP(A36,'OBO прайс-лист'!A:J,3,0),"-") -> - | F36: =IFERROR(VLOOKUP(A36,'OBO прайс-лист'!A:J,5,0),"-") -> - | G36: =IFERROR(VLOOKUP(A36,'OBO прайс-лист'!A:J,6,0),"-") -> - | H36: - | I36: - | J36: =IFERROR(IF(C36<=0,"",IF(C36<=техническая!AE29,"Достатньо",техническая!AE29)),0) ->  | K36: =IFERROR(VLOOKUP(техническая!Z29,техническая!A:I,9,0),"") ->  | M36: =IFERROR(VLOOKUP(A36,'OBO прайс-лист'!A:J,10,0),"") -> 
B37: =IFERROR(VLOOKUP(A37,Лист1!A:J,2,0),"-") -> - | D37: =IFERROR(IF(C37<=техническая!AF30,техническая!AF30,(ROUNDUP((C37/техническая!AF30),0)*техническая!AF30)),"") ->  | E37: =IFERROR(VLOOKUP(A37,'OBO прайс-лист'!A:J,3,0),"-") -> - | F37: =IFERROR(VLOOKUP(A37,'OBO прайс-лист'!A:J,5,0),"-") -> - | G37: =IFERROR(VLOOKUP(A37,'OBO прайс-лист'!A:J,6,0),"-") -> - | H37: - | I37: - | J37: =IFERROR(IF(C37<=0,"",IF(C37<=техническая!AE30,"Достатньо",техническая!AE30)),0) ->  | K37: =IFERROR(VLOOKUP(техническая!Z30,техническая!A:I,9,0),"") ->  | M37: =IFERROR(VLOOKUP(A37,'OBO прайс-лист'!A:J,10,0),"") -> 
B38: =IFERROR(VLOOKUP(A38,Лист1!A:J,2,0),"-") -> - | D38: =IFERROR(IF(C38<=техническая!AF31,техническая!AF31,(ROUNDUP((C38/техническая!AF31),0)*техническая!AF31)),"") ->  | E38: =IFERROR(VLOOKUP(A38,'OBO прайс-лист'!A:J,3,0),"-") -> - | F38: =IFERROR(VLOOKUP(A38,'OBO прайс-лист'!A:J,5,0),"-") -> - | G38: =IFERROR(VLOOKUP(A38,'OBO прайс-лист'!A:J,6,0),"-") -> - | H38: - | I38: - | J38: =IFERROR(IF(C38<=0,"",IF(C38<=техническая!AE31,"Достатньо",техническая!AE31)),0) ->  | K38: =IFERROR(VLOOKUP(техническая!Z31,техническая!A:I,9,0),"") ->  | M38: =IFERROR(VLOOKUP(A38,'OBO прайс-лист'!A:J,10,0),"") -> 
B39: =IFERROR(VLOOKUP(A39,Лист1!A:J,2,0),"-") -> - | D39: =IFERROR(IF(C39<=техническая!AF32,техническая!AF32,(ROUNDUP((C39/техническая!AF32),0)*техническая!AF32)),"") ->  | E39: =IFERROR(VLOOKUP(A39,'OBO прайс-лист'!A:J,3,0),"-") -> - | F39: =IFERROR(VLOOKUP(A39,'OBO прайс-лист'!A:J,5,0),"-") -> - | G39: =IFERROR(VLOOKUP(A39,'OBO прайс-лист'!A:J,6,0),"-") -> - | H39: - | I39: - | J39: =IFERROR(IF(C39<=0,"",IF(C39<=техническая!AE32,"Достатньо",техническая!AE32)),0) ->  | K39: =IFERROR(VLOOKUP(техническая!Z32,техническая!A:I,9,0),"") ->  | M39: =IFERROR(VLOOKUP(A39,'OBO прайс-лист'!A:J,10,0),"") -> 
B40: =IFERROR(VLOOKUP(A40,Лист1!A:J,2,0),"-") -> - | D40: =IFERROR(IF(C40<=техническая!AF33,техническая!AF33,(ROUNDUP((C40/техническая!AF33),0)*техническая!AF33)),"") ->  | E40: =IFERROR(VLOOKUP(A40,'OBO прайс-лист'!A:J,3,0),"-") -> - | F40: =IFERROR(VLOOKUP(A40,'OBO прайс-лист'!A:J,5,0),"-") -> - | G40: =IFERROR(VLOOKUP(A40,'OBO прайс-лист'!A:J,6,0),"-") -> - | H40: - | I40: - | J40: =IFERROR(IF(C40<=0,"",IF(C40<=техническая!AE33,"Достатньо",техническая!AE33)),0) ->  | K40: =IFERROR(VLOOKUP(техническая!Z33,техническая!A:I,9,0),"") ->  | M40: =IFERROR(VLOOKUP(A40,'OBO прайс-лист'!A:J,10,0),"") -> 
B41: =IFERROR(VLOOKUP(A41,Лист1!A:J,2,0),"-") -> - | D41: =IFERROR(IF(C41<=техническая!AF34,техническая!AF34,(ROUNDUP((C41/техническая!AF34),0)*техническая!AF34)),"") ->  | E41: =IFERROR(VLOOKUP(A41,'OBO прайс-лист'!A:J,3,0),"-") -> - | F41: =IFERROR(VLOOKUP(A41,'OBO прайс-лист'!A:J,5,0),"-") -> - | G41: =IFERROR(VLOOKUP(A41,'OBO прайс-лист'!A:J,6,0),"-") -> - | H41: - | I41: - | J41: =IFERROR(IF(C41<=0,"",IF(C41<=техническая!AE34,"Достатньо",техническая!AE34)),0) ->  | K41: =IFERROR(VLOOKUP(техническая!Z34,техническая!A:I,9,0),"") ->  | M41: =IFERROR(VLOOKUP(A41,'OBO прайс-лист'!A:J,10,0),"") -> 
B42: =IFERROR(VLOOKUP(A42,Лист1!A:J,2,0),"-") -> - | D42: =IFERROR(IF(C42<=техническая!AF35,техническая!AF35,(ROUNDUP((C42/техническая!AF35),0)*техническая!AF35)),"") ->  | E42: =IFERROR(VLOOKUP(A42,'OBO прайс-лист'!A:J,3,0),"-") -> - | F42: =IFERROR(VLOOKUP(A42,'OBO прайс-лист'!A:J,5,0),"-") -> - | G42: =IFERROR(VLOOKUP(A42,'OBO прайс-лист'!A:J,6,0),"-") -> - | H42: - | I42: - | J42: =IFERROR(IF(C42<=0,"",IF(C42<=техническая!AE35,"Достатньо",техническая!AE35)),0) ->  | K42: =IFERROR(VLOOKUP(техническая!Z35,техническая!A:I,9,0),"") ->  | M42: =IFERROR(VLOOKUP(A42,'OBO прайс-лист'!A:J,10,0),"") -> 
B43: =IFERROR(VLOOKUP(A43,Лист1!A:J,2,0),"-") -> - | D43: =IFERROR(IF(C43<=техническая!AF36,техническая!AF36,(ROUNDUP((C43/техническая!AF36),0)*техническая!AF36)),"") ->  | E43: =IFERROR(VLOOKUP(A43,'OBO прайс-лист'!A:J,3,0),"-") -> - | F43: =IFERROR(VLOOKUP(A43,'OBO прайс-лист'!A:J,5,0),"-") -> - | G43: =IFERROR(VLOOKUP(A43,'OBO прайс-лист'!A:J,6,0),"-") -> - | H43: - | I43: - | J43: =IFERROR(IF(C43<=0,"",IF(C43<=техническая!AE36,"Достатньо",техническая!AE36)),0) ->  | K43: =IFERROR(VLOOKUP(техническая!Z36,техническая!A:I,9,0),"") ->  | M43: =IFERROR(VLOOKUP(A43,'OBO прайс-лист'!A:J,10,0),"") -> 
B44: =IFERROR(VLOOKUP(A44,Лист1!A:J,2,0),"-") -> - | D44: =IFERROR(IF(C44<=техническая!AF37,техническая!AF37,(ROUNDUP((C44/техническая!AF37),0)*техническая!AF37)),"") ->  | E44: =IFERROR(VLOOKUP(A44,'OBO прайс-лист'!A:J,3,0),"-") -> - | F44: =IFERROR(VLOOKUP(A44,'OBO прайс-лист'!A:J,5,0),"-") -> - | G44: =IFERROR(VLOOKUP(A44,'OBO прайс-лист'!A:J,6,0),"-") -> - | H44: - | I44: - | J44: =IFERROR(IF(C44<=0,"",IF(C44<=техническая!AE37,"Достатньо",техническая!AE37)),0) ->  | K44: =IFERROR(VLOOKUP(техническая!Z37,техническая!A:I,9,0),"") ->  | M44: =IFERROR(VLOOKUP(A44,'OBO прайс-лист'!A:J,10,0),"") -> 
B45: =IFERROR(VLOOKUP(A45,Лист1!A:J,2,0),"-") -> - | D45: =IFERROR(IF(C45<=техническая!AF38,техническая!AF38,(ROUNDUP((C45/техническая!AF38),0)*техническая!AF38)),"") ->  | E45: =IFERROR(VLOOKUP(A45,'OBO прайс-лист'!A:J,3,0),"-") -> - | F45: =IFERROR(VLOOKUP(A45,'OBO прайс-лист'!A:J,5,0),"-") -> - | G45: =IFERROR(VLOOKUP(A45,'OBO прайс-лист'!A:J,6,0),"-") -> - | H45: - | I45: - | J45: =IFERROR(IF(C45<=0,"",IF(C45<=техническая!AE38,"Достатньо",техническая!AE38)),0) ->  | K45: =IFERROR(VLOOKUP(техническая!Z38,техническая!A:I,9,0),"") ->  | M45: =IFERROR(VLOOKUP(A45,'OBO прайс-лист'!A:J,10,0),"") -> 
B46: =IFERROR(VLOOKUP(A46,Лист1!A:J,2,0),"-") -> - | D46: =IFERROR(IF(C46<=техническая!AF39,техническая!AF39,(ROUNDUP((C46/техническая!AF39),0)*техническая!AF39)),"") ->  | E46: =IFERROR(VLOOKUP(A46,'OBO прайс-лист'!A:J,3,0),"-") -> - | F46: =IFERROR(VLOOKUP(A46,'OBO прайс-лист'!A:J,5,0),"-") -> - | G46: =IFERROR(VLOOKUP(A46,'OBO прайс-лист'!A:J,6,0),"-") -> - | H46: - | I46: - | J46: =IFERROR(IF(C46<=0,"",IF(C46<=техническая!AE39,"Достатньо",техническая!AE39)),0) ->  | K46: =IFERROR(VLOOKUP(техническая!Z39,техническая!A:I,9,0),"") ->  | M46: =IFERROR(VLOOKUP(A46,'OBO прайс-лист'!A:J,10,0),"") -> 
B47: =IFERROR(VLOOKUP(A47,Лист1!A:J,2,0),"-") -> - | D47: =IFERROR(IF(C47<=техническая!AF40,техническая!AF40,(ROUNDUP((C47/техническая!AF40),0)*техническая!AF40)),"") ->  | E47: =IFERROR(VLOOKUP(A47,'OBO прайс-лист'!A:J,3,0),"-") -> - | F47: =IFERROR(VLOOKUP(A47,'OBO прайс-лист'!A:J,5,0),"-") -> - | G47: =IFERROR(VLOOKUP(A47,'OBO прайс-лист'!A:J,6,0),"-") -> - | H47: - | I47: - | J47: =IFERROR(IF(C47<=0,"",IF(C47<=техническая!AE40,"Достатньо",техническая!AE40)),0) ->  | K47: =IFERROR(VLOOKUP(техническая!Z40,техническая!A:I,9,0),"") ->  | M47: =IFERROR(VLOOKUP(A47,'OBO прайс-лист'!A:J,10,0),"") -> 
B48: =IFERROR(VLOOKUP(A48,Лист1!A:J,2,0),"-") -> - | D48: =IFERROR(IF(C48<=техническая!AF41,техническая!AF41,(ROUNDUP((C48/техническая!AF41),0)*техническая!AF41)),"") ->  | E48: =IFERROR(VLOOKUP(A48,'OBO прайс-лист'!A:J,3,0),"-") -> - | F48: =IFERROR(VLOOKUP(A48,'OBO прайс-лист'!A:J,5,0),"-") -> - | G48: =IFERROR(VLOOKUP(A48,'OBO прайс-лист'!A:J,6,0),"-") -> - | H48: - | I48: - | J48: =IFERROR(IF(C48<=0,"",IF(C48<=техническая!AE41,"Достатньо",техническая!AE41)),0) ->  | K48: =IFERROR(VLOOKUP(техническая!Z41,техническая!A:I,9,0),"") ->  | M48: =IFERROR(VLOOKUP(A48,'OBO прайс-лист'!A:J,10,0),"") -> 
B49: =IFERROR(VLOOKUP(A49,Лист1!A:J,2,0),"-") -> - | D49: =IFERROR(IF(C49<=техническая!AF42,техническая!AF42,(ROUNDUP((C49/техническая!AF42),0)*техническая!AF42)),"") ->  | E49: =IFERROR(VLOOKUP(A49,'OBO прайс-лист'!A:J,3,0),"-") -> - | F49: =IFERROR(VLOOKUP(A49,'OBO прайс-лист'!A:J,5,0),"-") -> - | G49: =IFERROR(VLOOKUP(A49,'OBO прайс-лист'!A:J,6,0),"-") -> - | H49: - | I49: - | J49: =IFERROR(IF(C49<=0,"",IF(C49<=техническая!AE42,"Достатньо",техническая!AE42)),0) ->  | K49: =IFERROR(VLOOKUP(техническая!Z42,техническая!A:I,9,0),"") ->  | M49: =IFERROR(VLOOKUP(A49,'OBO прайс-лист'!A:J,10,0),"") -> 
B50: =IFERROR(VLOOKUP(A50,Лист1!A:J,2,0),"-") -> - | D50: =IFERROR(IF(C50<=техническая!AF43,техническая!AF43,(ROUNDUP((C50/техническая!AF43),0)*техническая!AF43)),"") ->  | E50: =IFERROR(VLOOKUP(A50,'OBO прайс-лист'!A:J,3,0),"-") -> - | F50: =IFERROR(VLOOKUP(A50,'OBO прайс-лист'!A:J,5,0),"-") -> - | G50: =IFERROR(VLOOKUP(A50,'OBO прайс-лист'!A:J,6,0),"-") -> - | H50: - | I50: - | J50: =IFERROR(IF(C50<=0,"",IF(C50<=техническая!AE43,"Достатньо",техническая!AE43)),0) ->  | K50: =IFERROR(VLOOKUP(техническая!Z43,техническая!A:I,9,0),"") ->  | M50: =IFERROR(VLOOKUP(A50,'OBO прайс-лист'!A:J,10,0),"") -> 
B51: =IFERROR(VLOOKUP(A51,Лист1!A:J,2,0),"-") -> - | D51: =IFERROR(IF(C51<=техническая!AF44,техническая!AF44,(ROUNDUP((C51/техническая!AF44),0)*техническая!AF44)),"") ->  | E51: =IFERROR(VLOOKUP(A51,'OBO прайс-лист'!A:J,3,0),"-") -> - | F51: =IFERROR(VLOOKUP(A51,'OBO прайс-лист'!A:J,5,0),"-") -> - | G51: =IFERROR(VLOOKUP(A51,'OBO прайс-лист'!A:J,6,0),"-") -> - | H51: - | I51: - | J51: =IFERROR(IF(C51<=0,"",IF(C51<=техническая!AE44,"Достатньо",техническая!AE44)),0) ->  | K51: =IFERROR(VLOOKUP(техническая!Z44,техническая!A:I,9,0),"") ->  | M51: =IFERROR(VLOOKUP(A51,'OBO прайс-лист'!A:J,10,0),"") -> 
B52: =IFERROR(VLOOKUP(A52,Лист1!A:J,2,0),"-") -> - | D52: =IFERROR(IF(C52<=техническая!AF45,техническая!AF45,(ROUNDUP((C52/техническая!AF45),0)*техническая!AF45)),"") ->  | E52: =IFERROR(VLOOKUP(A52,'OBO прайс-лист'!A:J,3,0),"-") -> - | F52: =IFERROR(VLOOKUP(A52,'OBO прайс-лист'!A:J,5,0),"-") -> - | G52: =IFERROR(VLOOKUP(A52,'OBO прайс-лист'!A:J,6,0),"-") -> - | H52: - | I52: - | J52: =IFERROR(IF(C52<=0,"",IF(C52<=техническая!AE45,"Достатньо",техническая!AE45)),0) ->  | K52: =IFERROR(VLOOKUP(техническая!Z45,техническая!A:I,9,0),"") ->  | M52: =IFERROR(VLOOKUP(A52,'OBO прайс-лист'!A:J,10,0),"") -> 
B53: =IFERROR(VLOOKUP(A53,Лист1!A:J,2,0),"-") -> - | D53: =IFERROR(IF(C53<=техническая!AF46,техническая!AF46,(ROUNDUP((C53/техническая!AF46),0)*техническая!AF46)),"") ->  | E53: =IFERROR(VLOOKUP(A53,'OBO прайс-лист'!A:J,3,0),"-") -> - | F53: =IFERROR(VLOOKUP(A53,'OBO прайс-лист'!A:J,5,0),"-") -> - | G53: =IFERROR(VLOOKUP(A53,'OBO прайс-лист'!A:J,6,0),"-") -> - | H53: - | I53: - | J53: =IFERROR(IF(C53<=0,"",IF(C53<=техническая!AE46,"Достатньо",техническая!AE46)),0) ->  | K53: =IFERROR(VLOOKUP(техническая!Z46,техническая!A:I,9,0),"") ->  | M53: =IFERROR(VLOOKUP(A53,'OBO прайс-лист'!A:J,10,0),"") -> 
B54: =IFERROR(VLOOKUP(A54,Лист1!A:J,2,0),"-") -> - | D54: =IFERROR(IF(C54<=техническая!AF47,техническая!AF47,(ROUNDUP((C54/техническая!AF47),0)*техническая!AF47)),"") ->  | E54: =IFERROR(VLOOKUP(A54,'OBO прайс-лист'!A:J,3,0),"-") -> - | F54: =IFERROR(VLOOKUP(A54,'OBO прайс-лист'!A:J,5,0),"-") -> - | G54: =IFERROR(VLOOKUP(A54,'OBO прайс-лист'!A:J,6,0),"-") -> - | H54: - | I54: - | J54: =IFERROR(IF(C54<=0,"",IF(C54<=техническая!AE47,"Достатньо",техническая!AE47)),0) ->  | K54: =IFERROR(VLOOKUP(техническая!Z47,техническая!A:I,9,0),"") ->  | M54: =IFERROR(VLOOKUP(A54,'OBO прайс-лист'!A:J,10,0),"") -> 
B55: =IFERROR(VLOOKUP(A55,Лист1!A:J,2,0),"-") -> - | D55: =IFERROR(IF(C55<=техническая!AF48,техническая!AF48,(ROUNDUP((C55/техническая!AF48),0)*техническая!AF48)),"") ->  | E55: =IFERROR(VLOOKUP(A55,'OBO прайс-лист'!A:J,3,0),"-") -> - | F55: =IFERROR(VLOOKUP(A55,'OBO прайс-лист'!A:J,5,0),"-") -> - | G55: =IFERROR(VLOOKUP(A55,'OBO прайс-лист'!A:J,6,0),"-") -> - | H55: - | I55: - | J55: =IFERROR(IF(C55<=0,"",IF(C55<=техническая!AE48,"Достатньо",техническая!AE48)),0) ->  | K55: =IFERROR(VLOOKUP(техническая!Z48,техническая!A:I,9,0),"") ->  | M55: =IFERROR(VLOOKUP(A55,'OBO прайс-лист'!A:J,10,0),"") -> 
B56: =IFERROR(VLOOKUP(A56,Лист1!A:J,2,0),"-") -> - | D56: =IFERROR(IF(C56<=техническая!AF49,техническая!AF49,(ROUNDUP((C56/техническая!AF49),0)*техническая!AF49)),"") ->  | E56: =IFERROR(VLOOKUP(A56,'OBO прайс-лист'!A:J,3,0),"-") -> - | F56: =IFERROR(VLOOKUP(A56,'OBO прайс-лист'!A:J,5,0),"-") -> - | G56: =IFERROR(VLOOKUP(A56,'OBO прайс-лист'!A:J,6,0),"-") -> - | H56: - | I56: - | J56: =IFERROR(IF(C56<=0,"",IF(C56<=техническая!AE49,"Достатньо",техническая!AE49)),0) ->  | K56: =IFERROR(VLOOKUP(техническая!Z49,техническая!A:I,9,0),"") ->  | M56: =IFERROR(VLOOKUP(A56,'OBO прайс-лист'!A:J,10,0),"") -> 
B57: =IFERROR(VLOOKUP(A57,Лист1!A:J,2,0),"-") -> - | D57: =IFERROR(IF(C57<=техническая!AF50,техническая!AF50,(ROUNDUP((C57/техническая!AF50),0)*техническая!AF50)),"") ->  | E57: =IFERROR(VLOOKUP(A57,'OBO прайс-лист'!A:J,3,0),"-") -> - | F57: =IFERROR(VLOOKUP(A57,'OBO прайс-лист'!A:J,5,0),"-") -> - | G57: =IFERROR(VLOOKUP(A57,'OBO прайс-лист'!A:J,6,0),"-") -> - | H57: - | I57: - | J57: =IFERROR(IF(C57<=0,"",IF(C57<=техническая!AE50,"Достатньо",техническая!AE50)),0) ->  | K57: =IFERROR(VLOOKUP(техническая!Z50,техническая!A:I,9,0),"") ->  | M57: =IFERROR(VLOOKUP(A57,'OBO прайс-лист'!A:J,10,0),"") -> 
B58: =IFERROR(VLOOKUP(A58,Лист1!A:J,2,0),"-") -> - | D58: =IFERROR(IF(C58<=техническая!AF51,техническая!AF51,(ROUNDUP((C58/техническая!AF51),0)*техническая!AF51)),"") ->  | E58: =IFERROR(VLOOKUP(A58,'OBO прайс-лист'!A:J,3,0),"-") -> - | F58: =IFERROR(VLOOKUP(A58,'OBO прайс-лист'!A:J,5,0),"-") -> - | G58: =IFERROR(VLOOKUP(A58,'OBO прайс-лист'!A:J,6,0),"-") -> - | H58: - | I58: - | J58: =IFERROR(IF(C58<=0,"",IF(C58<=техническая!AE51,"Достатньо",техническая!AE51)),0) ->  | K58: =IFERROR(VLOOKUP(техническая!Z51,техническая!A:I,9,0),"") ->  | M58: =IFERROR(VLOOKUP(A58,'OBO прайс-лист'!A:J,10,0),"") -> 
B59: =IFERROR(VLOOKUP(A59,Лист1!A:J,2,0),"-") -> - | D59: =IFERROR(IF(C59<=техническая!AF52,техническая!AF52,(ROUNDUP((C59/техническая!AF52),0)*техническая!AF52)),"") ->  | E59: =IFERROR(VLOOKUP(A59,'OBO прайс-лист'!A:J,3,0),"-") -> - | F59: =IFERROR(VLOOKUP(A59,'OBO прайс-лист'!A:J,5,0),"-") -> - | G59: =IFERROR(VLOOKUP(A59,'OBO прайс-лист'!A:J,6,0),"-") -> - | H59: - | I59: - | J59: =IFERROR(IF(C59<=0,"",IF(C59<=техническая!AE52,"Достатньо",техническая!AE52)),0) ->  | K59: =IFERROR(VLOOKUP(техническая!Z52,техническая!A:I,9,0),"") ->  | M59: =IFERROR(VLOOKUP(A59,'OBO прайс-лист'!A:J,10,0),"") -> 
B60: =IFERROR(VLOOKUP(A60,Лист1!A:J,2,0),"-") -> - | D60: =IFERROR(IF(C60<=техническая!AF53,техническая!AF53,(ROUNDUP((C60/техническая!AF53),0)*техническая!AF53)),"") ->  | E60: =IFERROR(VLOOKUP(A60,'OBO прайс-лист'!A:J,3,0),"-") -> - | F60: =IFERROR(VLOOKUP(A60,'OBO прайс-лист'!A:J,5,0),"-") -> - | G60: =IFERROR(VLOOKUP(A60,'OBO прайс-лист'!A:J,6,0),"-") -> - | H60: - | I60: - | J60: =IFERROR(IF(C60<=0,"",IF(C60<=техническая!AE53,"Достатньо",техническая!AE53)),0) ->  | K60: =IFERROR(VLOOKUP(техническая!Z53,техническая!A:I,9,0),"") ->  | M60: =IFERROR(VLOOKUP(A60,'OBO прайс-лист'!A:J,10,0),"") -> 
B61: =IFERROR(VLOOKUP(A61,Лист1!A:J,2,0),"-") -> - | D61: =IFERROR(IF(C61<=техническая!AF54,техническая!AF54,(ROUNDUP((C61/техническая!AF54),0)*техническая!AF54)),"") ->  | E61: =IFERROR(VLOOKUP(A61,'OBO прайс-лист'!A:J,3,0),"-") -> - | F61: =IFERROR(VLOOKUP(A61,'OBO прайс-лист'!A:J,5,0),"-") -> - | G61: =IFERROR(VLOOKUP(A61,'OBO прайс-лист'!A:J,6,0),"-") -> - | H61: - | I61: - | J61: =IFERROR(IF(C61<=0,"",IF(C61<=техническая!AE54,"Достатньо",техническая!AE54)),0) ->  | K61: =IFERROR(VLOOKUP(техническая!Z54,техническая!A:I,9,0),"") ->  | M61: =IFERROR(VLOOKUP(A61,'OBO прайс-лист'!A:J,10,0),"") -> 
B62: =IFERROR(VLOOKUP(A62,Лист1!A:J,2,0),"-") -> - | D62: =IFERROR(IF(C62<=техническая!AF55,техническая!AF55,(ROUNDUP((C62/техническая!AF55),0)*техническая!AF55)),"") ->  | E62: =IFERROR(VLOOKUP(A62,'OBO прайс-лист'!A:J,3,0),"-") -> - | F62: =IFERROR(VLOOKUP(A62,'OBO прайс-лист'!A:J,5,0),"-") -> - | G62: =IFERROR(VLOOKUP(A62,'OBO прайс-лист'!A:J,6,0),"-") -> - | H62: - | I62: - | J62: =IFERROR(IF(C62<=0,"",IF(C62<=техническая!AE55,"Достатньо",техническая!AE55)),0) ->  | K62: =IFERROR(VLOOKUP(техническая!Z55,техническая!A:I,9,0),"") ->  | M62: =IFERROR(VLOOKUP(A62,'OBO прайс-лист'!A:J,10,0),"") -> 
B63: =IFERROR(VLOOKUP(A63,Лист1!A:J,2,0),"-") -> - | D63: =IFERROR(IF(C63<=техническая!AF56,техническая!AF56,(ROUNDUP((C63/техническая!AF56),0)*техническая!AF56)),"") ->  | E63: =IFERROR(VLOOKUP(A63,'OBO прайс-лист'!A:J,3,0),"-") -> - | F63: =IFERROR(VLOOKUP(A63,'OBO прайс-лист'!A:J,5,0),"-") -> - | G63: =IFERROR(VLOOKUP(A63,'OBO прайс-лист'!A:J,6,0),"-") -> - | H63: - | I63: - | J63: =IFERROR(IF(C63<=0,"",IF(C63<=техническая!AE56,"Достатньо",техническая!AE56)),0) ->  | K63: =IFERROR(VLOOKUP(техническая!Z56,техническая!A:I,9,0),"") ->  | M63: =IFERROR(VLOOKUP(A63,'OBO прайс-лист'!A:J,10,0),"") -> 
B64: =IFERROR(VLOOKUP(A64,Лист1!A:J,2,0),"-") -> - | D64: =IFERROR(IF(C64<=техническая!AF57,техническая!AF57,(ROUNDUP((C64/техническая!AF57),0)*техническая!AF57)),"") ->  | E64: =IFERROR(VLOOKUP(A64,'OBO прайс-лист'!A:J,3,0),"-") -> - | F64: =IFERROR(VLOOKUP(A64,'OBO прайс-лист'!A:J,5,0),"-") -> - | G64: =IFERROR(VLOOKUP(A64,'OBO прайс-лист'!A:J,6,0),"-") -> - | H64: - | I64: - | J64: =IFERROR(IF(C64<=0,"",IF(C64<=техническая!AE57,"Достатньо",техническая!AE57)),0) ->  | K64: =IFERROR(VLOOKUP(техническая!Z57,техническая!A:I,9,0),"") ->  | M64: =IFERROR(VLOOKUP(A64,'OBO прайс-лист'!A:J,10,0),"") -> 
B65: =IFERROR(VLOOKUP(A65,Лист1!A:J,2,0),"-") -> - | D65: =IFERROR(IF(C65<=техническая!AF58,техническая!AF58,(ROUNDUP((C65/техническая!AF58),0)*техническая!AF58)),"") ->  | E65: =IFERROR(VLOOKUP(A65,'OBO прайс-лист'!A:J,3,0),"-") -> - | F65: =IFERROR(VLOOKUP(A65,'OBO прайс-лист'!A:J,5,0),"-") -> - | G65: =IFERROR(VLOOKUP(A65,'OBO прайс-лист'!A:J,6,0),"-") -> - | H65: - | I65: - | J65: =IFERROR(IF(C65<=0,"",IF(C65<=техническая!AE58,"Достатньо",техническая!AE58)),0) ->  | K65: =IFERROR(VLOOKUP(техническая!Z58,техническая!A:I,9,0),"") ->  | M65: =IFERROR(VLOOKUP(A65,'OBO прайс-лист'!A:J,10,0),"") -> 
B66: =IFERROR(VLOOKUP(A66,Лист1!A:J,2,0),"-") -> - | D66: =IFERROR(IF(C66<=техническая!AF59,техническая!AF59,(ROUNDUP((C66/техническая!AF59),0)*техническая!AF59)),"") ->  | E66: =IFERROR(VLOOKUP(A66,'OBO прайс-лист'!A:J,3,0),"-") -> - | F66: =IFERROR(VLOOKUP(A66,'OBO прайс-лист'!A:J,5,0),"-") -> - | G66: =IFERROR(VLOOKUP(A66,'OBO прайс-лист'!A:J,6,0),"-") -> - | H66: - | I66: - | J66: =IFERROR(IF(C66<=0,"",IF(C66<=техническая!AE59,"Достатньо",техническая!AE59)),0) ->  | K66: =IFERROR(VLOOKUP(техническая!Z59,техническая!A:I,9,0),"") ->  | M66: =IFERROR(VLOOKUP(A66,'OBO прайс-лист'!A:J,10,0),"") -> 
B67: =IFERROR(VLOOKUP(A67,Лист1!A:J,2,0),"-") -> - | D67: =IFERROR(IF(C67<=техническая!AF60,техническая!AF60,(ROUNDUP((C67/техническая!AF60),0)*техническая!AF60)),"") ->  | E67: =IFERROR(VLOOKUP(A67,'OBO прайс-лист'!A:J,3,0),"-") -> - | F67: =IFERROR(VLOOKUP(A67,'OBO прайс-лист'!A:J,5,0),"-") -> - | G67: =IFERROR(VLOOKUP(A67,'OBO прайс-лист'!A:J,6,0),"-") -> - | H67: - | I67: - | J67: =IFERROR(IF(C67<=0,"",IF(C67<=техническая!AE60,"Достатньо",техническая!AE60)),0) ->  | K67: =IFERROR(VLOOKUP(техническая!Z60,техническая!A:I,9,0),"") ->  | M67: =IFERROR(VLOOKUP(A67,'OBO прайс-лист'!A:J,10,0),"") -> 
B68: =IFERROR(VLOOKUP(A68,Лист1!A:J,2,0),"-") -> - | D68: =IFERROR(IF(C68<=техническая!AF61,техническая!AF61,(ROUNDUP((C68/техническая!AF61),0)*техническая!AF61)),"") ->  | E68: =IFERROR(VLOOKUP(A68,'OBO прайс-лист'!A:J,3,0),"-") -> - | F68: =IFERROR(VLOOKUP(A68,'OBO прайс-лист'!A:J,5,0),"-") -> - | G68: =IFERROR(VLOOKUP(A68,'OBO прайс-лист'!A:J,6,0),"-") -> - | H68: - | I68: - | J68: =IFERROR(IF(C68<=0,"",IF(C68<=техническая!AE61,"Достатньо",техническая!AE61)),0) ->  | K68: =IFERROR(VLOOKUP(техническая!Z61,техническая!A:I,9,0),"") ->  | M68: =IFERROR(VLOOKUP(A68,'OBO прайс-лист'!A:J,10,0),"") -> 
B69: =IFERROR(VLOOKUP(A69,Лист1!A:J,2,0),"-") -> - | D69: =IFERROR(IF(C69<=техническая!AF62,техническая!AF62,(ROUNDUP((C69/техническая!AF62),0)*техническая!AF62)),"") ->  | E69: =IFERROR(VLOOKUP(A69,'OBO прайс-лист'!A:J,3,0),"-") -> - | F69: =IFERROR(VLOOKUP(A69,'OBO прайс-лист'!A:J,5,0),"-") -> - | G69: =IFERROR(VLOOKUP(A69,'OBO прайс-лист'!A:J,6,0),"-") -> - | H69: - | I69: - | J69: =IFERROR(IF(C69<=0,"",IF(C69<=техническая!AE62,"Достатньо",техническая!AE62)),0) ->  | K69: =IFERROR(VLOOKUP(техническая!Z62,техническая!A:I,9,0),"") ->  | M69: =IFERROR(VLOOKUP(A69,'OBO прайс-лист'!A:J,10,0),"") -> 
B70: =IFERROR(VLOOKUP(A70,Лист1!A:J,2,0),"-") -> - | D70: =IFERROR(IF(C70<=техническая!AF63,техническая!AF63,(ROUNDUP((C70/техническая!AF63),0)*техническая!AF63)),"") ->  | E70: =IFERROR(VLOOKUP(A70,'OBO прайс-лист'!A:J,3,0),"-") -> - | F70: =IFERROR(VLOOKUP(A70,'OBO прайс-лист'!A:J,5,0),"-") -> - | G70: =IFERROR(VLOOKUP(A70,'OBO прайс-лист'!A:J,6,0),"-") -> - | H70: - | I70: - | J70: =IFERROR(IF(C70<=0,"",IF(C70<=техническая!AE63,"Достатньо",техническая!AE63)),0) ->  | K70: =IFERROR(VLOOKUP(техническая!Z63,техническая!A:I,9,0),"") ->  | M70: =IFERROR(VLOOKUP(A70,'OBO прайс-лист'!A:J,10,0),"") -> 
B71: =IFERROR(VLOOKUP(A71,Лист1!A:J,2,0),"-") -> - | D71: =IFERROR(IF(C71<=техническая!AF64,техническая!AF64,(ROUNDUP((C71/техническая!AF64),0)*техническая!AF64)),"") ->  | E71: =IFERROR(VLOOKUP(A71,'OBO прайс-лист'!A:J,3,0),"-") -> - | F71: =IFERROR(VLOOKUP(A71,'OBO прайс-лист'!A:J,5,0),"-") -> - | G71: =IFERROR(VLOOKUP(A71,'OBO прайс-лист'!A:J,6,0),"-") -> - | H71: - | I71: - | J71: =IFERROR(IF(C71<=0,"",IF(C71<=техническая!AE64,"Достатньо",техническая!AE64)),0) ->  | K71: =IFERROR(VLOOKUP(техническая!Z64,техническая!A:I,9,0),"") ->  | M71: =IFERROR(VLOOKUP(A71,'OBO прайс-лист'!A:J,10,0),"") -> 
B72: =IFERROR(VLOOKUP(A72,Лист1!A:J,2,0),"-") -> - | D72: =IFERROR(IF(C72<=техническая!AF65,техническая!AF65,(ROUNDUP((C72/техническая!AF65),0)*техническая!AF65)),"") ->  | E72: =IFERROR(VLOOKUP(A72,'OBO прайс-лист'!A:J,3,0),"-") -> - | F72: =IFERROR(VLOOKUP(A72,'OBO прайс-лист'!A:J,5,0),"-") -> - | G72: =IFERROR(VLOOKUP(A72,'OBO прайс-лист'!A:J,6,0),"-") -> - | H72: - | I72: - | J72: =IFERROR(IF(C72<=0,"",IF(C72<=техническая!AE65,"Достатньо",техническая!AE65)),0) ->  | K72: =IFERROR(VLOOKUP(техническая!Z65,техническая!A:I,9,0),"") ->  | M72: =IFERROR(VLOOKUP(A72,'OBO прайс-лист'!A:J,10,0),"") -> 
B73: =IFERROR(VLOOKUP(A73,Лист1!A:J,2,0),"-") -> - | D73: =IFERROR(IF(C73<=техническая!AF66,техническая!AF66,(ROUNDUP((C73/техническая!AF66),0)*техническая!AF66)),"") ->  | E73: =IFERROR(VLOOKUP(A73,'OBO прайс-лист'!A:J,3,0),"-") -> - | F73: =IFERROR(VLOOKUP(A73,'OBO прайс-лист'!A:J,5,0),"-") -> - | G73: =IFERROR(VLOOKUP(A73,'OBO прайс-лист'!A:J,6,0),"-") -> - | H73: - | I73: - | J73: =IFERROR(IF(C73<=0,"",IF(C73<=техническая!AE66,"Достатньо",техническая!AE66)),0) ->  | K73: =IFERROR(VLOOKUP(техническая!Z66,техническая!A:I,9,0),"") ->  | M73: =IFERROR(VLOOKUP(A73,'OBO прайс-лист'!A:J,10,0),"") -> 
B74: =IFERROR(VLOOKUP(A74,Лист1!A:J,2,0),"-") -> - | D74: =IFERROR(IF(C74<=техническая!AF67,техническая!AF67,(ROUNDUP((C74/техническая!AF67),0)*техническая!AF67)),"") ->  | E74: =IFERROR(VLOOKUP(A74,'OBO прайс-лист'!A:J,3,0),"-") -> - | F74: =IFERROR(VLOOKUP(A74,'OBO прайс-лист'!A:J,5,0),"-") -> - | G74: =IFERROR(VLOOKUP(A74,'OBO прайс-лист'!A:J,6,0),"-") -> - | H74: =IFERROR(ROUND(E74*$C$6,2)*(1-K74),"-") -> - | I74: =IFERROR(ROUND(D74*ROUND((H74/F74),2)*1.2,2),"-") -> - | J74: =IFERROR(IF(C74<=0,"",IF(C74<=техническая!AE67,"Достатньо",техническая!AE67)),0) ->  | K74: =IFERROR(VLOOKUP(техническая!Z67,техническая!A:I,9,0),"") ->  | L74: =IFERROR(HYPERLINK(M74,M74),"") ->  | M74: =IFERROR(VLOOKUP(A74,'OBO прайс-лист'!A:J,10,0),"") -> 
B75: =IFERROR(VLOOKUP(A75,Лист1!A:J,2,0),"-") -> - | D75: =IFERROR(IF(C75<=техническая!AF68,техническая!AF68,(ROUNDUP((C75/техническая!AF68),0)*техническая!AF68)),"") ->  | E75: =IFERROR(VLOOKUP(A75,'OBO прайс-лист'!A:J,3,0),"-") -> - | F75: =IFERROR(VLOOKUP(A75,'OBO прайс-лист'!A:J,5,0),"-") -> - | G75: =IFERROR(VLOOKUP(A75,'OBO прайс-лист'!A:J,6,0),"-") -> - | H75: - | I75: - | J75: =IFERROR(IF(C75<=0,"",IF(C75<=техническая!AE68,"Достатньо",техническая!AE68)),0) ->  | K75: =IFERROR(VLOOKUP(техническая!Z68,техническая!A:I,9,0),"") ->  | M75: =IFERROR(VLOOKUP(A75,'OBO прайс-лист'!A:J,10,0),"") -> 
B76: =IFERROR(VLOOKUP(A76,Лист1!A:J,2,0),"-") -> - | D76: =IFERROR(IF(C76<=техническая!AF69,техническая!AF69,(ROUNDUP((C76/техническая!AF69),0)*техническая!AF69)),"") ->  | E76: =IFERROR(VLOOKUP(A76,'OBO прайс-лист'!A:J,3,0),"-") -> - | F76: =IFERROR(VLOOKUP(A76,'OBO прайс-лист'!A:J,5,0),"-") -> - | G76: =IFERROR(VLOOKUP(A76,'OBO прайс-лист'!A:J,6,0),"-") -> - | H76: - | I76: - | J76: =IFERROR(IF(C76<=0,"",IF(C76<=техническая!AE69,"Достатньо",техническая!AE69)),0) ->  | K76: =IFERROR(VLOOKUP(техническая!Z69,техническая!A:I,9,0),"") ->  | M76: =IFERROR(VLOOKUP(A76,'OBO прайс-лист'!A:J,10,0),"") -> 
B77: =IFERROR(VLOOKUP(A77,Лист1!A:J,2,0),"-") -> - | D77: =IFERROR(IF(C77<=техническая!AF70,техническая!AF70,(ROUNDUP((C77/техническая!AF70),0)*техническая!AF70)),"") ->  | E77: =IFERROR(VLOOKUP(A77,'OBO прайс-лист'!A:J,3,0),"-") -> - | F77: =IFERROR(VLOOKUP(A77,'OBO прайс-лист'!A:J,5,0),"-") -> - | G77: =IFERROR(VLOOKUP(A77,'OBO прайс-лист'!A:J,6,0),"-") -> - | H77: - | I77: - | J77: =IFERROR(IF(C77<=0,"",IF(C77<=техническая!AE70,"Достатньо",техническая!AE70)),0) ->  | K77: =IFERROR(VLOOKUP(техническая!Z70,техническая!A:I,9,0),"") ->  | M77: =IFERROR(VLOOKUP(A77,'OBO прайс-лист'!A:J,10,0),"") -> 
B78: =IFERROR(VLOOKUP(A78,Лист1!A:J,2,0),"-") -> - | D78: =IFERROR(IF(C78<=техническая!AF71,техническая!AF71,(ROUNDUP((C78/техническая!AF71),0)*техническая!AF71)),"") ->  | E78: =IFERROR(VLOOKUP(A78,'OBO прайс-лист'!A:J,3,0),"-") -> - | F78: =IFERROR(VLOOKUP(A78,'OBO прайс-лист'!A:J,5,0),"-") -> - | G78: =IFERROR(VLOOKUP(A78,'OBO прайс-лист'!A:J,6,0),"-") -> - | H78: - | I78: - | J78: =IFERROR(IF(C78<=0,"",IF(C78<=техническая!AE71,"Достатньо",техническая!AE71)),0) ->  | K78: =IFERROR(VLOOKUP(техническая!Z71,техническая!A:I,9,0),"") ->  | M78: =IFERROR(VLOOKUP(A78,'OBO прайс-лист'!A:J,10,0),"") -> 
B79: =IFERROR(VLOOKUP(A79,Лист1!A:J,2,0),"-") -> - | D79: =IFERROR(IF(C79<=техническая!AF72,техническая!AF72,(ROUNDUP((C79/техническая!AF72),0)*техническая!AF72)),"") ->  | E79: =IFERROR(VLOOKUP(A79,'OBO прайс-лист'!A:J,3,0),"-") -> - | F79: =IFERROR(VLOOKUP(A79,'OBO прайс-лист'!A:J,5,0),"-") -> - | G79: =IFERROR(VLOOKUP(A79,'OBO прайс-лист'!A:J,6,0),"-") -> - | H79: - | I79: - | J79: =IFERROR(IF(C79<=0,"",IF(C79<=техническая!AE72,"Достатньо",техническая!AE72)),0) ->  | K79: =IFERROR(VLOOKUP(техническая!Z72,техническая!A:I,9,0),"") ->  | M79: =IFERROR(VLOOKUP(A79,'OBO прайс-лист'!A:J,10,0),"") -> 
B80: =IFERROR(VLOOKUP(A80,Лист1!A:J,2,0),"-") -> - | D80: =IFERROR(IF(C80<=техническая!AF73,техническая!AF73,(ROUNDUP((C80/техническая!AF73),0)*техническая!AF73)),"") ->  | E80: =IFERROR(VLOOKUP(A80,'OBO прайс-лист'!A:J,3,0),"-") -> - | F80: =IFERROR(VLOOKUP(A80,'OBO прайс-лист'!A:J,5,0),"-") -> - | G80: =IFERROR(VLOOKUP(A80,'OBO прайс-лист'!A:J,6,0),"-") -> - | H80: - | I80: - | J80: =IFERROR(IF(C80<=0,"",IF(C80<=техническая!AE73,"Достатньо",техническая!AE73)),0) ->  | K80: =IFERROR(VLOOKUP(техническая!Z73,техническая!A:I,9,0),"") ->  | M80: =IFERROR(VLOOKUP(A80,'OBO прайс-лист'!A:J,10,0),"") -> 
B81: =IFERROR(VLOOKUP(A81,Лист1!A:J,2,0),"-") -> - | D81: =IFERROR(IF(C81<=техническая!AF74,техническая!AF74,(ROUNDUP((C81/техническая!AF74),0)*техническая!AF74)),"") ->  | E81: =IFERROR(VLOOKUP(A81,'OBO прайс-лист'!A:J,3,0),"-") -> - | F81: =IFERROR(VLOOKUP(A81,'OBO прайс-лист'!A:J,5,0),"-") -> - | G81: =IFERROR(VLOOKUP(A81,'OBO прайс-лист'!A:J,6,0),"-") -> - | H81: - | I81: - | J81: =IFERROR(IF(C81<=0,"",IF(C81<=техническая!AE74,"Достатньо",техническая!AE74)),0) ->  | K81: =IFERROR(VLOOKUP(техническая!Z74,техническая!A:I,9,0),"") ->  | M81: =IFERROR(VLOOKUP(A81,'OBO прайс-лист'!A:J,10,0),"") -> 
B82: =IFERROR(VLOOKUP(A82,Лист1!A:J,2,0),"-") -> - | D82: =IFERROR(IF(C82<=техническая!AF75,техническая!AF75,(ROUNDUP((C82/техническая!AF75),0)*техническая!AF75)),"") ->  | E82: =IFERROR(VLOOKUP(A82,'OBO прайс-лист'!A:J,3,0),"-") -> - | F82: =IFERROR(VLOOKUP(A82,'OBO прайс-лист'!A:J,5,0),"-") -> - | G82: =IFERROR(VLOOKUP(A82,'OBO прайс-лист'!A:J,6,0),"-") -> - | H82: - | I82: - | J82: =IFERROR(IF(C82<=0,"",IF(C82<=техническая!AE75,"Достатньо",техническая!AE75)),0) ->  | K82: =IFERROR(VLOOKUP(техническая!Z75,техническая!A:I,9,0),"") ->  | M82: =IFERROR(VLOOKUP(A82,'OBO прайс-лист'!A:J,10,0),"") -> 
B83: =IFERROR(VLOOKUP(A83,Лист1!A:J,2,0),"-") -> - | D83: =IFERROR(IF(C83<=техническая!AF76,техническая!AF76,(ROUNDUP((C83/техническая!AF76),0)*техническая!AF76)),"") ->  | E83: =IFERROR(VLOOKUP(A83,'OBO прайс-лист'!A:J,3,0),"-") -> - | F83: =IFERROR(VLOOKUP(A83,'OBO прайс-лист'!A:J,5,0),"-") -> - | G83: =IFERROR(VLOOKUP(A83,'OBO прайс-лист'!A:J,6,0),"-") -> - | H83: - | I83: - | J83: =IFERROR(IF(C83<=0,"",IF(C83<=техническая!AE76,"Достатньо",техническая!AE76)),0) ->  | K83: =IFERROR(VLOOKUP(техническая!Z76,техническая!A:I,9,0),"") ->  | M83: =IFERROR(VLOOKUP(A83,'OBO прайс-лист'!A:J,10,0),"") -> 
B84: =IFERROR(VLOOKUP(A84,Лист1!A:J,2,0),"-") -> - | D84: =IFERROR(IF(C84<=техническая!AF77,техническая!AF77,(ROUNDUP((C84/техническая!AF77),0)*техническая!AF77)),"") ->  | E84: =IFERROR(VLOOKUP(A84,'OBO прайс-лист'!A:J,3,0),"-") -> - | F84: =IFERROR(VLOOKUP(A84,'OBO прайс-лист'!A:J,5,0),"-") -> - | G84: =IFERROR(VLOOKUP(A84,'OBO прайс-лист'!A:J,6,0),"-") -> - | H84: - | I84: - | J84: =IFERROR(IF(C84<=0,"",IF(C84<=техническая!AE77,"Достатньо",техническая!AE77)),0) ->  | K84: =IFERROR(VLOOKUP(техническая!Z77,техническая!A:I,9,0),"") ->  | M84: =IFERROR(VLOOKUP(A84,'OBO прайс-лист'!A:J,10,0),"") -> 
B85: =IFERROR(VLOOKUP(A85,Лист1!A:J,2,0),"-") -> - | D85: =IFERROR(IF(C85<=техническая!AF78,техническая!AF78,(ROUNDUP((C85/техническая!AF78),0)*техническая!AF78)),"") ->  | E85: =IFERROR(VLOOKUP(A85,'OBO прайс-лист'!A:J,3,0),"-") -> - | F85: =IFERROR(VLOOKUP(A85,'OBO прайс-лист'!A:J,5,0),"-") -> - | G85: =IFERROR(VLOOKUP(A85,'OBO прайс-лист'!A:J,6,0),"-") -> - | H85: - | I85: - | J85: =IFERROR(IF(C85<=0,"",IF(C85<=техническая!AE78,"Достатньо",техническая!AE78)),0) ->  | K85: =IFERROR(VLOOKUP(техническая!Z78,техническая!A:I,9,0),"") ->  | M85: =IFERROR(VLOOKUP(A85,'OBO прайс-лист'!A:J,10,0),"") -> 
B86: =IFERROR(VLOOKUP(A86,Лист1!A:J,2,0),"-") -> - | D86: =IFERROR(IF(C86<=техническая!AF79,техническая!AF79,(ROUNDUP((C86/техническая!AF79),0)*техническая!AF79)),"") ->  | E86: =IFERROR(VLOOKUP(A86,'OBO прайс-лист'!A:J,3,0),"-") -> - | F86: =IFERROR(VLOOKUP(A86,'OBO прайс-лист'!A:J,5,0),"-") -> - | G86: =IFERROR(VLOOKUP(A86,'OBO прайс-лист'!A:J,6,0),"-") -> - | H86: - | I86: - | J86: =IFERROR(IF(C86<=0,"",IF(C86<=техническая!AE79,"Достатньо",техническая!AE79)),0) ->  | K86: =IFERROR(VLOOKUP(техническая!Z79,техническая!A:I,9,0),"") ->  | M86: =IFERROR(VLOOKUP(A86,'OBO прайс-лист'!A:J,10,0),"") -> 
B87: =IFERROR(VLOOKUP(A87,Лист1!A:J,2,0),"-") -> - | D87: =IFERROR(IF(C87<=техническая!AF80,техническая!AF80,(ROUNDUP((C87/техническая!AF80),0)*техническая!AF80)),"") ->  | E87: =IFERROR(VLOOKUP(A87,'OBO прайс-лист'!A:J,3,0),"-") -> - | F87: =IFERROR(VLOOKUP(A87,'OBO прайс-лист'!A:J,5,0),"-") -> - | G87: =IFERROR(VLOOKUP(A87,'OBO прайс-лист'!A:J,6,0),"-") -> - | H87: - | I87: - | J87: =IFERROR(IF(C87<=0,"",IF(C87<=техническая!AE80,"Достатньо",техническая!AE80)),0) ->  | K87: =IFERROR(VLOOKUP(техническая!Z80,техническая!A:I,9,0),"") ->  | M87: =IFERROR(VLOOKUP(A87,'OBO прайс-лист'!A:J,10,0),"") -> 
B88: =IFERROR(VLOOKUP(A88,Лист1!A:J,2,0),"-") -> - | D88: =IFERROR(IF(C88<=техническая!AF81,техническая!AF81,(ROUNDUP((C88/техническая!AF81),0)*техническая!AF81)),"") ->  | E88: =IFERROR(VLOOKUP(A88,'OBO прайс-лист'!A:J,3,0),"-") -> - | F88: =IFERROR(VLOOKUP(A88,'OBO прайс-лист'!A:J,5,0),"-") -> - | G88: =IFERROR(VLOOKUP(A88,'OBO прайс-лист'!A:J,6,0),"-") -> - | H88: - | I88: - | J88: =IFERROR(IF(C88<=0,"",IF(C88<=техническая!AE81,"Достатньо",техническая!AE81)),0) ->  | K88: =IFERROR(VLOOKUP(техническая!Z81,техническая!A:I,9,0),"") ->  | M88: =IFERROR(VLOOKUP(A88,'OBO прайс-лист'!A:J,10,0),"") -> 
B89: =IFERROR(VLOOKUP(A89,Лист1!A:J,2,0),"-") -> - | D89: =IFERROR(IF(C89<=техническая!AF82,техническая!AF82,(ROUNDUP((C89/техническая!AF82),0)*техническая!AF82)),"") ->  | E89: =IFERROR(VLOOKUP(A89,'OBO прайс-лист'!A:J,3,0),"-") -> - | F89: =IFERROR(VLOOKUP(A89,'OBO прайс-лист'!A:J,5,0),"-") -> - | G89: =IFERROR(VLOOKUP(A89,'OBO прайс-лист'!A:J,6,0),"-") -> - | H89: - | I89: - | J89: =IFERROR(IF(C89<=0,"",IF(C89<=техническая!AE82,"Достатньо",техническая!AE82)),0) ->  | K89: =IFERROR(VLOOKUP(техническая!Z82,техническая!A:I,9,0),"") ->  | M89: =IFERROR(VLOOKUP(A89,'OBO прайс-лист'!A:J,10,0),"") -> 
B90: =IFERROR(VLOOKUP(A90,Лист1!A:J,2,0),"-") -> - | D90: =IFERROR(IF(C90<=техническая!AF83,техническая!AF83,(ROUNDUP((C90/техническая!AF83),0)*техническая!AF83)),"") ->  | E90: =IFERROR(VLOOKUP(A90,'OBO прайс-лист'!A:J,3,0),"-") -> - | F90: =IFERROR(VLOOKUP(A90,'OBO прайс-лист'!A:J,5,0),"-") -> - | G90: =IFERROR(VLOOKUP(A90,'OBO прайс-лист'!A:J,6,0),"-") -> - | H90: - | I90: - | J90: =IFERROR(IF(C90<=0,"",IF(C90<=техническая!AE83,"Достатньо",техническая!AE83)),0) ->  | K90: =IFERROR(VLOOKUP(техническая!Z83,техническая!A:I,9,0),"") ->  | M90: =IFERROR(VLOOKUP(A90,'OBO прайс-лист'!A:J,10,0),"") -> 
B91: =IFERROR(VLOOKUP(A91,Лист1!A:J,2,0),"-") -> - | D91: =IFERROR(IF(C91<=техническая!AF84,техническая!AF84,(ROUNDUP((C91/техническая!AF84),0)*техническая!AF84)),"") ->  | E91: =IFERROR(VLOOKUP(A91,'OBO прайс-лист'!A:J,3,0),"-") -> - | F91: =IFERROR(VLOOKUP(A91,'OBO прайс-лист'!A:J,5,0),"-") -> - | G91: =IFERROR(VLOOKUP(A91,'OBO прайс-лист'!A:J,6,0),"-") -> - | H91: - | I91: - | J91: =IFERROR(IF(C91<=0,"",IF(C91<=техническая!AE84,"Достатньо",техническая!AE84)),0) ->  | K91: =IFERROR(VLOOKUP(техническая!Z84,техническая!A:I,9,0),"") ->  | M91: =IFERROR(VLOOKUP(A91,'OBO прайс-лист'!A:J,10,0),"") -> 
B92: =IFERROR(VLOOKUP(A92,Лист1!A:J,2,0),"-") -> - | D92: =IFERROR(IF(C92<=техническая!AF85,техническая!AF85,(ROUNDUP((C92/техническая!AF85),0)*техническая!AF85)),"") ->  | E92: =IFERROR(VLOOKUP(A92,'OBO прайс-лист'!A:J,3,0),"-") -> - | F92: =IFERROR(VLOOKUP(A92,'OBO прайс-лист'!A:J,5,0),"-") -> - | G92: =IFERROR(VLOOKUP(A92,'OBO прайс-лист'!A:J,6,0),"-") -> - | H92: - | I92: - | J92: =IFERROR(IF(C92<=0,"",IF(C92<=техническая!AE85,"Достатньо",техническая!AE85)),0) ->  | K92: =IFERROR(VLOOKUP(техническая!Z85,техническая!A:I,9,0),"") ->  | M92: =IFERROR(VLOOKUP(A92,'OBO прайс-лист'!A:J,10,0),"") -> 
B93: =IFERROR(VLOOKUP(A93,Лист1!A:J,2,0),"-") -> - | D93: =IFERROR(IF(C93<=техническая!AF86,техническая!AF86,(ROUNDUP((C93/техническая!AF86),0)*техническая!AF86)),"") ->  | E93: =IFERROR(VLOOKUP(A93,'OBO прайс-лист'!A:J,3,0),"-") -> - | F93: =IFERROR(VLOOKUP(A93,'OBO прайс-лист'!A:J,5,0),"-") -> - | G93: =IFERROR(VLOOKUP(A93,'OBO прайс-лист'!A:J,6,0),"-") -> - | H93: - | I93: - | J93: =IFERROR(IF(C93<=0,"",IF(C93<=техническая!AE86,"Достатньо",техническая!AE86)),0) ->  | K93: =IFERROR(VLOOKUP(техническая!Z86,техническая!A:I,9,0),"") ->  | M93: =IFERROR(VLOOKUP(A93,'OBO прайс-лист'!A:J,10,0),"") -> 
B94: =IFERROR(VLOOKUP(A94,Лист1!A:J,2,0),"-") -> - | D94: =IFERROR(IF(C94<=техническая!AF87,техническая!AF87,(ROUNDUP((C94/техническая!AF87),0)*техническая!AF87)),"") ->  | E94: =IFERROR(VLOOKUP(A94,'OBO прайс-лист'!A:J,3,0),"-") -> - | F94: =IFERROR(VLOOKUP(A94,'OBO прайс-лист'!A:J,5,0),"-") -> - | G94: =IFERROR(VLOOKUP(A94,'OBO прайс-лист'!A:J,6,0),"-") -> - | H94: - | I94: - | J94: =IFERROR(IF(C94<=0,"",IF(C94<=техническая!AE87,"Достатньо",техническая!AE87)),0) ->  | K94: =IFERROR(VLOOKUP(техническая!Z87,техническая!A:I,9,0),"") ->  | M94: =IFERROR(VLOOKUP(A94,'OBO прайс-лист'!A:J,10,0),"") -> 
B95: =IFERROR(VLOOKUP(A95,Лист1!A:J,2,0),"-") -> - | D95: =IFERROR(IF(C95<=техническая!AF88,техническая!AF88,(ROUNDUP((C95/техническая!AF88),0)*техническая!AF88)),"") ->  | E95: =IFERROR(VLOOKUP(A95,'OBO прайс-лист'!A:J,3,0),"-") -> - | F95: =IFERROR(VLOOKUP(A95,'OBO прайс-лист'!A:J,5,0),"-") -> - | G95: =IFERROR(VLOOKUP(A95,'OBO прайс-лист'!A:J,6,0),"-") -> - | H95: - | I95: - | J95: =IFERROR(IF(C95<=0,"",IF(C95<=техническая!AE88,"Достатньо",техническая!AE88)),0) ->  | K95: =IFERROR(VLOOKUP(техническая!Z88,техническая!A:I,9,0),"") ->  | M95: =IFERROR(VLOOKUP(A95,'OBO прайс-лист'!A:J,10,0),"") -> 
B96: =IFERROR(VLOOKUP(A96,Лист1!A:J,2,0),"-") -> - | D96: =IFERROR(IF(C96<=техническая!AF89,техническая!AF89,(ROUNDUP((C96/техническая!AF89),0)*техническая!AF89)),"") ->  | E96: =IFERROR(VLOOKUP(A96,'OBO прайс-лист'!A:J,3,0),"-") -> - | F96: =IFERROR(VLOOKUP(A96,'OBO прайс-лист'!A:J,5,0),"-") -> - | G96: =IFERROR(VLOOKUP(A96,'OBO прайс-лист'!A:J,6,0),"-") -> - | H96: - | I96: - | J96: =IFERROR(IF(C96<=0,"",IF(C96<=техническая!AE89,"Достатньо",техническая!AE89)),0) ->  | K96: =IFERROR(VLOOKUP(техническая!Z89,техническая!A:I,9,0),"") ->  | M96: =IFERROR(VLOOKUP(A96,'OBO прайс-лист'!A:J,10,0),"") -> 
B97: =IFERROR(VLOOKUP(A97,Лист1!A:J,2,0),"-") -> - | D97: =IFERROR(IF(C97<=техническая!AF90,техническая!AF90,(ROUNDUP((C97/техническая!AF90),0)*техническая!AF90)),"") ->  | E97: =IFERROR(VLOOKUP(A97,'OBO прайс-лист'!A:J,3,0),"-") -> - | F97: =IFERROR(VLOOKUP(A97,'OBO прайс-лист'!A:J,5,0),"-") -> - | G97: =IFERROR(VLOOKUP(A97,'OBO прайс-лист'!A:J,6,0),"-") -> - | H97: - | I97: - | J97: =IFERROR(IF(C97<=0,"",IF(C97<=техническая!AE90,"Достатньо",техническая!AE90)),0) ->  | K97: =IFERROR(VLOOKUP(техническая!Z90,техническая!A:I,9,0),"") ->  | M97: =IFERROR(VLOOKUP(A97,'OBO прайс-лист'!A:J,10,0),"") -> 
B98: =IFERROR(VLOOKUP(A98,Лист1!A:J,2,0),"-") -> - | D98: =IFERROR(IF(C98<=техническая!AF91,техническая!AF91,(ROUNDUP((C98/техническая!AF91),0)*техническая!AF91)),"") ->  | E98: =IFERROR(VLOOKUP(A98,'OBO прайс-лист'!A:J,3,0),"-") -> - | F98: =IFERROR(VLOOKUP(A98,'OBO прайс-лист'!A:J,5,0),"-") -> - | G98: =IFERROR(VLOOKUP(A98,'OBO прайс-лист'!A:J,6,0),"-") -> - | H98: - | I98: - | J98: =IFERROR(IF(C98<=0,"",IF(C98<=техническая!AE91,"Достатньо",техническая!AE91)),0) ->  | K98: =IFERROR(VLOOKUP(техническая!Z91,техническая!A:I,9,0),"") ->  | M98: =IFERROR(VLOOKUP(A98,'OBO прайс-лист'!A:J,10,0),"") -> 
B99: =IFERROR(VLOOKUP(A99,Лист1!A:J,2,0),"-") -> - | D99: =IFERROR(IF(C99<=техническая!AF92,техническая!AF92,(ROUNDUP((C99/техническая!AF92),0)*техническая!AF92)),"") ->  | E99: =IFERROR(VLOOKUP(A99,'OBO прайс-лист'!A:J,3,0),"-") -> - | F99: =IFERROR(VLOOKUP(A99,'OBO прайс-лист'!A:J,5,0),"-") -> - | G99: =IFERROR(VLOOKUP(A99,'OBO прайс-лист'!A:J,6,0),"-") -> - | H99: - | I99: - | J99: =IFERROR(IF(C99<=0,"",IF(C99<=техническая!AE92,"Достатньо",техническая!AE92)),0) ->  | K99: =IFERROR(VLOOKUP(техническая!Z92,техническая!A:I,9,0),"") ->  | M99: =IFERROR(VLOOKUP(A99,'OBO прайс-лист'!A:J,10,0),"") -> 
B100: =IFERROR(VLOOKUP(A100,Лист1!A:J,2,0),"-") -> - | D100: =IFERROR(IF(C100<=техническая!AF93,техническая!AF93,(ROUNDUP((C100/техническая!AF93),0)*техническая!AF93)),"") ->  | E100: =IFERROR(VLOOKUP(A100,'OBO прайс-лист'!A:J,3,0),"-") -> - | F100: =IFERROR(VLOOKUP(A100,'OBO прайс-лист'!A:J,5,0),"-") -> - | G100: =IFERROR(VLOOKUP(A100,'OBO прайс-лист'!A:J,6,0),"-") -> - | H100: - | I100: - | J100: =IFERROR(IF(C100<=0,"",IF(C100<=техническая!AE93,"Достатньо",техническая!AE93)),0) ->  | K100: =IFERROR(VLOOKUP(техническая!Z93,техническая!A:I,9,0),"") ->  | M100: =IFERROR(VLOOKUP(A100,'OBO прайс-лист'!A:J,10,0),"") -> 
B101: =IFERROR(VLOOKUP(A101,Лист1!A:J,2,0),"-") -> - | D101: =IFERROR(IF(C101<=техническая!AF94,техническая!AF94,(ROUNDUP((C101/техническая!AF94),0)*техническая!AF94)),"") ->  | E101: =IFERROR(VLOOKUP(A101,'OBO прайс-лист'!A:J,3,0),"-") -> - | F101: =IFERROR(VLOOKUP(A101,'OBO прайс-лист'!A:J,5,0),"-") -> - | G101: =IFERROR(VLOOKUP(A101,'OBO прайс-лист'!A:J,6,0),"-") -> - | H101: - | I101: - | J101: =IFERROR(IF(C101<=0,"",IF(C101<=техническая!AE94,"Достатньо",техническая!AE94)),0) ->  | K101: =IFERROR(VLOOKUP(техническая!Z94,техническая!A:I,9,0),"") ->  | M101: =IFERROR(VLOOKUP(A101,'OBO прайс-лист'!A:J,10,0),"") -> 
B102: =IFERROR(VLOOKUP(A102,Лист1!A:J,2,0),"-") -> - | D102: =IFERROR(IF(C102<=техническая!AF95,техническая!AF95,(ROUNDUP((C102/техническая!AF95),0)*техническая!AF95)),"") ->  | E102: =IFERROR(VLOOKUP(A102,'OBO прайс-лист'!A:J,3,0),"-") -> - | F102: =IFERROR(VLOOKUP(A102,'OBO прайс-лист'!A:J,5,0),"-") -> - | G102: =IFERROR(VLOOKUP(A102,'OBO прайс-лист'!A:J,6,0),"-") -> - | H102: - | I102: - | J102: =IFERROR(IF(C102<=0,"",IF(C102<=техническая!AE95,"Достатньо",техническая!AE95)),0) ->  | K102: =IFERROR(VLOOKUP(техническая!Z95,техническая!A:I,9,0),"") ->  | M102: =IFERROR(VLOOKUP(A102,'OBO прайс-лист'!A:J,10,0),"") -> 
B103: =IFERROR(VLOOKUP(A103,Лист1!A:J,2,0),"-") -> - | D103: =IFERROR(IF(C103<=техническая!AF96,техническая!AF96,(ROUNDUP((C103/техническая!AF96),0)*техническая!AF96)),"") ->  | E103: =IFERROR(VLOOKUP(A103,'OBO прайс-лист'!A:J,3,0),"-") -> - | F103: =IFERROR(VLOOKUP(A103,'OBO прайс-лист'!A:J,5,0),"-") -> - | G103: =IFERROR(VLOOKUP(A103,'OBO прайс-лист'!A:J,6,0),"-") -> - | H103: - | I103: - | J103: =IFERROR(IF(C103<=0,"",IF(C103<=техническая!AE96,"Достатньо",техническая!AE96)),0) ->  | K103: =IFERROR(VLOOKUP(техническая!Z96,техническая!A:I,9,0),"") ->  | M103: =IFERROR(VLOOKUP(A103,'OBO прайс-лист'!A:J,10,0),"") -> 
B104: =IFERROR(VLOOKUP(A104,Лист1!A:J,2,0),"-") -> - | D104: =IFERROR(IF(C104<=техническая!AF97,техническая!AF97,(ROUNDUP((C104/техническая!AF97),0)*техническая!AF97)),"") ->  | E104: =IFERROR(VLOOKUP(A104,'OBO прайс-лист'!A:J,3,0),"-") -> - | F104: =IFERROR(VLOOKUP(A104,'OBO прайс-лист'!A:J,5,0),"-") -> - | G104: =IFERROR(VLOOKUP(A104,'OBO прайс-лист'!A:J,6,0),"-") -> - | H104: - | I104: - | J104: =IFERROR(IF(C104<=0,"",IF(C104<=техническая!AE97,"Достатньо",техническая!AE97)),0) ->  | K104: =IFERROR(VLOOKUP(техническая!Z97,техническая!A:I,9,0),"") ->  | M104: =IFERROR(VLOOKUP(A104,'OBO прайс-лист'!A:J,10,0),"") -> 
B105: =IFERROR(VLOOKUP(A105,Лист1!A:J,2,0),"-") -> - | D105: =IFERROR(IF(C105<=техническая!AF98,техническая!AF98,(ROUNDUP((C105/техническая!AF98),0)*техническая!AF98)),"") ->  | E105: =IFERROR(VLOOKUP(A105,'OBO прайс-лист'!A:J,3,0),"-") -> - | F105: =IFERROR(VLOOKUP(A105,'OBO прайс-лист'!A:J,5,0),"-") -> - | G105: =IFERROR(VLOOKUP(A105,'OBO прайс-лист'!A:J,6,0),"-") -> - | H105: - | I105: - | J105: =IFERROR(IF(C105<=0,"",IF(C105<=техническая!AE98,"Достатньо",техническая!AE98)),0) ->  | K105: =IFERROR(VLOOKUP(техническая!Z98,техническая!A:I,9,0),"") ->  | M105: =IFERROR(VLOOKUP(A105,'OBO прайс-лист'!A:J,10,0),"") -> 
B106: =IFERROR(VLOOKUP(A106,Лист1!A:J,2,0),"-") -> - | D106: =IFERROR(IF(C106<=техническая!AF99,техническая!AF99,(ROUNDUP((C106/техническая!AF99),0)*техническая!AF99)),"") ->  | E106: =IFERROR(VLOOKUP(A106,'OBO прайс-лист'!A:J,3,0),"-") -> - | F106: =IFERROR(VLOOKUP(A106,'OBO прайс-лист'!A:J,5,0),"-") -> - | G106: =IFERROR(VLOOKUP(A106,'OBO прайс-лист'!A:J,6,0),"-") -> - | H106: - | I106: - | J106: =IFERROR(IF(C106<=0,"",IF(C106<=техническая!AE99,"Достатньо",техническая!AE99)),0) ->  | K106: =IFERROR(VLOOKUP(техническая!Z99,техническая!A:I,9,0),"") ->  | M106: =IFERROR(VLOOKUP(A106,'OBO прайс-лист'!A:J,10,0),"") -> 
B107: =IFERROR(VLOOKUP(A107,Лист1!A:J,2,0),"-") -> - | D107: =IFERROR(IF(C107<=техническая!AF100,техническая!AF100,(ROUNDUP((C107/техническая!AF100),0)*техническая!AF100)),"") ->  | E107: =IFERROR(VLOOKUP(A107,'OBO прайс-лист'!A:J,3,0),"-") -> - | F107: =IFERROR(VLOOKUP(A107,'OBO прайс-лист'!A:J,5,0),"-") -> - | G107: =IFERROR(VLOOKUP(A107,'OBO прайс-лист'!A:J,6,0),"-") -> - | H107: - | I107: - | J107: =IFERROR(IF(C107<=0,"",IF(C107<=техническая!AE100,"Достатньо",техническая!AE100)),0) ->  | K107: =IFERROR(VLOOKUP(техническая!Z100,техническая!A:I,9,0),"") ->  | M107: =IFERROR(VLOOKUP(A107,'OBO прайс-лист'!A:J,10,0),"") -> 
B108: =IFERROR(VLOOKUP(A108,Лист1!A:J,2,0),"-") -> - | D108: =IFERROR(IF(C108<=техническая!AF101,техническая!AF101,(ROUNDUP((C108/техническая!AF101),0)*техническая!AF101)),"") ->  | E108: =IFERROR(VLOOKUP(A108,'OBO прайс-лист'!A:J,3,0),"-") -> - | F108: =IFERROR(VLOOKUP(A108,'OBO прайс-лист'!A:J,5,0),"-") -> - | G108: =IFERROR(VLOOKUP(A108,'OBO прайс-лист'!A:J,6,0),"-") -> - | H108: - | I108: - | J108: =IFERROR(IF(C108<=0,"",IF(C108<=техническая!AE101,"Достатньо",техническая!AE101)),0) ->  | K108: =IFERROR(VLOOKUP(техническая!Z101,техническая!A:I,9,0),"") ->  | M108: =IFERROR(VLOOKUP(A108,'OBO прайс-лист'!A:J,10,0),"") -> 
B109: =IFERROR(VLOOKUP(A109,Лист1!A:J,2,0),"-") -> - | D109: =IFERROR(IF(C109<=техническая!AF102,техническая!AF102,(ROUNDUP((C109/техническая!AF102),0)*техническая!AF102)),"") ->  | E109: =IFERROR(VLOOKUP(A109,'OBO прайс-лист'!A:J,3,0),"-") -> - | F109: =IFERROR(VLOOKUP(A109,'OBO прайс-лист'!A:J,5,0),"-") -> - | G109: =IFERROR(VLOOKUP(A109,'OBO прайс-лист'!A:J,6,0),"-") -> - | H109: - | I109: - | J109: =IFERROR(IF(C109<=0,"",IF(C109<=техническая!AE102,"Достатньо",техническая!AE102)),0) ->  | K109: =IFERROR(VLOOKUP(техническая!Z102,техническая!A:I,9,0),"") ->  | M109: =IFERROR(VLOOKUP(A109,'OBO прайс-лист'!A:J,10,0),"") -> 
B110: =IFERROR(VLOOKUP(A110,Лист1!A:J,2,0),"-") -> - | D110: =IFERROR(IF(C110<=техническая!AF103,техническая!AF103,(ROUNDUP((C110/техническая!AF103),0)*техническая!AF103)),"") ->  | E110: =IFERROR(VLOOKUP(A110,'OBO прайс-лист'!A:J,3,0),"-") -> - | F110: =IFERROR(VLOOKUP(A110,'OBO прайс-лист'!A:J,5,0),"-") -> - | G110: =IFERROR(VLOOKUP(A110,'OBO прайс-лист'!A:J,6,0),"-") -> - | H110: - | I110: - | J110: =IFERROR(IF(C110<=0,"",IF(C110<=техническая!AE103,"Достатньо",техническая!AE103)),0) ->  | K110: =IFERROR(VLOOKUP(техническая!Z103,техническая!A:I,9,0),"") ->  | M110: =IFERROR(VLOOKUP(A110,'OBO прайс-лист'!A:J,10,0),"") -> 
B111: =IFERROR(VLOOKUP(A111,Лист1!A:J,2,0),"-") -> - | D111: =IFERROR(IF(C111<=техническая!AF104,техническая!AF104,(ROUNDUP((C111/техническая!AF104),0)*техническая!AF104)),"") ->  | E111: =IFERROR(VLOOKUP(A111,'OBO прайс-лист'!A:J,3,0),"-") -> - | F111: =IFERROR(VLOOKUP(A111,'OBO прайс-лист'!A:J,5,0),"-") -> - | G111: =IFERROR(VLOOKUP(A111,'OBO прайс-лист'!A:J,6,0),"-") -> - | H111: - | I111: - | J111: =IFERROR(IF(C111<=0,"",IF(C111<=техническая!AE104,"Достатньо",техническая!AE104)),0) ->  | K111: =IFERROR(VLOOKUP(техническая!Z104,техническая!A:I,9,0),"") ->  | M111: =IFERROR(VLOOKUP(A111,'OBO прайс-лист'!A:J,10,0),"") -> 
B112: =IFERROR(VLOOKUP(A112,Лист1!A:J,2,0),"-") -> - | D112: =IFERROR(IF(C112<=техническая!AF105,техническая!AF105,(ROUNDUP((C112/техническая!AF105),0)*техническая!AF105)),"") ->  | E112: =IFERROR(VLOOKUP(A112,'OBO прайс-лист'!A:J,3,0),"-") -> - | F112: =IFERROR(VLOOKUP(A112,'OBO прайс-лист'!A:J,5,0),"-") -> - | G112: =IFERROR(VLOOKUP(A112,'OBO прайс-лист'!A:J,6,0),"-") -> - | H112: - | I112: - | J112: =IFERROR(IF(C112<=0,"",IF(C112<=техническая!AE105,"Достатньо",техническая!AE105)),0) ->  | K112: =IFERROR(VLOOKUP(техническая!Z105,техническая!A:I,9,0),"") ->  | M112: =IFERROR(VLOOKUP(A112,'OBO прайс-лист'!A:J,10,0),"") -> 
B113: =IFERROR(VLOOKUP(A113,Лист1!A:J,2,0),"-") -> - | D113: =IFERROR(IF(C113<=техническая!AF106,техническая!AF106,(ROUNDUP((C113/техническая!AF106),0)*техническая!AF106)),"") ->  | E113: =IFERROR(VLOOKUP(A113,'OBO прайс-лист'!A:J,3,0),"-") -> - | F113: =IFERROR(VLOOKUP(A113,'OBO прайс-лист'!A:J,5,0),"-") -> - | G113: =IFERROR(VLOOKUP(A113,'OBO прайс-лист'!A:J,6,0),"-") -> - | H113: - | I113: - | J113: =IFERROR(IF(C113<=0,"",IF(C113<=техническая!AE106,"Достатньо",техническая!AE106)),0) ->  | K113: =IFERROR(VLOOKUP(техническая!Z106,техническая!A:I,9,0),"") ->  | M113: =IFERROR(VLOOKUP(A113,'OBO прайс-лист'!A:J,10,0),"") -> 
B114: =IFERROR(VLOOKUP(A114,Лист1!A:J,2,0),"-") -> - | D114: =IFERROR(IF(C114<=техническая!AF107,техническая!AF107,(ROUNDUP((C114/техническая!AF107),0)*техническая!AF107)),"") ->  | E114: =IFERROR(VLOOKUP(A114,'OBO прайс-лист'!A:J,3,0),"-") -> - | F114: =IFERROR(VLOOKUP(A114,'OBO прайс-лист'!A:J,5,0),"-") -> - | G114: =IFERROR(VLOOKUP(A114,'OBO прайс-лист'!A:J,6,0),"-") -> - | H114: - | I114: - | J114: =IFERROR(IF(C114<=0,"",IF(C114<=техническая!AE107,"Достатньо",техническая!AE107)),0) ->  | K114: =IFERROR(VLOOKUP(техническая!Z107,техническая!A:I,9,0),"") ->  | M114: =IFERROR(VLOOKUP(A114,'OBO прайс-лист'!A:J,10,0),"") -> 
B115: =IFERROR(VLOOKUP(A115,Лист1!A:J,2,0),"-") -> - | D115: =IFERROR(IF(C115<=техническая!AF108,техническая!AF108,(ROUNDUP((C115/техническая!AF108),0)*техническая!AF108)),"") ->  | E115: =IFERROR(VLOOKUP(A115,'OBO прайс-лист'!A:J,3,0),"-") -> - | F115: =IFERROR(VLOOKUP(A115,'OBO прайс-лист'!A:J,5,0),"-") -> - | G115: =IFERROR(VLOOKUP(A115,'OBO прайс-лист'!A:J,6,0),"-") -> - | H115: - | I115: - | J115: =IFERROR(IF(C115<=0,"",IF(C115<=техническая!AE108,"Достатньо",техническая!AE108)),0) ->  | K115: =IFERROR(VLOOKUP(техническая!Z108,техническая!A:I,9,0),"") ->  | M115: =IFERROR(VLOOKUP(A115,'OBO прайс-лист'!A:J,10,0),"") -> 
B116: =IFERROR(VLOOKUP(A116,Лист1!A:J,2,0),"-") -> - | D116: =IFERROR(IF(C116<=техническая!AF109,техническая!AF109,(ROUNDUP((C116/техническая!AF109),0)*техническая!AF109)),"") ->  | E116: =IFERROR(VLOOKUP(A116,'OBO прайс-лист'!A:J,3,0),"-") -> - | F116: =IFERROR(VLOOKUP(A116,'OBO прайс-лист'!A:J,5,0),"-") -> - | G116: =IFERROR(VLOOKUP(A116,'OBO прайс-лист'!A:J,6,0),"-") -> - | H116: - | I116: - | J116: =IFERROR(IF(C116<=0,"",IF(C116<=техническая!AE109,"Достатньо",техническая!AE109)),0) ->  | K116: =IFERROR(VLOOKUP(техническая!Z109,техническая!A:I,9,0),"") ->  | M116: =IFERROR(VLOOKUP(A116,'OBO прайс-лист'!A:J,10,0),"") -> 
B117: =IFERROR(VLOOKUP(A117,Лист1!A:J,2,0),"-") -> - | D117: =IFERROR(IF(C117<=техническая!AF110,техническая!AF110,(ROUNDUP((C117/техническая!AF110),0)*техническая!AF110)),"") ->  | E117: =IFERROR(VLOOKUP(A117,'OBO прайс-лист'!A:J,3,0),"-") -> - | F117: =IFERROR(VLOOKUP(A117,'OBO прайс-лист'!A:J,5,0),"-") -> - | G117: =IFERROR(VLOOKUP(A117,'OBO прайс-лист'!A:J,6,0),"-") -> - | H117: - | I117: - | J117: =IFERROR(IF(C117<=0,"",IF(C117<=техническая!AE110,"Достатньо",техническая!AE110)),0) ->  | K117: =IFERROR(VLOOKUP(техническая!Z110,техническая!A:I,9,0),"") ->  | M117: =IFERROR(VLOOKUP(A117,'OBO прайс-лист'!A:J,10,0),"") -> 
B118: =IFERROR(VLOOKUP(A118,Лист1!A:J,2,0),"-") -> - | D118: =IFERROR(IF(C118<=техническая!AF111,техническая!AF111,(ROUNDUP((C118/техническая!AF111),0)*техническая!AF111)),"") ->  | E118: =IFERROR(VLOOKUP(A118,'OBO прайс-лист'!A:J,3,0),"-") -> - | F118: =IFERROR(VLOOKUP(A118,'OBO прайс-лист'!A:J,5,0),"-") -> - | G118: =IFERROR(VLOOKUP(A118,'OBO прайс-лист'!A:J,6,0),"-") -> - | H118: - | I118: - | J118: =IFERROR(IF(C118<=0,"",IF(C118<=техническая!AE111,"Достатньо",техническая!AE111)),0) ->  | K118: =IFERROR(VLOOKUP(техническая!Z111,техническая!A:I,9,0),"") ->  | M118: =IFERROR(VLOOKUP(A118,'OBO прайс-лист'!A:J,10,0),"") -> 
B119: =IFERROR(VLOOKUP(A119,Лист1!A:J,2,0),"-") -> - | D119: =IFERROR(IF(C119<=техническая!AF112,техническая!AF112,(ROUNDUP((C119/техническая!AF112),0)*техническая!AF112)),"") ->  | E119: =IFERROR(VLOOKUP(A119,'OBO прайс-лист'!A:J,3,0),"-") -> - | F119: =IFERROR(VLOOKUP(A119,'OBO прайс-лист'!A:J,5,0),"-") -> - | G119: =IFERROR(VLOOKUP(A119,'OBO прайс-лист'!A:J,6,0),"-") -> - | H119: - | I119: - | J119: =IFERROR(IF(C119<=0,"",IF(C119<=техническая!AE112,"Достатньо",техническая!AE112)),0) ->  | K119: =IFERROR(VLOOKUP(техническая!Z112,техническая!A:I,9,0),"") ->  | M119: =IFERROR(VLOOKUP(A119,'OBO прайс-лист'!A:J,10,0),"") -> 
B120: =IFERROR(VLOOKUP(A120,Лист1!A:J,2,0),"-") -> - | D120: =IFERROR(IF(C120<=техническая!AF113,техническая!AF113,(ROUNDUP((C120/техническая!AF113),0)*техническая!AF113)),"") ->  | E120: =IFERROR(VLOOKUP(A120,'OBO прайс-лист'!A:J,3,0),"-") -> - | F120: =IFERROR(VLOOKUP(A120,'OBO прайс-лист'!A:J,5,0),"-") -> - | G120: =IFERROR(VLOOKUP(A120,'OBO прайс-лист'!A:J,6,0),"-") -> - | H120: - | I120: - | J120: =IFERROR(IF(C120<=0,"",IF(C120<=техническая!AE113,"Достатньо",техническая!AE113)),0) ->  | K120: =IFERROR(VLOOKUP(техническая!Z113,техническая!A:I,9,0),"") ->  | M120: =IFERROR(VLOOKUP(A120,'OBO прайс-лист'!A:J,10,0),"") -> 
B121: =IFERROR(VLOOKUP(A121,Лист1!A:J,2,0),"-") -> - | D121: =IFERROR(IF(C121<=техническая!AF114,техническая!AF114,(ROUNDUP((C121/техническая!AF114),0)*техническая!AF114)),"") ->  | E121: =IFERROR(VLOOKUP(A121,'OBO прайс-лист'!A:J,3,0),"-") -> - | F121: =IFERROR(VLOOKUP(A121,'OBO прайс-лист'!A:J,5,0),"-") -> - | G121: =IFERROR(VLOOKUP(A121,'OBO прайс-лист'!A:J,6,0),"-") -> - | H121: - | I121: - | J121: =IFERROR(IF(C121<=0,"",IF(C121<=техническая!AE114,"Достатньо",техническая!AE114)),0) ->  | K121: =IFERROR(VLOOKUP(техническая!Z114,техническая!A:I,9,0),"") ->  | M121: =IFERROR(VLOOKUP(A121,'OBO прайс-лист'!A:J,10,0),"") -> 
B122: =IFERROR(VLOOKUP(A122,Лист1!A:J,2,0),"-") -> - | D122: =IFERROR(IF(C122<=техническая!AF115,техническая!AF115,(ROUNDUP((C122/техническая!AF115),0)*техническая!AF115)),"") ->  | E122: =IFERROR(VLOOKUP(A122,'OBO прайс-лист'!A:J,3,0),"-") -> - | F122: =IFERROR(VLOOKUP(A122,'OBO прайс-лист'!A:J,5,0),"-") -> - | G122: =IFERROR(VLOOKUP(A122,'OBO прайс-лист'!A:J,6,0),"-") -> - | H122: - | I122: - | J122: =IFERROR(IF(C122<=0,"",IF(C122<=техническая!AE115,"Достатньо",техническая!AE115)),0) ->  | K122: =IFERROR(VLOOKUP(техническая!Z115,техническая!A:I,9,0),"") ->  | M122: =IFERROR(VLOOKUP(A122,'OBO прайс-лист'!A:J,10,0),"") -> 
B123: =IFERROR(VLOOKUP(A123,Лист1!A:J,2,0),"-") -> - | D123: =IFERROR(IF(C123<=техническая!AF116,техническая!AF116,(ROUNDUP((C123/техническая!AF116),0)*техническая!AF116)),"") ->  | E123: =IFERROR(VLOOKUP(A123,'OBO прайс-лист'!A:J,3,0),"-") -> - | F123: =IFERROR(VLOOKUP(A123,'OBO прайс-лист'!A:J,5,0),"-") -> - | G123: =IFERROR(VLOOKUP(A123,'OBO прайс-лист'!A:J,6,0),"-") -> - | H123: - | I123: - | J123: =IFERROR(IF(C123<=0,"",IF(C123<=техническая!AE116,"Достатньо",техническая!AE116)),0) ->  | K123: =IFERROR(VLOOKUP(техническая!Z116,техническая!A:I,9,0),"") ->  | M123: =IFERROR(VLOOKUP(A123,'OBO прайс-лист'!A:J,10,0),"") -> 
B124: =IFERROR(VLOOKUP(A124,Лист1!A:J,2,0),"-") -> - | D124: =IFERROR(IF(C124<=техническая!AF117,техническая!AF117,(ROUNDUP((C124/техническая!AF117),0)*техническая!AF117)),"") ->  | E124: =IFERROR(VLOOKUP(A124,'OBO прайс-лист'!A:J,3,0),"-") -> - | F124: =IFERROR(VLOOKUP(A124,'OBO прайс-лист'!A:J,5,0),"-") -> - | G124: =IFERROR(VLOOKUP(A124,'OBO прайс-лист'!A:J,6,0),"-") -> - | H124: - | I124: - | J124: =IFERROR(IF(C124<=0,"",IF(C124<=техническая!AE117,"Достатньо",техническая!AE117)),0) ->  | K124: =IFERROR(VLOOKUP(техническая!Z117,техническая!A:I,9,0),"") ->  | M124: =IFERROR(VLOOKUP(A124,'OBO прайс-лист'!A:J,10,0),"") -> 
B125: =IFERROR(VLOOKUP(A125,Лист1!A:J,2,0),"-") -> - | D125: =IFERROR(IF(C125<=техническая!AF118,техническая!AF118,(ROUNDUP((C125/техническая!AF118),0)*техническая!AF118)),"") ->  | E125: =IFERROR(VLOOKUP(A125,'OBO прайс-лист'!A:J,3,0),"-") -> - | F125: =IFERROR(VLOOKUP(A125,'OBO прайс-лист'!A:J,5,0),"-") -> - | G125: =IFERROR(VLOOKUP(A125,'OBO прайс-лист'!A:J,6,0),"-") -> - | H125: - | I125: - | J125: =IFERROR(IF(C125<=0,"",IF(C125<=техническая!AE118,"Достатньо",техническая!AE118)),0) ->  | K125: =IFERROR(VLOOKUP(техническая!Z118,техническая!A:I,9,0),"") ->  | M125: =IFERROR(VLOOKUP(A125,'OBO прайс-лист'!A:J,10,0),"") -> 
B126: =IFERROR(VLOOKUP(A126,Лист1!A:J,2,0),"-") -> - | D126: =IFERROR(IF(C126<=техническая!AF119,техническая!AF119,(ROUNDUP((C126/техническая!AF119),0)*техническая!AF119)),"") ->  | E126: =IFERROR(VLOOKUP(A126,'OBO прайс-лист'!A:J,3,0),"-") -> - | F126: =IFERROR(VLOOKUP(A126,'OBO прайс-лист'!A:J,5,0),"-") -> - | G126: =IFERROR(VLOOKUP(A126,'OBO прайс-лист'!A:J,6,0),"-") -> - | H126: - | I126: - | J126: =IFERROR(IF(C126<=0,"",IF(C126<=техническая!AE119,"Достатньо",техническая!AE119)),0) ->  | K126: =IFERROR(VLOOKUP(техническая!Z119,техническая!A:I,9,0),"") ->  | M126: =IFERROR(VLOOKUP(A126,'OBO прайс-лист'!A:J,10,0),"") -> 
B127: =IFERROR(VLOOKUP(A127,Лист1!A:J,2,0),"-") -> - | D127: =IFERROR(IF(C127<=техническая!AF120,техническая!AF120,(ROUNDUP((C127/техническая!AF120),0)*техническая!AF120)),"") ->  | E127: =IFERROR(VLOOKUP(A127,'OBO прайс-лист'!A:J,3,0),"-") -> - | F127: =IFERROR(VLOOKUP(A127,'OBO прайс-лист'!A:J,5,0),"-") -> - | G127: =IFERROR(VLOOKUP(A127,'OBO прайс-лист'!A:J,6,0),"-") -> - | H127: - | I127: - | J127: =IFERROR(IF(C127<=0,"",IF(C127<=техническая!AE120,"Достатньо",техническая!AE120)),0) ->  | K127: =IFERROR(VLOOKUP(техническая!Z120,техническая!A:I,9,0),"") ->  | M127: =IFERROR(VLOOKUP(A127,'OBO прайс-лист'!A:J,10,0),"") -> 
B128: =IFERROR(VLOOKUP(A128,Лист1!A:J,2,0),"-") -> - | D128: =IFERROR(IF(C128<=техническая!AF121,техническая!AF121,(ROUNDUP((C128/техническая!AF121),0)*техническая!AF121)),"") ->  | E128: =IFERROR(VLOOKUP(A128,'OBO прайс-лист'!A:J,3,0),"-") -> - | F128: =IFERROR(VLOOKUP(A128,'OBO прайс-лист'!A:J,5,0),"-") -> - | G128: =IFERROR(VLOOKUP(A128,'OBO прайс-лист'!A:J,6,0),"-") -> - | H128: - | I128: - | J128: =IFERROR(IF(C128<=0,"",IF(C128<=техническая!AE121,"Достатньо",техническая!AE121)),0) ->  | K128: =IFERROR(VLOOKUP(техническая!Z121,техническая!A:I,9,0),"") ->  | M128: =IFERROR(VLOOKUP(A128,'OBO прайс-лист'!A:J,10,0),"") -> 
B129: =IFERROR(VLOOKUP(A129,Лист1!A:J,2,0),"-") -> - | D129: =IFERROR(IF(C129<=техническая!AF122,техническая!AF122,(ROUNDUP((C129/техническая!AF122),0)*техническая!AF122)),"") ->  | E129: =IFERROR(VLOOKUP(A129,'OBO прайс-лист'!A:J,3,0),"-") -> - | F129: =IFERROR(VLOOKUP(A129,'OBO прайс-лист'!A:J,5,0),"-") -> - | G129: =IFERROR(VLOOKUP(A129,'OBO прайс-лист'!A:J,6,0),"-") -> - | H129: - | I129: - | J129: =IFERROR(IF(C129<=0,"",IF(C129<=техническая!AE122,"Достатньо",техническая!AE122)),0) ->  | K129: =IFERROR(VLOOKUP(техническая!Z122,техническая!A:I,9,0),"") ->  | M129: =IFERROR(VLOOKUP(A129,'OBO прайс-лист'!A:J,10,0),"") -> 
B130: =IFERROR(VLOOKUP(A130,Лист1!A:J,2,0),"-") -> - | D130: =IFERROR(IF(C130<=техническая!AF123,техническая!AF123,(ROUNDUP((C130/техническая!AF123),0)*техническая!AF123)),"") ->  | E130: =IFERROR(VLOOKUP(A130,'OBO прайс-лист'!A:J,3,0),"-") -> - | F130: =IFERROR(VLOOKUP(A130,'OBO прайс-лист'!A:J,5,0),"-") -> - | G130: =IFERROR(VLOOKUP(A130,'OBO прайс-лист'!A:J,6,0),"-") -> - | H130: - | I130: - | J130: =IFERROR(IF(C130<=0,"",IF(C130<=техническая!AE123,"Достатньо",техническая!AE123)),0) ->  | K130: =IFERROR(VLOOKUP(техническая!Z123,техническая!A:I,9,0),"") ->  | M130: =IFERROR(VLOOKUP(A130,'OBO прайс-лист'!A:J,10,0),"") -> 
B131: =IFERROR(VLOOKUP(A131,Лист1!A:J,2,0),"-") -> - | D131: =IFERROR(IF(C131<=техническая!AF124,техническая!AF124,(ROUNDUP((C131/техническая!AF124),0)*техническая!AF124)),"") ->  | E131: =IFERROR(VLOOKUP(A131,'OBO прайс-лист'!A:J,3,0),"-") -> - | F131: =IFERROR(VLOOKUP(A131,'OBO прайс-лист'!A:J,5,0),"-") -> - | G131: =IFERROR(VLOOKUP(A131,'OBO прайс-лист'!A:J,6,0),"-") -> - | H131: =IFERROR(ROUND(E131*$C$6,2)*(1-K131),"-") -> - | I131: =IFERROR(ROUND(D131*ROUND((H131/F131),2)*1.2,2),"-") -> - | J131: =IFERROR(IF(C131<=0,"",IF(C131<=техническая!AE124,"Достатньо",техническая!AE124)),0) ->  | K131: =IFERROR(VLOOKUP(техническая!Z124,техническая!A:I,9,0),"") ->  | M131: =IFERROR(VLOOKUP(A131,'OBO прайс-лист'!A:J,10,0),"") -> 
B132: =IFERROR(VLOOKUP(A132,Лист1!A:J,2,0),"-") -> - | D132: =IFERROR(IF(C132<=техническая!AF125,техническая!AF125,(ROUNDUP((C132/техническая!AF125),0)*техническая!AF125)),"") ->  | E132: =IFERROR(VLOOKUP(A132,'OBO прайс-лист'!A:J,3,0),"-") -> - | F132: =IFERROR(VLOOKUP(A132,'OBO прайс-лист'!A:J,5,0),"-") -> - | G132: =IFERROR(VLOOKUP(A132,'OBO прайс-лист'!A:J,6,0),"-") -> - | H132: - | I132: - | J132: =IFERROR(IF(C132<=0,"",IF(C132<=техническая!AE125,"Достатньо",техническая!AE125)),0) ->  | K132: =IFERROR(VLOOKUP(техническая!Z125,техническая!A:I,9,0),"") ->  | L132: =IFERROR(HYPERLINK(M132,M132),"") ->  | M132: =IFERROR(VLOOKUP(A132,'OBO прайс-лист'!A:J,10,0),"") -> 
B133: =IFERROR(VLOOKUP(A133,Лист1!A:J,2,0),"-") -> - | D133: =IFERROR(IF(C133<=техническая!AF126,техническая!AF126,(ROUNDUP((C133/техническая!AF126),0)*техническая!AF126)),"") ->  | E133: =IFERROR(VLOOKUP(A133,'OBO прайс-лист'!A:J,3,0),"-") -> - | F133: =IFERROR(VLOOKUP(A133,'OBO прайс-лист'!A:J,5,0),"-") -> - | G133: =IFERROR(VLOOKUP(A133,'OBO прайс-лист'!A:J,6,0),"-") -> - | H133: - | I133: - | J133: =IFERROR(IF(C133<=0,"",IF(C133<=техническая!AE126,"Достатньо",техническая!AE126)),0) ->  | K133: =IFERROR(VLOOKUP(техническая!Z126,техническая!A:I,9,0),"") ->  | M133: =IFERROR(VLOOKUP(A133,'OBO прайс-лист'!A:J,10,0),"") -> 
B134: =IFERROR(VLOOKUP(A134,Лист1!A:J,2,0),"-") -> - | D134: =IFERROR(IF(C134<=техническая!AF127,техническая!AF127,(ROUNDUP((C134/техническая!AF127),0)*техническая!AF127)),"") ->  | E134: =IFERROR(VLOOKUP(A134,'OBO прайс-лист'!A:J,3,0),"-") -> - | F134: =IFERROR(VLOOKUP(A134,'OBO прайс-лист'!A:J,5,0),"-") -> - | G134: =IFERROR(VLOOKUP(A134,'OBO прайс-лист'!A:J,6,0),"-") -> - | H134: - | I134: - | J134: =IFERROR(IF(C134<=0,"",IF(C134<=техническая!AE127,"Достатньо",техническая!AE127)),0) ->  | K134: =IFERROR(VLOOKUP(техническая!Z127,техническая!A:I,9,0),"") ->  | M134: =IFERROR(VLOOKUP(A134,'OBO прайс-лист'!A:J,10,0),"") -> 
B135: =IFERROR(VLOOKUP(A135,Лист1!A:J,2,0),"-") -> - | D135: =IFERROR(IF(C135<=техническая!AF128,техническая!AF128,(ROUNDUP((C135/техническая!AF128),0)*техническая!AF128)),"") ->  | E135: =IFERROR(VLOOKUP(A135,'OBO прайс-лист'!A:J,3,0),"-") -> - | F135: =IFERROR(VLOOKUP(A135,'OBO прайс-лист'!A:J,5,0),"-") -> - | G135: =IFERROR(VLOOKUP(A135,'OBO прайс-лист'!A:J,6,0),"-") -> - | H135: - | I135: - | J135: =IFERROR(IF(C135<=0,"",IF(C135<=техническая!AE128,"Достатньо",техническая!AE128)),0) ->  | K135: =IFERROR(VLOOKUP(техническая!Z128,техническая!A:I,9,0),"") ->  | M135: =IFERROR(VLOOKUP(A135,'OBO прайс-лист'!A:J,10,0),"") -> 
B136: =IFERROR(VLOOKUP(A136,Лист1!A:J,2,0),"-") -> - | D136: =IFERROR(IF(C136<=техническая!AF129,техническая!AF129,(ROUNDUP((C136/техническая!AF129),0)*техническая!AF129)),"") ->  | E136: =IFERROR(VLOOKUP(A136,'OBO прайс-лист'!A:J,3,0),"-") -> - | F136: =IFERROR(VLOOKUP(A136,'OBO прайс-лист'!A:J,5,0),"-") -> - | G136: =IFERROR(VLOOKUP(A136,'OBO прайс-лист'!A:J,6,0),"-") -> - | H136: - | I136: - | J136: =IFERROR(IF(C136<=0,"",IF(C136<=техническая!AE129,"Достатньо",техническая!AE129)),0) ->  | K136: =IFERROR(VLOOKUP(техническая!Z129,техническая!A:I,9,0),"") ->  | M136: =IFERROR(VLOOKUP(A136,'OBO прайс-лист'!A:J,10,0),"") -> 
B137: =IFERROR(VLOOKUP(A137,Лист1!A:J,2,0),"-") -> - | D137: =IFERROR(IF(C137<=техническая!AF130,техническая!AF130,(ROUNDUP((C137/техническая!AF130),0)*техническая!AF130)),"") ->  | E137: =IFERROR(VLOOKUP(A137,'OBO прайс-лист'!A:J,3,0),"-") -> - | F137: =IFERROR(VLOOKUP(A137,'OBO прайс-лист'!A:J,5,0),"-") -> - | G137: =IFERROR(VLOOKUP(A137,'OBO прайс-лист'!A:J,6,0),"-") -> - | H137: - | I137: - | J137: =IFERROR(IF(C137<=0,"",IF(C137<=техническая!AE130,"Достатньо",техническая!AE130)),0) ->  | K137: =IFERROR(VLOOKUP(техническая!Z130,техническая!A:I,9,0),"") ->  | M137: =IFERROR(VLOOKUP(A137,'OBO прайс-лист'!A:J,10,0),"") -> 
B138: =IFERROR(VLOOKUP(A138,Лист1!A:J,2,0),"-") -> - | D138: =IFERROR(IF(C138<=техническая!AF131,техническая!AF131,(ROUNDUP((C138/техническая!AF131),0)*техническая!AF131)),"") ->  | E138: =IFERROR(VLOOKUP(A138,'OBO прайс-лист'!A:J,3,0),"-") -> - | F138: =IFERROR(VLOOKUP(A138,'OBO прайс-лист'!A:J,5,0),"-") -> - | G138: =IFERROR(VLOOKUP(A138,'OBO прайс-лист'!A:J,6,0),"-") -> - | H138: - | I138: - | J138: =IFERROR(IF(C138<=0,"",IF(C138<=техническая!AE131,"Достатньо",техническая!AE131)),0) ->  | K138: =IFERROR(VLOOKUP(техническая!Z131,техническая!A:I,9,0),"") ->  | M138: =IFERROR(VLOOKUP(A138,'OBO прайс-лист'!A:J,10,0),"") -> 
B139: =IFERROR(VLOOKUP(A139,Лист1!A:J,2,0),"-") -> - | D139: =IFERROR(IF(C139<=техническая!AF132,техническая!AF132,(ROUNDUP((C139/техническая!AF132),0)*техническая!AF132)),"") ->  | E139: =IFERROR(VLOOKUP(A139,'OBO прайс-лист'!A:J,3,0),"-") -> - | F139: =IFERROR(VLOOKUP(A139,'OBO прайс-лист'!A:J,5,0),"-") -> - | G139: =IFERROR(VLOOKUP(A139,'OBO прайс-лист'!A:J,6,0),"-") -> - | H139: - | I139: - | J139: =IFERROR(IF(C139<=0,"",IF(C139<=техническая!AE132,"Достатньо",техническая!AE132)),0) ->  | K139: =IFERROR(VLOOKUP(техническая!Z132,техническая!A:I,9,0),"") ->  | M139: =IFERROR(VLOOKUP(A139,'OBO прайс-лист'!A:J,10,0),"") -> 
B140: =IFERROR(VLOOKUP(A140,Лист1!A:J,2,0),"-") -> - | D140: =IFERROR(IF(C140<=техническая!AF133,техническая!AF133,(ROUNDUP((C140/техническая!AF133),0)*техническая!AF133)),"") ->  | E140: =IFERROR(VLOOKUP(A140,'OBO прайс-лист'!A:J,3,0),"-") -> - | F140: =IFERROR(VLOOKUP(A140,'OBO прайс-лист'!A:J,5,0),"-") -> - | G140: =IFERROR(VLOOKUP(A140,'OBO прайс-лист'!A:J,6,0),"-") -> - | H140: - | I140: - | J140: =IFERROR(IF(C140<=0,"",IF(C140<=техническая!AE133,"Достатньо",техническая!AE133)),0) ->  | K140: =IFERROR(VLOOKUP(техническая!Z133,техническая!A:I,9,0),"") ->  | M140: =IFERROR(VLOOKUP(A140,'OBO прайс-лист'!A:J,10,0),"") -> 
B141: =IFERROR(VLOOKUP(A141,Лист1!A:J,2,0),"-") -> - | D141: =IFERROR(IF(C141<=техническая!AF134,техническая!AF134,(ROUNDUP((C141/техническая!AF134),0)*техническая!AF134)),"") ->  | E141: =IFERROR(VLOOKUP(A141,'OBO прайс-лист'!A:J,3,0),"-") -> - | F141: =IFERROR(VLOOKUP(A141,'OBO прайс-лист'!A:J,5,0),"-") -> - | G141: =IFERROR(VLOOKUP(A141,'OBO прайс-лист'!A:J,6,0),"-") -> - | H141: - | I141: - | J141: =IFERROR(IF(C141<=0,"",IF(C141<=техническая!AE134,"Достатньо",техническая!AE134)),0) ->  | K141: =IFERROR(VLOOKUP(техническая!Z134,техническая!A:I,9,0),"") ->  | M141: =IFERROR(VLOOKUP(A141,'OBO прайс-лист'!A:J,10,0),"") -> 
B142: =IFERROR(VLOOKUP(A142,Лист1!A:J,2,0),"-") -> - | D142: =IFERROR(IF(C142<=техническая!AF135,техническая!AF135,(ROUNDUP((C142/техническая!AF135),0)*техническая!AF135)),"") ->  | E142: =IFERROR(VLOOKUP(A142,'OBO прайс-лист'!A:J,3,0),"-") -> - | F142: =IFERROR(VLOOKUP(A142,'OBO прайс-лист'!A:J,5,0),"-") -> - | G142: =IFERROR(VLOOKUP(A142,'OBO прайс-лист'!A:J,6,0),"-") -> - | H142: - | I142: - | J142: =IFERROR(IF(C142<=0,"",IF(C142<=техническая!AE135,"Достатньо",техническая!AE135)),0) ->  | K142: =IFERROR(VLOOKUP(техническая!Z135,техническая!A:I,9,0),"") ->  | M142: =IFERROR(VLOOKUP(A142,'OBO прайс-лист'!A:J,10,0),"") -> 
B143: =IFERROR(VLOOKUP(A143,Лист1!A:J,2,0),"-") -> - | D143: =IFERROR(IF(C143<=техническая!AF136,техническая!AF136,(ROUNDUP((C143/техническая!AF136),0)*техническая!AF136)),"") ->  | E143: =IFERROR(VLOOKUP(A143,'OBO прайс-лист'!A:J,3,0),"-") -> - | F143: =IFERROR(VLOOKUP(A143,'OBO прайс-лист'!A:J,5,0),"-") -> - | G143: =IFERROR(VLOOKUP(A143,'OBO прайс-лист'!A:J,6,0),"-") -> - | H143: - | I143: - | J143: =IFERROR(IF(C143<=0,"",IF(C143<=техническая!AE136,"Достатньо",техническая!AE136)),0) ->  | K143: =IFERROR(VLOOKUP(техническая!Z136,техническая!A:I,9,0),"") ->  | M143: =IFERROR(VLOOKUP(A143,'OBO прайс-лист'!A:J,10,0),"") -> 
B144: =IFERROR(VLOOKUP(A144,Лист1!A:J,2,0),"-") -> - | D144: =IFERROR(IF(C144<=техническая!AF137,техническая!AF137,(ROUNDUP((C144/техническая!AF137),0)*техническая!AF137)),"") ->  | E144: =IFERROR(VLOOKUP(A144,'OBO прайс-лист'!A:J,3,0),"-") -> - | F144: =IFERROR(VLOOKUP(A144,'OBO прайс-лист'!A:J,5,0),"-") -> - | G144: =IFERROR(VLOOKUP(A144,'OBO прайс-лист'!A:J,6,0),"-") -> - | H144: - | I144: - | J144: =IFERROR(IF(C144<=0,"",IF(C144<=техническая!AE137,"Достатньо",техническая!AE137)),0) ->  | K144: =IFERROR(VLOOKUP(техническая!Z137,техническая!A:I,9,0),"") ->  | M144: =IFERROR(VLOOKUP(A144,'OBO прайс-лист'!A:J,10,0),"") -> 
B145: =IFERROR(VLOOKUP(A145,Лист1!A:J,2,0),"-") -> - | D145: =IFERROR(IF(C145<=техническая!AF138,техническая!AF138,(ROUNDUP((C145/техническая!AF138),0)*техническая!AF138)),"") ->  | E145: =IFERROR(VLOOKUP(A145,'OBO прайс-лист'!A:J,3,0),"-") -> - | F145: =IFERROR(VLOOKUP(A145,'OBO прайс-лист'!A:J,5,0),"-") -> - | G145: =IFERROR(VLOOKUP(A145,'OBO прайс-лист'!A:J,6,0),"-") -> - | H145: - | I145: - | J145: =IFERROR(IF(C145<=0,"",IF(C145<=техническая!AE138,"Достатньо",техническая!AE138)),0) ->  | K145: =IFERROR(VLOOKUP(техническая!Z138,техническая!A:I,9,0),"") ->  | M145: =IFERROR(VLOOKUP(A145,'OBO прайс-лист'!A:J,10,0),"") -> 
B146: =IFERROR(VLOOKUP(A146,Лист1!A:J,2,0),"-") -> - | D146: =IFERROR(IF(C146<=техническая!AF139,техническая!AF139,(ROUNDUP((C146/техническая!AF139),0)*техническая!AF139)),"") ->  | E146: =IFERROR(VLOOKUP(A146,'OBO прайс-лист'!A:J,3,0),"-") -> - | F146: =IFERROR(VLOOKUP(A146,'OBO прайс-лист'!A:J,5,0),"-") -> - | G146: =IFERROR(VLOOKUP(A146,'OBO прайс-лист'!A:J,6,0),"-") -> - | H146: - | I146: - | J146: =IFERROR(IF(C146<=0,"",IF(C146<=техническая!AE139,"Достатньо",техническая!AE139)),0) ->  | K146: =IFERROR(VLOOKUP(техническая!Z139,техническая!A:I,9,0),"") ->  | M146: =IFERROR(VLOOKUP(A146,'OBO прайс-лист'!A:J,10,0),"") -> 
B147: =IFERROR(VLOOKUP(A147,Лист1!A:J,2,0),"-") -> - | D147: =IFERROR(IF(C147<=техническая!AF140,техническая!AF140,(ROUNDUP((C147/техническая!AF140),0)*техническая!AF140)),"") ->  | E147: =IFERROR(VLOOKUP(A147,'OBO прайс-лист'!A:J,3,0),"-") -> - | F147: =IFERROR(VLOOKUP(A147,'OBO прайс-лист'!A:J,5,0),"-") -> - | G147: =IFERROR(VLOOKUP(A147,'OBO прайс-лист'!A:J,6,0),"-") -> - | H147: - | I147: - | J147: =IFERROR(IF(C147<=0,"",IF(C147<=техническая!AE140,"Достатньо",техническая!AE140)),0) ->  | K147: =IFERROR(VLOOKUP(техническая!Z140,техническая!A:I,9,0),"") ->  | M147: =IFERROR(VLOOKUP(A147,'OBO прайс-лист'!A:J,10,0),"") -> 
B148: =IFERROR(VLOOKUP(A148,Лист1!A:J,2,0),"-") -> - | D148: =IFERROR(IF(C148<=техническая!AF141,техническая!AF141,(ROUNDUP((C148/техническая!AF141),0)*техническая!AF141)),"") ->  | E148: =IFERROR(VLOOKUP(A148,'OBO прайс-лист'!A:J,3,0),"-") -> - | F148: =IFERROR(VLOOKUP(A148,'OBO прайс-лист'!A:J,5,0),"-") -> - | G148: =IFERROR(VLOOKUP(A148,'OBO прайс-лист'!A:J,6,0),"-") -> - | H148: - | I148: - | J148: =IFERROR(IF(C148<=0,"",IF(C148<=техническая!AE141,"Достатньо",техническая!AE141)),0) ->  | K148: =IFERROR(VLOOKUP(техническая!Z141,техническая!A:I,9,0),"") ->  | M148: =IFERROR(VLOOKUP(A148,'OBO прайс-лист'!A:J,10,0),"") -> 
B149: =IFERROR(VLOOKUP(A149,Лист1!A:J,2,0),"-") -> - | D149: =IFERROR(IF(C149<=техническая!AF142,техническая!AF142,(ROUNDUP((C149/техническая!AF142),0)*техническая!AF142)),"") ->  | E149: =IFERROR(VLOOKUP(A149,'OBO прайс-лист'!A:J,3,0),"-") -> - | F149: =IFERROR(VLOOKUP(A149,'OBO прайс-лист'!A:J,5,0),"-") -> - | G149: =IFERROR(VLOOKUP(A149,'OBO прайс-лист'!A:J,6,0),"-") -> - | H149: - | I149: - | J149: =IFERROR(IF(C149<=0,"",IF(C149<=техническая!AE142,"Достатньо",техническая!AE142)),0) ->  | K149: =IFERROR(VLOOKUP(техническая!Z142,техническая!A:I,9,0),"") ->  | M149: =IFERROR(VLOOKUP(A149,'OBO прайс-лист'!A:J,10,0),"") -> 
B150: =IFERROR(VLOOKUP(A150,Лист1!A:J,2,0),"-") -> - | D150: =IFERROR(IF(C150<=техническая!AF143,техническая!AF143,(ROUNDUP((C150/техническая!AF143),0)*техническая!AF143)),"") ->  | E150: =IFERROR(VLOOKUP(A150,'OBO прайс-лист'!A:J,3,0),"-") -> - | F150: =IFERROR(VLOOKUP(A150,'OBO прайс-лист'!A:J,5,0),"-") -> - | G150: =IFERROR(VLOOKUP(A150,'OBO прайс-лист'!A:J,6,0),"-") -> - | H150: - | I150: - | J150: =IFERROR(IF(C150<=0,"",IF(C150<=техническая!AE143,"Достатньо",техническая!AE143)),0) ->  | K150: =IFERROR(VLOOKUP(техническая!Z143,техническая!A:I,9,0),"") ->  | M150: =IFERROR(VLOOKUP(A150,'OBO прайс-лист'!A:J,10,0),"") -> 
B151: =IFERROR(VLOOKUP(A151,Лист1!A:J,2,0),"-") -> - | D151: =IFERROR(IF(C151<=техническая!AF144,техническая!AF144,(ROUNDUP((C151/техническая!AF144),0)*техническая!AF144)),"") ->  | E151: =IFERROR(VLOOKUP(A151,'OBO прайс-лист'!A:J,3,0),"-") -> - | F151: =IFERROR(VLOOKUP(A151,'OBO прайс-лист'!A:J,5,0),"-") -> - | G151: =IFERROR(VLOOKUP(A151,'OBO прайс-лист'!A:J,6,0),"-") -> - | H151: - | I151: - | J151: =IFERROR(IF(C151<=0,"",IF(C151<=техническая!AE144,"Достатньо",техническая!AE144)),0) ->  | K151: =IFERROR(VLOOKUP(техническая!Z144,техническая!A:I,9,0),"") ->  | M151: =IFERROR(VLOOKUP(A151,'OBO прайс-лист'!A:J,10,0),"") -> 
B152: =IFERROR(VLOOKUP(A152,Лист1!A:J,2,0),"-") -> - | D152: =IFERROR(IF(C152<=техническая!AF145,техническая!AF145,(ROUNDUP((C152/техническая!AF145),0)*техническая!AF145)),"") ->  | E152: =IFERROR(VLOOKUP(A152,'OBO прайс-лист'!A:J,3,0),"-") -> - | F152: =IFERROR(VLOOKUP(A152,'OBO прайс-лист'!A:J,5,0),"-") -> - | G152: =IFERROR(VLOOKUP(A152,'OBO прайс-лист'!A:J,6,0),"-") -> - | H152: - | I152: - | J152: =IFERROR(IF(C152<=0,"",IF(C152<=техническая!AE145,"Достатньо",техническая!AE145)),0) ->  | K152: =IFERROR(VLOOKUP(техническая!Z145,техническая!A:I,9,0),"") ->  | M152: =IFERROR(VLOOKUP(A152,'OBO прайс-лист'!A:J,10,0),"") -> 
B153: =IFERROR(VLOOKUP(A153,Лист1!A:J,2,0),"-") -> - | D153: =IFERROR(IF(C153<=техническая!AF146,техническая!AF146,(ROUNDUP((C153/техническая!AF146),0)*техническая!AF146)),"") ->  | E153: =IFERROR(VLOOKUP(A153,'OBO прайс-лист'!A:J,3,0),"-") -> - | F153: =IFERROR(VLOOKUP(A153,'OBO прайс-лист'!A:J,5,0),"-") -> - | G153: =IFERROR(VLOOKUP(A153,'OBO прайс-лист'!A:J,6,0),"-") -> - | H153: - | I153: - | J153: =IFERROR(IF(C153<=0,"",IF(C153<=техническая!AE146,"Достатньо",техническая!AE146)),0) ->  | K153: =IFERROR(VLOOKUP(техническая!Z146,техническая!A:I,9,0),"") ->  | M153: =IFERROR(VLOOKUP(A153,'OBO прайс-лист'!A:J,10,0),"") -> 
B154: =IFERROR(VLOOKUP(A154,Лист1!A:J,2,0),"-") -> - | D154: =IFERROR(IF(C154<=техническая!AF147,техническая!AF147,(ROUNDUP((C154/техническая!AF147),0)*техническая!AF147)),"") ->  | E154: =IFERROR(VLOOKUP(A154,'OBO прайс-лист'!A:J,3,0),"-") -> - | F154: =IFERROR(VLOOKUP(A154,'OBO прайс-лист'!A:J,5,0),"-") -> - | G154: =IFERROR(VLOOKUP(A154,'OBO прайс-лист'!A:J,6,0),"-") -> - | H154: - | I154: - | J154: =IFERROR(IF(C154<=0,"",IF(C154<=техническая!AE147,"Достатньо",техническая!AE147)),0) ->  | K154: =IFERROR(VLOOKUP(техническая!Z147,техническая!A:I,9,0),"") ->  | M154: =IFERROR(VLOOKUP(A154,'OBO прайс-лист'!A:J,10,0),"") -> 
B155: =IFERROR(VLOOKUP(A155,Лист1!A:J,2,0),"-") -> - | D155: =IFERROR(IF(C155<=техническая!AF148,техническая!AF148,(ROUNDUP((C155/техническая!AF148),0)*техническая!AF148)),"") ->  | E155: =IFERROR(VLOOKUP(A155,'OBO прайс-лист'!A:J,3,0),"-") -> - | F155: =IFERROR(VLOOKUP(A155,'OBO прайс-лист'!A:J,5,0),"-") -> - | G155: =IFERROR(VLOOKUP(A155,'OBO прайс-лист'!A:J,6,0),"-") -> - | H155: - | I155: - | J155: =IFERROR(IF(C155<=0,"",IF(C155<=техническая!AE148,"Достатньо",техническая!AE148)),0) ->  | K155: =IFERROR(VLOOKUP(техническая!Z148,техническая!A:I,9,0),"") ->  | M155: =IFERROR(VLOOKUP(A155,'OBO прайс-лист'!A:J,10,0),"") -> 
B156: =IFERROR(VLOOKUP(A156,Лист1!A:J,2,0),"-") -> - | D156: =IFERROR(IF(C156<=техническая!AF149,техническая!AF149,(ROUNDUP((C156/техническая!AF149),0)*техническая!AF149)),"") ->  | E156: =IFERROR(VLOOKUP(A156,'OBO прайс-лист'!A:J,3,0),"-") -> - | F156: =IFERROR(VLOOKUP(A156,'OBO прайс-лист'!A:J,5,0),"-") -> - | G156: =IFERROR(VLOOKUP(A156,'OBO прайс-лист'!A:J,6,0),"-") -> - | H156: - | I156: - | J156: =IFERROR(IF(C156<=0,"",IF(C156<=техническая!AE149,"Достатньо",техническая!AE149)),0) ->  | K156: =IFERROR(VLOOKUP(техническая!Z149,техническая!A:I,9,0),"") ->  | M156: =IFERROR(VLOOKUP(A156,'OBO прайс-лист'!A:J,10,0),"") -> 
B157: =IFERROR(VLOOKUP(A157,Лист1!A:J,2,0),"-") -> - | D157: =IFERROR(IF(C157<=техническая!AF150,техническая!AF150,(ROUNDUP((C157/техническая!AF150),0)*техническая!AF150)),"") ->  | E157: =IFERROR(VLOOKUP(A157,'OBO прайс-лист'!A:J,3,0),"-") -> - | F157: =IFERROR(VLOOKUP(A157,'OBO прайс-лист'!A:J,5,0),"-") -> - | G157: =IFERROR(VLOOKUP(A157,'OBO прайс-лист'!A:J,6,0),"-") -> - | H157: - | I157: - | J157: =IFERROR(IF(C157<=0,"",IF(C157<=техническая!AE150,"Достатньо",техническая!AE150)),0) ->  | K157: =IFERROR(VLOOKUP(техническая!Z150,техническая!A:I,9,0),"") ->  | M157: =IFERROR(VLOOKUP(A157,'OBO прайс-лист'!A:J,10,0),"") -> 
B158: =IFERROR(VLOOKUP(A158,Лист1!A:J,2,0),"-") -> - | D158: =IFERROR(IF(C158<=техническая!AF151,техническая!AF151,(ROUNDUP((C158/техническая!AF151),0)*техническая!AF151)),"") ->  | E158: =IFERROR(VLOOKUP(A158,'OBO прайс-лист'!A:J,3,0),"-") -> - | F158: =IFERROR(VLOOKUP(A158,'OBO прайс-лист'!A:J,5,0),"-") -> - | G158: =IFERROR(VLOOKUP(A158,'OBO прайс-лист'!A:J,6,0),"-") -> - | H158: - | I158: - | J158: =IFERROR(IF(C158<=0,"",IF(C158<=техническая!AE151,"Достатньо",техническая!AE151)),0) ->  | K158: =IFERROR(VLOOKUP(техническая!Z151,техническая!A:I,9,0),"") ->  | M158: =IFERROR(VLOOKUP(A158,'OBO прайс-лист'!A:J,10,0),"") -> 
B159: =IFERROR(VLOOKUP(A159,Лист1!A:J,2,0),"-") -> - | D159: =IFERROR(IF(C159<=техническая!AF152,техническая!AF152,(ROUNDUP((C159/техническая!AF152),0)*техническая!AF152)),"") ->  | E159: =IFERROR(VLOOKUP(A159,'OBO прайс-лист'!A:J,3,0),"-") -> - | F159: =IFERROR(VLOOKUP(A159,'OBO прайс-лист'!A:J,5,0),"-") -> - | G159: =IFERROR(VLOOKUP(A159,'OBO прайс-лист'!A:J,6,0),"-") -> - | H159: - | I159: - | J159: =IFERROR(IF(C159<=0,"",IF(C159<=техническая!AE152,"Достатньо",техническая!AE152)),0) ->  | K159: =IFERROR(VLOOKUP(техническая!Z152,техническая!A:I,9,0),"") ->  | M159: =IFERROR(VLOOKUP(A159,'OBO прайс-лист'!A:J,10,0),"") -> 
B160: =IFERROR(VLOOKUP(A160,Лист1!A:J,2,0),"-") -> - | D160: =IFERROR(IF(C160<=техническая!AF153,техническая!AF153,(ROUNDUP((C160/техническая!AF153),0)*техническая!AF153)),"") ->  | E160: =IFERROR(VLOOKUP(A160,'OBO прайс-лист'!A:J,3,0),"-") -> - | F160: =IFERROR(VLOOKUP(A160,'OBO прайс-лист'!A:J,5,0),"-") -> - | G160: =IFERROR(VLOOKUP(A160,'OBO прайс-лист'!A:J,6,0),"-") -> - | H160: - | I160: - | J160: =IFERROR(IF(C160<=0,"",IF(C160<=техническая!AE153,"Достатньо",техническая!AE153)),0) ->  | K160: =IFERROR(VLOOKUP(техническая!Z153,техническая!A:I,9,0),"") ->  | M160: =IFERROR(VLOOKUP(A160,'OBO прайс-лист'!A:J,10,0),"") -> 
B161: =IFERROR(VLOOKUP(A161,Лист1!A:J,2,0),"-") -> - | D161: =IFERROR(IF(C161<=техническая!AF154,техническая!AF154,(ROUNDUP((C161/техническая!AF154),0)*техническая!AF154)),"") ->  | E161: =IFERROR(VLOOKUP(A161,'OBO прайс-лист'!A:J,3,0),"-") -> - | F161: =IFERROR(VLOOKUP(A161,'OBO прайс-лист'!A:J,5,0),"-") -> - | G161: =IFERROR(VLOOKUP(A161,'OBO прайс-лист'!A:J,6,0),"-") -> - | H161: - | I161: - | J161: =IFERROR(IF(C161<=0,"",IF(C161<=техническая!AE154,"Достатньо",техническая!AE154)),0) ->  | K161: =IFERROR(VLOOKUP(техническая!Z154,техническая!A:I,9,0),"") ->  | M161: =IFERROR(VLOOKUP(A161,'OBO прайс-лист'!A:J,10,0),"") -> 
B162: =IFERROR(VLOOKUP(A162,Лист1!A:J,2,0),"-") -> - | D162: =IFERROR(IF(C162<=техническая!AF155,техническая!AF155,(ROUNDUP((C162/техническая!AF155),0)*техническая!AF155)),"") ->  | E162: =IFERROR(VLOOKUP(A162,'OBO прайс-лист'!A:J,3,0),"-") -> - | F162: =IFERROR(VLOOKUP(A162,'OBO прайс-лист'!A:J,5,0),"-") -> - | G162: =IFERROR(VLOOKUP(A162,'OBO прайс-лист'!A:J,6,0),"-") -> - | H162: - | I162: - | J162: =IFERROR(IF(C162<=0,"",IF(C162<=техническая!AE155,"Достатньо",техническая!AE155)),0) ->  | K162: =IFERROR(VLOOKUP(техническая!Z155,техническая!A:I,9,0),"") ->  | M162: =IFERROR(VLOOKUP(A162,'OBO прайс-лист'!A:J,10,0),"") -> 
B163: =IFERROR(VLOOKUP(A163,Лист1!A:J,2,0),"-") -> - | D163: =IFERROR(IF(C163<=техническая!AF156,техническая!AF156,(ROUNDUP((C163/техническая!AF156),0)*техническая!AF156)),"") ->  | E163: =IFERROR(VLOOKUP(A163,'OBO прайс-лист'!A:J,3,0),"-") -> - | F163: =IFERROR(VLOOKUP(A163,'OBO прайс-лист'!A:J,5,0),"-") -> - | G163: =IFERROR(VLOOKUP(A163,'OBO прайс-лист'!A:J,6,0),"-") -> - | H163: - | I163: - | J163: =IFERROR(IF(C163<=0,"",IF(C163<=техническая!AE156,"Достатньо",техническая!AE156)),0) ->  | K163: =IFERROR(VLOOKUP(техническая!Z156,техническая!A:I,9,0),"") ->  | M163: =IFERROR(VLOOKUP(A163,'OBO прайс-лист'!A:J,10,0),"") -> 
B164: =IFERROR(VLOOKUP(A164,Лист1!A:J,2,0),"-") -> - | D164: =IFERROR(IF(C164<=техническая!AF157,техническая!AF157,(ROUNDUP((C164/техническая!AF157),0)*техническая!AF157)),"") ->  | E164: =IFERROR(VLOOKUP(A164,'OBO прайс-лист'!A:J,3,0),"-") -> - | F164: =IFERROR(VLOOKUP(A164,'OBO прайс-лист'!A:J,5,0),"-") -> - | G164: =IFERROR(VLOOKUP(A164,'OBO прайс-лист'!A:J,6,0),"-") -> - | H164: - | I164: - | J164: =IFERROR(IF(C164<=0,"",IF(C164<=техническая!AE157,"Достатньо",техническая!AE157)),0) ->  | K164: =IFERROR(VLOOKUP(техническая!Z157,техническая!A:I,9,0),"") ->  | M164: =IFERROR(VLOOKUP(A164,'OBO прайс-лист'!A:J,10,0),"") -> 
B165: =IFERROR(VLOOKUP(A165,Лист1!A:J,2,0),"-") -> - | D165: =IFERROR(IF(C165<=техническая!AF158,техническая!AF158,(ROUNDUP((C165/техническая!AF158),0)*техническая!AF158)),"") ->  | E165: =IFERROR(VLOOKUP(A165,'OBO прайс-лист'!A:J,3,0),"-") -> - | F165: =IFERROR(VLOOKUP(A165,'OBO прайс-лист'!A:J,5,0),"-") -> - | G165: =IFERROR(VLOOKUP(A165,'OBO прайс-лист'!A:J,6,0),"-") -> - | H165: - | I165: - | J165: =IFERROR(IF(C165<=0,"",IF(C165<=техническая!AE158,"Достатньо",техническая!AE158)),0) ->  | K165: =IFERROR(VLOOKUP(техническая!Z158,техническая!A:I,9,0),"") ->  | M165: =IFERROR(VLOOKUP(A165,'OBO прайс-лист'!A:J,10,0),"") -> 
B166: =IFERROR(VLOOKUP(A166,Лист1!A:J,2,0),"-") -> - | D166: =IFERROR(IF(C166<=техническая!AF159,техническая!AF159,(ROUNDUP((C166/техническая!AF159),0)*техническая!AF159)),"") ->  | E166: =IFERROR(VLOOKUP(A166,'OBO прайс-лист'!A:J,3,0),"-") -> - | F166: =IFERROR(VLOOKUP(A166,'OBO прайс-лист'!A:J,5,0),"-") -> - | G166: =IFERROR(VLOOKUP(A166,'OBO прайс-лист'!A:J,6,0),"-") -> - | H166: - | I166: - | J166: =IFERROR(IF(C166<=0,"",IF(C166<=техническая!AE159,"Достатньо",техническая!AE159)),0) ->  | K166: =IFERROR(VLOOKUP(техническая!Z159,техническая!A:I,9,0),"") ->  | M166: =IFERROR(VLOOKUP(A166,'OBO прайс-лист'!A:J,10,0),"") -> 
B167: =IFERROR(VLOOKUP(A167,Лист1!A:J,2,0),"-") -> - | D167: =IFERROR(IF(C167<=техническая!AF160,техническая!AF160,(ROUNDUP((C167/техническая!AF160),0)*техническая!AF160)),"") ->  | E167: =IFERROR(VLOOKUP(A167,'OBO прайс-лист'!A:J,3,0),"-") -> - | F167: =IFERROR(VLOOKUP(A167,'OBO прайс-лист'!A:J,5,0),"-") -> - | G167: =IFERROR(VLOOKUP(A167,'OBO прайс-лист'!A:J,6,0),"-") -> - | H167: - | I167: - | J167: =IFERROR(IF(C167<=0,"",IF(C167<=техническая!AE160,"Достатньо",техническая!AE160)),0) ->  | K167: =IFERROR(VLOOKUP(техническая!Z160,техническая!A:I,9,0),"") ->  | M167: =IFERROR(VLOOKUP(A167,'OBO прайс-лист'!A:J,10,0),"") -> 
B168: =IFERROR(VLOOKUP(A168,Лист1!A:J,2,0),"-") -> - | D168: =IFERROR(IF(C168<=техническая!AF161,техническая!AF161,(ROUNDUP((C168/техническая!AF161),0)*техническая!AF161)),"") ->  | E168: =IFERROR(VLOOKUP(A168,'OBO прайс-лист'!A:J,3,0),"-") -> - | F168: =IFERROR(VLOOKUP(A168,'OBO прайс-лист'!A:J,5,0),"-") -> - | G168: =IFERROR(VLOOKUP(A168,'OBO прайс-лист'!A:J,6,0),"-") -> - | H168: - | I168: - | J168: =IFERROR(IF(C168<=0,"",IF(C168<=техническая!AE161,"Достатньо",техническая!AE161)),0) ->  | K168: =IFERROR(VLOOKUP(техническая!Z161,техническая!A:I,9,0),"") ->  | M168: =IFERROR(VLOOKUP(A168,'OBO прайс-лист'!A:J,10,0),"") -> 
B169: =IFERROR(VLOOKUP(A169,Лист1!A:J,2,0),"-") -> - | D169: =IFERROR(IF(C169<=техническая!AF162,техническая!AF162,(ROUNDUP((C169/техническая!AF162),0)*техническая!AF162)),"") ->  | E169: =IFERROR(VLOOKUP(A169,'OBO прайс-лист'!A:J,3,0),"-") -> - | F169: =IFERROR(VLOOKUP(A169,'OBO прайс-лист'!A:J,5,0),"-") -> - | G169: =IFERROR(VLOOKUP(A169,'OBO прайс-лист'!A:J,6,0),"-") -> - | H169: - | I169: - | J169: =IFERROR(IF(C169<=0,"",IF(C169<=техническая!AE162,"Достатньо",техническая!AE162)),0) ->  | K169: =IFERROR(VLOOKUP(техническая!Z162,техническая!A:I,9,0),"") ->  | M169: =IFERROR(VLOOKUP(A169,'OBO прайс-лист'!A:J,10,0),"") -> 
B170: =IFERROR(VLOOKUP(A170,Лист1!A:J,2,0),"-") -> - | D170: =IFERROR(IF(C170<=техническая!AF163,техническая!AF163,(ROUNDUP((C170/техническая!AF163),0)*техническая!AF163)),"") ->  | E170: =IFERROR(VLOOKUP(A170,'OBO прайс-лист'!A:J,3,0),"-") -> - | F170: =IFERROR(VLOOKUP(A170,'OBO прайс-лист'!A:J,5,0),"-") -> - | G170: =IFERROR(VLOOKUP(A170,'OBO прайс-лист'!A:J,6,0),"-") -> - | H170: - | I170: - | J170: =IFERROR(IF(C170<=0,"",IF(C170<=техническая!AE163,"Достатньо",техническая!AE163)),0) ->  | K170: =IFERROR(VLOOKUP(техническая!Z163,техническая!A:I,9,0),"") ->  | M170: =IFERROR(VLOOKUP(A170,'OBO прайс-лист'!A:J,10,0),"") -> 
B171: =IFERROR(VLOOKUP(A171,Лист1!A:J,2,0),"-") -> - | D171: =IFERROR(IF(C171<=техническая!AF164,техническая!AF164,(ROUNDUP((C171/техническая!AF164),0)*техническая!AF164)),"") ->  | E171: =IFERROR(VLOOKUP(A171,'OBO прайс-лист'!A:J,3,0),"-") -> - | F171: =IFERROR(VLOOKUP(A171,'OBO прайс-лист'!A:J,5,0),"-") -> - | G171: =IFERROR(VLOOKUP(A171,'OBO прайс-лист'!A:J,6,0),"-") -> - | H171: - | I171: - | J171: =IFERROR(IF(C171<=0,"",IF(C171<=техническая!AE164,"Достатньо",техническая!AE164)),0) ->  | K171: =IFERROR(VLOOKUP(техническая!Z164,техническая!A:I,9,0),"") ->  | M171: =IFERROR(VLOOKUP(A171,'OBO прайс-лист'!A:J,10,0),"") -> 
B172: =IFERROR(VLOOKUP(A172,Лист1!A:J,2,0),"-") -> - | D172: =IFERROR(IF(C172<=техническая!AF165,техническая!AF165,(ROUNDUP((C172/техническая!AF165),0)*техническая!AF165)),"") ->  | E172: =IFERROR(VLOOKUP(A172,'OBO прайс-лист'!A:J,3,0),"-") -> - | F172: =IFERROR(VLOOKUP(A172,'OBO прайс-лист'!A:J,5,0),"-") -> - | G172: =IFERROR(VLOOKUP(A172,'OBO прайс-лист'!A:J,6,0),"-") -> - | H172: - | I172: - | J172: =IFERROR(IF(C172<=0,"",IF(C172<=техническая!AE165,"Достатньо",техническая!AE165)),0) ->  | K172: =IFERROR(VLOOKUP(техническая!Z165,техническая!A:I,9,0),"") ->  | M172: =IFERROR(VLOOKUP(A172,'OBO прайс-лист'!A:J,10,0),"") -> 
B173: =IFERROR(VLOOKUP(A173,Лист1!A:J,2,0),"-") -> - | D173: =IFERROR(IF(C173<=техническая!AF166,техническая!AF166,(ROUNDUP((C173/техническая!AF166),0)*техническая!AF166)),"") ->  | E173: =IFERROR(VLOOKUP(A173,'OBO прайс-лист'!A:J,3,0),"-") -> - | F173: =IFERROR(VLOOKUP(A173,'OBO прайс-лист'!A:J,5,0),"-") -> - | G173: =IFERROR(VLOOKUP(A173,'OBO прайс-лист'!A:J,6,0),"-") -> - | H173: - | I173: - | J173: =IFERROR(IF(C173<=0,"",IF(C173<=техническая!AE166,"Достатньо",техническая!AE166)),0) ->  | K173: =IFERROR(VLOOKUP(техническая!Z166,техническая!A:I,9,0),"") ->  | M173: =IFERROR(VLOOKUP(A173,'OBO прайс-лист'!A:J,10,0),"") -> 
B174: =IFERROR(VLOOKUP(A174,Лист1!A:J,2,0),"-") -> - | D174: =IFERROR(IF(C174<=техническая!AF167,техническая!AF167,(ROUNDUP((C174/техническая!AF167),0)*техническая!AF167)),"") ->  | E174: =IFERROR(VLOOKUP(A174,'OBO прайс-лист'!A:J,3,0),"-") -> - | F174: =IFERROR(VLOOKUP(A174,'OBO прайс-лист'!A:J,5,0),"-") -> - | G174: =IFERROR(VLOOKUP(A174,'OBO прайс-лист'!A:J,6,0),"-") -> - | H174: - | I174: - | J174: =IFERROR(IF(C174<=0,"",IF(C174<=техническая!AE167,"Достатньо",техническая!AE167)),0) ->  | K174: =IFERROR(VLOOKUP(техническая!Z167,техническая!A:I,9,0),"") ->  | M174: =IFERROR(VLOOKUP(A174,'OBO прайс-лист'!A:J,10,0),"") -> 
B175: =IFERROR(VLOOKUP(A175,Лист1!A:J,2,0),"-") -> - | D175: =IFERROR(IF(C175<=техническая!AF168,техническая!AF168,(ROUNDUP((C175/техническая!AF168),0)*техническая!AF168)),"") ->  | E175: =IFERROR(VLOOKUP(A175,'OBO прайс-лист'!A:J,3,0),"-") -> - | F175: =IFERROR(VLOOKUP(A175,'OBO прайс-лист'!A:J,5,0),"-") -> - | G175: =IFERROR(VLOOKUP(A175,'OBO прайс-лист'!A:J,6,0),"-") -> - | H175: - | I175: - | J175: =IFERROR(IF(C175<=0,"",IF(C175<=техническая!AE168,"Достатньо",техническая!AE168)),0) ->  | K175: =IFERROR(VLOOKUP(техническая!Z168,техническая!A:I,9,0),"") ->  | M175: =IFERROR(VLOOKUP(A175,'OBO прайс-лист'!A:J,10,0),"") -> 
B176: =IFERROR(VLOOKUP(A176,Лист1!A:J,2,0),"-") -> - | D176: =IFERROR(IF(C176<=техническая!AF169,техническая!AF169,(ROUNDUP((C176/техническая!AF169),0)*техническая!AF169)),"") ->  | E176: =IFERROR(VLOOKUP(A176,'OBO прайс-лист'!A:J,3,0),"-") -> - | F176: =IFERROR(VLOOKUP(A176,'OBO прайс-лист'!A:J,5,0),"-") -> - | G176: =IFERROR(VLOOKUP(A176,'OBO прайс-лист'!A:J,6,0),"-") -> - | H176: - | I176: - | J176: =IFERROR(IF(C176<=0,"",IF(C176<=техническая!AE169,"Достатньо",техническая!AE169)),0) ->  | K176: =IFERROR(VLOOKUP(техническая!Z169,техническая!A:I,9,0),"") ->  | M176: =IFERROR(VLOOKUP(A176,'OBO прайс-лист'!A:J,10,0),"") -> 
B177: =IFERROR(VLOOKUP(A177,Лист1!A:J,2,0),"-") -> - | D177: =IFERROR(IF(C177<=техническая!AF170,техническая!AF170,(ROUNDUP((C177/техническая!AF170),0)*техническая!AF170)),"") ->  | E177: =IFERROR(VLOOKUP(A177,'OBO прайс-лист'!A:J,3,0),"-") -> - | F177: =IFERROR(VLOOKUP(A177,'OBO прайс-лист'!A:J,5,0),"-") -> - | G177: =IFERROR(VLOOKUP(A177,'OBO прайс-лист'!A:J,6,0),"-") -> - | H177: - | I177: - | J177: =IFERROR(IF(C177<=0,"",IF(C177<=техническая!AE170,"Достатньо",техническая!AE170)),0) ->  | K177: =IFERROR(VLOOKUP(техническая!Z170,техническая!A:I,9,0),"") ->  | M177: =IFERROR(VLOOKUP(A177,'OBO прайс-лист'!A:J,10,0),"") -> 
B178: =IFERROR(VLOOKUP(A178,Лист1!A:J,2,0),"-") -> - | D178: =IFERROR(IF(C178<=техническая!AF171,техническая!AF171,(ROUNDUP((C178/техническая!AF171),0)*техническая!AF171)),"") ->  | E178: =IFERROR(VLOOKUP(A178,'OBO прайс-лист'!A:J,3,0),"-") -> - | F178: =IFERROR(VLOOKUP(A178,'OBO прайс-лист'!A:J,5,0),"-") -> - | G178: =IFERROR(VLOOKUP(A178,'OBO прайс-лист'!A:J,6,0),"-") -> - | H178: - | I178: - | J178: =IFERROR(IF(C178<=0,"",IF(C178<=техническая!AE171,"Достатньо",техническая!AE171)),0) ->  | K178: =IFERROR(VLOOKUP(техническая!Z171,техническая!A:I,9,0),"") ->  | M178: =IFERROR(VLOOKUP(A178,'OBO прайс-лист'!A:J,10,0),"") -> 
B179: =IFERROR(VLOOKUP(A179,Лист1!A:J,2,0),"-") -> - | D179: =IFERROR(IF(C179<=техническая!AF172,техническая!AF172,(ROUNDUP((C179/техническая!AF172),0)*техническая!AF172)),"") ->  | E179: =IFERROR(VLOOKUP(A179,'OBO прайс-лист'!A:J,3,0),"-") -> - | F179: =IFERROR(VLOOKUP(A179,'OBO прайс-лист'!A:J,5,0),"-") -> - | G179: =IFERROR(VLOOKUP(A179,'OBO прайс-лист'!A:J,6,0),"-") -> - | H179: - | I179: - | J179: =IFERROR(IF(C179<=0,"",IF(C179<=техническая!AE172,"Достатньо",техническая!AE172)),0) ->  | K179: =IFERROR(VLOOKUP(техническая!Z172,техническая!A:I,9,0),"") ->  | M179: =IFERROR(VLOOKUP(A179,'OBO прайс-лист'!A:J,10,0),"") -> 
B180: =IFERROR(VLOOKUP(A180,Лист1!A:J,2,0),"-") -> - | D180: =IFERROR(IF(C180<=техническая!AF173,техническая!AF173,(ROUNDUP((C180/техническая!AF173),0)*техническая!AF173)),"") ->  | E180: =IFERROR(VLOOKUP(A180,'OBO прайс-лист'!A:J,3,0),"-") -> - | F180: =IFERROR(VLOOKUP(A180,'OBO прайс-лист'!A:J,5,0),"-") -> - | G180: =IFERROR(VLOOKUP(A180,'OBO прайс-лист'!A:J,6,0),"-") -> - | H180: - | I180: - | J180: =IFERROR(IF(C180<=0,"",IF(C180<=техническая!AE173,"Достатньо",техническая!AE173)),0) ->  | K180: =IFERROR(VLOOKUP(техническая!Z173,техническая!A:I,9,0),"") ->  | M180: =IFERROR(VLOOKUP(A180,'OBO прайс-лист'!A:J,10,0),"") -> 
B181: =IFERROR(VLOOKUP(A181,Лист1!A:J,2,0),"-") -> - | D181: =IFERROR(IF(C181<=техническая!AF174,техническая!AF174,(ROUNDUP((C181/техническая!AF174),0)*техническая!AF174)),"") ->  | E181: =IFERROR(VLOOKUP(A181,'OBO прайс-лист'!A:J,3,0),"-") -> - | F181: =IFERROR(VLOOKUP(A181,'OBO прайс-лист'!A:J,5,0),"-") -> - | G181: =IFERROR(VLOOKUP(A181,'OBO прайс-лист'!A:J,6,0),"-") -> - | H181: - | I181: - | J181: =IFERROR(IF(C181<=0,"",IF(C181<=техническая!AE174,"Достатньо",техническая!AE174)),0) ->  | K181: =IFERROR(VLOOKUP(техническая!Z174,техническая!A:I,9,0),"") ->  | M181: =IFERROR(VLOOKUP(A181,'OBO прайс-лист'!A:J,10,0),"") -> 
B182: =IFERROR(VLOOKUP(A182,Лист1!A:J,2,0),"-") -> - | D182: =IFERROR(IF(C182<=техническая!AF175,техническая!AF175,(ROUNDUP((C182/техническая!AF175),0)*техническая!AF175)),"") ->  | E182: =IFERROR(VLOOKUP(A182,'OBO прайс-лист'!A:J,3,0),"-") -> - | F182: =IFERROR(VLOOKUP(A182,'OBO прайс-лист'!A:J,5,0),"-") -> - | G182: =IFERROR(VLOOKUP(A182,'OBO прайс-лист'!A:J,6,0),"-") -> - | H182: - | I182: - | J182: =IFERROR(IF(C182<=0,"",IF(C182<=техническая!AE175,"Достатньо",техническая!AE175)),0) ->  | K182: =IFERROR(VLOOKUP(техническая!Z175,техническая!A:I,9,0),"") ->  | M182: =IFERROR(VLOOKUP(A182,'OBO прайс-лист'!A:J,10,0),"") -> 
B183: =IFERROR(VLOOKUP(A183,Лист1!A:J,2,0),"-") -> - | D183: =IFERROR(IF(C183<=техническая!AF176,техническая!AF176,(ROUNDUP((C183/техническая!AF176),0)*техническая!AF176)),"") ->  | E183: =IFERROR(VLOOKUP(A183,'OBO прайс-лист'!A:J,3,0),"-") -> - | F183: =IFERROR(VLOOKUP(A183,'OBO прайс-лист'!A:J,5,0),"-") -> - | G183: =IFERROR(VLOOKUP(A183,'OBO прайс-лист'!A:J,6,0),"-") -> - | H183: - | I183: - | J183: =IFERROR(IF(C183<=0,"",IF(C183<=техническая!AE176,"Достатньо",техническая!AE176)),0) ->  | K183: =IFERROR(VLOOKUP(техническая!Z176,техническая!A:I,9,0),"") ->  | M183: =IFERROR(VLOOKUP(A183,'OBO прайс-лист'!A:J,10,0),"") -> 
B184: =IFERROR(VLOOKUP(A184,Лист1!A:J,2,0),"-") -> - | D184: =IFERROR(IF(C184<=техническая!AF177,техническая!AF177,(ROUNDUP((C184/техническая!AF177),0)*техническая!AF177)),"") ->  | E184: =IFERROR(VLOOKUP(A184,'OBO прайс-лист'!A:J,3,0),"-") -> - | F184: =IFERROR(VLOOKUP(A184,'OBO прайс-лист'!A:J,5,0),"-") -> - | G184: =IFERROR(VLOOKUP(A184,'OBO прайс-лист'!A:J,6,0),"-") -> - | H184: - | I184: - | J184: =IFERROR(IF(C184<=0,"",IF(C184<=техническая!AE177,"Достатньо",техническая!AE177)),0) ->  | K184: =IFERROR(VLOOKUP(техническая!Z177,техническая!A:I,9,0),"") ->  | M184: =IFERROR(VLOOKUP(A184,'OBO прайс-лист'!A:J,10,0),"") -> 
B185: =IFERROR(VLOOKUP(A185,Лист1!A:J,2,0),"-") -> - | D185: =IFERROR(IF(C185<=техническая!AF178,техническая!AF178,(ROUNDUP((C185/техническая!AF178),0)*техническая!AF178)),"") ->  | E185: =IFERROR(VLOOKUP(A185,'OBO прайс-лист'!A:J,3,0),"-") -> - | F185: =IFERROR(VLOOKUP(A185,'OBO прайс-лист'!A:J,5,0),"-") -> - | G185: =IFERROR(VLOOKUP(A185,'OBO прайс-лист'!A:J,6,0),"-") -> - | H185: - | I185: - | J185: =IFERROR(IF(C185<=0,"",IF(C185<=техническая!AE178,"Достатньо",техническая!AE178)),0) ->  | K185: =IFERROR(VLOOKUP(техническая!Z178,техническая!A:I,9,0),"") ->  | M185: =IFERROR(VLOOKUP(A185,'OBO прайс-лист'!A:J,10,0),"") -> 
B186: =IFERROR(VLOOKUP(A186,Лист1!A:J,2,0),"-") -> - | D186: =IFERROR(IF(C186<=техническая!AF179,техническая!AF179,(ROUNDUP((C186/техническая!AF179),0)*техническая!AF179)),"") ->  | E186: =IFERROR(VLOOKUP(A186,'OBO прайс-лист'!A:J,3,0),"-") -> - | F186: =IFERROR(VLOOKUP(A186,'OBO прайс-лист'!A:J,5,0),"-") -> - | G186: =IFERROR(VLOOKUP(A186,'OBO прайс-лист'!A:J,6,0),"-") -> - | H186: - | I186: - | J186: =IFERROR(IF(C186<=0,"",IF(C186<=техническая!AE179,"Достатньо",техническая!AE179)),0) ->  | K186: =IFERROR(VLOOKUP(техническая!Z179,техническая!A:I,9,0),"") ->  | M186: =IFERROR(VLOOKUP(A186,'OBO прайс-лист'!A:J,10,0),"") -> 
B187: =IFERROR(VLOOKUP(A187,Лист1!A:J,2,0),"-") -> - | D187: =IFERROR(IF(C187<=техническая!AF180,техническая!AF180,(ROUNDUP((C187/техническая!AF180),0)*техническая!AF180)),"") ->  | E187: =IFERROR(VLOOKUP(A187,'OBO прайс-лист'!A:J,3,0),"-") -> - | F187: =IFERROR(VLOOKUP(A187,'OBO прайс-лист'!A:J,5,0),"-") -> - | G187: =IFERROR(VLOOKUP(A187,'OBO прайс-лист'!A:J,6,0),"-") -> - | H187: - | I187: - | J187: =IFERROR(IF(C187<=0,"",IF(C187<=техническая!AE180,"Достатньо",техническая!AE180)),0) ->  | K187: =IFERROR(VLOOKUP(техническая!Z180,техническая!A:I,9,0),"") ->  | M187: =IFERROR(VLOOKUP(A187,'OBO прайс-лист'!A:J,10,0),"") -> 
B188: =IFERROR(VLOOKUP(A188,Лист1!A:J,2,0),"-") -> - | D188: =IFERROR(IF(C188<=техническая!AF181,техническая!AF181,(ROUNDUP((C188/техническая!AF181),0)*техническая!AF181)),"") ->  | E188: =IFERROR(VLOOKUP(A188,'OBO прайс-лист'!A:J,3,0),"-") -> - | F188: =IFERROR(VLOOKUP(A188,'OBO прайс-лист'!A:J,5,0),"-") -> - | G188: =IFERROR(VLOOKUP(A188,'OBO прайс-лист'!A:J,6,0),"-") -> - | H188: - | I188: - | J188: =IFERROR(IF(C188<=0,"",IF(C188<=техническая!AE181,"Достатньо",техническая!AE181)),0) ->  | K188: =IFERROR(VLOOKUP(техническая!Z181,техническая!A:I,9,0),"") ->  | M188: =IFERROR(VLOOKUP(A188,'OBO прайс-лист'!A:J,10,0),"") -> 
B189: =IFERROR(VLOOKUP(A189,Лист1!A:J,2,0),"-") -> - | D189: =IFERROR(IF(C189<=техническая!AF182,техническая!AF182,(ROUNDUP((C189/техническая!AF182),0)*техническая!AF182)),"") ->  | E189: =IFERROR(VLOOKUP(A189,'OBO прайс-лист'!A:J,3,0),"-") -> - | F189: =IFERROR(VLOOKUP(A189,'OBO прайс-лист'!A:J,5,0),"-") -> - | G189: =IFERROR(VLOOKUP(A189,'OBO прайс-лист'!A:J,6,0),"-") -> - | H189: - | I189: - | J189: =IFERROR(IF(C189<=0,"",IF(C189<=техническая!AE182,"Достатньо",техническая!AE182)),0) ->  | K189: =IFERROR(VLOOKUP(техническая!Z182,техническая!A:I,9,0),"") ->  | M189: =IFERROR(VLOOKUP(A189,'OBO прайс-лист'!A:J,10,0),"") -> 
B190: =IFERROR(VLOOKUP(A190,Лист1!A:J,2,0),"-") -> - | D190: =IFERROR(IF(C190<=техническая!AF183,техническая!AF183,(ROUNDUP((C190/техническая!AF183),0)*техническая!AF183)),"") ->  | E190: =IFERROR(VLOOKUP(A190,'OBO прайс-лист'!A:J,3,0),"-") -> - | F190: =IFERROR(VLOOKUP(A190,'OBO прайс-лист'!A:J,5,0),"-") -> - | G190: =IFERROR(VLOOKUP(A190,'OBO прайс-лист'!A:J,6,0),"-") -> - | H190: - | I190: - | J190: =IFERROR(IF(C190<=0,"",IF(C190<=техническая!AE183,"Достатньо",техническая!AE183)),0) ->  | K190: =IFERROR(VLOOKUP(техническая!Z183,техническая!A:I,9,0),"") ->  | M190: =IFERROR(VLOOKUP(A190,'OBO прайс-лист'!A:J,10,0),"") -> 
B191: =IFERROR(VLOOKUP(A191,Лист1!A:J,2,0),"-") -> - | D191: =IFERROR(IF(C191<=техническая!AF184,техническая!AF184,(ROUNDUP((C191/техническая!AF184),0)*техническая!AF184)),"") ->  | E191: =IFERROR(VLOOKUP(A191,'OBO прайс-лист'!A:J,3,0),"-") -> - | F191: =IFERROR(VLOOKUP(A191,'OBO прайс-лист'!A:J,5,0),"-") -> - | G191: =IFERROR(VLOOKUP(A191,'OBO прайс-лист'!A:J,6,0),"-") -> - | H191: - | I191: - | J191: =IFERROR(IF(C191<=0,"",IF(C191<=техническая!AE184,"Достатньо",техническая!AE184)),0) ->  | K191: =IFERROR(VLOOKUP(техническая!Z184,техническая!A:I,9,0),"") ->  | M191: =IFERROR(VLOOKUP(A191,'OBO прайс-лист'!A:J,10,0),"") -> 
B192: =IFERROR(VLOOKUP(A192,Лист1!A:J,2,0),"-") -> - | D192: =IFERROR(IF(C192<=техническая!AF185,техническая!AF185,(ROUNDUP((C192/техническая!AF185),0)*техническая!AF185)),"") ->  | E192: =IFERROR(VLOOKUP(A192,'OBO прайс-лист'!A:J,3,0),"-") -> - | F192: =IFERROR(VLOOKUP(A192,'OBO прайс-лист'!A:J,5,0),"-") -> - | G192: =IFERROR(VLOOKUP(A192,'OBO прайс-лист'!A:J,6,0),"-") -> - | H192: - | I192: - | J192: =IFERROR(IF(C192<=0,"",IF(C192<=техническая!AE185,"Достатньо",техническая!AE185)),0) ->  | K192: =IFERROR(VLOOKUP(техническая!Z185,техническая!A:I,9,0),"") ->  | M192: =IFERROR(VLOOKUP(A192,'OBO прайс-лист'!A:J,10,0),"") -> 
B193: =IFERROR(VLOOKUP(A193,Лист1!A:J,2,0),"-") -> - | D193: =IFERROR(IF(C193<=техническая!AF186,техническая!AF186,(ROUNDUP((C193/техническая!AF186),0)*техническая!AF186)),"") ->  | E193: =IFERROR(VLOOKUP(A193,'OBO прайс-лист'!A:J,3,0),"-") -> - | F193: =IFERROR(VLOOKUP(A193,'OBO прайс-лист'!A:J,5,0),"-") -> - | G193: =IFERROR(VLOOKUP(A193,'OBO прайс-лист'!A:J,6,0),"-") -> - | H193: - | I193: - | J193: =IFERROR(IF(C193<=0,"",IF(C193<=техническая!AE186,"Достатньо",техническая!AE186)),0) ->  | K193: =IFERROR(VLOOKUP(техническая!Z186,техническая!A:I,9,0),"") ->  | M193: =IFERROR(VLOOKUP(A193,'OBO прайс-лист'!A:J,10,0),"") -> 
B194: =IFERROR(VLOOKUP(A194,Лист1!A:J,2,0),"-") -> - | D194: =IFERROR(IF(C194<=техническая!AF187,техническая!AF187,(ROUNDUP((C194/техническая!AF187),0)*техническая!AF187)),"") ->  | E194: =IFERROR(VLOOKUP(A194,'OBO прайс-лист'!A:J,3,0),"-") -> - | F194: =IFERROR(VLOOKUP(A194,'OBO прайс-лист'!A:J,5,0),"-") -> - | G194: =IFERROR(VLOOKUP(A194,'OBO прайс-лист'!A:J,6,0),"-") -> - | H194: - | I194: - | J194: =IFERROR(IF(C194<=0,"",IF(C194<=техническая!AE187,"Достатньо",техническая!AE187)),0) ->  | K194: =IFERROR(VLOOKUP(техническая!Z187,техническая!A:I,9,0),"") ->  | M194: =IFERROR(VLOOKUP(A194,'OBO прайс-лист'!A:J,10,0),"") -> 
B195: =IFERROR(VLOOKUP(A195,Лист1!A:J,2,0),"-") -> - | D195: =IFERROR(IF(C195<=техническая!AF188,техническая!AF188,(ROUNDUP((C195/техническая!AF188),0)*техническая!AF188)),"") ->  | E195: =IFERROR(VLOOKUP(A195,'OBO прайс-лист'!A:J,3,0),"-") -> - | F195: =IFERROR(VLOOKUP(A195,'OBO прайс-лист'!A:J,5,0),"-") -> - | G195: =IFERROR(VLOOKUP(A195,'OBO прайс-лист'!A:J,6,0),"-") -> - | H195: =IFERROR(ROUND(E195*$C$6,2)*(1-K195),"-") -> - | I195: =IFERROR(ROUND(D195*ROUND((H195/F195),2)*1.2,2),"-") -> - | J195: =IFERROR(IF(C195<=0,"",IF(C195<=техническая!AE188,"Достатньо",техническая!AE188)),0) ->  | K195: =IFERROR(VLOOKUP(техническая!Z188,техническая!A:I,9,0),"") ->  | L195: =IFERROR(HYPERLINK(M195,M195),"") ->  | M195: =IFERROR(VLOOKUP(A195,'OBO прайс-лист'!A:J,10,0),"") -> 
B196: =IFERROR(VLOOKUP(A196,Лист1!A:J,2,0),"-") -> - | D196: =IFERROR(IF(C196<=техническая!AF189,техническая!AF189,(ROUNDUP((C196/техническая!AF189),0)*техническая!AF189)),"") ->  | E196: =IFERROR(VLOOKUP(A196,'OBO прайс-лист'!A:J,3,0),"-") -> - | F196: =IFERROR(VLOOKUP(A196,'OBO прайс-лист'!A:J,5,0),"-") -> - | G196: =IFERROR(VLOOKUP(A196,'OBO прайс-лист'!A:J,6,0),"-") -> - | H196: - | I196: - | J196: =IFERROR(IF(C196<=0,"",IF(C196<=техническая!AE189,"Достатньо",техническая!AE189)),0) ->  | K196: =IFERROR(VLOOKUP(техническая!Z189,техническая!A:I,9,0),"") ->  | M196: =IFERROR(VLOOKUP(A196,'OBO прайс-лист'!A:J,10,0),"") -> 
B197: =IFERROR(VLOOKUP(A197,Лист1!A:J,2,0),"-") -> - | D197: =IFERROR(IF(C197<=техническая!AF190,техническая!AF190,(ROUNDUP((C197/техническая!AF190),0)*техническая!AF190)),"") ->  | E197: =IFERROR(VLOOKUP(A197,'OBO прайс-лист'!A:J,3,0),"-") -> - | F197: =IFERROR(VLOOKUP(A197,'OBO прайс-лист'!A:J,5,0),"-") -> - | G197: =IFERROR(VLOOKUP(A197,'OBO прайс-лист'!A:J,6,0),"-") -> - | H197: - | I197: - | J197: =IFERROR(IF(C197<=0,"",IF(C197<=техническая!AE190,"Достатньо",техническая!AE190)),0) ->  | K197: =IFERROR(VLOOKUP(техническая!Z190,техническая!A:I,9,0),"") ->  | M197: =IFERROR(VLOOKUP(A197,'OBO прайс-лист'!A:J,10,0),"") -> 
B198: =IFERROR(VLOOKUP(A198,Лист1!A:J,2,0),"-") -> - | D198: =IFERROR(IF(C198<=техническая!AF191,техническая!AF191,(ROUNDUP((C198/техническая!AF191),0)*техническая!AF191)),"") ->  | E198: =IFERROR(VLOOKUP(A198,'OBO прайс-лист'!A:J,3,0),"-") -> - | F198: =IFERROR(VLOOKUP(A198,'OBO прайс-лист'!A:J,5,0),"-") -> - | G198: =IFERROR(VLOOKUP(A198,'OBO прайс-лист'!A:J,6,0),"-") -> - | H198: - | I198: - | J198: =IFERROR(IF(C198<=0,"",IF(C198<=техническая!AE191,"Достатньо",техническая!AE191)),0) ->  | K198: =IFERROR(VLOOKUP(техническая!Z191,техническая!A:I,9,0),"") ->  | M198: =IFERROR(VLOOKUP(A198,'OBO прайс-лист'!A:J,10,0),"") -> 
B199: =IFERROR(VLOOKUP(A199,Лист1!A:J,2,0),"-") -> - | D199: =IFERROR(IF(C199<=техническая!AF192,техническая!AF192,(ROUNDUP((C199/техническая!AF192),0)*техническая!AF192)),"") ->  | E199: =IFERROR(VLOOKUP(A199,'OBO прайс-лист'!A:J,3,0),"-") -> - | F199: =IFERROR(VLOOKUP(A199,'OBO прайс-лист'!A:J,5,0),"-") -> - | G199: =IFERROR(VLOOKUP(A199,'OBO прайс-лист'!A:J,6,0),"-") -> - | H199: - | I199: - | J199: =IFERROR(IF(C199<=0,"",IF(C199<=техническая!AE192,"Достатньо",техническая!AE192)),0) ->  | K199: =IFERROR(VLOOKUP(техническая!Z192,техническая!A:I,9,0),"") ->  | M199: =IFERROR(VLOOKUP(A199,'OBO прайс-лист'!A:J,10,0),"") -> 
B200: =IFERROR(VLOOKUP(A200,Лист1!A:J,2,0),"-") -> - | D200: =IFERROR(IF(C200<=техническая!AF193,техническая!AF193,(ROUNDUP((C200/техническая!AF193),0)*техническая!AF193)),"") ->  | E200: =IFERROR(VLOOKUP(A200,'OBO прайс-лист'!A:J,3,0),"-") -> - | F200: =IFERROR(VLOOKUP(A200,'OBO прайс-лист'!A:J,5,0),"-") -> - | G200: =IFERROR(VLOOKUP(A200,'OBO прайс-лист'!A:J,6,0),"-") -> - | H200: - | I200: - | J200: =IFERROR(IF(C200<=0,"",IF(C200<=техническая!AE193,"Достатньо",техническая!AE193)),0) ->  | K200: =IFERROR(VLOOKUP(техническая!Z193,техническая!A:I,9,0),"") ->  | M200: =IFERROR(VLOOKUP(A200,'OBO прайс-лист'!A:J,10,0),"") -> 
H201: Разом грн без ПДВ | I201: =I203/1.2 -> 12480.6
H202: грн ПДВ | I202: =I203-I201 -> 2496.12
... 1 more rows

Sheet OBO прайс-лист
A1: ТОВ "ОБО Беттерманн Україна" | F1: Прайс-лист від 28.08.2023
C2: Курс НБУ: | D2: ='OBO специфікація'!C6 -> 39.6582
A4: Артикул | B4: Найменування | C4: Еквівалент ціни в євро без ПДВ | D4: Ціна, грн з ПДВ | E4: Одиниця ціни | F4: Одиниця вимірювання (шт., метри) | G4: Кратність замовлення | H4: Назва групи продукції | I4: Код групи | J4: Додаткова інформація
A5: 1 | B5: 2 | C5: 3 | D5: 4 | E5: 5 | F5: 6 | G5: 7 | H5: 8 | I5: 9 | J5: 10
A6: Кабельні канали з ПВХ
A7: 6150268 | B7: =IFERROR(VLOOKUP(A7,Лист1!A:J,2,0),"") -> Міні-канал з самокл.основою 9x4.5 / ПВХ | C7: =IFERROR(VLOOKUP(A7,Лист1!A:J,3,0),"") -> 0.87 | D7: =IFERROR(ROUND(C7*$D$2*1.2,2),"") -> 41.4 | E7: =IFERROR(VLOOKUP(A7,Лист1!A:J,5,0),"") -> 1 | F7: =IFERROR(VLOOKUP(A7,Лист1!A:J,6,0),"") -> м | G7: =IFERROR(VLOOKUP(A7,Лист1!A:J,7,0),"") -> 224 | H7: =IFERROR(VLOOKUP(A7,Лист1!A:J,8,0),"") -> LFS | I7: =IFERROR(VLOOKUP(A7,Лист1!A:J,9,0),"") -> 06100 | J7: =IFERROR(HYPERLINK(K7,K7),"") -> https://www.obo.global/search/?searchparam=6150268 | K7: =IFERROR(VLOOKUP(A7,Лист1!A:K,10,0),"") -> https://www.obo.global/search/?searchparam=6150268
A8: 6150276 | B8: =IFERROR(VLOOKUP(A8,Лист1!A:J,2,0),"") -> Міні-канал з самокл.основою 12.5x7 / ПВХ | C8: =IFERROR(VLOOKUP(A8,Лист1!A:J,3,0),"") -> 1.01 | D8: =IFERROR(ROUND(C8*$D$2*1.2,2),"") -> 48.07 | E8: =IFERROR(VLOOKUP(A8,Лист1!A:J,5,0),"") -> 1 | F8: =IFERROR(VLOOKUP(A8,Лист1!A:J,6,0),"") -> м | G8: =IFERROR(VLOOKUP(A8,Лист1!A:J,7,0),"") -> 100 | H8: =IFERROR(VLOOKUP(A8,Лист1!A:J,8,0),"") -> LFS | I8: =IFERROR(VLOOKUP(A8,Лист1!A:J,9,0),"") -> 06100 | J8: =IFERROR(HYPERLINK(K8,K8),"") -> https://www.obo.global/search/?searchparam=6150276 | K8: =IFERROR(VLOOKUP(A8,Лист1!A:K,10,0),"") -> https://www.obo.global/search/?searchparam=6150276
A9: 6150284 | B9: =IFERROR(VLOOKUP(A9,Лист1!A:J,2,0),"") -> Міні-канал з самокл.основою 12.5x12.5 / ПВХ | C9: =IFERROR(VLOOKUP(A9,Лист1!A:J,3,0),"") -> 1.12 | D9: 53.3 | E9: =IFERROR(VLOOKUP(A9,Лист1!A:J,5,0),"") -> 1 | F9: =IFERROR(VLOOKUP(A9,Лист1!A:J,6,0),"") -> м | G9: =IFERROR(VLOOKUP(A9,Лист1!A:J,7,0),"") -> 80 | H9: =IFERROR(VLOOKUP(A9,Лист1!A:J,8,0),"") -> LFS | I9: =IFERROR(VLOOKUP(A9,Лист1!A:J,9,0),"") -> 06100 | J9: https://www.obo.global/search/?searchparam=6150284 | K9: =IFERROR(VLOOKUP(A9,Лист1!A:K,10,0),"") -> https://www.obo.global/search/?searchparam=6150284
A10: Кабель-канал 15 x 15 | C10: =IFERROR(VLOOKUP(A10,Лист1!A:J,3,0),"") ->  | E10: =IFERROR(VLOOKUP(A10,Лист1!A:J,5,0),"") ->  | F10: =IFERROR(VLOOKUP(A10,Лист1!A:J,6,0),"") ->  | G10: =IFERROR(VLOOKUP(A10,Лист1!A:J,7,0),"") ->  | H10: =IFERROR(VLOOKUP(A10,Лист1!A:J,8,0),"") ->  | I10: =IFERROR(VLOOKUP(A10,Лист1!A:J,9,0),"") ->  | K10: =IFERROR(VLOOKUP(A10,Лист1!A:K,10,0),"") -> 
A11: 6191002 | B11: =IFERROR(VLOOKUP(A11,Лист1!A:J,2,0),"") -> Міні-канал 15x15 / ПВХ | C11: =IFERROR(VLOOKUP(A11,Лист1!A:J,3,0),"") -> 0.69 | D11: 32.84 | E11: =IFERROR(VLOOKUP(A11,Лист1!A:J,5,0),"") -> 1 | F11: =IFERROR(VLOOKUP(A11,Лист1!A:J,6,0),"") -> м | G11: =IFERROR(VLOOKUP(A11,Лист1!A:J,7,0),"") -> 56 | H11: =IFERROR(VLOOKUP(A11,Лист1!A:J,8,0),"") -> LFS | I11: =IFERROR(VLOOKUP(A11,Лист1!A:J,9,0),"") -> 06100 | J11: https://www.obo.global/search/?searchparam=6191002 | K11: =IFERROR(VLOOKUP(A11,Лист1!A:K,10,0),"") -> https://www.obo.global/search/?searchparam=6191002
A12: 6024949 | B12: =IFERROR(VLOOKUP(A12,Лист1!A:J,2,0),"") -> Міні-канал 15x15 / ПВХ, чорний RAL 9005 | C12: =IFERROR(VLOOKUP(A12,Лист1!A:J,3,0),"") -> 0.89 | D12: 42.35 | E12: =IFERROR(VLOOKUP(A12,Лист1!A:J,5,0),"") -> 1 | F12: =IFERROR(VLOOKUP(A12,Лист1!A:J,6,0),"") -> м | G12: =IFERROR(VLOOKUP(A12,Лист1!A:J,7,0),"") -> 56 | H12: =IFERROR(VLOOKUP(A12,Лист1!A:J,8,0),"") -> LFS | I12: =IFERROR(VLOOKUP(A12,Лист1!A:J,9,0),"") -> 06100 | J12: https://www.obo.global/products/building-installations/cable-routing-systems/cable-trunking/cable-routing-trunking/wdk-trunking/trunking-type-wdk-15015.html#!searchresult-0 | K12: =IFERROR(VLOOKUP(A12,Лист1!A:K,10,0),"") -> https://www.obo.global/products/building-installations/cable-routing-systems/cable-trunking/cable-routing-trunking/wdk-trunking/trunking-type-wdk-15015.html#!searchresult-0
A13: 6193099 | B13: =IFERROR(VLOOKUP(A13,Лист1!A:J,2,0),"") -> Заглушка міні-канала 15x15 / ПВХ | C13: =IFERROR(VLOOKUP(A13,Лист1!A:J,3,0),"") -> 0.38 | D13: 18.08 | E13: =IFERROR(VLOOKUP(A13,Лист1!A:J,5,0),"") -> 1 | F13: =IFERROR(VLOOKUP(A13,Лист1!A:J,6,0),"") -> шт. | G13: =IFERROR(VLOOKUP(A13,Лист1!A:J,7,0),"") -> 10 | H13: =IFERROR(VLOOKUP(A13,Лист1!A:J,8,0),"") -> LFS | I13: =IFERROR(VLOOKUP(A13,Лист1!A:J,9,0),"") -> 06100 | J13: https://www.obo.global/search/?searchparam=6193099 | K13: =IFERROR(VLOOKUP(A13,Лист1!A:K,10,0),"") -> https://www.obo.global/search/?searchparam=6193099
A14: Кабель-канал 20 x 10 | C14: =IFERROR(VLOOKUP(A14,Лист1!A:J,3,0),"") ->  | E14: =IFERROR(VLOOKUP(A14,Лист1!A:J,5,0),"") ->  | F14: =IFERROR(VLOOKUP(A14,Лист1!A:J,6,0),"") ->  | G14: =IFERROR(VLOOKUP(A14,Лист1!A:J,7,0),"") ->  | H14: =IFERROR(VLOOKUP(A14,Лист1!A:J,8,0),"") ->  | I14: =IFERROR(VLOOKUP(A14,Лист1!A:J,9,0),"") ->  | K14: =IFERROR(VLOOKUP(A14,Лист1!A:K,10,0),"") -> 
A15: 6150764 | B15: =IFERROR(VLOOKUP(A15,Лист1!A:J,2,0),"") -> Кабель-канал 20x10 / ПВХ | C15: =IFERROR(VLOOKUP(A15,Лист1!A:J,3,0),"") -> 0.59 | D15: 28.08 | E15: =IFERROR(VLOOKUP(A15,Лист1!A:J,5,0),"") -> 1 | F15: =IFERROR(VLOOKUP(A15,Лист1!A:J,6,0),"") -> м | G15: =IFERROR(VLOOKUP(A15,Лист1!A:J,7,0),"") -> 96 | H15: =IFERROR(VLOOKUP(A15,Лист1!A:J,8,0),"") -> LFS | I15: =IFERROR(VLOOKUP(A15,Лист1!A:J,9,0),"") -> 06100 | J15: https://www.obo.global/products/building-installations/electrical-installation-ducts-and-trunking/cable-routing-trunking/wdk-trunking/trunking-type-wdk-10020.html | K15: =IFERROR(VLOOKUP(A15,Лист1!A:K,10,0),"") -> https://www.obo.global/products/building-installations/electrical-installation-ducts-and-trunking/cable-routing-trunking/wdk-trunking/trunking-type-wdk-10020.html
A16: 6027321 | B16: =IFERROR(VLOOKUP(A16,Лист1!A:J,2,0),"") -> Кабель-канал 20x10 / ПВХ, чорний RAL 9005 | C16: =IFERROR(VLOOKUP(A16,Лист1!A:J,3,0),"") -> 1.09 | D16: 51.87 | E16: =IFERROR(VLOOKUP(A16,Лист1!A:J,5,0),"") -> 1 | F16: =IFERROR(VLOOKUP(A16,Лист1!A:J,6,0),"") -> м | G16: =IFERROR(VLOOKUP(A16,Лист1!A:J,7,0),"") -> 96 | H16: =IFERROR(VLOOKUP(A16,Лист1!A:J,8,0),"") -> LFS | I16: =IFERROR(VLOOKUP(A16,Лист1!A:J,9,0),"") -> 06100 | J16: https://www.obo.global/products/building-installations/cable-routing-systems/cable-trunking/cable-routing-trunking/wdk-trunking/trunking-type-wdk-10020.html#!searchresult-0 | K16: =IFERROR(VLOOKUP(A16,Лист1!A:K,10,0),"") -> https://www.obo.global/products/building-installations/cable-routing-systems/cable-trunking/cable-routing-trunking/wdk-trunking/trunking-type-wdk-10020.html#!searchresult-0
A17: 6154514 | B17: =IFERROR(VLOOKUP(A17,Лист1!A:J,2,0),"") -> Заглушка кабель-канала 20x10 / ПВХ | C17: =IFERROR(VLOOKUP(A17,Лист1!A:J,3,0),"") -> 0.29 | D17: 13.8 | E17: =IFERROR(VLOOKUP(A17,Лист1!A:J,5,0),"") -> 1 | F17: =IFERROR(VLOOKUP(A17,Лист1!A:J,6,0),"") -> шт. | G17: =IFERROR(VLOOKUP(A17,Лист1!A:J,7,0),"") -> 10 | H17: =IFERROR(VLOOKUP(A17,Лист1!A:J,8,0),"") -> LFS | I17: =IFERROR(VLOOKUP(A17,Лист1!A:J,9,0),"") -> 06100 | J17: https://www.obo.global/search/?searchparam=6154514 | K17: =IFERROR(VLOOKUP(A17,Лист1!A:K,10,0),"") -> https://www.obo.global/search/?searchparam=6154514
A18: 6154328 | B18: =IFERROR(VLOOKUP(A18,Лист1!A:J,2,0),"") -> Внутрішній кут кабель-канала 20x10 / ПВХ | C18: =IFERROR(VLOOKUP(A18,Лист1!A:J,3,0),"") -> 0.36 | D18: 17.13 | E18: =IFERROR(VLOOKUP(A18,Лист1!A:J,5,0),"") -> 1 | F18: =IFERROR(VLOOKUP(A18,Лист1!A:J,6,0),"") -> шт. | G18: =IFERROR(VLOOKUP(A18,Лист1!A:J,7,0),"") -> 4 | H18: =IFERROR(VLOOKUP(A18,Лист1!A:J,8,0),"") -> LFS | I18: =IFERROR(VLOOKUP(A18,Лист1!A:J,9,0),"") -> 06100 | J18: https://www.obo.global/search/?searchparam=6154328 | K18: =IFERROR(VLOOKUP(A18,Лист1!A:K,10,0),"") -> https://www.obo.global/search/?searchparam=6154328
A19: 6154417 | B19: =IFERROR(VLOOKUP(A19,Лист1!A:J,2,0),"") -> Зовнішній кут кабель-канала 20x10 / ПВХ | C19: =IFERROR(VLOOKUP(A19,Лист1!A:J,3,0),"") -> 0.36 | D19: 17.13 | E19: =IFERROR(VLOOKUP(A19,Лист1!A:J,5,0),"") -> 1 | F19: =IFERROR(VLOOKUP(A19,Лист1!A:J,6,0),"") -> шт. | G19: =IFERROR(VLOOKUP(A19,Лист1!A:J,7,0),"") -> 4 | H19: =IFERROR(VLOOKUP(A19,Лист1!A:J,8,0),"") -> LFS | I19: =IFERROR(VLOOKUP(A19,Лист1!A:J,9,0),"") -> 06100 | J19: https://www.obo.global/products/building-installations/electrical-installation-ducts-and-trunking/fittings-cable-trunking/external-corner-covers/external-corner-cover-trunking-type-wdk-10020.html | K19: =IFERROR(VLOOKUP(A19,Лист1!A:K,10,0),"") -> https://www.obo.global/products/building-installations/electrical-installation-ducts-and-trunking/fittings-cable-trunking/external-corner-covers/external-corner-cover-trunking-type-wdk-10020.html
A20: 6154212 | B20: =IFERROR(VLOOKUP(A20,Лист1!A:J,2,0),"") -> Кришка плоского кута кабель-канала 20x10 / ПВХ | C20: =IFERROR(VLOOKUP(A20,Лист1!A:J,3,0),"") -> 0.36 | D20: 17.13 | E20: =IFERROR(VLOOKUP(A20,Лист1!A:J,5,0),"") -> 1 | F20: =IFERROR(VLOOKUP(A20,Лист1!A:J,6,0),"") -> шт. | G20: =IFERROR(VLOOKUP(A20,Лист1!A:J,7,0),"") -> 4 | H20: =IFERROR(VLOOKUP(A20,Лист1!A:J,8,0),"") -> LFS | I20: =IFERROR(VLOOKUP(A20,Лист1!A:J,9,0),"") -> 06100 | J20: https://www.obo.global/search/?searchparam=6154212 | K20: =IFERROR(VLOOKUP(A20,Лист1!A:K,10,0),"") -> https://www.obo.global/search/?searchparam=6154212
A21: 6154115 | B21: =IFERROR(VLOOKUP(A21,Лист1!A:J,2,0),"") -> Кришка Т-секції кабель-канала 20x10 / ПВХ | C21: =IFERROR(VLOOKUP(A21,Лист1!A:J,3,0),"") -> 0.37 | D21: 17.61 | E21: =IFERROR(VLOOKUP(A21,Лист1!A:J,5,0),"") -> 1 | F21: =IFERROR(VLOOKUP(A21,Лист1!A:J,6,0),"") -> шт. | G21: =IFERROR(VLOOKUP(A21,Лист1!A:J,7,0),"") -> 4 | H21: =IFERROR(VLOOKUP(A21,Лист1!A:J,8,0),"") -> LFS | I21: =IFERROR(VLOOKUP(A21,Лист1!A:J,9,0),"") -> 06100 | J21: https://www.obo.com.tr/products/building-installations/electrical-installation-ducts-and-trunking/fittings-cable-trunking/t-piece-covers/t-piece-hood-for-trunking-type-wdk-10020.html | K21: =IFERROR(VLOOKUP(A21,Лист1!A:K,10,0),"") -> https://www.obo.com.tr/products/building-installations/electrical-installation-ducts-and-trunking/fittings-cable-trunking/t-piece-covers/t-piece-hood-for-trunking-type-wdk-10020.html
A22: 6154026 | B22: =IFERROR(VLOOKUP(A22,Лист1!A:J,2,0),"") -> Накладка на стик 20x10 / ПВХ | C22: =IFERROR(VLOOKUP(A22,Лист1!A:J,3,0),"") -> 0.26 | D22: 12.37 | E22: =IFERROR(VLOOKUP(A22,Лист1!A:J,5,0),"") -> 1 | F22: =IFERROR(VLOOKUP(A22,Лист1!A:J,6,0),"") -> шт. | G22: =IFERROR(VLOOKUP(A22,Лист1!A:J,7,0),"") -> 10 | H22: =IFERROR(VLOOKUP(A22,Лист1!A:J,8,0),"") -> LFS | I22: =IFERROR(VLOOKUP(A22,Лист1!A:J,9,0),"") -> 06100 | J22: https://www.obo.global/products/building-installations/electrical-installation-ducts-and-trunking/fittings-cable-trunking/joint-covers/joint-cover-trunking-type-wdk-10020.html | K22: =IFERROR(VLOOKUP(A22,Лист1!A:K,10,0),"") -> https://www.obo.global/products/building-installations/electrical-installation-ducts-and-trunking/fittings-cable-trunking/joint-covers/joint-cover-trunking-type-wdk-10020.html
A23: Кабель-канал 25 x 25 | C23: =IFERROR(VLOOKUP(A23,Лист1!A:J,3,0),"") ->  | E23: =IFERROR(VLOOKUP(A23,Лист1!A:J,5,0),"") ->  | F23: =IFERROR(VLOOKUP(A23,Лист1!A:J,6,0),"") ->  | G23: =IFERROR(VLOOKUP(A23,Лист1!A:J,7,0),"") ->  | H23: =IFERROR(VLOOKUP(A23,Лист1!A:J,8,0),"") ->  | I23: =IFERROR(VLOOKUP(A23,Лист1!A:J,9,0),"") ->  | K23: =IFERROR(VLOOKUP(A23,Лист1!A:K,10,0),"") -> 
A24: 6191053 | B24: =IFERROR(VLOOKUP(A24,Лист1!A:J,2,0),"") -> Кабель-канал 25x25 / ПВХ | C24: =IFERROR(VLOOKUP(A24,Лист1!A:J,3,0),"") -> 1.15 | D24: 54.73 | E24: =IFERROR(VLOOKUP(A24,Лист1!A:J,5,0),"") -> 1 | F24: =IFERROR(VLOOKUP(A24,Лист1!A:J,6,0),"") -> м | G24: =IFERROR(VLOOKUP(A24,Лист1!A:J,7,0),"") -> 30 | H24: =IFERROR(VLOOKUP(A24,Лист1!A:J,8,0),"") -> LFS | I24: =IFERROR(VLOOKUP(A24,Лист1!A:J,9,0),"") -> 06100 | J24: https://www.obo.global/search/?searchparam=6191053 | K24: =IFERROR(VLOOKUP(A24,Лист1!A:K,10,0),"") -> https://www.obo.global/search/?searchparam=6191053
A25: 6193145 | B25: =IFERROR(VLOOKUP(A25,Лист1!A:J,2,0),"") -> Заглушка кабель-канала 25x25 / ПВХ | C25: =IFERROR(VLOOKUP(A25,Лист1!A:J,3,0),"") -> 0.39 | D25: 18.56 | E25: =IFERROR(VLOOKUP(A25,Лист1!A:J,5,0),"") -> 1 | F25: =IFERROR(VLOOKUP(A25,Лист1!A:J,6,0),"") -> шт. | G25: =IFERROR(VLOOKUP(A25,Лист1!A:J,7,0),"") -> 10 | H25: =IFERROR(VLOOKUP(A25,Лист1!A:J,8,0),"") -> LFS | I25: =IFERROR(VLOOKUP(A25,Лист1!A:J,9,0),"") -> 06100 | J25: https://www.obo.global/products/building-installations/electrical-installation-ducts-and-trunking/fittings-cable-trunking/end-pieces/end-piece-trunking-type-wdk-25025.html | K25: =IFERROR(VLOOKUP(A25,Лист1!A:K,10,0),"") -> https://www.obo.global/products/building-installations/electrical-installation-ducts-and-trunking/fittings-cable-trunking/end-pieces/end-piece-trunking-type-wdk-25025.html
A26: 6191886 | B26: =IFERROR(VLOOKUP(A26,Лист1!A:J,2,0),"") -> Внутрішній кут кабель-канала 25x25 / ПВХ | C26: =IFERROR(VLOOKUP(A26,Лист1!A:J,3,0),"") -> 0.76 | D26: 36.17 | E26: =IFERROR(VLOOKUP(A26,Лист1!A:J,5,0),"") -> 1 | F26: =IFERROR(VLOOKUP(A26,Лист1!A:J,6,0),"") -> шт. | G26: =IFERROR(VLOOKUP(A26,Лист1!A:J,7,0),"") -> 4 | H26: =IFERROR(VLOOKUP(A26,Лист1!A:J,8,0),"") -> LFS | I26: =IFERROR(VLOOKUP(A26,Лист1!A:J,9,0),"") -> 06100 | J26: https://www.obo.global/search/?searchparam=6191886 | K26: =IFERROR(VLOOKUP(A26,Лист1!A:K,10,0),"") -> https://www.obo.global/search/?searchparam=6191886
A27: 6192173 | B27: =IFERROR(VLOOKUP(A27,Лист1!A:J,2,0),"") -> Зовнішній кут кабель-канала 25x25 / ПВХ | C27: =IFERROR(VLOOKUP(A27,Лист1!A:J,3,0),"") -> 0.76 | D27: 36.17 | E27: =IFERROR(VLOOKUP(A27,Лист1!A:J,5,0),"") -> 1 | F27: =IFERROR(VLOOKUP(A27,Лист1!A:J,6,0),"") -> шт. | G27: =IFERROR(VLOOKUP(A27,Лист1!A:J,7,0),"") -> 4 | H27: =IFERROR(VLOOKUP(A27,Лист1!A:J,8,0),"") -> LFS | I27: =IFERROR(VLOOKUP(A27,Лист1!A:J,9,0),"") -> 06100 | J27: https://www.obo.global/search/?searchparam=6192173 | K27: =IFERROR(VLOOKUP(A27,Лист1!A:K,10,0),"") -> https://www.obo.global/search/?searchparam=6192173
A28: 6192483 | B28: =IFERROR(VLOOKUP(A28,Лист1!A:J,2,0),"") -> Кришка Т-секції, кабель-канала 25x25 / ПВХ | C28: =IFERROR(VLOOKUP(A28,Лист1!A:J,3,0),"") -> 0.85 | D28: 40.45 | E28: =IFERROR(VLOOKUP(A28,Лист1!A:J,5,0),"") -> 1 | F28: =IFERROR(VLOOKUP(A28,Лист1!A:J,6,0),"") -> шт. | G28: =IFERROR(VLOOKUP(A28,Лист1!A:J,7,0),"") -> 4 | H28: =IFERROR(VLOOKUP(A28,Лист1!A:J,8,0),"") -> LFS | I28: =IFERROR(VLOOKUP(A28,Лист1!A:J,9,0),"") -> 06100 | J28: https://www.obo.global/search/?searchparam=6192483 | K28: =IFERROR(VLOOKUP(A28,Лист1!A:K,10,0),"") -> https://www.obo.global/search/?searchparam=6192483
A29: 6192785 | B29: =IFERROR(VLOOKUP(A29,Лист1!A:J,2,0),"") -> Кришка плоского кута кабель-канала 25x25 / ПВХ | C29: =IFERROR(VLOOKUP(A29,Лист1!A:J,3,0),"") -> 0.76 | D29: 36.17 | E29: =IFERROR(VLOOKUP(A29,Лист1!A:J,5,0),"") -> 1 | F29: =IFERROR(VLOOKUP(A29,Лист1!A:J,6,0),"") -> шт. | G29: =IFERROR(VLOOKUP(A29,Лист1!A:J,7,0),"") -> 4 | H29: =IFERROR(VLOOKUP(A29,Лист1!A:J,8,0),"") -> LFS | I29: =IFERROR(VLOOKUP(A29,Лист1!A:J,9,0),"") -> 06100 | J29: https://www.obo.global/search/?searchparam=6192785 | K29: =IFERROR(VLOOKUP(A29,Лист1!A:K,10,0),"") -> https://www.obo.global/search/?searchparam=6192785
A30: 6028403 | B30: =IFERROR(VLOOKUP(A30,Лист1!A:J,2,0),"") -> Ножиці для нарізання кабель-каналів розміром до 25х45мм / сталь | C30: =IFERROR(VLOOKUP(A30,Лист1!A:J,3,0),"") -> 93.65 | D30: 4456.79 | E30: =IFERROR(VLOOKUP(A30,Лист1!A:J,5,0),"") -> 1 | F30: =IFERROR(VLOOKUP(A30,Лист1!A:J,6,0),"") -> шт. | G30: =IFERROR(VLOOKUP(A30,Лист1!A:J,7,0),"") -> 1 | H30: =IFERROR(VLOOKUP(A30,Лист1!A:J,8,0),"") -> LFS | I30: =IFERROR(VLOOKUP(A30,Лист1!A:J,9,0),"") -> 06100 | J30: https://www.obo.global/search/?searchparam=6028403 | K30: =IFERROR(VLOOKUP(A30,Лист1!A:K,10,0),"") -> https://www.obo.global/search/?searchparam=6028403
A31: Кабель-канал 30 x 10 | C31: =IFERROR(VLOOKUP(A31,Лист1!A:J,3,0),"") ->  | E31: =IFERROR(VLOOKUP(A31,Лист1!A:J,5,0),"") ->  | F31: =IFERROR(VLOOKUP(A31,Лист1!A:J,6,0),"") ->  | G31: =IFERROR(VLOOKUP(A31,Лист1!A:J,7,0),"") ->  | H31: =IFERROR(VLOOKUP(A31,Лист1!A:J,8,0),"") ->  | I31: =IFERROR(VLOOKUP(A31,Лист1!A:J,9,0),"") ->  | K31: =IFERROR(VLOOKUP(A31,Лист1!A:K,10,0),"") -> 
A32: 6150780 | B32: =IFERROR(VLOOKUP(A32,Лист1!A:J,2,0),"") -> Кабель-канал 30x10 / ПВХ | C32: =IFERROR(VLOOKUP(A32,Лист1!A:J,3,0),"") -> 0.96 | D32: 45.69 | E32: =IFERROR(VLOOKUP(A32,Лист1!A:J,5,0),"") -> 1 | F32: =IFERROR(VLOOKUP(A32,Лист1!A:J,6,0),"") -> м | G32: =IFERROR(VLOOKUP(A32,Лист1!A:J,7,0),"") -> 64 | H32: =IFERROR(VLOOKUP(A32,Лист1!A:J,8,0),"") -> LFS | I32: =IFERROR(VLOOKUP(A32,Лист1!A:J,9,0),"") -> 06100 | J32: https://www.obo.global/search/?searchparam=6150780 | K32: =IFERROR(VLOOKUP(A32,Лист1!A:K,10,0),"") -> https://www.obo.global/search/?searchparam=6150780
A33: 6154522 | B33: =IFERROR(VLOOKUP(A33,Лист1!A:J,2,0),"") -> Заглушка кабель-канала 30x10 / ПВХ | C33: =IFERROR(VLOOKUP(A33,Лист1!A:J,3,0),"") -> 1.13 | D33: 53.78 | E33: =IFERROR(VLOOKUP(A33,Лист1!A:J,5,0),"") -> 1 | F33: =IFERROR(VLOOKUP(A33,Лист1!A:J,6,0),"") -> шт. | G33: =IFERROR(VLOOKUP(A33,Лист1!A:J,7,0),"") -> 10 | H33: =IFERROR(VLOOKUP(A33,Лист1!A:J,8,0),"") -> LFS | I33: =IFERROR(VLOOKUP(A33,Лист1!A:J,9,0),"") -> 06100 | J33: https://www.obo.global/search/?searchparam=6154522 | K33: =IFERROR(VLOOKUP(A33,Лист1!A:K,10,0),"") -> https://www.obo.global/search/?searchparam=6154522
A34: 6154336 | B34: =IFERROR(VLOOKUP(A34,Лист1!A:J,2,0),"") -> Внутрішній кут кабель-канала 30x10 / ПВХ | C34: =IFERROR(VLOOKUP(A34,Лист1!A:J,3,0),"") -> 1.11 | D34: 52.82 | E34: =IFERROR(VLOOKUP(A34,Лист1!A:J,5,0),"") -> 1 | F34: =IFERROR(VLOOKUP(A34,Лист1!A:J,6,0),"") -> шт. | G34: =IFERROR(VLOOKUP(A34,Лист1!A:J,7,0),"") -> 4 | H34: =IFERROR(VLOOKUP(A34,Лист1!A:J,8,0),"") -> LFS | I34: =IFERROR(VLOOKUP(A34,Лист1!A:J,9,0),"") -> 06100 | J34: https://www.obo.global/search/?searchparam=6154336 | K34: =IFERROR(VLOOKUP(A34,Лист1!A:K,10,0),"") -> https://www.obo.global/search/?searchparam=6154336
A35: 6154425 | B35: =IFERROR(VLOOKUP(A35,Лист1!A:J,2,0),"") -> Зовнішній кут кабель-канала 30x10 / ПВХ | C35: =IFERROR(VLOOKUP(A35,Лист1!A:J,3,0),"") -> 1.11 | D35: 52.82 | E35: =IFERROR(VLOOKUP(A35,Лист1!A:J,5,0),"") -> 1 | F35: =IFERROR(VLOOKUP(A35,Лист1!A:J,6,0),"") -> шт. | G35: =IFERROR(VLOOKUP(A35,Лист1!A:J,7,0),"") -> 4 | H35: =IFERROR(VLOOKUP(A35,Лист1!A:J,8,0),"") -> LFS | I35: =IFERROR(VLOOKUP(A35,Лист1!A:J,9,0),"") -> 06100 | J35: https://www.obo.global/products/building-installations/electrical-installation-ducts-and-trunking/fittings-cable-trunking/external-corner-covers/external-corner-cover-trunking-type-wdk-10030.html | K35: =IFERROR(VLOOKUP(A35,Лист1!A:K,10,0),"") -> https://www.obo.global/products/building-installations/electrical-installation-ducts-and-trunking/fittings-cable-trunking/external-corner-covers/external-corner-cover-trunking-type-wdk-10030.html
A36: 6154220 | B36: =IFERROR(VLOOKUP(A36,Лист1!A:J,2,0),"") -> Кришка плоского кута кабель-канала 30x10 / ПВХ | C36: =IFERROR(VLOOKUP(A36,Лист1!A:J,3,0),"") -> 1.11 | D36: 52.82 | E36: =IFERROR(VLOOKUP(A36,Лист1!A:J,5,0),"") -> 1 | F36: =IFERROR(VLOOKUP(A36,Лист1!A:J,6,0),"") -> шт. | G36: =IFERROR(VLOOKUP(A36,Лист1!A:J,7,0),"") -> 4 | H36: =IFERROR(VLOOKUP(A36,Лист1!A:J,8,0),"") -> LFS | I36: =IFERROR(VLOOKUP(A36,Лист1!A:J,9,0),"") -> 06100 | J36: https://www.obo.global/search/?searchparam=6154220 | K36: =IFERROR(VLOOKUP(A36,Лист1!A:K,10,0),"") -> https://www.obo.global/search/?searchparam=6154220
A37: 6154123 | B37: =IFERROR(VLOOKUP(A37,Лист1!A:J,2,0),"") -> Кришка Т-секції кабель-канала 30x10 / ПВХ | C37: =IFERROR(VLOOKUP(A37,Лист1!A:J,3,0),"") -> 1.11 | D37: 52.82 | E37: =IFERROR(VLOOKUP(A37,Лист1!A:J,5,0),"") -> 1 | F37: =IFERROR(VLOOKUP(A37,Лист1!A:J,6,0),"") -> шт. | G37: =IFERROR(VLOOKUP(A37,Лист1!A:J,7,0),"") -> 4 | H37: =IFERROR(VLOOKUP(A37,Лист1!A:J,8,0),"") -> LFS | I37: =IFERROR(VLOOKUP(A37,Лист1!A:J,9,0),"") -> 06100 | J37: https://www.obo.global/search/?searchparam=6154123 | K37: =IFERROR(VLOOKUP(A37,Лист1!A:K,10,0),"") -> https://www.obo.global/search/?searchparam=6154123
A38: 6154034 | B38: =IFERROR(VLOOKUP(A38,Лист1!A:J,2,0),"") -> Накладка на стик 30x10 / ПВХ | C38: =IFERROR(VLOOKUP(A38,Лист1!A:J,3,0),"") -> 0.26 | D38: 12.37 | E38: =IFERROR(VLOOKUP(A38,Лист1!A:J,5,0),"") -> 1 | F38: =IFERROR(VLOOKUP(A38,Лист1!A:J,6,0),"") -> шт. | G38: =IFERROR(VLOOKUP(A38,Лист1!A:J,7,0),"") -> 10 | H38: =IFERROR(VLOOKUP(A38,Лист1!A:J,8,0),"") -> LFS | I38: =IFERROR(VLOOKUP(A38,Лист1!A:J,9,0),"") -> 06100 | J38: https://www.obo.global/search/?searchparam=6154034 | K38: =IFERROR(VLOOKUP(A38,Лист1!A:K,10,0),"") -> https://www.obo.global/search/?searchparam=6154034
A39: Кабель-канал 30 x 18 | C39: =IFERROR(VLOOKUP(A39,Лист1!A:J,3,0),"") ->  | E39: =IFERROR(VLOOKUP(A39,Лист1!A:J,5,0),"") ->  | F39: =IFERROR(VLOOKUP(A39,Лист1!A:J,6,0),"") ->  | G39: =IFERROR(VLOOKUP(A39,Лист1!A:J,7,0),"") ->  | H39: =IFERROR(VLOOKUP(A39,Лист1!A:J,8,0),"") ->  | I39: =IFERROR(VLOOKUP(A39,Лист1!A:J,9,0),"") ->  | K39: =IFERROR(VLOOKUP(A39,Лист1!A:K,10,0),"") -> 
A40: 6191010 | B40: =IFERROR(VLOOKUP(A40,Лист1!A:J,2,0),"") -> Кабель-канал 30x18 / ПВХ | C40: =IFERROR(VLOOKUP(A40,Лист1!A:J,3,0),"") -> 0.93 | D40: 44.26 | E40: =IFERROR(VLOOKUP(A40,Лист1!A:J,5,0),"") -> 1 | F40: =IFERROR(VLOOKUP(A40,Лист1!A:J,6,0),"") -> м | G40: =IFERROR(VLOOKUP(A40,Лист1!A:J,7,0),"") -> 32 | H40: =IFERROR(VLOOKUP(A40,Лист1!A:J,8,0),"") -> LFS | I40: =IFERROR(VLOOKUP(A40,Лист1!A:J,9,0),"") -> 06100 | J40: https://www.obo.global/search/?searchparam=6191010 | K40: =IFERROR(VLOOKUP(A40,Лист1!A:K,10,0),"") -> https://www.obo.global/search/?searchparam=6191010
A41: 6193102 | B41: =IFERROR(VLOOKUP(A41,Лист1!A:J,2,0),"") -> Заглушка кабель-канала 30x18 / ПВХ | C41: =IFERROR(VLOOKUP(A41,Лист1!A:J,3,0),"") -> 0.35 | D41: 16.66 | E41: =IFERROR(VLOOKUP(A41,Лист1!A:J,5,0),"") -> 1 | F41: =IFERROR(VLOOKUP(A41,Лист1!A:J,6,0),"") -> шт. | G41: =IFERROR(VLOOKUP(A41,Лист1!A:J,7,0),"") -> 10 | H41: =IFERROR(VLOOKUP(A41,Лист1!A:J,8,0),"") -> LFS | I41: =IFERROR(VLOOKUP(A41,Лист1!A:J,9,0),"") -> 06100 | J41: https://www.obo.global/search/?searchparam=6193102 | K41: =IFERROR(VLOOKUP(A41,Лист1!A:K,10,0),"") -> https://www.obo.global/search/?searchparam=6193102
A42: 6191843 | B42: =IFERROR(VLOOKUP(A42,Лист1!A:J,2,0),"") -> Внутрішній кут кабель-канала 30x18 / ПВХ | C42: =IFERROR(VLOOKUP(A42,Лист1!A:J,3,0),"") -> 0.4 | D42: 19.04 | E42: =IFERROR(VLOOKUP(A42,Лист1!A:J,5,0),"") -> 1 | F42: =IFERROR(VLOOKUP(A42,Лист1!A:J,6,0),"") -> шт. | G42: =IFERROR(VLOOKUP(A42,Лист1!A:J,7,0),"") -> 4 | H42: =IFERROR(VLOOKUP(A42,Лист1!A:J,8,0),"") -> LFS | I42: =IFERROR(VLOOKUP(A42,Лист1!A:J,9,0),"") -> 06100 | J42: https://www.obo.global/search/?searchparam=6191843 | K42: =IFERROR(VLOOKUP(A42,Лист1!A:K,10,0),"") -> https://www.obo.global/search/?searchparam=6191843
A43: 6192149 | B43: =IFERROR(VLOOKUP(A43,Лист1!A:J,2,0),"") -> Зовнішній кут кабель-канала 30x18 / ПВХ | C43: =IFERROR(VLOOKUP(A43,Лист1!A:J,3,0),"") -> 0.4 | D43: 19.04 | E43: =IFERROR(VLOOKUP(A43,Лист1!A:J,5,0),"") -> 1 | F43: =IFERROR(VLOOKUP(A43,Лист1!A:J,6,0),"") -> шт. | G43: =IFERROR(VLOOKUP(A43,Лист1!A:J,7,0),"") -> 4 | H43: =IFERROR(VLOOKUP(A43,Лист1!A:J,8,0),"") -> LFS | I43: =IFERROR(VLOOKUP(A43,Лист1!A:J,9,0),"") -> 06100 | J43: https://www.obo.global/search/?searchparam=6192149 | K43: =IFERROR(VLOOKUP(A43,Лист1!A:K,10,0),"") -> https://www.obo.global/search/?searchparam=6192149
A44: 6192750 | B44: =IFERROR(VLOOKUP(A44,Лист1!A:J,2,0),"") -> Кришка плоского кута кабель-канала 30x18 / ПВХ | C44: =IFERROR(VLOOKUP(A44,Лист1!A:J,3,0),"") -> 0.35 | D44: 16.66 | E44: =IFERROR(VLOOKUP(A44,Лист1!A:J,5,0),"") -> 1 | F44: =IFERROR(VLOOKUP(A44,Лист1!A:J,6,0),"") -> шт. | G44: =IFERROR(VLOOKUP(A44,Лист1!A:J,7,0),"") -> 4 | H44: =IFERROR(VLOOKUP(A44,Лист1!A:J,8,0),"") -> LFS | I44: =IFERROR(VLOOKUP(A44,Лист1!A:J,9,0),"") -> 06100 | J44: https://www.obo.global/search/?searchparam=6192750 | K44: =IFERROR(VLOOKUP(A44,Лист1!A:K,10,0),"") -> https://www.obo.global/search/?searchparam=6192750
A45: 6192459 | B45: =IFERROR(VLOOKUP(A45,Лист1!A:J,2,0),"") -> Кришка Т-секції кабель-канала 30x18 / ПВХ | C45: =IFERROR(VLOOKUP(A45,Лист1!A:J,3,0),"") -> 0.51 | D45: 24.27 | E45: =IFERROR(VLOOKUP(A45,Лист1!A:J,5,0),"") -> 1 | F45: =IFERROR(VLOOKUP(A45,Лист1!A:J,6,0),"") -> шт. | G45: =IFERROR(VLOOKUP(A45,Лист1!A:J,7,0),"") -> 4 | H45: =IFERROR(VLOOKUP(A45,Лист1!A:J,8,0),"") -> LFS | I45: =IFERROR(VLOOKUP(A45,Лист1!A:J,9,0),"") -> 06100 | J45: https://www.obo.global/search/?searchparam=6192459 | K45: =IFERROR(VLOOKUP(A45,Лист1!A:K,10,0),"") -> https://www.obo.global/search/?searchparam=6192459
A46: 6193501 | B46: =IFERROR(VLOOKUP(A46,Лист1!A:J,2,0),"") -> Накладка на стик 30x18 / ПВХ | C46: =IFERROR(VLOOKUP(A46,Лист1!A:J,3,0),"") -> 0.25 | D46: 11.9 | E46: =IFERROR(VLOOKUP(A46,Лист1!A:J,5,0),"") -> 1 | F46: =IFERROR(VLOOKUP(A46,Лист1!A:J,6,0),"") -> шт. | G46: =IFERROR(VLOOKUP(A46,Лист1!A:J,7,0),"") -> 10 | H46: =IFERROR(VLOOKUP(A46,Лист1!A:J,8,0),"") -> LFS | I46: =IFERROR(VLOOKUP(A46,Лист1!A:J,9,0),"") -> 06100 | J46: https://www.obo.global/search/?searchparam=6193501 | K46: =IFERROR(VLOOKUP(A46,Лист1!A:K,10,0),"") -> https://www.obo.global/search/?searchparam=6193501
A47: Кабель-канал 35 x 20 | C47: =IFERROR(VLOOKUP(A47,Лист1!A:J,3,0),"") ->  | E47: =IFERROR(VLOOKUP(A47,Лист1!A:J,5,0),"") ->  | F47: =IFERROR(VLOOKUP(A47,Лист1!A:J,6,0),"") ->  | G47: =IFERROR(VLOOKUP(A47,Лист1!A:J,7,0),"") ->  | H47: =IFERROR(VLOOKUP(A47,Лист1!A:J,8,0),"") ->  | I47: =IFERROR(VLOOKUP(A47,Лист1!A:J,9,0),"") ->  | K47: =IFERROR(VLOOKUP(A47,Лист1!A:K,10,0),"") -> 
A48: 6191045 | B48: =IFERROR(VLOOKUP(A48,Лист1!A:J,2,0),"") -> Кабель-канал 35х20 / ПВХ | C48: =IFERROR(VLOOKUP(A48,Лист1!A:J,3,0),"") -> 1.49 | D48: 70.91 | E48: =IFERROR(VLOOKUP(A48,Лист1!A:J,5,0),"") -> 1 | F48: =IFERROR(VLOOKUP(A48,Лист1!A:J,6,0),"") -> м | G48: =IFERROR(VLOOKUP(A48,Лист1!A:J,7,0),"") -> 32 | H48: =IFERROR(VLOOKUP(A48,Лист1!A:J,8,0),"") -> LFS | I48: =IFERROR(VLOOKUP(A48,Лист1!A:J,9,0),"") -> 06100 | J48: https://www.obo.global/search/?searchparam=6191045 | K48: =IFERROR(VLOOKUP(A48,Лист1!A:K,10,0),"") -> https://www.obo.global/search/?searchparam=6191045
A49: 6193137 | B49: =IFERROR(VLOOKUP(A49,Лист1!A:J,2,0),"") -> Заглушка кабель-канала 35х20 / ПВХ | C49: =IFERROR(VLOOKUP(A49,Лист1!A:J,3,0),"") -> 0.41 | D49: 19.51 | E49: =IFERROR(VLOOKUP(A49,Лист1!A:J,5,0),"") -> 1 | F49: =IFERROR(VLOOKUP(A49,Лист1!A:J,6,0),"") -> шт. | G49: =IFERROR(VLOOKUP(A49,Лист1!A:J,7,0),"") -> 10 | H49: =IFERROR(VLOOKUP(A49,Лист1!A:J,8,0),"") -> LFS | I49: =IFERROR(VLOOKUP(A49,Лист1!A:J,9,0),"") -> 06100 | J49: https://www.obo.global/products/building-installations/electrical-installation-ducts-and-trunking/fittings-cable-trunking/end-pieces/end-piece-trunking-type-wdk-20035.html | K49: =IFERROR(VLOOKUP(A49,Лист1!A:K,10,0),"") -> https://www.obo.global/products/building-installations/electrical-installation-ducts-and-trunking/fittings-cable-trunking/end-pieces/end-piece-trunking-type-wdk-20035.html
A50: Кабель-канал 40 x 18 | C50: =IFERROR(VLOOKUP(A50,Лист1!A:J,3,0),"") ->  | E50: =IFERROR(VLOOKUP(A50,Лист1!A:J,5,0),"") ->  | F50: =IFERROR(VLOOKUP(A50,Лист1!A:J,6,0),"") ->  | G50: =IFERROR(VLOOKUP(A50,Лист1!A:J,7,0),"") ->  | H50: =IFERROR(VLOOKUP(A50,Лист1!A:J,8,0),"") ->  | I50: =IFERROR(VLOOKUP(A50,Лист1!A:J,9,0),"") ->  | K50: =IFERROR(VLOOKUP(A50,Лист1!A:K,10,0),"") -> 
A51: 6191029 | B51: =IFERROR(VLOOKUP(A51,Лист1!A:J,2,0),"") -> Кабель-канал 40x18 / ПВХ | C51: =IFERROR(VLOOKUP(A51,Лист1!A:J,3,0),"") -> 1.2 | D51: 57.11 | E51: =IFERROR(VLOOKUP(A51,Лист1!A:J,5,0),"") -> 1 | F51: =IFERROR(VLOOKUP(A51,Лист1!A:J,6,0),"") -> м | G51: =IFERROR(VLOOKUP(A51,Лист1!A:J,7,0),"") -> 36 | H51: =IFERROR(VLOOKUP(A51,Лист1!A:J,8,0),"") -> LFS | I51: =IFERROR(VLOOKUP(A51,Лист1!A:J,9,0),"") -> 06100 | J51: https://www.obo.global/search/?searchparam=6191029 | K51: =IFERROR(VLOOKUP(A51,Лист1!A:K,10,0),"") -> https://www.obo.global/search/?searchparam=6191029
A52: 6193110 | B52: =IFERROR(VLOOKUP(A52,Лист1!A:J,2,0),"") -> Заглушка кабель-канала 40x18 / ПВХ | C52: =IFERROR(VLOOKUP(A52,Лист1!A:J,3,0),"") -> 0.5 | D52: 23.79 | E52: =IFERROR(VLOOKUP(A52,Лист1!A:J,5,0),"") -> 1 | F52: =IFERROR(VLOOKUP(A52,Лист1!A:J,6,0),"") -> шт. | G52: =IFERROR(VLOOKUP(A52,Лист1!A:J,7,0),"") -> 10 | H52: =IFERROR(VLOOKUP(A52,Лист1!A:J,8,0),"") -> LFS | I52: =IFERROR(VLOOKUP(A52,Лист1!A:J,9,0),"") -> 06100 | J52: https://www.obo.global/search/?searchparam=6193110 | K52: =IFERROR(VLOOKUP(A52,Лист1!A:K,10,0),"") -> https://www.obo.global/search/?searchparam=6193110
A53: 6191851 | B53: =IFERROR(VLOOKUP(A53,Лист1!A:J,2,0),"") -> Внутрішній кут кабель-канала 40x18 / ПВХ | C53: =IFERROR(VLOOKUP(A53,Лист1!A:J,3,0),"") -> 0.5 | D53: 23.79 | E53: =IFERROR(VLOOKUP(A53,Лист1!A:J,5,0),"") -> 1 | F53: =IFERROR(VLOOKUP(A53,Лист1!A:J,6,0),"") -> шт. | G53: =IFERROR(VLOOKUP(A53,Лист1!A:J,7,0),"") -> 4 | H53: =IFERROR(VLOOKUP(A53,Лист1!A:J,8,0),"") -> LFS | I53: =IFERROR(VLOOKUP(A53,Лист1!A:J,9,0),"") -> 06100 | J53: https://www.obo.global/search/?searchparam=6191851 | K53: =IFERROR(VLOOKUP(A53,Лист1!A:K,10,0),"") -> https://www.obo.global/search/?searchparam=6191851
A54: 6192157 | B54: =IFERROR(VLOOKUP(A54,Лист1!A:J,2,0),"") -> Зовнішній кут кабель-канала 40x18 / ПВХ | C54: =IFERROR(VLOOKUP(A54,Лист1!A:J,3,0),"") -> 0.5 | D54: 23.79 | E54: =IFERROR(VLOOKUP(A54,Лист1!A:J,5,0),"") -> 1 | F54: =IFERROR(VLOOKUP(A54,Лист1!A:J,6,0),"") -> шт. | G54: =IFERROR(VLOOKUP(A54,Лист1!A:J,7,0),"") -> 4 | H54: =IFERROR(VLOOKUP(A54,Лист1!A:J,8,0),"") -> LFS | I54: =IFERROR(VLOOKUP(A54,Лист1!A:J,9,0),"") -> 06100 | J54: https://www.obo.global/search/?searchparam=6192157 | K54: =IFERROR(VLOOKUP(A54,Лист1!A:K,10,0),"") -> https://www.obo.global/search/?searchparam=6192157
A55: 6192769 | B55: =IFERROR(VLOOKUP(A55,Лист1!A:J,2,0),"") -> Кришка плоского кута кабель-канала 40x18 / ПВХ | C55: =IFERROR(VLOOKUP(A55,Лист1!A:J,3,0),"") -> 0.5 | D55: 23.79 | E55: =IFERROR(VLOOKUP(A55,Лист1!A:J,5,0),"") -> 1 | F55: =IFERROR(VLOOKUP(A55,Лист1!A:J,6,0),"") -> шт. | G55: =IFERROR(VLOOKUP(A55,Лист1!A:J,7,0),"") -> 4 | H55: =IFERROR(VLOOKUP(A55,Лист1!A:J,8,0),"") -> LFS | I55: =IFERROR(VLOOKUP(A55,Лист1!A:J,9,0),"") -> 06100 | J55: https://www.obo.global/search/?searchparam=6192769 | K55: =IFERROR(VLOOKUP(A55,Лист1!A:K,10,0),"") -> https://www.obo.global/search/?searchparam=6192769
A56: 6192467 | B56: =IFERROR(VLOOKUP(A56,Лист1!A:J,2,0),"") -> Кришка Т-секції кабель-канала 40x18 / ПВХ | C56: =IFERROR(VLOOKUP(A56,Лист1!A:J,3,0),"") -> 0.5 | D56: 23.79 | E56: =IFERROR(VLOOKUP(A56,Лист1!A:J,5,0),"") -> 1 | F56: =IFERROR(VLOOKUP(A56,Лист1!A:J,6,0),"") -> шт. | G56: =IFERROR(VLOOKUP(A56,Лист1!A:J,7,0),"") -> 4 | H56: =IFERROR(VLOOKUP(A56,Лист1!A:J,8,0),"") -> LFS | I56: =IFERROR(VLOOKUP(A56,Лист1!A:J,9,0),"") -> 06100 | J56: https://www.obo.global/search/?searchparam=6192467 | K56: =IFERROR(VLOOKUP(A56,Лист1!A:K,10,0),"") -> https://www.obo.global/search/?searchparam=6192467
A57: 6193528 | B57: =IFERROR(VLOOKUP(A57,Лист1!A:J,2,0),"") -> Накладка на стик 40x18 / ПВХ | C57: =IFERROR(VLOOKUP(A57,Лист1!A:J,3,0),"") -> 0.16 | D57: 7.61 | E57: =IFERROR(VLOOKUP(A57,Лист1!A:J,5,0),"") -> 1 | F57: =IFERROR(VLOOKUP(A57,Лист1!A:J,6,0),"") -> шт. | G57: =IFERROR(VLOOKUP(A57,Лист1!A:J,7,0),"") -> 10 | H57: =IFERROR(VLOOKUP(A57,Лист1!A:J,8,0),"") -> LFS | I57: =IFERROR(VLOOKUP(A57,Лист1!A:J,9,0),"") -> 06100 | J57: https://www.obo.global/search/?searchparam=6193528 | K57: =IFERROR(VLOOKUP(A57,Лист1!A:K,10,0),"") -> https://www.obo.global/search/?searchparam=6193528
A58: Кабель-канал 40 x 25 | C58: =IFERROR(VLOOKUP(A58,Лист1!A:J,3,0),"") ->  | E58: =IFERROR(VLOOKUP(A58,Лист1!A:J,5,0),"") ->  | F58: =IFERROR(VLOOKUP(A58,Лист1!A:J,6,0),"") ->  | G58: =IFERROR(VLOOKUP(A58,Лист1!A:J,7,0),"") ->  | H58: =IFERROR(VLOOKUP(A58,Лист1!A:J,8,0),"") ->  | I58: =IFERROR(VLOOKUP(A58,Лист1!A:J,9,0),"") ->  | K58: =IFERROR(VLOOKUP(A58,Лист1!A:K,10,0),"") -> 
A59: 6191061 | B59: =IFERROR(VLOOKUP(A59,Лист1!A:J,2,0),"") -> Кабель-канал 40x25 / ПВХ | C59: =IFERROR(VLOOKUP(A59,Лист1!A:J,3,0),"") -> 1.32 | D59: 62.82 | E59: =IFERROR(VLOOKUP(A59,Лист1!A:J,5,0),"") -> 1 | F59: =IFERROR(VLOOKUP(A59,Лист1!A:J,6,0),"") -> м | G59: =IFERROR(VLOOKUP(A59,Лист1!A:J,7,0),"") -> 24 | H59: =IFERROR(VLOOKUP(A59,Лист1!A:J,8,0),"") -> LFS | I59: =IFERROR(VLOOKUP(A59,Лист1!A:J,9,0),"") -> 06100 | J59: https://www.obo.global/search/?searchparam=6191061 | K59: =IFERROR(VLOOKUP(A59,Лист1!A:K,10,0),"") -> https://www.obo.global/search/?searchparam=6191061
A60: 6026488 | B60: =IFERROR(VLOOKUP(A60,Лист1!A:J,2,0),"") -> Кабель-канал 40x25 / ПВХ, чорний RAL 9005 | C60: =IFERROR(VLOOKUP(A60,Лист1!A:J,3,0),"") -> 1.99 | D60: 94.7 | E60: =IFERROR(VLOOKUP(A60,Лист1!A:J,5,0),"") -> 1 | F60: =IFERROR(VLOOKUP(A60,Лист1!A:J,6,0),"") -> м | G60: =IFERROR(VLOOKUP(A60,Лист1!A:J,7,0),"") -> 24 | H60: =IFERROR(VLOOKUP(A60,Лист1!A:J,8,0),"") -> LFS | I60: =IFERROR(VLOOKUP(A60,Лист1!A:J,9,0),"") -> 06100 | J60: https://www.obo.global/products/building-installations/cable-routing-systems/cable-trunking/cable-routing-trunking/wdk-trunking/trunking-type-wdk-25040.html#!searchresult-0 | K60: =IFERROR(VLOOKUP(A60,Лист1!A:K,10,0),"") -> https://www.obo.global/products/building-installations/cable-routing-systems/cable-trunking/cable-routing-trunking/wdk-trunking/trunking-type-wdk-25040.html#!searchresult-0
A61: 6193153 | B61: =IFERROR(VLOOKUP(A61,Лист1!A:J,2,0),"") -> Заглушка кабель-канала 40x25 / ПВХ | C61: =IFERROR(VLOOKUP(A61,Лист1!A:J,3,0),"") -> 0.37 | D61: 17.61 | E61: =IFERROR(VLOOKUP(A61,Лист1!A:J,5,0),"") -> 1 | F61: =IFERROR(VLOOKUP(A61,Лист1!A:J,6,0),"") -> шт. | G61: =IFERROR(VLOOKUP(A61,Лист1!A:J,7,0),"") -> 10 | H61: =IFERROR(VLOOKUP(A61,Лист1!A:J,8,0),"") -> LFS | I61: =IFERROR(VLOOKUP(A61,Лист1!A:J,9,0),"") -> 06100 | J61: https://www.obo.global/products/building-installations/electrical-installation-ducts-and-trunking/fittings-cable-trunking/end-pieces/end-piece-trunking-type-wdk-25040.html | K61: =IFERROR(VLOOKUP(A61,Лист1!A:K,10,0),"") -> https://www.obo.global/products/building-installations/electrical-installation-ducts-and-trunking/fittings-cable-trunking/end-pieces/end-piece-trunking-type-wdk-25040.html
A62: 6191894 | B62: =IFERROR(VLOOKUP(A62,Лист1!A:J,2,0),"") -> Внутрішній кут кабель-канала 40x25 / ПВХ | C62: =IFERROR(VLOOKUP(A62,Лист1!A:J,3,0),"") -> 0.51 | D62: 24.27 | E62: =IFERROR(VLOOKUP(A62,Лист1!A:J,5,0),"") -> 1 | F62: =IFERROR(VLOOKUP(A62,Лист1!A:J,6,0),"") -> шт. | G62: =IFERROR(VLOOKUP(A62,Лист1!A:J,7,0),"") -> 4 | H62: =IFERROR(VLOOKUP(A62,Лист1!A:J,8,0),"") -> LFS | I62: =IFERROR(VLOOKUP(A62,Лист1!A:J,9,0),"") -> 06100 | J62: https://www.obo.global/search/?searchparam=6191894 | K62: =IFERROR(VLOOKUP(A62,Лист1!A:K,10,0),"") -> https://www.obo.global/search/?searchparam=6191894
A63: 6192181 | B63: =IFERROR(VLOOKUP(A63,Лист1!A:J,2,0),"") -> Зовнішній кут кабель-канала 40x25 / ПВХ | C63: =IFERROR(VLOOKUP(A63,Лист1!A:J,3,0),"") -> 0.51 | D63: 24.27 | E63: =IFERROR(VLOOKUP(A63,Лист1!A:J,5,0),"") -> 1 | F63: =IFERROR(VLOOKUP(A63,Лист1!A:J,6,0),"") -> шт. | G63: =IFERROR(VLOOKUP(A63,Лист1!A:J,7,0),"") -> 4 | H63: =IFERROR(VLOOKUP(A63,Лист1!A:J,8,0),"") -> LFS | I63: =IFERROR(VLOOKUP(A63,Лист1!A:J,9,0),"") -> 06100 | J63: https://www.obo.global/search/?searchparam=6192181 | K63: =IFERROR(VLOOKUP(A63,Лист1!A:K,10,0),"") -> https://www.obo.global/search/?searchparam=6192181
A64: 6192793 | B64: =IFERROR(VLOOKUP(A64,Лист1!A:J,2,0),"") -> Кришка плоского кута кабель-канала 40x25 / ПВХ | C64: =IFERROR(VLOOKUP(A64,Лист1!A:J,3,0),"") -> 0.55 | D64: 26.17 | E64: =IFERROR(VLOOKUP(A64,Лист1!A:J,5,0),"") -> 1 | F64: =IFERROR(VLOOKUP(A64,Лист1!A:J,6,0),"") -> шт. | G64: =IFERROR(VLOOKUP(A64,Лист1!A:J,7,0),"") -> 4 | H64: =IFERROR(VLOOKUP(A64,Лист1!A:J,8,0),"") -> LFS | I64: =IFERROR(VLOOKUP(A64,Лист1!A:J,9,0),"") -> 06100 | J64: https://www.obo.global/search/?searchparam=6192793 | K64: =IFERROR(VLOOKUP(A64,Лист1!A:K,10,0),"") -> https://www.obo.global/search/?searchparam=6192793
A65: 6192491 | B65: =IFERROR(VLOOKUP(A65,Лист1!A:J,2,0),"") -> Кришка Т-секції кабель-канала 40x25 / ПВХ | C65: =IFERROR(VLOOKUP(A65,Лист1!A:J,3,0),"") -> 0.68 | D65: 32.36 | E65: =IFERROR(VLOOKUP(A65,Лист1!A:J,5,0),"") -> 1 | F65: =IFERROR(VLOOKUP(A65,Лист1!A:J,6,0),"") -> шт. | G65: =IFERROR(VLOOKUP(A65,Лист1!A:J,7,0),"") -> 4 | H65: =IFERROR(VLOOKUP(A65,Лист1!A:J,8,0),"") -> LFS | I65: =IFERROR(VLOOKUP(A65,Лист1!A:J,9,0),"") -> 06100 | J65: https://www.obo.global/search/?searchparam=6192491 | K65: =IFERROR(VLOOKUP(A65,Лист1!A:K,10,0),"") -> https://www.obo.global/search/?searchparam=6192491
A66: 6193560 | B66: =IFERROR(VLOOKUP(A66,Лист1!A:J,2,0),"") -> Накладка на стик кабель-канала 40x25 / ПВХ | C66: =IFERROR(VLOOKUP(A66,Лист1!A:J,3,0),"") -> 0.3 | D66: 14.28 | E66: =IFERROR(VLOOKUP(A66,Лист1!A:J,5,0),"") -> 1 | F66: =IFERROR(VLOOKUP(A66,Лист1!A:J,6,0),"") -> шт. | G66: =IFERROR(VLOOKUP(A66,Лист1!A:J,7,0),"") -> 10 | H66: =IFERROR(VLOOKUP(A66,Лист1!A:J,8,0),"") -> LFS | I66: =IFERROR(VLOOKUP(A66,Лист1!A:J,9,0),"") -> 06100 | J66: https://www.obo.global/search/?searchparam=6193560 | K66: =IFERROR(VLOOKUP(A66,Лист1!A:K,10,0),"") -> https://www.obo.global/search/?searchparam=6193560
A67: Кабель-канал 40 x 40 | C67: =IFERROR(VLOOKUP(A67,Лист1!A:J,3,0),"") ->  | E67: =IFERROR(VLOOKUP(A67,Лист1!A:J,5,0),"") ->  | F67: =IFERROR(VLOOKUP(A67,Лист1!A:J,6,0),"") ->  | G67: =IFERROR(VLOOKUP(A67,Лист1!A:J,7,0),"") ->  | H67: =IFERROR(VLOOKUP(A67,Лист1!A:J,8,0),"") ->  | I67: =IFERROR(VLOOKUP(A67,Лист1!A:J,9,0),"") ->  | K67: =IFERROR(VLOOKUP(A67,Лист1!A:K,10,0),"") -> 
A68: 6191126 | B68: =IFERROR(VLOOKUP(A68,Лист1!A:J,2,0),"") -> Кабель-канал 40x40 / ПВХ | C68: =IFERROR(VLOOKUP(A68,Лист1!A:J,3,0),"") -> 1.91 | D68: 90.9 | E68: =IFERROR(VLOOKUP(A68,Лист1!A:J,5,0),"") -> 1 | F68: =IFERROR(VLOOKUP(A68,Лист1!A:J,6,0),"") -> м | G68: =IFERROR(VLOOKUP(A68,Лист1!A:J,7,0),"") -> 36 | H68: =IFERROR(VLOOKUP(A68,Лист1!A:J,8,0),"") -> LFS | I68: =IFERROR(VLOOKUP(A68,Лист1!A:J,9,0),"") -> 06100 | J68: https://www.obo.global/search/?searchparam=6191126 | K68: =IFERROR(VLOOKUP(A68,Лист1!A:K,10,0),"") -> https://www.obo.global/search/?searchparam=6191126
A69: 6193218 | B69: =IFERROR(VLOOKUP(A69,Лист1!A:J,2,0),"") -> Заглушка кабель-канала 40x40 / ПВХ | C69: =IFERROR(VLOOKUP(A69,Лист1!A:J,3,0),"") -> 0.54 | D69: 25.7 | E69: =IFERROR(VLOOKUP(A69,Лист1!A:J,5,0),"") -> 1 | F69: =IFERROR(VLOOKUP(A69,Лист1!A:J,6,0),"") -> шт. | G69: =IFERROR(VLOOKUP(A69,Лист1!A:J,7,0),"") -> 10 | H69: =IFERROR(VLOOKUP(A69,Лист1!A:J,8,0),"") -> LFS | I69: =IFERROR(VLOOKUP(A69,Лист1!A:J,9,0),"") -> 06100 | J69: https://www.obo.global/products/building-installations/electrical-installation-ducts-and-trunking/fittings-cable-trunking/end-pieces/end-piece-trunking-type-wdk-40040.html | K69: =IFERROR(VLOOKUP(A69,Лист1!A:K,10,0),"") -> https://www.obo.global/products/building-installations/electrical-installation-ducts-and-trunking/fittings-cable-trunking/end-pieces/end-piece-trunking-type-wdk-40040.html
A70: 6191940 | B70: =IFERROR(VLOOKUP(A70,Лист1!A:J,2,0),"") -> Внутрішній кут кабель-канала 40x40 / ПВХ | C70: =IFERROR(VLOOKUP(A70,Лист1!A:J,3,0),"") -> 1.61 | D70: 76.62 | E70: =IFERROR(VLOOKUP(A70,Лист1!A:J,5,0),"") -> 1 | F70: =IFERROR(VLOOKUP(A70,Лист1!A:J,6,0),"") -> шт. | G70: =IFERROR(VLOOKUP(A70,Лист1!A:J,7,0),"") -> 4 | H70: =IFERROR(VLOOKUP(A70,Лист1!A:J,8,0),"") -> LFS | I70: =IFERROR(VLOOKUP(A70,Лист1!A:J,9,0),"") -> 06100 | J70: https://www.obo.global/products/building-installations/electrical-installation-ducts-and-trunking/fittings-cable-trunking/internal-corner-trunking/internal-corner-cover-trunking-type-wdk-40040.html | K70: =IFERROR(VLOOKUP(A70,Лист1!A:K,10,0),"") -> https://www.obo.global/products/building-installations/electrical-installation-ducts-and-trunking/fittings-cable-trunking/internal-corner-trunking/internal-corner-cover-trunking-type-wdk-40040.html
A71: 6192246 | B71: =IFERROR(VLOOKUP(A71,Лист1!A:J,2,0),"") -> Зовнішній кут кабель-канала 40x40 / ПВХ | C71: =IFERROR(VLOOKUP(A71,Лист1!A:J,3,0),"") -> 1.01 | D71: 48.07 | E71: =IFERROR(VLOOKUP(A71,Лист1!A:J,5,0),"") -> 1 | F71: =IFERROR(VLOOKUP(A71,Лист1!A:J,6,0),"") -> шт. | G71: =IFERROR(VLOOKUP(A71,Лист1!A:J,7,0),"") -> 4 | H71: =IFERROR(VLOOKUP(A71,Лист1!A:J,8,0),"") -> LFS | I71: =IFERROR(VLOOKUP(A71,Лист1!A:J,9,0),"") -> 06100 | J71: https://www.obo.global/search/?searchparam=6192246 | K71: =IFERROR(VLOOKUP(A71,Лист1!A:K,10,0),"") -> https://www.obo.global/search/?searchparam=6192246
A72: 6192548 | B72: =IFERROR(VLOOKUP(A72,Лист1!A:J,2,0),"") -> Кришка Т-секції, кабель-канала 40x40 / ПВХ | C72: =IFERROR(VLOOKUP(A72,Лист1!A:J,3,0),"") -> 0.93 | D72: =IFERROR(ROUND(C72*$D$2*1.2,2),"") -> 44.26 | E72: =IFERROR(VLOOKUP(A72,Лист1!A:J,5,0),"") -> 1 | F72: =IFERROR(VLOOKUP(A72,Лист1!A:J,6,0),"") -> шт. | G72: =IFERROR(VLOOKUP(A72,Лист1!A:J,7,0),"") -> 4 | H72: =IFERROR(VLOOKUP(A72,Лист1!A:J,8,0),"") -> LFS | I72: =IFERROR(VLOOKUP(A72,Лист1!A:J,9,0),"") -> 06100 | J72: =IFERROR(HYPERLINK(K72,K72),"") -> https://www.obo.global/search/?searchparam=6192548 | K72: =IFERROR(VLOOKUP(A72,Лист1!A:K,10,0),"") -> https://www.obo.global/search/?searchparam=6192548
A73: 6192831 | B73: =IFERROR(VLOOKUP(A73,Лист1!A:J,2,0),"") -> Кришка плоского кута кабель-канала 40x40 / ПВХ | C73: =IFERROR(VLOOKUP(A73,Лист1!A:J,3,0),"") -> 1.01 | D73: 48.07 | E73: =IFERROR(VLOOKUP(A73,Лист1!A:J,5,0),"") -> 1 | F73: =IFERROR(VLOOKUP(A73,Лист1!A:J,6,0),"") -> шт. | G73: =IFERROR(VLOOKUP(A73,Лист1!A:J,7,0),"") -> 4 | H73: =IFERROR(VLOOKUP(A73,Лист1!A:J,8,0),"") -> LFS | I73: =IFERROR(VLOOKUP(A73,Лист1!A:J,9,0),"") -> 06100 | J73: https://www.obo.global/search/?searchparam=6192831 | K73: =IFERROR(VLOOKUP(A73,Лист1!A:K,10,0),"") -> https://www.obo.global/search/?searchparam=6192831
A74: Кабель-канал 50 x 20 | C74: =IFERROR(VLOOKUP(A74,Лист1!A:J,3,0),"") ->  | E74: =IFERROR(VLOOKUP(A74,Лист1!A:J,5,0),"") ->  | F74: =IFERROR(VLOOKUP(A74,Лист1!A:J,6,0),"") ->  | G74: =IFERROR(VLOOKUP(A74,Лист1!A:J,7,0),"") ->  | H74: =IFERROR(VLOOKUP(A74,Лист1!A:J,8,0),"") ->  | I74: =IFERROR(VLOOKUP(A74,Лист1!A:J,9,0),"") ->  | K74: =IFERROR(VLOOKUP(A74,Лист1!A:K,10,0),"") -> 
A75: 6168736 | B75: =IFERROR(VLOOKUP(A75,Лист1!A:J,2,0),"") -> Кабель-канал 50x20 / ПВХ | C75: =IFERROR(VLOOKUP(A75,Лист1!A:J,3,0),"") -> 1.69 | D75: 80.43 | E75: =IFERROR(VLOOKUP(A75,Лист1!A:J,5,0),"") -> 1 | F75: =IFERROR(VLOOKUP(A75,Лист1!A:J,6,0),"") -> м | G75: =IFERROR(VLOOKUP(A75,Лист1!A:J,7,0),"") -> 42 | H75: =IFERROR(VLOOKUP(A75,Лист1!A:J,8,0),"") -> LFS | I75: =IFERROR(VLOOKUP(A75,Лист1!A:J,9,0),"") -> 06100 | J75: https://www.obo.global/search/?searchparam=6168736 | K75: =IFERROR(VLOOKUP(A75,Лист1!A:K,10,0),"") -> https://www.obo.global/search/?searchparam=6168736
A76: 6154557 | B76: =IFERROR(VLOOKUP(A76,Лист1!A:J,2,0),"") -> Заглушка кабель-канала 50х20 / ПВХ | C76: =IFERROR(VLOOKUP(A76,Лист1!A:J,3,0),"") -> 0.37 | D76: 17.61 | E76: =IFERROR(VLOOKUP(A76,Лист1!A:J,5,0),"") -> 1 | F76: =IFERROR(VLOOKUP(A76,Лист1!A:J,6,0),"") -> шт. | G76: =IFERROR(VLOOKUP(A76,Лист1!A:J,7,0),"") -> 10 | H76: =IFERROR(VLOOKUP(A76,Лист1!A:J,8,0),"") -> LFS | I76: =IFERROR(VLOOKUP(A76,Лист1!A:J,9,0),"") -> 06100 | J76: https://www.obo.global/products/building-installations/electrical-installation-ducts-and-trunking/fittings-cable-trunking/end-pieces/end-piece-trunking-type-wdk-20050.html | K76: =IFERROR(VLOOKUP(A76,Лист1!A:K,10,0),"") -> https://www.obo.global/products/building-installations/electrical-installation-ducts-and-trunking/fittings-cable-trunking/end-pieces/end-piece-trunking-type-wdk-20050.html
A77: 6154360 | B77: =IFERROR(VLOOKUP(A77,Лист1!A:J,2,0),"") -> Внутрішній кут кабель-канала 50х20 / ПВХ | C77: =IFERROR(VLOOKUP(A77,Лист1!A:J,3,0),"") -> 0.5 | D77: 23.79 | E77: =IFERROR(VLOOKUP(A77,Лист1!A:J,5,0),"") -> 1 | F77: =IFERROR(VLOOKUP(A77,Лист1!A:J,6,0),"") -> шт. | G77: =IFERROR(VLOOKUP(A77,Лист1!A:J,7,0),"") -> 4 | H77: =IFERROR(VLOOKUP(A77,Лист1!A:J,8,0),"") -> LFS | I77: =IFERROR(VLOOKUP(A77,Лист1!A:J,9,0),"") -> 06100 | J77: https://www.obo.global/search/?searchparam=6154360 | K77: =IFERROR(VLOOKUP(A77,Лист1!A:K,10,0),"") -> https://www.obo.global/search/?searchparam=6154360
A78: 6154468 | B78: =IFERROR(VLOOKUP(A78,Лист1!A:J,2,0),"") -> Зовнішній кут кабель-канала 50х20 / ПВХ | C78: =IFERROR(VLOOKUP(A78,Лист1!A:J,3,0),"") -> 0.54 | D78: 25.7 | E78: =IFERROR(VLOOKUP(A78,Лист1!A:J,5,0),"") -> 1 | F78: =IFERROR(VLOOKUP(A78,Лист1!A:J,6,0),"") -> шт. | G78: =IFERROR(VLOOKUP(A78,Лист1!A:J,7,0),"") -> 4 | H78: =IFERROR(VLOOKUP(A78,Лист1!A:J,8,0),"") -> LFS | I78: =IFERROR(VLOOKUP(A78,Лист1!A:J,9,0),"") -> 06100 | J78: https://www.obo.global/search/?searchparam=6154468 | K78: =IFERROR(VLOOKUP(A78,Лист1!A:K,10,0),"") -> https://www.obo.global/search/?searchparam=6154468
A79: 6154255 | B79: =IFERROR(VLOOKUP(A79,Лист1!A:J,2,0),"") -> Кришка плоского кута кабель-канала 50х20 / ПВХ | C79: =IFERROR(VLOOKUP(A79,Лист1!A:J,3,0),"") -> 0.55 | D79: 26.17 | E79: =IFERROR(VLOOKUP(A79,Лист1!A:J,5,0),"") -> 1 | F79: =IFERROR(VLOOKUP(A79,Лист1!A:J,6,0),"") -> шт. | G79: =IFERROR(VLOOKUP(A79,Лист1!A:J,7,0),"") -> 4 | H79: =IFERROR(VLOOKUP(A79,Лист1!A:J,8,0),"") -> LFS | I79: =IFERROR(VLOOKUP(A79,Лист1!A:J,9,0),"") -> 06100 | J79: https://www.obo.global/search/?searchparam=6154255 | K79: =IFERROR(VLOOKUP(A79,Лист1!A:K,10,0),"") -> https://www.obo.global/search/?searchparam=6154255
A80: 6154166 | B80: =IFERROR(VLOOKUP(A80,Лист1!A:J,2,0),"") -> Кришка Т-секції кабель-канала 50х20 / ПВХ | C80: =IFERROR(VLOOKUP(A80,Лист1!A:J,3,0),"") -> 0.55 | D80: 26.17 | E80: =IFERROR(VLOOKUP(A80,Лист1!A:J,5,0),"") -> 1 | F80: =IFERROR(VLOOKUP(A80,Лист1!A:J,6,0),"") -> шт. | G80: =IFERROR(VLOOKUP(A80,Лист1!A:J,7,0),"") -> 4 | H80: =IFERROR(VLOOKUP(A80,Лист1!A:J,8,0),"") -> LFS | I80: =IFERROR(VLOOKUP(A80,Лист1!A:J,9,0),"") -> 06100 | J80: https://www.obo.global/search/?searchparam=6154166 | K80: =IFERROR(VLOOKUP(A80,Лист1!A:K,10,0),"") -> https://www.obo.global/search/?searchparam=6154166
A81: 6154069 | B81: =IFERROR(VLOOKUP(A81,Лист1!A:J,2,0),"") -> Накладка на стик 50х20 / ПВХ | C81: =IFERROR(VLOOKUP(A81,Лист1!A:J,3,0),"") -> 0.28 | D81: 13.33 | E81: =IFERROR(VLOOKUP(A81,Лист1!A:J,5,0),"") -> 1 | F81: =IFERROR(VLOOKUP(A81,Лист1!A:J,6,0),"") -> шт. | G81: =IFERROR(VLOOKUP(A81,Лист1!A:J,7,0),"") -> 10 | H81: =IFERROR(VLOOKUP(A81,Лист1!A:J,8,0),"") -> LFS | I81: =IFERROR(VLOOKUP(A81,Лист1!A:J,9,0),"") -> 06100 | J81: https://www.obo.global/search/?searchparam=6154069 | K81: =IFERROR(VLOOKUP(A81,Лист1!A:K,10,0),"") -> https://www.obo.global/search/?searchparam=6154069
A82: Кабель-канал 60 x 40 | C82: =IFERROR(VLOOKUP(A82,Лист1!A:J,3,0),"") ->  | E82: =IFERROR(VLOOKUP(A82,Лист1!A:J,5,0),"") ->  | F82: =IFERROR(VLOOKUP(A82,Лист1!A:J,6,0),"") ->  | G82: =IFERROR(VLOOKUP(A82,Лист1!A:J,7,0),"") ->  | H82: =IFERROR(VLOOKUP(A82,Лист1!A:J,8,0),"") ->  | I82: =IFERROR(VLOOKUP(A82,Лист1!A:J,9,0),"") ->  | K82: =IFERROR(VLOOKUP(A82,Лист1!A:K,10,0),"") -> 
A83: 6191134 | B83: =IFERROR(VLOOKUP(A83,Лист1!A:J,2,0),"") -> Кабель-канал 60x40 / ПВХ | C83: =IFERROR(VLOOKUP(A83,Лист1!A:J,3,0),"") -> 3.3 | D83: 157.05 | E83: =IFERROR(VLOOKUP(A83,Лист1!A:J,5,0),"") -> 1 | F83: =IFERROR(VLOOKUP(A83,Лист1!A:J,6,0),"") -> м | G83: =IFERROR(VLOOKUP(A83,Лист1!A:J,7,0),"") -> 32 | H83: =IFERROR(VLOOKUP(A83,Лист1!A:J,8,0),"") -> LFS | I83: =IFERROR(VLOOKUP(A83,Лист1!A:J,9,0),"") -> 06100 | J83: https://www.obo.global/search/?searchparam=6191134 | K83: =IFERROR(VLOOKUP(A83,Лист1!A:K,10,0),"") -> https://www.obo.global/search/?searchparam=6191134
A84: 6025638 | B84: =IFERROR(VLOOKUP(A84,Лист1!A:J,2,0),"") -> Кабель-канал 60x40 / ПВХ, чорний RAL 9005 | C84: =IFERROR(VLOOKUP(A84,Лист1!A:J,3,0),"") -> 3.49 | D84: 166.09 | E84: =IFERROR(VLOOKUP(A84,Лист1!A:J,5,0),"") -> 1 | F84: =IFERROR(VLOOKUP(A84,Лист1!A:J,6,0),"") -> м | G84: =IFERROR(VLOOKUP(A84,Лист1!A:J,7,0),"") -> 32 | H84: =IFERROR(VLOOKUP(A84,Лист1!A:J,8,0),"") -> LFS | I84: =IFERROR(VLOOKUP(A84,Лист1!A:J,9,0),"") -> 06100 | J84: https://www.obo.global/products/building-installations/cable-routing-systems/cable-trunking/cable-routing-trunking/wdk-trunking/trunking-type-wdk-40060.html#!searchresult-0 | K84: =IFERROR(VLOOKUP(A84,Лист1!A:K,10,0),"") -> https://www.obo.global/products/building-installations/cable-routing-systems/cable-trunking/cable-routing-trunking/wdk-trunking/trunking-type-wdk-40060.html#!searchresult-0
A85: 6193226 | B85: =IFERROR(VLOOKUP(A85,Лист1!A:J,2,0),"") -> Заглушка кабель-канала 60x40 / ПВХ | C85: =IFERROR(VLOOKUP(A85,Лист1!A:J,3,0),"") -> 0.6 | D85: 28.55 | E85: =IFERROR(VLOOKUP(A85,Лист1!A:J,5,0),"") -> 1 | F85: =IFERROR(VLOOKUP(A85,Лист1!A:J,6,0),"") -> шт. | G85: =IFERROR(VLOOKUP(A85,Лист1!A:J,7,0),"") -> 10 | H85: =IFERROR(VLOOKUP(A85,Лист1!A:J,8,0),"") -> LFS | I85: =IFERROR(VLOOKUP(A85,Лист1!A:J,9,0),"") -> 06100 | J85: https://www.obo.global/products/building-installations/electrical-installation-ducts-and-trunking/fittings-cable-trunking/end-pieces/end-piece-trunking-type-wdk-40060.html | K85: =IFERROR(VLOOKUP(A85,Лист1!A:K,10,0),"") -> https://www.obo.global/products/building-installations/electrical-installation-ducts-and-trunking/fittings-cable-trunking/end-pieces/end-piece-trunking-type-wdk-40060.html
A86: 6191959 | B86: =IFERROR(VLOOKUP(A86,Лист1!A:J,2,0),"") -> Внутрішній кут кабель-канала 60x40 / ПВХ | C86: =IFERROR(VLOOKUP(A86,Лист1!A:J,3,0),"") -> 1.42 | D86: 67.58 | E86: =IFERROR(VLOOKUP(A86,Лист1!A:J,5,0),"") -> 1 | F86: =IFERROR(VLOOKUP(A86,Лист1!A:J,6,0),"") -> шт. | G86: =IFERROR(VLOOKUP(A86,Лист1!A:J,7,0),"") -> 2 | H86: =IFERROR(VLOOKUP(A86,Лист1!A:J,8,0),"") -> LFS | I86: =IFERROR(VLOOKUP(A86,Лист1!A:J,9,0),"") -> 06100 | J86: https://www.obo.global/products/building-installations/electrical-installation-ducts-and-trunking/fittings-cable-trunking/internal-corner-trunking/internal-corner-cover-trunking-type-wdk-40060.html | K86: =IFERROR(VLOOKUP(A86,Лист1!A:K,10,0),"") -> https://www.obo.global/products/building-installations/electrical-installation-ducts-and-trunking/fittings-cable-trunking/internal-corner-trunking/internal-corner-cover-trunking-type-wdk-40060.html
A87: 6192254 | B87: =IFERROR(VLOOKUP(A87,Лист1!A:J,2,0),"") -> Зовнішній кут кабель-канала 60x40 / ПВХ | C87: =IFERROR(VLOOKUP(A87,Лист1!A:J,3,0),"") -> 1.42 | D87: 67.58 | E87: =IFERROR(VLOOKUP(A87,Лист1!A:J,5,0),"") -> 1 | F87: =IFERROR(VLOOKUP(A87,Лист1!A:J,6,0),"") -> шт. | G87: =IFERROR(VLOOKUP(A87,Лист1!A:J,7,0),"") -> 2 | H87: =IFERROR(VLOOKUP(A87,Лист1!A:J,8,0),"") -> LFS | I87: =IFERROR(VLOOKUP(A87,Лист1!A:J,9,0),"") -> 06100 | J87: https://www.obo.global/search/?searchparam=6192254 | K87: =IFERROR(VLOOKUP(A87,Лист1!A:K,10,0),"") -> https://www.obo.global/search/?searchparam=6192254
A88: 6192858 | B88: =IFERROR(VLOOKUP(A88,Лист1!A:J,2,0),"") -> Кришка плоского кута кабель-канала 60x40 / ПВХ | C88: =IFERROR(VLOOKUP(A88,Лист1!A:J,3,0),"") -> 1.61 | D88: 76.62 | E88: =IFERROR(VLOOKUP(A88,Лист1!A:J,5,0),"") -> 1 | F88: =IFERROR(VLOOKUP(A88,Лист1!A:J,6,0),"") -> шт. | G88: =IFERROR(VLOOKUP(A88,Лист1!A:J,7,0),"") -> 2 | H88: =IFERROR(VLOOKUP(A88,Лист1!A:J,8,0),"") -> LFS | I88: =IFERROR(VLOOKUP(A88,Лист1!A:J,9,0),"") -> 06100 | J88: https://www.obo.global/search/?searchparam=6192858 | K88: =IFERROR(VLOOKUP(A88,Лист1!A:K,10,0),"") -> https://www.obo.global/search/?searchparam=6192858
A89: 6192556 | B89: =IFERROR(VLOOKUP(A89,Лист1!A:J,2,0),"") -> Кришка Т-секції / з'еднання кабель-канала 60x40 / ПВХ | C89: =IFERROR(VLOOKUP(A89,Лист1!A:J,3,0),"") -> 1.18 | D89: 56.16 | E89: =IFERROR(VLOOKUP(A89,Лист1!A:J,5,0),"") -> 1 | F89: =IFERROR(VLOOKUP(A89,Лист1!A:J,6,0),"") -> шт. | G89: =IFERROR(VLOOKUP(A89,Лист1!A:J,7,0),"") -> 2 | H89: =IFERROR(VLOOKUP(A89,Лист1!A:J,8,0),"") -> LFS | I89: =IFERROR(VLOOKUP(A89,Лист1!A:J,9,0),"") -> 06100 | J89: https://www.obo.global/search/?searchparam=6192556 | K89: =IFERROR(VLOOKUP(A89,Лист1!A:K,10,0),"") -> https://www.obo.global/search/?searchparam=6192556
A90: Кабель-канал 60 x 60 | C90: =IFERROR(VLOOKUP(A90,Лист1!A:J,3,0),"") ->  | E90: =IFERROR(VLOOKUP(A90,Лист1!A:J,5,0),"") ->  | F90: =IFERROR(VLOOKUP(A90,Лист1!A:J,6,0),"") ->  | G90: =IFERROR(VLOOKUP(A90,Лист1!A:J,7,0),"") ->  | H90: =IFERROR(VLOOKUP(A90,Лист1!A:J,8,0),"") ->  | I90: =IFERROR(VLOOKUP(A90,Лист1!A:J,9,0),"") ->  | K90: =IFERROR(VLOOKUP(A90,Лист1!A:K,10,0),"") -> 
A91: 6191193 | B91: =IFERROR(VLOOKUP(A91,Лист1!A:J,2,0),"") -> Кабель-канал 60x60 / ПВХ | C91: =IFERROR(VLOOKUP(A91,Лист1!A:J,3,0),"") -> 4.29 | D91: 204.16 | E91: =IFERROR(VLOOKUP(A91,Лист1!A:J,5,0),"") -> 1 | F91: =IFERROR(VLOOKUP(A91,Лист1!A:J,6,0),"") -> м | G91: =IFERROR(VLOOKUP(A91,Лист1!A:J,7,0),"") -> 32 | H91: =IFERROR(VLOOKUP(A91,Лист1!A:J,8,0),"") -> LFS | I91: =IFERROR(VLOOKUP(A91,Лист1!A:J,9,0),"") -> 06100 | J91: https://www.obo.global/search/?searchparam=6191193 | K91: =IFERROR(VLOOKUP(A91,Лист1!A:K,10,0),"") -> https://www.obo.global/search/?searchparam=6191193
A92: 6193285 | B92: =IFERROR(VLOOKUP(A92,Лист1!A:J,2,0),"") -> Заглушка кабель-канала 60x60 / ПВХ | C92: =IFERROR(VLOOKUP(A92,Лист1!A:J,3,0),"") -> 0.66 | D92: 31.41 | E92: =IFERROR(VLOOKUP(A92,Лист1!A:J,5,0),"") -> 1 | F92: =IFERROR(VLOOKUP(A92,Лист1!A:J,6,0),"") -> шт. | G92: =IFERROR(VLOOKUP(A92,Лист1!A:J,7,0),"") -> 10 | H92: =IFERROR(VLOOKUP(A92,Лист1!A:J,8,0),"") -> LFS | I92: =IFERROR(VLOOKUP(A92,Лист1!A:J,9,0),"") -> 06100 | J92: https://www.obo.global/search/?searchparam=6193285 | K92: =IFERROR(VLOOKUP(A92,Лист1!A:K,10,0),"") -> https://www.obo.global/search/?searchparam=6193285
A93: 6192017 | B93: =IFERROR(VLOOKUP(A93,Лист1!A:J,2,0),"") -> Внутрішній кут кабель-канала 60x60 / ПВХ | C93: =IFERROR(VLOOKUP(A93,Лист1!A:J,3,0),"") -> 2.12 | D93: 100.89 | E93: =IFERROR(VLOOKUP(A93,Лист1!A:J,5,0),"") -> 1 | F93: =IFERROR(VLOOKUP(A93,Лист1!A:J,6,0),"") -> шт. | G93: =IFERROR(VLOOKUP(A93,Лист1!A:J,7,0),"") -> 2 | H93: =IFERROR(VLOOKUP(A93,Лист1!A:J,8,0),"") -> LFS | I93: =IFERROR(VLOOKUP(A93,Лист1!A:J,9,0),"") -> 06100 | J93: https://www.obo.global/products/building-installations/electrical-installation-ducts-and-trunking/fittings-cable-trunking/internal-corner-trunking/internal-corner-cover-trunking-type-wdk-60060.html | K93: =IFERROR(VLOOKUP(A93,Лист1!A:K,10,0),"") -> https://www.obo.global/products/building-installations/electrical-installation-ducts-and-trunking/fittings-cable-trunking/internal-corner-trunking/internal-corner-cover-trunking-type-wdk-60060.html
A94: 6192319 | B94: =IFERROR(VLOOKUP(A94,Лист1!A:J,2,0),"") -> Зовнішній кут кабель-канала 60x60 / ПВХ | C94: =IFERROR(VLOOKUP(A94,Лист1!A:J,3,0),"") -> 2.12 | D94: 100.89 | E94: =IFERROR(VLOOKUP(A94,Лист1!A:J,5,0),"") -> 1 | F94: =IFERROR(VLOOKUP(A94,Лист1!A:J,6,0),"") -> шт. | G94: =IFERROR(VLOOKUP(A94,Лист1!A:J,7,0),"") -> 2 | H94: =IFERROR(VLOOKUP(A94,Лист1!A:J,8,0),"") -> LFS | I94: =IFERROR(VLOOKUP(A94,Лист1!A:J,9,0),"") -> 06100 | J94: https://www.obo.global/search/?searchparam=6192319 | K94: =IFERROR(VLOOKUP(A94,Лист1!A:K,10,0),"") -> https://www.obo.global/search/?searchparam=6192319
A95: 6192610 | B95: =IFERROR(VLOOKUP(A95,Лист1!A:J,2,0),"") -> Кришка Т-секції / з'еднання кабель-канала 60x60 / ПВХ | C95: =IFERROR(VLOOKUP(A95,Лист1!A:J,3,0),"") -> 2.12 | D95: 100.89 | E95: =IFERROR(VLOOKUP(A95,Лист1!A:J,5,0),"") -> 1 | F95: =IFERROR(VLOOKUP(A95,Лист1!A:J,6,0),"") -> шт. | G95: =IFERROR(VLOOKUP(A95,Лист1!A:J,7,0),"") -> 2 | H95: =IFERROR(VLOOKUP(A95,Лист1!A:J,8,0),"") -> LFS | I95: =IFERROR(VLOOKUP(A95,Лист1!A:J,9,0),"") -> 06100 | J95: https://www.obo.global/search/?searchparam=6192610 | K95: =IFERROR(VLOOKUP(A95,Лист1!A:K,10,0),"") -> https://www.obo.global/search/?searchparam=6192610
A96: 6192912 | B96: =IFERROR(VLOOKUP(A96,Лист1!A:J,2,0),"") -> Кришка плоского кута кабель-канала 60x60 / ПВХ | C96: =IFERROR(VLOOKUP(A96,Лист1!A:J,3,0),"") -> 1.78 | D96: 84.71 | E96: =IFERROR(VLOOKUP(A96,Лист1!A:J,5,0),"") -> 1 | F96: =IFERROR(VLOOKUP(A96,Лист1!A:J,6,0),"") -> шт. | G96: =IFERROR(VLOOKUP(A96,Лист1!A:J,7,0),"") -> 2 | H96: =IFERROR(VLOOKUP(A96,Лист1!A:J,8,0),"") -> LFS | I96: =IFERROR(VLOOKUP(A96,Лист1!A:J,9,0),"") -> 06100 | J96: https://www.obo.global/search/?searchparam=6192912 | K96: =IFERROR(VLOOKUP(A96,Лист1!A:K,10,0),"") -> https://www.obo.global/search/?searchparam=6192912
A97: 6023118 | B97: =IFERROR(VLOOKUP(A97,Лист1!A:J,2,0),"") -> Перегородка внутрішня кабельного каналу H=60mm / ПВХ | C97: =IFERROR(VLOOKUP(A97,Лист1!A:J,3,0),"") -> 1.33 | D97: 63.29 | E97: =IFERROR(VLOOKUP(A97,Лист1!A:J,5,0),"") -> 1 | F97: =IFERROR(VLOOKUP(A97,Лист1!A:J,6,0),"") -> м | G97: =IFERROR(VLOOKUP(A97,Лист1!A:J,7,0),"") -> 40 | H97: =IFERROR(VLOOKUP(A97,Лист1!A:J,8,0),"") -> LFS | I97: =IFERROR(VLOOKUP(A97,Лист1!A:J,9,0),"") -> 06100 | J97: https://www.obo.global/search/?searchparam=6023118 | K97: =IFERROR(VLOOKUP(A97,Лист1!A:K,10,0),"") -> https://www.obo.global/search/?searchparam=6023118
A98: Кабель-канал 90 x 40 | C98: =IFERROR(VLOOKUP(A98,Лист1!A:J,3,0),"") ->  | E98: =IFERROR(VLOOKUP(A98,Лист1!A:J,5,0),"") ->  | F98: =IFERROR(VLOOKUP(A98,Лист1!A:J,6,0),"") ->  | G98: =IFERROR(VLOOKUP(A98,Лист1!A:J,7,0),"") ->  | H98: =IFERROR(VLOOKUP(A98,Лист1!A:J,8,0),"") ->  | I98: =IFERROR(VLOOKUP(A98,Лист1!A:J,9,0),"") ->  | K98: =IFERROR(VLOOKUP(A98,Лист1!A:K,10,0),"") -> 
A99: 6191142 | B99: =IFERROR(VLOOKUP(A99,Лист1!A:J,2,0),"") -> Кабель-канал 90x40 / ПВХ | C99: =IFERROR(VLOOKUP(A99,Лист1!A:J,3,0),"") -> 4.92 | D99: 234.14 | E99: =IFERROR(VLOOKUP(A99,Лист1!A:J,5,0),"") -> 1 | F99: =IFERROR(VLOOKUP(A99,Лист1!A:J,6,0),"") -> м | G99: =IFERROR(VLOOKUP(A99,Лист1!A:J,7,0),"") -> 32 | H99: =IFERROR(VLOOKUP(A99,Лист1!A:J,8,0),"") -> LFS | I99: =IFERROR(VLOOKUP(A99,Лист1!A:J,9,0),"") -> 06100 | J99: https://www.obo.global/products/building-installations/electrical-installation-ducts-and-trunking/cable-routing-trunking/wdk-trunking/trunking-type-wdk-40090.html | K99: =IFERROR(VLOOKUP(A99,Лист1!A:K,10,0),"") -> https://www.obo.global/products/building-installations/electrical-installation-ducts-and-trunking/cable-routing-trunking/wdk-trunking/trunking-type-wdk-40090.html
A100: 6021023 | B100: =IFERROR(VLOOKUP(A100,Лист1!A:J,2,0),"") -> Кабель-канал 90x40 / ПВХ, чорний RAL 9005 | C100: =IFERROR(VLOOKUP(A100,Лист1!A:J,3,0),"") -> 5.89 | D100: 280.3 | E100: =IFERROR(VLOOKUP(A100,Лист1!A:J,5,0),"") -> 1 | F100: =IFERROR(VLOOKUP(A100,Лист1!A:J,6,0),"") -> м | G100: =IFERROR(VLOOKUP(A100,Лист1!A:J,7,0),"") -> 32 | H100: =IFERROR(VLOOKUP(A100,Лист1!A:J,8,0),"") -> LFS | I100: =IFERROR(VLOOKUP(A100,Лист1!A:J,9,0),"") -> 06100 | J100: https://www.obo.global/products/building-installations/cable-routing-systems/cable-trunking/cable-routing-trunking/wdk-trunking/trunking-type-wdk-40090.html#!searchresult-0 | K100: =IFERROR(VLOOKUP(A100,Лист1!A:K,10,0),"") -> https://www.obo.global/products/building-installations/cable-routing-systems/cable-trunking/cable-routing-trunking/wdk-trunking/trunking-type-wdk-40090.html#!searchresult-0
A101: 6193234 | B101: =IFERROR(VLOOKUP(A101,Лист1!A:J,2,0),"") -> Заглушка кабель-канала 90x40 / ПВХ | C101: =IFERROR(VLOOKUP(A101,Лист1!A:J,3,0),"") -> 0.78 | D101: 37.12 | E101: =IFERROR(VLOOKUP(A101,Лист1!A:J,5,0),"") -> 1 | F101: =IFERROR(VLOOKUP(A101,Лист1!A:J,6,0),"") -> шт. | G101: =IFERROR(VLOOKUP(A101,Лист1!A:J,7,0),"") -> 10 | H101: =IFERROR(VLOOKUP(A101,Лист1!A:J,8,0),"") -> LFS | I101: =IFERROR(VLOOKUP(A101,Лист1!A:J,9,0),"") -> 06100 | J101: https://www.obo.global/products/building-installations/electrical-installation-ducts-and-trunking/fittings-cable-trunking/end-pieces/end-piece-trunking-type-wdk-40090.html | K101: =IFERROR(VLOOKUP(A101,Лист1!A:K,10,0),"") -> https://www.obo.global/products/building-installations/electrical-installation-ducts-and-trunking/fittings-cable-trunking/end-pieces/end-piece-trunking-type-wdk-40090.html
A102: 6191967 | B102: =IFERROR(VLOOKUP(A102,Лист1!A:J,2,0),"") -> Внутрішній кут кабель-канала 90x40 / ПВХ | C102: =IFERROR(VLOOKUP(A102,Лист1!A:J,3,0),"") -> 1.91 | D102: 90.9 | E102: =IFERROR(VLOOKUP(A102,Лист1!A:J,5,0),"") -> 1 | F102: =IFERROR(VLOOKUP(A102,Лист1!A:J,6,0),"") -> шт. | G102: =IFERROR(VLOOKUP(A102,Лист1!A:J,7,0),"") -> 2 | H102: =IFERROR(VLOOKUP(A102,Лист1!A:J,8,0),"") -> LFS | I102: =IFERROR(VLOOKUP(A102,Лист1!A:J,9,0),"") -> 06100 | J102: https://www.obo.global/products/building-installations/electrical-installation-ducts-and-trunking/fittings-cable-trunking/internal-corner-trunking/internal-corner-cover-trunking-type-wdk-40090.html | K102: =IFERROR(VLOOKUP(A102,Лист1!A:K,10,0),"") -> https://www.obo.global/products/building-installations/electrical-installation-ducts-and-trunking/fittings-cable-trunking/internal-corner-trunking/internal-corner-cover-trunking-type-wdk-40090.html
A103: 6192262 | B103: =IFERROR(VLOOKUP(A103,Лист1!A:J,2,0),"") -> Зовнішній кут кабель-канала 90x40 / ПВХ | C103: =IFERROR(VLOOKUP(A103,Лист1!A:J,3,0),"") -> 1.91 | D103: 90.9 | E103: =IFERROR(VLOOKUP(A103,Лист1!A:J,5,0),"") -> 1 | F103: =IFERROR(VLOOKUP(A103,Лист1!A:J,6,0),"") -> шт. | G103: =IFERROR(VLOOKUP(A103,Лист1!A:J,7,0),"") -> 2 | H103: =IFERROR(VLOOKUP(A103,Лист1!A:J,8,0),"") -> LFS | I103: =IFERROR(VLOOKUP(A103,Лист1!A:J,9,0),"") -> 06100 | J103: https://www.obo.global/search/?searchparam=6192262 | K103: =IFERROR(VLOOKUP(A103,Лист1!A:K,10,0),"") -> https://www.obo.global/search/?searchparam=6192262
A104: 6192866 | B104: =IFERROR(VLOOKUP(A104,Лист1!A:J,2,0),"") -> Кришка плоского кута кабель-канала 90x40 / ПВХ | C104: =IFERROR(VLOOKUP(A104,Лист1!A:J,3,0),"") -> 2.08 | D104: 98.99 | E104: =IFERROR(VLOOKUP(A104,Лист1!A:J,5,0),"") -> 1 | F104: =IFERROR(VLOOKUP(A104,Лист1!A:J,6,0),"") -> шт. | G104: =IFERROR(VLOOKUP(A104,Лист1!A:J,7,0),"") -> 2 | H104: =IFERROR(VLOOKUP(A104,Лист1!A:J,8,0),"") -> LFS | I104: =IFERROR(VLOOKUP(A104,Лист1!A:J,9,0),"") -> 06100 | J104: https://www.obo.global/search/?searchparam=6192866 | K104: =IFERROR(VLOOKUP(A104,Лист1!A:K,10,0),"") -> https://www.obo.global/search/?searchparam=6192866
A105: 6192564 | B105: =IFERROR(VLOOKUP(A105,Лист1!A:J,2,0),"") -> Кришка Т-секції кабель-канала 90x40 / ПВХ | C105: =IFERROR(VLOOKUP(A105,Лист1!A:J,3,0),"") -> 1.83 | D105: 87.09 | E105: =IFERROR(VLOOKUP(A105,Лист1!A:J,5,0),"") -> 1 | F105: =IFERROR(VLOOKUP(A105,Лист1!A:J,6,0),"") -> шт. | G105: =IFERROR(VLOOKUP(A105,Лист1!A:J,7,0),"") -> 2 | H105: =IFERROR(VLOOKUP(A105,Лист1!A:J,8,0),"") -> LFS | I105: =IFERROR(VLOOKUP(A105,Лист1!A:J,9,0),"") -> 06100 | J105: https://www.obo.global/search/?searchparam=6192564 | K105: =IFERROR(VLOOKUP(A105,Лист1!A:K,10,0),"") -> https://www.obo.global/search/?searchparam=6192564
A106: 6193580 | B106: =IFERROR(VLOOKUP(A106,Лист1!A:J,2,0),"") -> З'еднання кабель-канала 90х40 / ПВХ | C106: =IFERROR(VLOOKUP(A106,Лист1!A:J,3,0),"") -> 0.54 | D106: 25.7 | E106: =IFERROR(VLOOKUP(A106,Лист1!A:J,5,0),"") -> 1 | F106: =IFERROR(VLOOKUP(A106,Лист1!A:J,6,0),"") -> шт. | G106: =IFERROR(VLOOKUP(A106,Лист1!A:J,7,0),"") -> 20 | H106: =IFERROR(VLOOKUP(A106,Лист1!A:J,8,0),"") -> LFS | I106: =IFERROR(VLOOKUP(A106,Лист1!A:J,9,0),"") -> 06100 | J106: https://www.obo.global/search/?searchparam=6193580 | K106: =IFERROR(VLOOKUP(A106,Лист1!A:K,10,0),"") -> https://www.obo.global/search/?searchparam=6193580
A107: Кабель-канал 110 x 40 | C107: =IFERROR(VLOOKUP(A107,Лист1!A:J,3,0),"") ->  | E107: =IFERROR(VLOOKUP(A107,Лист1!A:J,5,0),"") ->  | F107: =IFERROR(VLOOKUP(A107,Лист1!A:J,6,0),"") ->  | G107: =IFERROR(VLOOKUP(A107,Лист1!A:J,7,0),"") ->  | H107: =IFERROR(VLOOKUP(A107,Лист1!A:J,8,0),"") ->  | I107: =IFERROR(VLOOKUP(A107,Лист1!A:J,9,0),"") ->  | K107: =IFERROR(VLOOKUP(A107,Лист1!A:K,10,0),"") -> 
A108: 6191150 | B108: =IFERROR(VLOOKUP(A108,Лист1!A:J,2,0),"") -> Кабель-канал 110х40 / ПВХ | C108: =IFERROR(VLOOKUP(A108,Лист1!A:J,3,0),"") -> 5.49 | D108: 261.27 | E108: =IFERROR(VLOOKUP(A108,Лист1!A:J,5,0),"") -> 1 | F108: =IFERROR(VLOOKUP(A108,Лист1!A:J,6,0),"") -> м | G108: =IFERROR(VLOOKUP(A108,Лист1!A:J,7,0),"") -> 24 | H108: =IFERROR(VLOOKUP(A108,Лист1!A:J,8,0),"") -> LFS | I108: =IFERROR(VLOOKUP(A108,Лист1!A:J,9,0),"") -> 06100 | J108: https://www.obo.global/products/building-installations/electrical-installation-ducts-and-trunking/cable-routing-trunking/wdk-trunking/trunking-type-wdk-40110.html | K108: =IFERROR(VLOOKUP(A108,Лист1!A:K,10,0),"") -> https://www.obo.global/products/building-installations/electrical-installation-ducts-and-trunking/cable-routing-trunking/wdk-trunking/trunking-type-wdk-40110.html
A109: 6193242 | B109: =IFERROR(VLOOKUP(A109,Лист1!A:J,2,0),"") -> Заглушка кабель-канала 110х40 / ПВХ | C109: =IFERROR(VLOOKUP(A109,Лист1!A:J,3,0),"") -> 0.88 | D109: 41.88 | E109: =IFERROR(VLOOKUP(A109,Лист1!A:J,5,0),"") -> 1 | F109: =IFERROR(VLOOKUP(A109,Лист1!A:J,6,0),"") -> шт. | G109: =IFERROR(VLOOKUP(A109,Лист1!A:J,7,0),"") -> 10 | H109: =IFERROR(VLOOKUP(A109,Лист1!A:J,8,0),"") -> LFS | I109: =IFERROR(VLOOKUP(A109,Лист1!A:J,9,0),"") -> 06100 | J109: https://www.obo.global/products/building-installations/electrical-installation-ducts-and-trunking/fittings-cable-trunking/end-pieces/end-piece-trunking-type-wdk-40110.html | K109: =IFERROR(VLOOKUP(A109,Лист1!A:K,10,0),"") -> https://www.obo.global/products/building-installations/electrical-installation-ducts-and-trunking/fittings-cable-trunking/end-pieces/end-piece-trunking-type-wdk-40110.html
A110: 6191975 | B110: =IFERROR(VLOOKUP(A110,Лист1!A:J,2,0),"") -> Внутрішній кут кабель-канала 110х40 / ПВХ | C110: =IFERROR(VLOOKUP(A110,Лист1!A:J,3,0),"") -> 2.15 | D110: 102.32 | E110: =IFERROR(VLOOKUP(A110,Лист1!A:J,5,0),"") -> 1 | F110: =IFERROR(VLOOKUP(A110,Лист1!A:J,6,0),"") -> шт. | G110: =IFERROR(VLOOKUP(A110,Лист1!A:J,7,0),"") -> 2 | H110: =IFERROR(VLOOKUP(A110,Лист1!A:J,8,0),"") -> LFS | I110: =IFERROR(VLOOKUP(A110,Лист1!A:J,9,0),"") -> 06100 | J110: https://www.obo.global/products/building-installations/electrical-installation-ducts-and-trunking/fittings-cable-trunking/internal-corner-trunking/internal-corner-cover-trunking-type-wdk-40110.html | K110: =IFERROR(VLOOKUP(A110,Лист1!A:K,10,0),"") -> https://www.obo.global/products/building-installations/electrical-installation-ducts-and-trunking/fittings-cable-trunking/internal-corner-trunking/internal-corner-cover-trunking-type-wdk-40110.html
A111: 6192270 | B111: =IFERROR(VLOOKUP(A111,Лист1!A:J,2,0),"") -> Зовнішній кут кабель-канала 110х40 / ПВХ | C111: =IFERROR(VLOOKUP(A111,Лист1!A:J,3,0),"") -> 2.38 | D111: 113.26 | E111: =IFERROR(VLOOKUP(A111,Лист1!A:J,5,0),"") -> 1 | F111: =IFERROR(VLOOKUP(A111,Лист1!A:J,6,0),"") -> шт. | G111: =IFERROR(VLOOKUP(A111,Лист1!A:J,7,0),"") -> 2 | H111: =IFERROR(VLOOKUP(A111,Лист1!A:J,8,0),"") -> LFS | I111: =IFERROR(VLOOKUP(A111,Лист1!A:J,9,0),"") -> 06100 | J111: https://www.obo.global/search/?searchparam=6192270 | K111: =IFERROR(VLOOKUP(A111,Лист1!A:K,10,0),"") -> https://www.obo.global/search/?searchparam=6192270
A112: 6192874 | B112: =IFERROR(VLOOKUP(A112,Лист1!A:J,2,0),"") -> Кришка плоского кута кабель-канала 110х40 / ПВХ | C112: =IFERROR(VLOOKUP(A112,Лист1!A:J,3,0),"") -> 2.46 | D112: 117.07 | E112: =IFERROR(VLOOKUP(A112,Лист1!A:J,5,0),"") -> 1 | F112: =IFERROR(VLOOKUP(A112,Лист1!A:J,6,0),"") -> шт. | G112: =IFERROR(VLOOKUP(A112,Лист1!A:J,7,0),"") -> 2 | H112: =IFERROR(VLOOKUP(A112,Лист1!A:J,8,0),"") -> LFS | I112: =IFERROR(VLOOKUP(A112,Лист1!A:J,9,0),"") -> 06100 | J112: https://www.obo.global/search/?searchparam=6192874 | K112: =IFERROR(VLOOKUP(A112,Лист1!A:K,10,0),"") -> https://www.obo.global/search/?searchparam=6192874
A113: 6192572 | B113: =IFERROR(VLOOKUP(A113,Лист1!A:J,2,0),"") -> Кришка Т-секції кабель-канала 110х40 / ПВХ | C113: =IFERROR(VLOOKUP(A113,Лист1!A:J,3,0),"") -> 2.46 | D113: 117.07 | E113: =IFERROR(VLOOKUP(A113,Лист1!A:J,5,0),"") -> 1 | F113: =IFERROR(VLOOKUP(A113,Лист1!A:J,6,0),"") -> шт. | G113: =IFERROR(VLOOKUP(A113,Лист1!A:J,7,0),"") -> 2 | H113: =IFERROR(VLOOKUP(A113,Лист1!A:J,8,0),"") -> LFS | I113: =IFERROR(VLOOKUP(A113,Лист1!A:J,9,0),"") -> 06100 | J113: https://www.obo.global/search/?searchparam=6192572 | K113: =IFERROR(VLOOKUP(A113,Лист1!A:K,10,0),"") -> https://www.obo.global/search/?searchparam=6192572
A114: 6193586 | B114: =IFERROR(VLOOKUP(A114,Лист1!A:J,2,0),"") -> З'еднання кабель-канала 110х40 / ПВХ | C114: =IFERROR(VLOOKUP(A114,Лист1!A:J,3,0),"") -> 0.63 | D114: 29.98 | E114: =IFERROR(VLOOKUP(A114,Лист1!A:J,5,0),"") -> 1 | F114: =IFERROR(VLOOKUP(A114,Лист1!A:J,6,0),"") -> шт. | G114: =IFERROR(VLOOKUP(A114,Лист1!A:J,7,0),"") -> 20 | H114: =IFERROR(VLOOKUP(A114,Лист1!A:J,8,0),"") -> LFS | I114: =IFERROR(VLOOKUP(A114,Лист1!A:J,9,0),"") -> 06100 | J114: https://www.obo.global/search/?searchparam=6193586 | K114: =IFERROR(VLOOKUP(A114,Лист1!A:K,10,0),"") -> https://www.obo.global/search/?searchparam=6193586
A115: Кабель-канал 110 x 60 | C115: =IFERROR(VLOOKUP(A115,Лист1!A:J,3,0),"") ->  | E115: =IFERROR(VLOOKUP(A115,Лист1!A:J,5,0),"") ->  | F115: =IFERROR(VLOOKUP(A115,Лист1!A:J,6,0),"") ->  | G115: =IFERROR(VLOOKUP(A115,Лист1!A:J,7,0),"") ->  | H115: =IFERROR(VLOOKUP(A115,Лист1!A:J,8,0),"") ->  | I115: =IFERROR(VLOOKUP(A115,Лист1!A:J,9,0),"") ->  | K115: =IFERROR(VLOOKUP(A115,Лист1!A:K,10,0),"") -> 
A116: 6191215 | B116: =IFERROR(VLOOKUP(A116,Лист1!A:J,2,0),"") -> Кабель-канал 110х60 / ПВХ | C116: =IFERROR(VLOOKUP(A116,Лист1!A:J,3,0),"") -> 6.03 | D116: 286.97 | E116: =IFERROR(VLOOKUP(A116,Лист1!A:J,5,0),"") -> 1 | F116: =IFERROR(VLOOKUP(A116,Лист1!A:J,6,0),"") -> м | G116: =IFERROR(VLOOKUP(A116,Лист1!A:J,7,0),"") -> 16 | H116: =IFERROR(VLOOKUP(A116,Лист1!A:J,8,0),"") -> LFS | I116: =IFERROR(VLOOKUP(A116,Лист1!A:J,9,0),"") -> 06100 | J116: https://www.obo.global/search/?searchparam=6191215 | K116: =IFERROR(VLOOKUP(A116,Лист1!A:K,10,0),"") -> https://www.obo.global/search/?searchparam=6191215
A117: 6193307 | B117: =IFERROR(VLOOKUP(A117,Лист1!A:J,2,0),"") -> Заглушка кабель-канала 110х60 / ПВХ | C117: =IFERROR(VLOOKUP(A117,Лист1!A:J,3,0),"") -> 0.84 | D117: 39.98 | E117: =IFERROR(VLOOKUP(A117,Лист1!A:J,5,0),"") -> 1 | F117: =IFERROR(VLOOKUP(A117,Лист1!A:J,6,0),"") -> шт. | G117: =IFERROR(VLOOKUP(A117,Лист1!A:J,7,0),"") -> 10 | H117: =IFERROR(VLOOKUP(A117,Лист1!A:J,8,0),"") -> LFS | I117: =IFERROR(VLOOKUP(A117,Лист1!A:J,9,0),"") -> 06100 | J117: https://www.obo.global/search/?searchparam=6193307 | K117: =IFERROR(VLOOKUP(A117,Лист1!A:K,10,0),"") -> https://www.obo.global/search/?searchparam=6193307
A118: 6192033 | B118: =IFERROR(VLOOKUP(A118,Лист1!A:J,2,0),"") -> Внутрішній кут кабель-канала 110х60 / ПВХ | C118: =IFERROR(VLOOKUP(A118,Лист1!A:J,3,0),"") -> 2.71 | D118: 128.97 | E118: =IFERROR(VLOOKUP(A118,Лист1!A:J,5,0),"") -> 1 | F118: =IFERROR(VLOOKUP(A118,Лист1!A:J,6,0),"") -> шт. | G118: =IFERROR(VLOOKUP(A118,Лист1!A:J,7,0),"") -> 2 | H118: =IFERROR(VLOOKUP(A118,Лист1!A:J,8,0),"") -> LFS | I118: =IFERROR(VLOOKUP(A118,Лист1!A:J,9,0),"") -> 06100 | J118: https://www.obo.global/products/building-installations/electrical-installation-ducts-and-trunking/fittings-cable-trunking/internal-corner-trunking/internal-corner-cover-trunking-type-wdk-60110.html | K118: =IFERROR(VLOOKUP(A118,Лист1!A:K,10,0),"") -> https://www.obo.global/products/building-installations/electrical-installation-ducts-and-trunking/fittings-cable-trunking/internal-corner-trunking/internal-corner-cover-trunking-type-wdk-60110.html
A119: 6192335 | B119: =IFERROR(VLOOKUP(A119,Лист1!A:J,2,0),"") -> Зовнішній кут кабель-канала 110х60 / ПВХ | C119: =IFERROR(VLOOKUP(A119,Лист1!A:J,3,0),"") -> 2.26 | D119: 107.55 | E119: =IFERROR(VLOOKUP(A119,Лист1!A:J,5,0),"") -> 1 | F119: =IFERROR(VLOOKUP(A119,Лист1!A:J,6,0),"") -> шт. | G119: =IFERROR(VLOOKUP(A119,Лист1!A:J,7,0),"") -> 2 | H119: =IFERROR(VLOOKUP(A119,Лист1!A:J,8,0),"") -> LFS | I119: =IFERROR(VLOOKUP(A119,Лист1!A:J,9,0),"") -> 06100 | J119: https://www.obo.global/search/?searchparam=6192335 | K119: =IFERROR(VLOOKUP(A119,Лист1!A:K,10,0),"") -> https://www.obo.global/search/?searchparam=6192335
A120: 6192939 | B120: =IFERROR(VLOOKUP(A120,Лист1!A:J,2,0),"") -> Кришка плоского кута кабель-канала 110х60 / ПВХ | C120: =IFERROR(VLOOKUP(A120,Лист1!A:J,3,0),"") -> 2.54 | D120: 120.88 | E120: =IFERROR(VLOOKUP(A120,Лист1!A:J,5,0),"") -> 1 | F120: =IFERROR(VLOOKUP(A120,Лист1!A:J,6,0),"") -> шт. | G120: =IFERROR(VLOOKUP(A120,Лист1!A:J,7,0),"") -> 2 | H120: =IFERROR(VLOOKUP(A120,Лист1!A:J,8,0),"") -> LFS | I120: =IFERROR(VLOOKUP(A120,Лист1!A:J,9,0),"") -> 06100 | J120: https://www.obo.global/search/?searchparam=6192939 | K120: =IFERROR(VLOOKUP(A120,Лист1!A:K,10,0),"") -> https://www.obo.global/search/?searchparam=6192939
A121: 6192637 | B121: =IFERROR(VLOOKUP(A121,Лист1!A:J,2,0),"") -> Кришка Т-секції кабель-канала 110х60 / ПВХ | C121: =IFERROR(VLOOKUP(A121,Лист1!A:J,3,0),"") -> 2.13 | D121: 101.37 | E121: =IFERROR(VLOOKUP(A121,Лист1!A:J,5,0),"") -> 1 | F121: =IFERROR(VLOOKUP(A121,Лист1!A:J,6,0),"") -> шт. | G121: =IFERROR(VLOOKUP(A121,Лист1!A:J,7,0),"") -> 2 | H121: =IFERROR(VLOOKUP(A121,Лист1!A:J,8,0),"") -> LFS | I121: =IFERROR(VLOOKUP(A121,Лист1!A:J,9,0),"") -> 06100 | J121: https://www.obo.global/search/?searchparam=6192637 | K121: =IFERROR(VLOOKUP(A121,Лист1!A:K,10,0),"") -> https://www.obo.global/search/?searchparam=6192637
A122: 6193596 | B122: =IFERROR(VLOOKUP(A122,Лист1!A:J,2,0),"") -> Накладка на стик 110х60 / ПВХ | C122: =IFERROR(VLOOKUP(A122,Лист1!A:J,3,0),"") -> 0.55 | D122: 26.17 | E122: =IFERROR(VLOOKUP(A122,Лист1!A:J,5,0),"") -> 1 | F122: =IFERROR(VLOOKUP(A122,Лист1!A:J,6,0),"") -> шт. | G122: =IFERROR(VLOOKUP(A122,Лист1!A:J,7,0),"") -> 20 | H122: =IFERROR(VLOOKUP(A122,Лист1!A:J,8,0),"") -> LFS | I122: =IFERROR(VLOOKUP(A122,Лист1!A:J,9,0),"") -> 06100 | J122: https://www.obo.global/search/?searchparam=6193596 | K122: =IFERROR(VLOOKUP(A122,Лист1!A:K,10,0),"") -> https://www.obo.global/search/?searchparam=6193596
A123: Кабель-канал 130 x 60 | C123: =IFERROR(VLOOKUP(A123,Лист1!A:J,3,0),"") ->  | E123: =IFERROR(VLOOKUP(A123,Лист1!A:J,5,0),"") ->  | F123: =IFERROR(VLOOKUP(A123,Лист1!A:J,6,0),"") ->  | G123: =IFERROR(VLOOKUP(A123,Лист1!A:J,7,0),"") ->  | H123: =IFERROR(VLOOKUP(A123,Лист1!A:J,8,0),"") ->  | I123: =IFERROR(VLOOKUP(A123,Лист1!A:J,9,0),"") ->  | K123: =IFERROR(VLOOKUP(A123,Лист1!A:K,10,0),"") -> 
A124: 6191223 | B124: =IFERROR(VLOOKUP(A124,Лист1!A:J,2,0),"") -> Кабель-канал 130х60 / ПВХ | C124: =IFERROR(VLOOKUP(A124,Лист1!A:J,3,0),"") -> 9.86 | D124: 469.24 | E124: =IFERROR(VLOOKUP(A124,Лист1!A:J,5,0),"") -> 1 | F124: =IFERROR(VLOOKUP(A124,Лист1!A:J,6,0),"") -> м | G124: =IFERROR(VLOOKUP(A124,Лист1!A:J,7,0),"") -> 16 | H124: =IFERROR(VLOOKUP(A124,Лист1!A:J,8,0),"") -> LFS | I124: =IFERROR(VLOOKUP(A124,Лист1!A:J,9,0),"") -> 06100 | J124: https://www.obo.global/search/?searchparam=6191223 | K124: =IFERROR(VLOOKUP(A124,Лист1!A:K,10,0),"") -> https://www.obo.global/search/?searchparam=6191223
A125: 6193315 | B125: =IFERROR(VLOOKUP(A125,Лист1!A:J,2,0),"") -> Заглушка кабель-канала 130х60 / ПВХ | C125: =IFERROR(VLOOKUP(A125,Лист1!A:J,3,0),"") -> 4.42 | D125: 210.35 | E125: =IFERROR(VLOOKUP(A125,Лист1!A:J,5,0),"") -> 1 | F125: =IFERROR(VLOOKUP(A125,Лист1!A:J,6,0),"") -> шт. | G125: =IFERROR(VLOOKUP(A125,Лист1!A:J,7,0),"") -> 10 | H125: =IFERROR(VLOOKUP(A125,Лист1!A:J,8,0),"") -> LFS | I125: =IFERROR(VLOOKUP(A125,Лист1!A:J,9,0),"") -> 06100 | J125: https://www.obo.global/search/?searchparam=6193315 | K125: =IFERROR(VLOOKUP(A125,Лист1!A:K,10,0),"") -> https://www.obo.global/search/?searchparam=6193315
A126: 6192041 | B126: =IFERROR(VLOOKUP(A126,Лист1!A:J,2,0),"") -> Внутрішній кут кабель-канала 130х60 / ПВХ | C126: =IFERROR(VLOOKUP(A126,Лист1!A:J,3,0),"") -> 7.13 | D126: 339.32 | E126: =IFERROR(VLOOKUP(A126,Лист1!A:J,5,0),"") -> 1 | F126: =IFERROR(VLOOKUP(A126,Лист1!A:J,6,0),"") -> шт. | G126: =IFERROR(VLOOKUP(A126,Лист1!A:J,7,0),"") -> 2 | H126: =IFERROR(VLOOKUP(A126,Лист1!A:J,8,0),"") -> LFS | I126: =IFERROR(VLOOKUP(A126,Лист1!A:J,9,0),"") -> 06100 | J126: https://www.obo.global/products/building-installations/electrical-installation-ducts-and-trunking/fittings-cable-trunking/internal-corner-trunking/internal-corner-cover-trunking-type-wdk-60130.html | K126: =IFERROR(VLOOKUP(A126,Лист1!A:K,10,0),"") -> https://www.obo.global/products/building-installations/electrical-installation-ducts-and-trunking/fittings-cable-trunking/internal-corner-trunking/internal-corner-cover-trunking-type-wdk-60130.html
A127: 6192343 | B127: =IFERROR(VLOOKUP(A127,Лист1!A:J,2,0),"") -> Зовнішній кут кабель-канала 130х60 / ПВХ | C127: =IFERROR(VLOOKUP(A127,Лист1!A:J,3,0),"") -> 7.19 | D127: 342.17 | E127: =IFERROR(VLOOKUP(A127,Лист1!A:J,5,0),"") -> 1 | F127: =IFERROR(VLOOKUP(A127,Лист1!A:J,6,0),"") -> шт. | G127: =IFERROR(VLOOKUP(A127,Лист1!A:J,7,0),"") -> 2 | H127: =IFERROR(VLOOKUP(A127,Лист1!A:J,8,0),"") -> LFS | I127: =IFERROR(VLOOKUP(A127,Лист1!A:J,9,0),"") -> 06100 | J127: https://www.obo.global/search/?searchparam=6192343 | K127: =IFERROR(VLOOKUP(A127,Лист1!A:K,10,0),"") -> https://www.obo.global/search/?searchparam=6192343
A128: 6192947 | B128: =IFERROR(VLOOKUP(A128,Лист1!A:J,2,0),"") -> Кришка плоского кута кабель-канала 130х60 / ПВХ | C128: =IFERROR(VLOOKUP(A128,Лист1!A:J,3,0),"") -> 3.4 | D128: 161.81 | E128: =IFERROR(VLOOKUP(A128,Лист1!A:J,5,0),"") -> 1 | F128: =IFERROR(VLOOKUP(A128,Лист1!A:J,6,0),"") -> шт. | G128: =IFERROR(VLOOKUP(A128,Лист1!A:J,7,0),"") -> 2 | H128: =IFERROR(VLOOKUP(A128,Лист1!A:J,8,0),"") -> LFS | I128: =IFERROR(VLOOKUP(A128,Лист1!A:J,9,0),"") -> 06100 | J128: https://www.obo.global/search/?searchparam=6192947 | K128: =IFERROR(VLOOKUP(A128,Лист1!A:K,10,0),"") -> https://www.obo.global/search/?searchparam=6192947
A129: 6192645 | B129: =IFERROR(VLOOKUP(A129,Лист1!A:J,2,0),"") -> Кришка Т-секції / з'еднання кабель-канала 130х60 / ПВХ | C129: =IFERROR(VLOOKUP(A129,Лист1!A:J,3,0),"") -> 7.19 | D129: 342.17 | E129: =IFERROR(VLOOKUP(A129,Лист1!A:J,5,0),"") -> 1 | F129: =IFERROR(VLOOKUP(A129,Лист1!A:J,6,0),"") -> шт. | G129: =IFERROR(VLOOKUP(A129,Лист1!A:J,7,0),"") -> 2 | H129: =IFERROR(VLOOKUP(A129,Лист1!A:J,8,0),"") -> LFS | I129: =IFERROR(VLOOKUP(A129,Лист1!A:J,9,0),"") -> 06100 | J129: https://www.obo.global/search/?searchparam=6192645 | K129: =IFERROR(VLOOKUP(A129,Лист1!A:K,10,0),"") -> https://www.obo.global/search/?searchparam=6192645
A130: Кабель-канал 130 x 100 | C130: =IFERROR(VLOOKUP(A130,Лист1!A:J,3,0),"") ->  | E130: =IFERROR(VLOOKUP(A130,Лист1!A:J,5,0),"") ->  | F130: =IFERROR(VLOOKUP(A130,Лист1!A:J,6,0),"") ->  | G130: =IFERROR(VLOOKUP(A130,Лист1!A:J,7,0),"") ->  | H130: =IFERROR(VLOOKUP(A130,Лист1!A:J,8,0),"") ->  | I130: =IFERROR(VLOOKUP(A130,Лист1!A:J,9,0),"") ->  | K130: =IFERROR(VLOOKUP(A130,Лист1!A:K,10,0),"") -> 
A131: 6191347 | B131: =IFERROR(VLOOKUP(A131,Лист1!A:J,2,0),"") -> Кабель-канал 130x100 / ПВХ | C131: =IFERROR(VLOOKUP(A131,Лист1!A:J,3,0),"") -> 23.9 | D131: 1137.4 | E131: =IFERROR(VLOOKUP(A131,Лист1!A:J,5,0),"") -> 1 | F131: =IFERROR(VLOOKUP(A131,Лист1!A:J,6,0),"") -> м | G131: =IFERROR(VLOOKUP(A131,Лист1!A:J,7,0),"") -> 8 | H131: =IFERROR(VLOOKUP(A131,Лист1!A:J,8,0),"") -> LFS | I131: =IFERROR(VLOOKUP(A131,Лист1!A:J,9,0),"") -> 06100 | J131: https://www.obo.global/products/building-installations/cable-routing-systems/cable-trunking/cable-routing-trunking/wdk-trunking/trunking-type-wdk-100130.html#!searchresult-0 | K131: =IFERROR(VLOOKUP(A131,Лист1!A:K,10,0),"") -> https://www.obo.global/products/building-installations/cable-routing-systems/cable-trunking/cable-routing-trunking/wdk-trunking/trunking-type-wdk-100130.html#!searchresult-0
A132: 6193395 | B132: =IFERROR(VLOOKUP(A132,Лист1!A:J,2,0),"") -> Заглушка кабель-канала 130х100 / ПВХ | C132: =IFERROR(VLOOKUP(A132,Лист1!A:J,3,0),"") -> 4.9 | D132: 233.19 | E132: =IFERROR(VLOOKUP(A132,Лист1!A:J,5,0),"") -> 1 | F132: =IFERROR(VLOOKUP(A132,Лист1!A:J,6,0),"") -> шт. | G132: =IFERROR(VLOOKUP(A132,Лист1!A:J,7,0),"") -> 10 | H132: =IFERROR(VLOOKUP(A132,Лист1!A:J,8,0),"") -> LFS | I132: =IFERROR(VLOOKUP(A132,Лист1!A:J,9,0),"") -> 06100 | J132: https://www.obo.global/products/building-installations/cable-routing-systems/cable-trunking/fittings-cable-trunking/end-pieces/end-piece-trunking-type-wdk-100130.html#!searchresult-0 | K132: =IFERROR(VLOOKUP(A132,Лист1!A:K,10,0),"") -> https://www.obo.global/products/building-installations/cable-routing-systems/cable-trunking/fittings-cable-trunking/end-pieces/end-piece-trunking-type-wdk-100130.html#!searchresult-0
A133: 6192429 | B133: =IFERROR(VLOOKUP(A133,Лист1!A:J,2,0),"") -> Секція внутрішнього кута кабель-канала 130x100 / ПВХ | C133: =IFERROR(VLOOKUP(A133,Лист1!A:J,3,0),"") -> 29 | D133: 1380.11 | E133: =IFERROR(VLOOKUP(A133,Лист1!A:J,5,0),"") -> 1 | F133: =IFERROR(VLOOKUP(A133,Лист1!A:J,6,0),"") -> шт. | G133: =IFERROR(VLOOKUP(A133,Лист1!A:J,7,0),"") -> 2 | H133: =IFERROR(VLOOKUP(A133,Лист1!A:J,8,0),"") -> LFS | I133: =IFERROR(VLOOKUP(A133,Лист1!A:J,9,0),"") -> 06100 | J133: https://www.obo.global/products/building-installations/cable-routing-systems/cable-trunking/fittings-cable-trunking/internal-corners/internal-corner-cover-trunking-type-wdk-100130.html#!searchresult-0 | K133: =IFERROR(VLOOKUP(A133,Лист1!A:K,10,0),"") -> https://www.obo.global/products/building-installations/cable-routing-systems/cable-trunking/fittings-cable-trunking/internal-corners/internal-corner-cover-trunking-type-wdk-100130.html#!searchresult-0
A134: 6024506 | B134: =IFERROR(VLOOKUP(A134,Лист1!A:J,2,0),"") -> Секція зовнішнього кута кабель-канала 130х100 / ПВХ | C134: =IFERROR(VLOOKUP(A134,Лист1!A:J,3,0),"") -> 29 | D134: 1380.11 | E134: =IFERROR(VLOOKUP(A134,Лист1!A:J,5,0),"") -> 1 | F134: =IFERROR(VLOOKUP(A134,Лист1!A:J,6,0),"") -> шт. | G134: =IFERROR(VLOOKUP(A134,Лист1!A:J,7,0),"") -> 1 | H134: =IFERROR(VLOOKUP(A134,Лист1!A:J,8,0),"") -> LFS | I134: =IFERROR(VLOOKUP(A134,Лист1!A:J,9,0),"") -> 06100 | J134: https://www.obo.global/products/building-installations/cable-routing-systems/cable-trunking/fittings-cable-trunking/external-corner-covers/external-corner-trunking-type-wdk-100130.html#!searchresult-0 | K134: =IFERROR(VLOOKUP(A134,Лист1!A:K,10,0),"") -> https://www.obo.global/products/building-installations/cable-routing-systems/cable-trunking/fittings-cable-trunking/external-corner-covers/external-corner-trunking-type-wdk-100130.html#!searchresult-0
A135: 6161775 | B135: =IFERROR(VLOOKUP(A135,Лист1!A:J,2,0),"") -> Секція плоского кута кабель-канала 130х100 / ПВХ | C135: =IFERROR(VLOOKUP(A135,Лист1!A:J,3,0),"") -> 29 | D135: 1380.11 | E135: =IFERROR(VLOOKUP(A135,Лист1!A:J,5,0),"") -> 1 | F135: =IFERROR(VLOOKUP(A135,Лист1!A:J,6,0),"") -> шт. | G135: =IFERROR(VLOOKUP(A135,Лист1!A:J,7,0),"") -> 1 | H135: =IFERROR(VLOOKUP(A135,Лист1!A:J,8,0),"") -> LFS | I135: =IFERROR(VLOOKUP(A135,Лист1!A:J,9,0),"") -> 06100 | J135: https://www.obo.global/products/building-installations/cable-routing-systems/cable-trunking/fittings-cable-trunking/flat-angle/flat-angle-trunking-type-wdk-100130.html#!searchresult-0 | K135: =IFERROR(VLOOKUP(A135,Лист1!A:K,10,0),"") -> https://www.obo.global/products/building-installations/cable-routing-systems/cable-trunking/fittings-cable-trunking/flat-angle/flat-angle-trunking-type-wdk-100130.html#!searchresult-0
A136: Кабель-канал 150 x 60 | C136: =IFERROR(VLOOKUP(A136,Лист1!A:J,3,0),"") ->  | D136: =IFERROR(ROUND(C136*$D$2*1.2,2),"") ->  | E136: =IFERROR(VLOOKUP(A136,Лист1!A:J,5,0),"") ->  | F136: =IFERROR(VLOOKUP(A136,Лист1!A:J,6,0),"") ->  | G136: =IFERROR(VLOOKUP(A136,Лист1!A:J,7,0),"") ->  | H136: =IFERROR(VLOOKUP(A136,Лист1!A:J,8,0),"") ->  | I136: =IFERROR(VLOOKUP(A136,Лист1!A:J,9,0),"") ->  | J136: =IFERROR(HYPERLINK(K136,K136),"") ->  | K136: =IFERROR(VLOOKUP(A136,Лист1!A:K,10,0),"") -> 
A137: 6191231 | B137: =IFERROR(VLOOKUP(A137,Лист1!A:J,2,0),"") -> Кабель-канал 150x60 / ПВХ | C137: =IFERROR(VLOOKUP(A137,Лист1!A:J,3,0),"") -> 10.87 | D137: 517.3 | E137: =IFERROR(VLOOKUP(A137,Лист1!A:J,5,0),"") -> 1 | F137: =IFERROR(VLOOKUP(A137,Лист1!A:J,6,0),"") -> м | G137: =IFERROR(VLOOKUP(A137,Лист1!A:J,7,0),"") -> 8 | H137: =IFERROR(VLOOKUP(A137,Лист1!A:J,8,0),"") -> LFS | I137: =IFERROR(VLOOKUP(A137,Лист1!A:J,9,0),"") -> 06100 | J137: https://www.obo.global/search/?searchparam=6191231 | K137: =IFERROR(VLOOKUP(A137,Лист1!A:K,10,0),"") -> https://www.obo.global/search/?searchparam=6191231
A138: 6193323 | B138: =IFERROR(VLOOKUP(A138,Лист1!A:J,2,0),"") -> Заглушка кабель-канала 150x60 / ПВХ | C138: =IFERROR(VLOOKUP(A138,Лист1!A:J,3,0),"") -> 5.27 | D138: 250.8 | E138: =IFERROR(VLOOKUP(A138,Лист1!A:J,5,0),"") -> 1 | F138: =IFERROR(VLOOKUP(A138,Лист1!A:J,6,0),"") -> шт. | G138: =IFERROR(VLOOKUP(A138,Лист1!A:J,7,0),"") -> 10 | H138: =IFERROR(VLOOKUP(A138,Лист1!A:J,8,0),"") -> LFS | I138: =IFERROR(VLOOKUP(A138,Лист1!A:J,9,0),"") -> 06100 | J138: https://www.obo.global/search/?searchparam=6193323 | K138: =IFERROR(VLOOKUP(A138,Лист1!A:K,10,0),"") -> https://www.obo.global/search/?searchparam=6193323
A139: 6192068 | B139: =IFERROR(VLOOKUP(A139,Лист1!A:J,2,0),"") -> Внутрішній кут кабель-канала 150x60 / ПВХ | C139: =IFERROR(VLOOKUP(A139,Лист1!A:J,3,0),"") -> 8.77 | D139: 417.36 | E139: =IFERROR(VLOOKUP(A139,Лист1!A:J,5,0),"") -> 1 | F139: =IFERROR(VLOOKUP(A139,Лист1!A:J,6,0),"") -> шт. | G139: =IFERROR(VLOOKUP(A139,Лист1!A:J,7,0),"") -> 2 | H139: =IFERROR(VLOOKUP(A139,Лист1!A:J,8,0),"") -> LFS | I139: =IFERROR(VLOOKUP(A139,Лист1!A:J,9,0),"") -> 06100 | J139: https://www.obo.global/products/building-installations/electrical-installation-ducts-and-trunking/fittings-cable-trunking/internal-corner-trunking/internal-corner-cover-trunking-type-wdk-60150.html | K139: =IFERROR(VLOOKUP(A139,Лист1!A:K,10,0),"") -> https://www.obo.global/products/building-installations/electrical-installation-ducts-and-trunking/fittings-cable-trunking/internal-corner-trunking/internal-corner-cover-trunking-type-wdk-60150.html
A140: 6192351 | B140: =IFERROR(VLOOKUP(A140,Лист1!A:J,2,0),"") -> Зовнішній кут кабель-канала 150x60 / ПВХ | C140: =IFERROR(VLOOKUP(A140,Лист1!A:J,3,0),"") -> 8.77 | D140: 417.36 | E140: =IFERROR(VLOOKUP(A140,Лист1!A:J,5,0),"") -> 1 | F140: =IFERROR(VLOOKUP(A140,Лист1!A:J,6,0),"") -> шт. | G140: =IFERROR(VLOOKUP(A140,Лист1!A:J,7,0),"") -> 2 | H140: =IFERROR(VLOOKUP(A140,Лист1!A:J,8,0),"") -> LFS | I140: =IFERROR(VLOOKUP(A140,Лист1!A:J,9,0),"") -> 06100 | J140: https://www.obo.global/search/?searchparam=6192351 | K140: =IFERROR(VLOOKUP(A140,Лист1!A:K,10,0),"") -> https://www.obo.global/search/?searchparam=6192351
A141: 6192653 | B141: =IFERROR(VLOOKUP(A141,Лист1!A:J,2,0),"") -> Кришка Т-секції / з'еднання кабель-канала 150x60 / ПВХ | C141: =IFERROR(VLOOKUP(A141,Лист1!A:J,3,0),"") -> 8.77 | D141: 417.36 | E141: =IFERROR(VLOOKUP(A141,Лист1!A:J,5,0),"") -> 1 | F141: =IFERROR(VLOOKUP(A141,Лист1!A:J,6,0),"") -> шт. | G141: =IFERROR(VLOOKUP(A141,Лист1!A:J,7,0),"") -> 2 | H141: =IFERROR(VLOOKUP(A141,Лист1!A:J,8,0),"") -> LFS | I141: =IFERROR(VLOOKUP(A141,Лист1!A:J,9,0),"") -> 06100 | J141: https://www.obo.global/search/?searchparam=6192653 | K141: =IFERROR(VLOOKUP(A141,Лист1!A:K,10,0),"") -> https://www.obo.global/search/?searchparam=6192653
A142: 6192955 | B142: =IFERROR(VLOOKUP(A142,Лист1!A:J,2,0),"") -> Кришка плоского кута кабель-канала 150x60 / ПВХ | C142: =IFERROR(VLOOKUP(A142,Лист1!A:J,3,0),"") -> 4.67 | D142: 222.24 | E142: =IFERROR(VLOOKUP(A142,Лист1!A:J,5,0),"") -> 1 | F142: =IFERROR(VLOOKUP(A142,Лист1!A:J,6,0),"") -> шт. | G142: =IFERROR(VLOOKUP(A142,Лист1!A:J,7,0),"") -> 2 | H142: =IFERROR(VLOOKUP(A142,Лист1!A:J,8,0),"") -> LFS | I142: =IFERROR(VLOOKUP(A142,Лист1!A:J,9,0),"") -> 06100 | J142: https://www.obo.global/search/?searchparam=6192955 | K142: =IFERROR(VLOOKUP(A142,Лист1!A:K,10,0),"") -> https://www.obo.global/search/?searchparam=6192955
A143: Кабель-канал 170 x 60 | C143: =IFERROR(VLOOKUP(A143,Лист1!A:J,3,0),"") ->  | E143: =IFERROR(VLOOKUP(A143,Лист1!A:J,5,0),"") ->  | F143: =IFERROR(VLOOKUP(A143,Лист1!A:J,6,0),"") ->  | G143: =IFERROR(VLOOKUP(A143,Лист1!A:J,7,0),"") ->  | H143: =IFERROR(VLOOKUP(A143,Лист1!A:J,8,0),"") ->  | I143: =IFERROR(VLOOKUP(A143,Лист1!A:J,9,0),"") ->  | K143: =IFERROR(VLOOKUP(A143,Лист1!A:K,10,0),"") -> 
A144: 6191258 | B144: =IFERROR(VLOOKUP(A144,Лист1!A:J,2,0),"") -> Кабель-канал 170х60 / ПВХ | C144: =IFERROR(VLOOKUP(A144,Лист1!A:J,3,0),"") -> 13.87 | D144: 660.07 | E144: =IFERROR(VLOOKUP(A144,Лист1!A:J,5,0),"") -> 1 | F144: =IFERROR(VLOOKUP(A144,Лист1!A:J,6,0),"") -> м | G144: =IFERROR(VLOOKUP(A144,Лист1!A:J,7,0),"") -> 8 | H144: =IFERROR(VLOOKUP(A144,Лист1!A:J,8,0),"") -> LFS | I144: =IFERROR(VLOOKUP(A144,Лист1!A:J,9,0),"") -> 06100 | J144: https://www.obo.global/search/?searchparam=6191258 | K144: =IFERROR(VLOOKUP(A144,Лист1!A:K,10,0),"") -> https://www.obo.global/search/?searchparam=6191258
A145: 6193331 | B145: =IFERROR(VLOOKUP(A145,Лист1!A:J,2,0),"") -> Заглушка кабель-канала 170х60 / ПВХ | C145: =IFERROR(VLOOKUP(A145,Лист1!A:J,3,0),"") -> 9.05 | D145: 430.69 | E145: =IFERROR(VLOOKUP(A145,Лист1!A:J,5,0),"") -> 1 | F145: =IFERROR(VLOOKUP(A145,Лист1!A:J,6,0),"") -> шт. | G145: =IFERROR(VLOOKUP(A145,Лист1!A:J,7,0),"") -> 10 | H145: =IFERROR(VLOOKUP(A145,Лист1!A:J,8,0),"") -> LFS | I145: =IFERROR(VLOOKUP(A145,Лист1!A:J,9,0),"") -> 06100 | J145: https://www.obo.global/search/?searchparam=6193331 | K145: =IFERROR(VLOOKUP(A145,Лист1!A:K,10,0),"") -> https://www.obo.global/search/?searchparam=6193331
A146: 6192076 | B146: =IFERROR(VLOOKUP(A146,Лист1!A:J,2,0),"") -> Внутрішній кут кабель-канала 170х60 / ПВХ | C146: =IFERROR(VLOOKUP(A146,Лист1!A:J,3,0),"") -> 10.53 | D146: 501.12 | E146: =IFERROR(VLOOKUP(A146,Лист1!A:J,5,0),"") -> 1 | F146: =IFERROR(VLOOKUP(A146,Лист1!A:J,6,0),"") -> шт. | G146: =IFERROR(VLOOKUP(A146,Лист1!A:J,7,0),"") -> 2 | H146: =IFERROR(VLOOKUP(A146,Лист1!A:J,8,0),"") -> LFS | I146: =IFERROR(VLOOKUP(A146,Лист1!A:J,9,0),"") -> 06100 | J146: https://www.obo.global/products/building-installations/electrical-installation-ducts-and-trunking/fittings-cable-trunking/internal-corner-trunking/internal-corner-cover-trunking-type-wdk-60170.html | K146: =IFERROR(VLOOKUP(A146,Лист1!A:K,10,0),"") -> https://www.obo.global/products/building-installations/electrical-installation-ducts-and-trunking/fittings-cable-trunking/internal-corner-trunking/internal-corner-cover-trunking-type-wdk-60170.html
A147: 6192378 | B147: =IFERROR(VLOOKUP(A147,Лист1!A:J,2,0),"") -> Зовнішній кут кабель-канала 170х60 / ПВХ | C147: =IFERROR(VLOOKUP(A147,Лист1!A:J,3,0),"") -> 13.89 | D147: 661.02 | E147: =IFERROR(VLOOKUP(A147,Лист1!A:J,5,0),"") -> 1 | F147: =IFERROR(VLOOKUP(A147,Лист1!A:J,6,0),"") -> шт. | G147: =IFERROR(VLOOKUP(A147,Лист1!A:J,7,0),"") -> 2 | H147: =IFERROR(VLOOKUP(A147,Лист1!A:J,8,0),"") -> LFS | I147: =IFERROR(VLOOKUP(A147,Лист1!A:J,9,0),"") -> 06100 | J147: https://www.obo.global/search/?searchparam=6192378 | K147: =IFERROR(VLOOKUP(A147,Лист1!A:K,10,0),"") -> https://www.obo.global/search/?searchparam=6192378
A148: 6192963 | B148: =IFERROR(VLOOKUP(A148,Лист1!A:J,2,0),"") -> Кришка плоского кута кабель-канала 170х60 / ПВХ | C148: =IFERROR(VLOOKUP(A148,Лист1!A:J,3,0),"") -> 13.89 | D148: 661.02 | E148: =IFERROR(VLOOKUP(A148,Лист1!A:J,5,0),"") -> 1 | F148: =IFERROR(VLOOKUP(A148,Лист1!A:J,6,0),"") -> шт. | G148: =IFERROR(VLOOKUP(A148,Лист1!A:J,7,0),"") -> 2 | H148: =IFERROR(VLOOKUP(A148,Лист1!A:J,8,0),"") -> LFS | I148: =IFERROR(VLOOKUP(A148,Лист1!A:J,9,0),"") -> 06100 | J148: https://www.obo.global/search/?searchparam=6192963 | K148: =IFERROR(VLOOKUP(A148,Лист1!A:K,10,0),"") -> https://www.obo.global/search/?searchparam=6192963
A149: 6192661 | B149: =IFERROR(VLOOKUP(A149,Лист1!A:J,2,0),"") -> Кришка Т-секції / з'еднання кабель-канала 170х60 / ПВХ | C149: =IFERROR(VLOOKUP(A149,Лист1!A:J,3,0),"") -> 13.89 | D149: 661.02 | E149: =IFERROR(VLOOKUP(A149,Лист1!A:J,5,0),"") -> 1 | F149: =IFERROR(VLOOKUP(A149,Лист1!A:J,6,0),"") -> шт. | G149: =IFERROR(VLOOKUP(A149,Лист1!A:J,7,0),"") -> 2 | H149: =IFERROR(VLOOKUP(A149,Лист1!A:J,8,0),"") -> LFS | I149: =IFERROR(VLOOKUP(A149,Лист1!A:J,9,0),"") -> 06100 | J149: https://www.obo.global/search/?searchparam=6192661 | K149: =IFERROR(VLOOKUP(A149,Лист1!A:K,10,0),"") -> https://www.obo.global/search/?searchparam=6192661
A150: Кабель-канал 210 x 60 | C150: =IFERROR(VLOOKUP(A150,Лист1!A:J,3,0),"") ->  | E150: =IFERROR(VLOOKUP(A150,Лист1!A:J,5,0),"") ->  | F150: =IFERROR(VLOOKUP(A150,Лист1!A:J,6,0),"") ->  | G150: =IFERROR(VLOOKUP(A150,Лист1!A:J,7,0),"") ->  | H150: =IFERROR(VLOOKUP(A150,Лист1!A:J,8,0),"") ->  | I150: =IFERROR(VLOOKUP(A150,Лист1!A:J,9,0),"") ->  | K150: =IFERROR(VLOOKUP(A150,Лист1!A:K,10,0),"") -> 
A151: 6191266 | B151: =IFERROR(VLOOKUP(A151,Лист1!A:J,2,0),"") -> Кабель-канал 210х60 / ПВХ | C151: =IFERROR(VLOOKUP(A151,Лист1!A:J,3,0),"") -> 15.4 | D151: 732.88 | E151: =IFERROR(VLOOKUP(A151,Лист1!A:J,5,0),"") -> 1 | F151: =IFERROR(VLOOKUP(A151,Лист1!A:J,6,0),"") -> м | G151: =IFERROR(VLOOKUP(A151,Лист1!A:J,7,0),"") -> 8 | H151: =IFERROR(VLOOKUP(A151,Лист1!A:J,8,0),"") -> LFS | I151: =IFERROR(VLOOKUP(A151,Лист1!A:J,9,0),"") -> 06100 | J151: https://www.obo.global/search/?searchparam=6191266 | K151: =IFERROR(VLOOKUP(A151,Лист1!A:K,10,0),"") -> https://www.obo.global/search/?searchparam=6191266
A152: 6193358 | B152: =IFERROR(VLOOKUP(A152,Лист1!A:J,2,0),"") -> Заглушка кабель-канала 210х60 / ПВХ | C152: =IFERROR(VLOOKUP(A152,Лист1!A:J,3,0),"") -> 9.06 | D152: 431.16 | E152: =IFERROR(VLOOKUP(A152,Лист1!A:J,5,0),"") -> 1 | F152: =IFERROR(VLOOKUP(A152,Лист1!A:J,6,0),"") -> шт. | G152: =IFERROR(VLOOKUP(A152,Лист1!A:J,7,0),"") -> 10 | H152: =IFERROR(VLOOKUP(A152,Лист1!A:J,8,0),"") -> LFS | I152: =IFERROR(VLOOKUP(A152,Лист1!A:J,9,0),"") -> 06100 | J152: https://www.obo.global/search/?searchparam=6193358 | K152: =IFERROR(VLOOKUP(A152,Лист1!A:K,10,0),"") -> https://www.obo.global/search/?searchparam=6193358
A153: 6192084 | B153: =IFERROR(VLOOKUP(A153,Лист1!A:J,2,0),"") -> Внутрішній кут кабель-канала 210х60 / ПВХ | C153: =IFERROR(VLOOKUP(A153,Лист1!A:J,3,0),"") -> 13.82 | D153: 657.69 | E153: =IFERROR(VLOOKUP(A153,Лист1!A:J,5,0),"") -> 1 | F153: =IFERROR(VLOOKUP(A153,Лист1!A:J,6,0),"") -> шт. | G153: =IFERROR(VLOOKUP(A153,Лист1!A:J,7,0),"") -> 2 | H153: =IFERROR(VLOOKUP(A153,Лист1!A:J,8,0),"") -> LFS | I153: =IFERROR(VLOOKUP(A153,Лист1!A:J,9,0),"") -> 06100 | J153: https://www.obo.global/products/building-installations/electrical-installation-ducts-and-trunking/fittings-cable-trunking/internal-corner-trunking/internal-corner-cover-trunking-type-wdk-60210.html | K153: =IFERROR(VLOOKUP(A153,Лист1!A:K,10,0),"") -> https://www.obo.global/products/building-installations/electrical-installation-ducts-and-trunking/fittings-cable-trunking/internal-corner-trunking/internal-corner-cover-trunking-type-wdk-60210.html
A154: 6192386 | B154: =IFERROR(VLOOKUP(A154,Лист1!A:J,2,0),"") -> Зовнішній кут кабель-канала 210х60 / ПВХ | C154: =IFERROR(VLOOKUP(A154,Лист1!A:J,3,0),"") -> 13.82 | D154: 657.69 | E154: =IFERROR(VLOOKUP(A154,Лист1!A:J,5,0),"") -> 1 | F154: =IFERROR(VLOOKUP(A154,Лист1!A:J,6,0),"") -> шт. | G154: =IFERROR(VLOOKUP(A154,Лист1!A:J,7,0),"") -> 2 | H154: =IFERROR(VLOOKUP(A154,Лист1!A:J,8,0),"") -> LFS | I154: =IFERROR(VLOOKUP(A154,Лист1!A:J,9,0),"") -> 06100 | J154: https://www.obo.global/search/?searchparam=6192386 | K154: =IFERROR(VLOOKUP(A154,Лист1!A:K,10,0),"") -> https://www.obo.global/search/?searchparam=6192386
A155: 6192971 | B155: =IFERROR(VLOOKUP(A155,Лист1!A:J,2,0),"") -> Кришка плоского кута кабель-канала 210х60 / ПВХ | C155: =IFERROR(VLOOKUP(A155,Лист1!A:J,3,0),"") -> 13.82 | D155: 657.69 | E155: =IFERROR(VLOOKUP(A155,Лист1!A:J,5,0),"") -> 1 | F155: =IFERROR(VLOOKUP(A155,Лист1!A:J,6,0),"") -> шт. | G155: =IFERROR(VLOOKUP(A155,Лист1!A:J,7,0),"") -> 2 | H155: =IFERROR(VLOOKUP(A155,Лист1!A:J,8,0),"") -> LFS | I155: =IFERROR(VLOOKUP(A155,Лист1!A:J,9,0),"") -> 06100 | J155: https://www.obo.global/search/?searchparam=6192971 | K155: =IFERROR(VLOOKUP(A155,Лист1!A:K,10,0),"") -> https://www.obo.global/search/?searchparam=6192971
A156: 6192688 | B156: =IFERROR(VLOOKUP(A156,Лист1!A:J,2,0),"") -> Кришка Т-секції / з'еднання кабель-канала 210х60 / ПВХ | C156: =IFERROR(VLOOKUP(A156,Лист1!A:J,3,0),"") -> 13.82 | D156: 657.69 | E156: =IFERROR(VLOOKUP(A156,Лист1!A:J,5,0),"") -> 1 | F156: =IFERROR(VLOOKUP(A156,Лист1!A:J,6,0),"") -> шт. | G156: =IFERROR(VLOOKUP(A156,Лист1!A:J,7,0),"") -> 2 | H156: =IFERROR(VLOOKUP(A156,Лист1!A:J,8,0),"") -> LFS | I156: =IFERROR(VLOOKUP(A156,Лист1!A:J,9,0),"") -> 06100 | J156: https://www.obo.global/search/?searchparam=6192688 | K156: =IFERROR(VLOOKUP(A156,Лист1!A:K,10,0),"") -> https://www.obo.global/search/?searchparam=6192688
A157: Кабель-канал 230 x 60 | C157: =IFERROR(VLOOKUP(A157,Лист1!A:J,3,0),"") ->  | E157: =IFERROR(VLOOKUP(A157,Лист1!A:J,5,0),"") ->  | F157: =IFERROR(VLOOKUP(A157,Лист1!A:J,6,0),"") ->  | G157: =IFERROR(VLOOKUP(A157,Лист1!A:J,7,0),"") ->  | H157: =IFERROR(VLOOKUP(A157,Лист1!A:J,8,0),"") ->  | I157: =IFERROR(VLOOKUP(A157,Лист1!A:J,9,0),"") ->  | K157: =IFERROR(VLOOKUP(A157,Лист1!A:K,10,0),"") -> 
A158: 6191274 | B158: =IFERROR(VLOOKUP(A158,Лист1!A:J,2,0),"") -> Кабель-канал 230х60 / ПВХ | C158: =IFERROR(VLOOKUP(A158,Лист1!A:J,3,0),"") -> 16.62 | D158: 790.94 | E158: =IFERROR(VLOOKUP(A158,Лист1!A:J,5,0),"") -> 1 | F158: =IFERROR(VLOOKUP(A158,Лист1!A:J,6,0),"") -> м | G158: =IFERROR(VLOOKUP(A158,Лист1!A:J,7,0),"") -> 8 | H158: =IFERROR(VLOOKUP(A158,Лист1!A:J,8,0),"") -> LFS | I158: =IFERROR(VLOOKUP(A158,Лист1!A:J,9,0),"") -> 06100 | J158: https://www.obo.global/products/building-installations/electrical-installation-ducts-and-trunking/cable-routing-trunking/wdk-trunking/trunking-type-wdk-60230.html | K158: =IFERROR(VLOOKUP(A158,Лист1!A:K,10,0),"") -> https://www.obo.global/products/building-installations/electrical-installation-ducts-and-trunking/cable-routing-trunking/wdk-trunking/trunking-type-wdk-60230.html
A159: 6193366 | B159: =IFERROR(VLOOKUP(A159,Лист1!A:J,2,0),"") -> Заглушка кабель-канала 230х60 / ПВХ | C159: =IFERROR(VLOOKUP(A159,Лист1!A:J,3,0),"") -> 11.68 | D159: 555.85 | E159: =IFERROR(VLOOKUP(A159,Лист1!A:J,5,0),"") -> 1 | F159: =IFERROR(VLOOKUP(A159,Лист1!A:J,6,0),"") -> шт. | G159: =IFERROR(VLOOKUP(A159,Лист1!A:J,7,0),"") -> 10 | H159: =IFERROR(VLOOKUP(A159,Лист1!A:J,8,0),"") -> LFS | I159: =IFERROR(VLOOKUP(A159,Лист1!A:J,9,0),"") -> 06100 | J159: https://www.obo.global/search/?searchparam=6193366 | K159: =IFERROR(VLOOKUP(A159,Лист1!A:K,10,0),"") -> https://www.obo.global/search/?searchparam=6193366
A160: 6192092 | B160: =IFERROR(VLOOKUP(A160,Лист1!A:J,2,0),"") -> Внутрішній кут кабель-канала 230х60 / ПВХ | C160: =IFERROR(VLOOKUP(A160,Лист1!A:J,3,0),"") -> 12.38 | D160: 589.16 | E160: =IFERROR(VLOOKUP(A160,Лист1!A:J,5,0),"") -> 1 | F160: =IFERROR(VLOOKUP(A160,Лист1!A:J,6,0),"") -> шт. | G160: =IFERROR(VLOOKUP(A160,Лист1!A:J,7,0),"") -> 2 | H160: =IFERROR(VLOOKUP(A160,Лист1!A:J,8,0),"") -> LFS | I160: =IFERROR(VLOOKUP(A160,Лист1!A:J,9,0),"") -> 06100 | J160: https://www.obo.global/products/building-installations/electrical-installation-ducts-and-trunking/fittings-cable-trunking/internal-corner-trunking/internal-corner-cover-trunking-type-wdk-60230.html | K160: =IFERROR(VLOOKUP(A160,Лист1!A:K,10,0),"") -> https://www.obo.global/products/building-installations/electrical-installation-ducts-and-trunking/fittings-cable-trunking/internal-corner-trunking/internal-corner-cover-trunking-type-wdk-60230.html
A161: 6192394 | B161: =IFERROR(VLOOKUP(A161,Лист1!A:J,2,0),"") -> Зовнішній кут кабель-канала 230х60 / ПВХ | C161: =IFERROR(VLOOKUP(A161,Лист1!A:J,3,0),"") -> 12.38 | D161: 589.16 | E161: =IFERROR(VLOOKUP(A161,Лист1!A:J,5,0),"") -> 1 | F161: =IFERROR(VLOOKUP(A161,Лист1!A:J,6,0),"") -> шт. | G161: =IFERROR(VLOOKUP(A161,Лист1!A:J,7,0),"") -> 2 | H161: =IFERROR(VLOOKUP(A161,Лист1!A:J,8,0),"") -> LFS | I161: =IFERROR(VLOOKUP(A161,Лист1!A:J,9,0),"") -> 06100 | J161: https://www.obo.global/search/?searchparam=6192394 | K161: =IFERROR(VLOOKUP(A161,Лист1!A:K,10,0),"") -> https://www.obo.global/search/?searchparam=6192394
A162: 6192998 | B162: =IFERROR(VLOOKUP(A162,Лист1!A:J,2,0),"") -> Кришка плоского кута кабель-канала 230х60 / ПВХ | C162: =IFERROR(VLOOKUP(A162,Лист1!A:J,3,0),"") -> 12.38 | D162: 589.16 | E162: =IFERROR(VLOOKUP(A162,Лист1!A:J,5,0),"") -> 1 | F162: =IFERROR(VLOOKUP(A162,Лист1!A:J,6,0),"") -> шт. | G162: =IFERROR(VLOOKUP(A162,Лист1!A:J,7,0),"") -> 2 | H162: =IFERROR(VLOOKUP(A162,Лист1!A:J,8,0),"") -> LFS | I162: =IFERROR(VLOOKUP(A162,Лист1!A:J,9,0),"") -> 06100 | J162: https://www.obo.global/search/?searchparam=6192998 | K162: =IFERROR(VLOOKUP(A162,Лист1!A:K,10,0),"") -> https://www.obo.global/search/?searchparam=6192998
A163: 6192696 | B163: =IFERROR(VLOOKUP(A163,Лист1!A:J,2,0),"") -> Кришка Т-секції / з'еднання кабель-канала 230х60 / ПВХ | C163: =IFERROR(VLOOKUP(A163,Лист1!A:J,3,0),"") -> 12.39 | D163: 589.64 | E163: =IFERROR(VLOOKUP(A163,Лист1!A:J,5,0),"") -> 1 | F163: =IFERROR(VLOOKUP(A163,Лист1!A:J,6,0),"") -> шт. | G163: =IFERROR(VLOOKUP(A163,Лист1!A:J,7,0),"") -> 2 | H163: =IFERROR(VLOOKUP(A163,Лист1!A:J,8,0),"") -> LFS | I163: =IFERROR(VLOOKUP(A163,Лист1!A:J,9,0),"") -> 06100 | J163: https://www.obo.global/search/?searchparam=6192696 | K163: =IFERROR(VLOOKUP(A163,Лист1!A:K,10,0),"") -> https://www.obo.global/search/?searchparam=6192696
A164: Кабельні канали Rapid 45 | C164: =IFERROR(VLOOKUP(A164,Лист1!A:J,3,0),"") ->  | E164: =IFERROR(VLOOKUP(A164,Лист1!A:J,5,0),"") ->  | F164: =IFERROR(VLOOKUP(A164,Лист1!A:J,6,0),"") ->  | G164: =IFERROR(VLOOKUP(A164,Лист1!A:J,7,0),"") ->  | H164: =IFERROR(VLOOKUP(A164,Лист1!A:J,8,0),"") ->  | I164: =IFERROR(VLOOKUP(A164,Лист1!A:J,9,0),"") ->  | K164: =IFERROR(VLOOKUP(A164,Лист1!A:K,10,0),"") -> 
A165: Кабельний канал 100x53, ПВХ, RAL 9010 (для електроустановки Modul 45) | C165: =IFERROR(VLOOKUP(A165,Лист1!A:J,3,0),"") ->  | E165: =IFERROR(VLOOKUP(A165,Лист1!A:J,5,0),"") ->  | F165: =IFERROR(VLOOKUP(A165,Лист1!A:J,6,0),"") ->  | G165: =IFERROR(VLOOKUP(A165,Лист1!A:J,7,0),"") ->  | H165: =IFERROR(VLOOKUP(A165,Лист1!A:J,8,0),"") ->  | I165: =IFERROR(VLOOKUP(A165,Лист1!A:J,9,0),"") ->  | K165: =IFERROR(VLOOKUP(A165,Лист1!A:K,10,0),"") -> 
A166: 6113000 | B166: =IFERROR(VLOOKUP(A166,Лист1!A:J,2,0),"") -> Кабель-канал 100x53 Rapid 45 / ПВХ | C166: =IFERROR(VLOOKUP(A166,Лист1!A:J,3,0),"") -> 6.03 | D166: 286.97 | E166: =IFERROR(VLOOKUP(A166,Лист1!A:J,5,0),"") -> 1 | F166: =IFERROR(VLOOKUP(A166,Лист1!A:J,6,0),"") -> м | G166: =IFERROR(VLOOKUP(A166,Лист1!A:J,7,0),"") -> 12 | H166: =IFERROR(VLOOKUP(A166,Лист1!A:J,8,0),"") -> LFS | I166: =IFERROR(VLOOKUP(A166,Лист1!A:J,9,0),"") -> 06200 | J166: https://www.obo.global/products/building-installations/device-installation-ducts-and-trunking/device-installation-ducts-and-trunking/rapid-45-2-device-installation-trunking/device-installation-trunking-rapid-45-2-type-gk-53100.html | K166: =IFERROR(VLOOKUP(A166,Лист1!A:K,10,0),"") -> https://www.obo.global/products/building-installations/device-installation-ducts-and-trunking/device-installation-ducts-and-trunking/rapid-45-2-device-installation-trunking/device-installation-trunking-rapid-45-2-type-gk-53100.html
A167: 6113110 | B167: =IFERROR(VLOOKUP(A167,Лист1!A:J,2,0),"") -> Заглушка 100x53 Rapid 45 / ПК/АБС | C167: =IFERROR(VLOOKUP(A167,Лист1!A:J,3,0),"") -> 1.01 | D167: 48.07 | E167: =IFERROR(VLOOKUP(A167,Лист1!A:J,5,0),"") -> 1 | F167: =IFERROR(VLOOKUP(A167,Лист1!A:J,6,0),"") -> шт. | G167: =IFERROR(VLOOKUP(A167,Лист1!A:J,7,0),"") -> 6 | H167: =IFERROR(VLOOKUP(A167,Лист1!A:J,8,0),"") -> LFS | I167: =IFERROR(VLOOKUP(A167,Лист1!A:J,9,0),"") -> 06200 | J167: https://www.obo.global/products/building-installations/device-installation-ducts-and-trunking/fittings-device-installation-trunking/end-pieces/end-piece.html | K167: =IFERROR(VLOOKUP(A167,Лист1!A:K,10,0),"") -> https://www.obo.global/products/building-installations/device-installation-ducts-and-trunking/fittings-device-installation-trunking/end-pieces/end-piece.html
A168: 6113070 | B168: =IFERROR(VLOOKUP(A168,Лист1!A:J,2,0),"") -> Внутрішній регульований кут 100x53 Rapid 45 / ПК/АБС | C168: =IFERROR(VLOOKUP(A168,Лист1!A:J,3,0),"") -> 3.99 | D168: 189.88 | E168: =IFERROR(VLOOKUP(A168,Лист1!A:J,5,0),"") -> 1 | F168: =IFERROR(VLOOKUP(A168,Лист1!A:J,6,0),"") -> шт. | G168: =IFERROR(VLOOKUP(A168,Лист1!A:J,7,0),"") -> 4 | H168: =IFERROR(VLOOKUP(A168,Лист1!A:J,8,0),"") -> LFS | I168: =IFERROR(VLOOKUP(A168,Лист1!A:J,9,0),"") -> 06200 | J168: https://www.obo.global/products/building-installations/device-installation-ducts-and-trunking/fittings-device-installation-trunking/internal-corner-trunking/internal-corner-cover.html | K168: =IFERROR(VLOOKUP(A168,Лист1!A:K,10,0),"") -> https://www.obo.global/products/building-installations/device-installation-ducts-and-trunking/fittings-device-installation-trunking/internal-corner-trunking/internal-corner-cover.html
A169: 6113050 | B169: =IFERROR(VLOOKUP(A169,Лист1!A:J,2,0),"") -> Зовнішній регульований кут 100x53 Rapid 45 / ПК/АБС | C169: =IFERROR(VLOOKUP(A169,Лист1!A:J,3,0),"") -> 3.7 | D169: 176.08 | E169: =IFERROR(VLOOKUP(A169,Лист1!A:J,5,0),"") -> 1 | F169: =IFERROR(VLOOKUP(A169,Лист1!A:J,6,0),"") -> шт. | G169: =IFERROR(VLOOKUP(A169,Лист1!A:J,7,0),"") -> 4 | H169: =IFERROR(VLOOKUP(A169,Лист1!A:J,8,0),"") -> LFS | I169: =IFERROR(VLOOKUP(A169,Лист1!A:J,9,0),"") -> 06200 | J169: https://www.obo.global/products/building-installations/device-installation-ducts-and-trunking/fittings-device-installation-trunking/external-corner-covers/external-corner-cover.html | K169: =IFERROR(VLOOKUP(A169,Лист1!A:K,10,0),"") -> https://www.obo.global/products/building-installations/device-installation-ducts-and-trunking/fittings-device-installation-trunking/external-corner-covers/external-corner-cover.html
A170: 6113090 | B170: =IFERROR(VLOOKUP(A170,Лист1!A:J,2,0),"") -> Кришка плоского кута 100x53 Rapid 45 / ПК/АБС | C170: =IFERROR(VLOOKUP(A170,Лист1!A:J,3,0),"") -> 6.14 | D170: 292.2 | E170: =IFERROR(VLOOKUP(A170,Лист1!A:J,5,0),"") -> 1 | F170: =IFERROR(VLOOKUP(A170,Лист1!A:J,6,0),"") -> шт. | G170: =IFERROR(VLOOKUP(A170,Лист1!A:J,7,0),"") -> 2 | H170: =IFERROR(VLOOKUP(A170,Лист1!A:J,8,0),"") -> LFS | I170: =IFERROR(VLOOKUP(A170,Лист1!A:J,9,0),"") -> 06200 | J170: https://www.obo.global/products/building-installations/device-installation-ducts-and-trunking/fittings-device-installation-trunking/flat-angle-cover/flat-angle-cover.html | K170: =IFERROR(VLOOKUP(A170,Лист1!A:K,10,0),"") -> https://www.obo.global/products/building-installations/device-installation-ducts-and-trunking/fittings-device-installation-trunking/flat-angle-cover/flat-angle-cover.html
A171: 6113100 | B171: =IFERROR(VLOOKUP(A171,Лист1!A:J,2,0),"") -> Т-секція 100x53 Rapid 45 / ПК/АБС | C171: =IFERROR(VLOOKUP(A171,Лист1!A:J,3,0),"") -> 2.56 | D171: 121.83 | E171: =IFERROR(VLOOKUP(A171,Лист1!A:J,5,0),"") -> 1 | F171: =IFERROR(VLOOKUP(A171,Лист1!A:J,6,0),"") -> шт. | G171: =IFERROR(VLOOKUP(A171,Лист1!A:J,7,0),"") -> 1 | H171: =IFERROR(VLOOKUP(A171,Лист1!A:J,8,0),"") -> LFS | I171: =IFERROR(VLOOKUP(A171,Лист1!A:J,9,0),"") -> 06200 | J171: https://www.obo.global/products/building-installations/device-installation-ducts-and-trunking/fittings-device-installation-trunking/t-pieces/t-piece-adapter.html | K171: =IFERROR(VLOOKUP(A171,Лист1!A:K,10,0),"") -> https://www.obo.global/products/building-installations/device-installation-ducts-and-trunking/fittings-device-installation-trunking/t-pieces/t-piece-adapter.html
A172: 6113310 | B172: =IFERROR(VLOOKUP(A172,Лист1!A:J,2,0),"") -> Т-секція Rapid 45 - кабельний канал 60х40 / ПК/АБС | C172: =IFERROR(VLOOKUP(A172,Лист1!A:J,3,0),"") -> 2.56 | D172: 121.83 | E172: =IFERROR(VLOOKUP(A172,Лист1!A:J,5,0),"") -> 1 | F172: =IFERROR(VLOOKUP(A172,Лист1!A:J,6,0),"") -> шт. | G172: =IFERROR(VLOOKUP(A172,Лист1!A:J,7,0),"") -> 1 | H172: =IFERROR(VLOOKUP(A172,Лист1!A:J,8,0),"") -> LFS | I172: =IFERROR(VLOOKUP(A172,Лист1!A:J,9,0),"") -> 06200 | J172: https://www.obo.global/products/building-installations/device-installation-trunking-and-poles/fittings-device-installation-trunking/t-pieces/t-piece-adapter-wdk-40060.html#!searchresult-0 | K172: =IFERROR(VLOOKUP(A172,Лист1!A:K,10,0),"") -> https://www.obo.global/products/building-installations/device-installation-trunking-and-poles/fittings-device-installation-trunking/t-pieces/t-piece-adapter-wdk-40060.html#!searchresult-0
A173: 6113020 | B173: =IFERROR(VLOOKUP(A173,Лист1!A:J,2,0),"") -> Накладка на стик 100x53, 165x53 Rapid 45 / ПК/АБС | C173: =IFERROR(VLOOKUP(A173,Лист1!A:J,3,0),"") -> 0.54 | D173: 25.7 | E173: =IFERROR(VLOOKUP(A173,Лист1!A:J,5,0),"") -> 1 | F173: =IFERROR(VLOOKUP(A173,Лист1!A:J,6,0),"") -> шт. | G173: =IFERROR(VLOOKUP(A173,Лист1!A:J,7,0),"") -> 6 | H173: =IFERROR(VLOOKUP(A173,Лист1!A:J,8,0),"") -> LFS | I173: =IFERROR(VLOOKUP(A173,Лист1!A:J,9,0),"") -> 06200 | J173: https://www.obo.global/products/building-installations/device-installation-ducts-and-trunking/fittings-device-installation-trunking/joint-covers/trunking-connector-and-joint-cover.html | K173: =IFERROR(VLOOKUP(A173,Лист1!A:K,10,0),"") -> https://www.obo.global/products/building-installations/device-installation-ducts-and-trunking/fittings-device-installation-trunking/joint-covers/trunking-connector-and-joint-cover.html
A174: 6113030 | B174: =IFERROR(VLOOKUP(A174,Лист1!A:J,2,0),"") -> Декоративна заглушка кришки 100x53 Rapid 45 / ПК/АБС | C174: =IFERROR(VLOOKUP(A174,Лист1!A:J,3,0),"") -> 1.09 | D174: 51.87 | E174: =IFERROR(VLOOKUP(A174,Лист1!A:J,5,0),"") -> 1 | F174: =IFERROR(VLOOKUP(A174,Лист1!A:J,6,0),"") -> шт. | G174: =IFERROR(VLOOKUP(A174,Лист1!A:J,7,0),"") -> 6 | H174: =IFERROR(VLOOKUP(A174,Лист1!A:J,8,0),"") -> LFS | I174: =IFERROR(VLOOKUP(A174,Лист1!A:J,9,0),"") -> 06200 | J174: https://www.obo.global/products/building-installations/device-installation-ducts-and-trunking/fittings-device-installation-trunking/joint-covers/joint-cover.html | K174: =IFERROR(VLOOKUP(A174,Лист1!A:K,10,0),"") -> https://www.obo.global/products/building-installations/device-installation-ducts-and-trunking/fittings-device-installation-trunking/joint-covers/joint-cover.html
A175: 6113290 | B175: =IFERROR(VLOOKUP(A175,Лист1!A:J,2,0),"") -> Розділювальна перегородка, h=38мм, L=2000мм / ПВХ | C175: =IFERROR(VLOOKUP(A175,Лист1!A:J,3,0),"") -> 1.31 | D175: 62.34 | E175: =IFERROR(VLOOKUP(A175,Лист1!A:J,5,0),"") -> 1 | F175: =IFERROR(VLOOKUP(A175,Лист1!A:J,6,0),"") -> м | G175: =IFERROR(VLOOKUP(A175,Лист1!A:J,7,0),"") -> 2 | H175: =IFERROR(VLOOKUP(A175,Лист1!A:J,8,0),"") -> LFS | I175: =IFERROR(VLOOKUP(A175,Лист1!A:J,9,0),"") -> 06200 | J175: https://www.obo.global/products/building-installations/device-installation-ducts-and-trunking/accessories-device-installation-trunking/partitions/partition.html | K175: =IFERROR(VLOOKUP(A175,Лист1!A:K,10,0),"") -> https://www.obo.global/products/building-installations/device-installation-ducts-and-trunking/accessories-device-installation-trunking/partitions/partition.html
A176: Кабельний канал Rapid 100x53, ПВХ, RAL 7035 (для електроустановки Modul 45) | C176: =IFERROR(VLOOKUP(A176,Лист1!A:J,3,0),"") ->  | E176: =IFERROR(VLOOKUP(A176,Лист1!A:J,5,0),"") ->  | F176: =IFERROR(VLOOKUP(A176,Лист1!A:J,6,0),"") ->  | G176: =IFERROR(VLOOKUP(A176,Лист1!A:J,7,0),"") ->  | H176: =IFERROR(VLOOKUP(A176,Лист1!A:J,8,0),"") ->  | I176: =IFERROR(VLOOKUP(A176,Лист1!A:J,9,0),"") ->  | K176: =IFERROR(VLOOKUP(A176,Лист1!A:K,10,0),"") -> 
A177: 6113002 | B177: =IFERROR(VLOOKUP(A177,Лист1!A:J,2,0),"") -> Кабель-канал 100x53 Rapid 45 / ПВХ, RAL 7035 | C177: =IFERROR(VLOOKUP(A177,Лист1!A:J,3,0),"") -> 8.46 | D177: 402.61 | E177: =IFERROR(VLOOKUP(A177,Лист1!A:J,5,0),"") -> 1 | F177: =IFERROR(VLOOKUP(A177,Лист1!A:J,6,0),"") -> м | G177: =IFERROR(VLOOKUP(A177,Лист1!A:J,7,0),"") -> 12 | H177: =IFERROR(VLOOKUP(A177,Лист1!A:J,8,0),"") -> LFS | I177: =IFERROR(VLOOKUP(A177,Лист1!A:J,9,0),"") -> 06200 | J177: https://www.obo.global/products/building-installations/device-installation-ducts-and-trunking/device-installation-ducts-and-trunking/rapid-45-2-device-installation-trunking/device-installation-trunking-rapid-45-2-type-gk-53100.html | K177: =IFERROR(VLOOKUP(A177,Лист1!A:K,10,0),"") -> https://www.obo.global/products/building-installations/device-installation-ducts-and-trunking/device-installation-ducts-and-trunking/rapid-45-2-device-installation-trunking/device-installation-trunking-rapid-45-2-type-gk-53100.html
A178: 6113112 | B178: =IFERROR(VLOOKUP(A178,Лист1!A:J,2,0),"") -> Заглушка 100x53 Rapid 45 / ПК/АБС, RAL 7035 | C178: =IFERROR(VLOOKUP(A178,Лист1!A:J,3,0),"") -> 1.63 | D178: 77.57 | E178: =IFERROR(VLOOKUP(A178,Лист1!A:J,5,0),"") -> 1 | F178: =IFERROR(VLOOKUP(A178,Лист1!A:J,6,0),"") -> шт. | G178: =IFERROR(VLOOKUP(A178,Лист1!A:J,7,0),"") -> 1 | H178: =IFERROR(VLOOKUP(A178,Лист1!A:J,8,0),"") -> LFS | I178: =IFERROR(VLOOKUP(A178,Лист1!A:J,9,0),"") -> 06200 | J178: https://www.obo.global/products/building-installations/device-installation-ducts-and-trunking/fittings-device-installation-trunking/end-pieces/end-piece.html | K178: =IFERROR(VLOOKUP(A178,Лист1!A:K,10,0),"") -> https://www.obo.global/products/building-installations/device-installation-ducts-and-trunking/fittings-device-installation-trunking/end-pieces/end-piece.html
A179: 6113072 | B179: =IFERROR(VLOOKUP(A179,Лист1!A:J,2,0),"") -> Внутрішній регульований кут 100x53 Rapid 45 / ПК/АБС, RAL 7035 | C179: =IFERROR(VLOOKUP(A179,Лист1!A:J,3,0),"") -> 4.98 | D179: 237 | E179: =IFERROR(VLOOKUP(A179,Лист1!A:J,5,0),"") -> 1 | F179: =IFERROR(VLOOKUP(A179,Лист1!A:J,6,0),"") -> шт. | G179: =IFERROR(VLOOKUP(A179,Лист1!A:J,7,0),"") -> 1 | H179: =IFERROR(VLOOKUP(A179,Лист1!A:J,8,0),"") -> LFS | I179: =IFERROR(VLOOKUP(A179,Лист1!A:J,9,0),"") -> 06200 | J179: https://www.obo.global/products/building-installations/device-installation-ducts-and-trunking/fittings-device-installation-trunking/internal-corner-trunking/internal-corner-cover.html | K179: =IFERROR(VLOOKUP(A179,Лист1!A:K,10,0),"") -> https://www.obo.global/products/building-installations/device-installation-ducts-and-trunking/fittings-device-installation-trunking/internal-corner-trunking/internal-corner-cover.html
A180: 6113052 | B180: =IFERROR(VLOOKUP(A180,Лист1!A:J,2,0),"") -> Зовнішній регульований кут 100x53 Rapid 45 / ПК/АБС, RAL 7035 | C180: =IFERROR(VLOOKUP(A180,Лист1!A:J,3,0),"") -> 4.98 | D180: 237 | E180: =IFERROR(VLOOKUP(A180,Лист1!A:J,5,0),"") -> 1 | F180: =IFERROR(VLOOKUP(A180,Лист1!A:J,6,0),"") -> шт. | G180: =IFERROR(VLOOKUP(A180,Лист1!A:J,7,0),"") -> 1 | H180: =IFERROR(VLOOKUP(A180,Лист1!A:J,8,0),"") -> LFS | I180: =IFERROR(VLOOKUP(A180,Лист1!A:J,9,0),"") -> 06200 | J180: https://www.obo.global/products/building-installations/device-installation-ducts-and-trunking/fittings-device-installation-trunking/external-corner-covers/external-corner-cover.html | K180: =IFERROR(VLOOKUP(A180,Лист1!A:K,10,0),"") -> https://www.obo.global/products/building-installations/device-installation-ducts-and-trunking/fittings-device-installation-trunking/external-corner-covers/external-corner-cover.html
A181: 6113092 | B181: =IFERROR(VLOOKUP(A181,Лист1!A:J,2,0),"") -> Кришка плоского кута 100x53 Rapid 45 / ПК/АБС, RAL 7035 | C181: =IFERROR(VLOOKUP(A181,Лист1!A:J,3,0),"") -> 9.39 | D181: 446.87 | E181: =IFERROR(VLOOKUP(A181,Лист1!A:J,5,0),"") -> 1 | F181: =IFERROR(VLOOKUP(A181,Лист1!A:J,6,0),"") -> шт. | G181: =IFERROR(VLOOKUP(A181,Лист1!A:J,7,0),"") -> 1 | H181: =IFERROR(VLOOKUP(A181,Лист1!A:J,8,0),"") -> LFS | I181: =IFERROR(VLOOKUP(A181,Лист1!A:J,9,0),"") -> 06200 | J181: https://www.obo.global/products/building-installations/device-installation-ducts-and-trunking/fittings-device-installation-trunking/flat-angle-cover/flat-angle-cover.html | K181: =IFERROR(VLOOKUP(A181,Лист1!A:K,10,0),"") -> https://www.obo.global/products/building-installations/device-installation-ducts-and-trunking/fittings-device-installation-trunking/flat-angle-cover/flat-angle-cover.html
A182: 6113102 | B182: =IFERROR(VLOOKUP(A182,Лист1!A:J,2,0),"") -> Т-секція 100x53 Rapid 45 / ПК/АБС, RAL 7035 | C182: =IFERROR(VLOOKUP(A182,Лист1!A:J,3,0),"") -> 3.88 | D182: 184.65 | E182: =IFERROR(VLOOKUP(A182,Лист1!A:J,5,0),"") -> 1 | F182: =IFERROR(VLOOKUP(A182,Лист1!A:J,6,0),"") -> шт. | G182: =IFERROR(VLOOKUP(A182,Лист1!A:J,7,0),"") -> 1 | H182: =IFERROR(VLOOKUP(A182,Лист1!A:J,8,0),"") -> LFS | I182: =IFERROR(VLOOKUP(A182,Лист1!A:J,9,0),"") -> 06200 | J182: https://www.obo.global/products/building-installations/device-installation-ducts-and-trunking/fittings-device-installation-trunking/t-pieces/t-piece-adapter.html | K182: =IFERROR(VLOOKUP(A182,Лист1!A:K,10,0),"") -> https://www.obo.global/products/building-installations/device-installation-ducts-and-trunking/fittings-device-installation-trunking/t-pieces/t-piece-adapter.html
A183: 6113022 | B183: =IFERROR(VLOOKUP(A183,Лист1!A:J,2,0),"") -> Накладка на стик 100x53, 165x53 Rapid 45 / ПК/АБС, RAL 7035 | C183: =IFERROR(VLOOKUP(A183,Лист1!A:J,3,0),"") -> 1.04 | D183: 49.49 | E183: =IFERROR(VLOOKUP(A183,Лист1!A:J,5,0),"") -> 1 | F183: =IFERROR(VLOOKUP(A183,Лист1!A:J,6,0),"") -> шт. | G183: =IFERROR(VLOOKUP(A183,Лист1!A:J,7,0),"") -> 6 | H183: =IFERROR(VLOOKUP(A183,Лист1!A:J,8,0),"") -> LFS | I183: =IFERROR(VLOOKUP(A183,Лист1!A:J,9,0),"") -> 06200 | J183: https://www.obo.global/products/building-installations/device-installation-ducts-and-trunking/fittings-device-installation-trunking/joint-covers/trunking-connector-and-joint-cover.html | K183: =IFERROR(VLOOKUP(A183,Лист1!A:K,10,0),"") -> https://www.obo.global/products/building-installations/device-installation-ducts-and-trunking/fittings-device-installation-trunking/joint-covers/trunking-connector-and-joint-cover.html
A184: 6113032 | B184: =IFERROR(VLOOKUP(A184,Лист1!A:J,2,0),"") -> Декоративна заглушка кришки 100x53 Rapid 45 / ПК/АБС, RAL 7035 | C184: =IFERROR(VLOOKUP(A184,Лист1!A:J,3,0),"") -> 1.8 | D184: 85.66 | E184: =IFERROR(VLOOKUP(A184,Лист1!A:J,5,0),"") -> 1 | F184: =IFERROR(VLOOKUP(A184,Лист1!A:J,6,0),"") -> шт. | G184: =IFERROR(VLOOKUP(A184,Лист1!A:J,7,0),"") -> 6 | H184: =IFERROR(VLOOKUP(A184,Лист1!A:J,8,0),"") -> LFS | I184: =IFERROR(VLOOKUP(A184,Лист1!A:J,9,0),"") -> 06200 | J184: https://www.obo.global/products/building-installations/device-installation-ducts-and-trunking/fittings-device-installation-trunking/joint-covers/joint-cover.html | K184: =IFERROR(VLOOKUP(A184,Лист1!A:K,10,0),"") -> https://www.obo.global/products/building-installations/device-installation-ducts-and-trunking/fittings-device-installation-trunking/joint-covers/joint-cover.html
A185: 6113290 | B185: =IFERROR(VLOOKUP(A185,Лист1!A:J,2,0),"") -> Розділювальна перегородка, h=38мм, L=2000мм / ПВХ | C185: =IFERROR(VLOOKUP(A185,Лист1!A:J,3,0),"") -> 1.31 | D185: 62.34 | E185: =IFERROR(VLOOKUP(A185,Лист1!A:J,5,0),"") -> 1 | F185: =IFERROR(VLOOKUP(A185,Лист1!A:J,6,0),"") -> м | G185: =IFERROR(VLOOKUP(A185,Лист1!A:J,7,0),"") -> 2 | H185: =IFERROR(VLOOKUP(A185,Лист1!A:J,8,0),"") -> LFS | I185: =IFERROR(VLOOKUP(A185,Лист1!A:J,9,0),"") -> 06200 | J185: https://www.obo.global/products/building-installations/device-installation-ducts-and-trunking/accessories-device-installation-trunking/partitions/partition.html | K185: =IFERROR(VLOOKUP(A185,Лист1!A:K,10,0),"") -> https://www.obo.global/products/building-installations/device-installation-ducts-and-trunking/accessories-device-installation-trunking/partitions/partition.html
A186: Кабельний канал Rapid 100x53, алюміній (для електроустановки Modul 45) | C186: =IFERROR(VLOOKUP(A186,Лист1!A:J,3,0),"") ->  | E186: =IFERROR(VLOOKUP(A186,Лист1!A:J,5,0),"") ->  | F186: =IFERROR(VLOOKUP(A186,Лист1!A:J,6,0),"") ->  | G186: =IFERROR(VLOOKUP(A186,Лист1!A:J,7,0),"") ->  | H186: =IFERROR(VLOOKUP(A186,Лист1!A:J,8,0),"") ->  | I186: =IFERROR(VLOOKUP(A186,Лист1!A:J,9,0),"") ->  | K186: =IFERROR(VLOOKUP(A186,Лист1!A:K,10,0),"") -> 
A187: 6112403 | B187: =IFERROR(VLOOKUP(A187,Лист1!A:J,2,0),"") -> Кабель-канал 100x53 Rapid 45 / анодований алюмін. | C187: =IFERROR(VLOOKUP(A187,Лист1!A:J,3,0),"") -> 49.34 | D187: 2348.08 | E187: =IFERROR(VLOOKUP(A187,Лист1!A:J,5,0),"") -> 1 | F187: =IFERROR(VLOOKUP(A187,Лист1!A:J,6,0),"") -> м | G187: =IFERROR(VLOOKUP(A187,Лист1!A:J,7,0),"") -> 8 | H187: =IFERROR(VLOOKUP(A187,Лист1!A:J,8,0),"") -> LFS | I187: =IFERROR(VLOOKUP(A187,Лист1!A:J,9,0),"") -> 06400 | J187: https://www.obo.global/products/building-installations/device-installation-ducts-and-trunking/device-installation-ducts-and-trunking/rapid-45-2-device-installation-trunking/device-installation-trunking-rapid-45-2-type-ga-53100.html | K187: =IFERROR(VLOOKUP(A187,Лист1!A:K,10,0),"") -> https://www.obo.global/products/building-installations/device-installation-ducts-and-trunking/device-installation-ducts-and-trunking/rapid-45-2-device-installation-trunking/device-installation-trunking-rapid-45-2-type-ga-53100.html
A188: 6113114 | B188: =IFERROR(VLOOKUP(A188,Лист1!A:J,2,0),"") -> Заглушка 100x53 Rapid 45 / ПК/АБС / сріблястий | C188: =IFERROR(VLOOKUP(A188,Лист1!A:J,3,0),"") -> 3.86 | D188: 183.7 | E188: =IFERROR(VLOOKUP(A188,Лист1!A:J,5,0),"") -> 1 | F188: =IFERROR(VLOOKUP(A188,Лист1!A:J,6,0),"") -> шт. | G188: =IFERROR(VLOOKUP(A188,Лист1!A:J,7,0),"") -> 1 | H188: =IFERROR(VLOOKUP(A188,Лист1!A:J,8,0),"") -> LFS | I188: =IFERROR(VLOOKUP(A188,Лист1!A:J,9,0),"") -> 06200 | J188: https://www.obo.global/products/building-installations/device-installation-ducts-and-trunking/fittings-device-installation-trunking/end-pieces/end-piece.html | K188: =IFERROR(VLOOKUP(A188,Лист1!A:K,10,0),"") -> https://www.obo.global/products/building-installations/device-installation-ducts-and-trunking/fittings-device-installation-trunking/end-pieces/end-piece.html
A189: 6113074 | B189: =IFERROR(VLOOKUP(A189,Лист1!A:J,2,0),"") -> Внутрішній регульований кут 100x53 Rapid 45 / ПК/АБС / сріблястий | C189: =IFERROR(VLOOKUP(A189,Лист1!A:J,3,0),"") -> 12.9 | D189: 613.91 | E189: =IFERROR(VLOOKUP(A189,Лист1!A:J,5,0),"") -> 1 | F189: =IFERROR(VLOOKUP(A189,Лист1!A:J,6,0),"") -> шт. | G189: =IFERROR(VLOOKUP(A189,Лист1!A:J,7,0),"") -> 1 | H189: =IFERROR(VLOOKUP(A189,Лист1!A:J,8,0),"") -> LFS | I189: =IFERROR(VLOOKUP(A189,Лист1!A:J,9,0),"") -> 06200 | J189: https://www.obo.global/search/?searchparam=6113074 | K189: =IFERROR(VLOOKUP(A189,Лист1!A:K,10,0),"") -> https://www.obo.global/search/?searchparam=6113074
A190: 6113054 | B190: =IFERROR(VLOOKUP(A190,Лист1!A:J,2,0),"") -> Зовнішній регульований кут 100x53 Rapid 45 / ПК/АБС / сріблястий | C190: =IFERROR(VLOOKUP(A190,Лист1!A:J,3,0),"") -> 12.9 | D190: 613.91 | E190: =IFERROR(VLOOKUP(A190,Лист1!A:J,5,0),"") -> 1 | F190: =IFERROR(VLOOKUP(A190,Лист1!A:J,6,0),"") -> шт. | G190: =IFERROR(VLOOKUP(A190,Лист1!A:J,7,0),"") -> 1 | H190: =IFERROR(VLOOKUP(A190,Лист1!A:J,8,0),"") -> LFS | I190: =IFERROR(VLOOKUP(A190,Лист1!A:J,9,0),"") -> 06200 | J190: https://www.obo.global/products/building-installations/device-installation-ducts-and-trunking/fittings-device-installation-trunking/external-corner-covers/external-corner-cover.html | K190: =IFERROR(VLOOKUP(A190,Лист1!A:K,10,0),"") -> https://www.obo.global/products/building-installations/device-installation-ducts-and-trunking/fittings-device-installation-trunking/external-corner-covers/external-corner-cover.html
A191: 6113094 | B191: =IFERROR(VLOOKUP(A191,Лист1!A:J,2,0),"") -> Кришка плоского кута 100x53 Rapid 45 / ПК/АБС / сріблястий | C191: =IFERROR(VLOOKUP(A191,Лист1!A:J,3,0),"") -> 15.78 | D191: 750.97 | E191: =IFERROR(VLOOKUP(A191,Лист1!A:J,5,0),"") -> 1 | F191: =IFERROR(VLOOKUP(A191,Лист1!A:J,6,0),"") -> шт. | G191: =IFERROR(VLOOKUP(A191,Лист1!A:J,7,0),"") -> 1 | H191: =IFERROR(VLOOKUP(A191,Лист1!A:J,8,0),"") -> LFS | I191: =IFERROR(VLOOKUP(A191,Лист1!A:J,9,0),"") -> 06200 | J191: https://www.obo.global/search/?searchparam=6113094 | K191: =IFERROR(VLOOKUP(A191,Лист1!A:K,10,0),"") -> https://www.obo.global/search/?searchparam=6113094
A192: 6113104 | B192: =IFERROR(VLOOKUP(A192,Лист1!A:J,2,0),"") -> Т-секція 100x53 Rapid 45 / ПК/АБС / сріблястий | C192: =IFERROR(VLOOKUP(A192,Лист1!A:J,3,0),"") -> 8.75 | D192: 416.41 | E192: =IFERROR(VLOOKUP(A192,Лист1!A:J,5,0),"") -> 1 | F192: =IFERROR(VLOOKUP(A192,Лист1!A:J,6,0),"") -> шт. | G192: =IFERROR(VLOOKUP(A192,Лист1!A:J,7,0),"") -> 1 | H192: =IFERROR(VLOOKUP(A192,Лист1!A:J,8,0),"") -> LFS | I192: =IFERROR(VLOOKUP(A192,Лист1!A:J,9,0),"") -> 06200 | J192: https://www.obo.global/search/?searchparam=6113104 | K192: =IFERROR(VLOOKUP(A192,Лист1!A:K,10,0),"") -> https://www.obo.global/search/?searchparam=6113104
A193: 6113024 | B193: =IFERROR(VLOOKUP(A193,Лист1!A:J,2,0),"") -> Накладка на стик 100x53 Rapid 45 / ПК/АБС / сріблястий | C193: =IFERROR(VLOOKUP(A193,Лист1!A:J,3,0),"") -> 2.88 | D193: 137.06 | E193: =IFERROR(VLOOKUP(A193,Лист1!A:J,5,0),"") -> 1 | F193: =IFERROR(VLOOKUP(A193,Лист1!A:J,6,0),"") -> шт. | G193: =IFERROR(VLOOKUP(A193,Лист1!A:J,7,0),"") -> 6 | H193: =IFERROR(VLOOKUP(A193,Лист1!A:J,8,0),"") -> LFS | I193: =IFERROR(VLOOKUP(A193,Лист1!A:J,9,0),"") -> 06200 | J193: https://www.obo.global/products/building-installations/device-installation-ducts-and-trunking/fittings-device-installation-trunking/joint-covers/trunking-connector-and-joint-cover.html | K193: =IFERROR(VLOOKUP(A193,Лист1!A:K,10,0),"") -> https://www.obo.global/products/building-installations/device-installation-ducts-and-trunking/fittings-device-installation-trunking/joint-covers/trunking-connector-and-joint-cover.html
A194: 6113034 | B194: =IFERROR(VLOOKUP(A194,Лист1!A:J,2,0),"") -> Декоративна заглушка кришки 100x53 Rapid 45 / ПК/АБС / сріблястий | C194: =IFERROR(VLOOKUP(A194,Лист1!A:J,3,0),"") -> 4.95 | D194: 235.57 | E194: =IFERROR(VLOOKUP(A194,Лист1!A:J,5,0),"") -> 1 | F194: =IFERROR(VLOOKUP(A194,Лист1!A:J,6,0),"") -> шт. | G194: =IFERROR(VLOOKUP(A194,Лист1!A:J,7,0),"") -> 6 | H194: =IFERROR(VLOOKUP(A194,Лист1!A:J,8,0),"") -> LFS | I194: =IFERROR(VLOOKUP(A194,Лист1!A:J,9,0),"") -> 06200 | J194: https://www.obo.global/products/building-installations/device-installation-ducts-and-trunking/fittings-device-installation-trunking/joint-covers/joint-cover.html | K194: =IFERROR(VLOOKUP(A194,Лист1!A:K,10,0),"") -> https://www.obo.global/products/building-installations/device-installation-ducts-and-trunking/fittings-device-installation-trunking/joint-covers/joint-cover.html
A195: 6113290 | B195: =IFERROR(VLOOKUP(A195,Лист1!A:J,2,0),"") -> Розділювальна перегородка, h=38мм, L=2000мм / ПВХ | C195: =IFERROR(VLOOKUP(A195,Лист1!A:J,3,0),"") -> 1.31 | D195: 62.34 | E195: =IFERROR(VLOOKUP(A195,Лист1!A:J,5,0),"") -> 1 | F195: =IFERROR(VLOOKUP(A195,Лист1!A:J,6,0),"") -> м | G195: =IFERROR(VLOOKUP(A195,Лист1!A:J,7,0),"") -> 2 | H195: =IFERROR(VLOOKUP(A195,Лист1!A:J,8,0),"") -> LFS | I195: =IFERROR(VLOOKUP(A195,Лист1!A:J,9,0),"") -> 06200 | J195: https://www.obo.global/products/building-installations/device-installation-ducts-and-trunking/accessories-device-installation-trunking/partitions/partition.html | K195: =IFERROR(VLOOKUP(A195,Лист1!A:K,10,0),"") -> https://www.obo.global/products/building-installations/device-installation-ducts-and-trunking/accessories-device-installation-trunking/partitions/partition.html
A196: 6288704 | B196: =IFERROR(VLOOKUP(A196,Лист1!A:J,2,0),"") -> Клема заземлення 8AWR / латунь | C196: =IFERROR(VLOOKUP(A196,Лист1!A:J,3,0),"") -> 1.6 | D196: 76.14 | E196: =IFERROR(VLOOKUP(A196,Лист1!A:J,5,0),"") -> 1 | F196: =IFERROR(VLOOKUP(A196,Лист1!A:J,6,0),"") -> шт. | G196: =IFERROR(VLOOKUP(A196,Лист1!A:J,7,0),"") -> 10 | H196: =IFERROR(VLOOKUP(A196,Лист1!A:J,8,0),"") -> LFS | I196: =IFERROR(VLOOKUP(A196,Лист1!A:J,9,0),"") -> 06500 | J196: https://www.obo.global/products/industrial-installations/power-supply-unit/accessories-industrial-service-poles/connection-profile/protective-conductor-connection-bracket.html | K196: =IFERROR(VLOOKUP(A196,Лист1!A:K,10,0),"") -> https://www.obo.global/products/industrial-installations/power-supply-unit/accessories-industrial-service-poles/connection-profile/protective-conductor-connection-bracket.html
A197: Кабельний канал Rapid 130x53, 2-секції, ПВХ, RAL 9010 (для електроустановки Modul 45) | C197: =IFERROR(VLOOKUP(A197,Лист1!A:J,3,0),"") ->  | E197: =IFERROR(VLOOKUP(A197,Лист1!A:J,5,0),"") ->  | F197: =IFERROR(VLOOKUP(A197,Лист1!A:J,6,0),"") ->  | G197: =IFERROR(VLOOKUP(A197,Лист1!A:J,7,0),"") ->  | H197: =IFERROR(VLOOKUP(A197,Лист1!A:J,8,0),"") ->  | I197: =IFERROR(VLOOKUP(A197,Лист1!A:J,9,0),"") ->  | K197: =IFERROR(VLOOKUP(A197,Лист1!A:K,10,0),"") -> 
A198: 6113200 | B198: =IFERROR(VLOOKUP(A198,Лист1!A:J,2,0),"") -> Кабель-канал 130x53 (2-секції) Rapid 45 / ПВХ | C198: =IFERROR(VLOOKUP(A198,Лист1!A:J,3,0),"") -> 8.98 | D198: 427.36 | E198: =IFERROR(VLOOKUP(A198,Лист1!A:J,5,0),"") -> 1 | F198: =IFERROR(VLOOKUP(A198,Лист1!A:J,6,0),"") -> м | G198: =IFERROR(VLOOKUP(A198,Лист1!A:J,7,0),"") -> 8 | H198: =IFERROR(VLOOKUP(A198,Лист1!A:J,8,0),"") -> LFS | I198: =IFERROR(VLOOKUP(A198,Лист1!A:J,9,0),"") -> 06200 | J198: https://www.obo.global/products/building-installations/device-installation-ducts-and-trunking/device-installation-ducts-and-trunking/rapid-45-2-device-installation-trunking/device-installation-trunking-rapid-45-2-type-gk-53130.html | K198: =IFERROR(VLOOKUP(A198,Лист1!A:K,10,0),"") -> https://www.obo.global/products/building-installations/device-installation-ducts-and-trunking/device-installation-ducts-and-trunking/rapid-45-2-device-installation-trunking/device-installation-trunking-rapid-45-2-type-gk-53130.html
A199: 6113280 | B199: =IFERROR(VLOOKUP(A199,Лист1!A:J,2,0),"") -> Заглушка 130x53 Rapid 45 / ПК/АБС | C199: =IFERROR(VLOOKUP(A199,Лист1!A:J,3,0),"") -> 1.43 | D199: 68.05 | E199: =IFERROR(VLOOKUP(A199,Лист1!A:J,5,0),"") -> 1 | F199: =IFERROR(VLOOKUP(A199,Лист1!A:J,6,0),"") -> шт. | G199: =IFERROR(VLOOKUP(A199,Лист1!A:J,7,0),"") -> 1 | H199: =IFERROR(VLOOKUP(A199,Лист1!A:J,8,0),"") -> LFS | I199: =IFERROR(VLOOKUP(A199,Лист1!A:J,9,0),"") -> 06200 | J199: https://www.obo.global/search/?searchparam=6113280 | K199: =IFERROR(VLOOKUP(A199,Лист1!A:K,10,0),"") -> https://www.obo.global/search/?searchparam=6113280
A200: 6113250 | B200: =IFERROR(VLOOKUP(A200,Лист1!A:J,2,0),"") -> Внутрішній регульований кут 130x53 Rapid 45 / ПК/АБС | C200: =IFERROR(VLOOKUP(A200,Лист1!A:J,3,0),"") -> 5.7 | D200: =IFERROR(ROUND(C200*$D$2*1.2,2),"") -> 271.26 | E200: =IFERROR(VLOOKUP(A200,Лист1!A:J,5,0),"") -> 1 | F200: =IFERROR(VLOOKUP(A200,Лист1!A:J,6,0),"") -> шт. | G200: =IFERROR(VLOOKUP(A200,Лист1!A:J,7,0),"") -> 1 | H200: =IFERROR(VLOOKUP(A200,Лист1!A:J,8,0),"") -> LFS | I200: =IFERROR(VLOOKUP(A200,Лист1!A:J,9,0),"") -> 06200 | J200: =IFERROR(HYPERLINK(K200,K200),"") -> https://www.obo.global/search/?searchparam=6113250 | K200: =IFERROR(VLOOKUP(A200,Лист1!A:K,10,0),"") -> https://www.obo.global/search/?searchparam=6113250
A201: 6113230 | B201: =IFERROR(VLOOKUP(A201,Лист1!A:J,2,0),"") -> Зовнішній регульований кут 130x53 Rapid 45 / ПК/АБС | C201: =IFERROR(VLOOKUP(A201,Лист1!A:J,3,0),"") -> 5.7 | D201: 271.26 | E201: =IFERROR(VLOOKUP(A201,Лист1!A:J,5,0),"") -> 1 | F201: =IFERROR(VLOOKUP(A201,Лист1!A:J,6,0),"") -> шт. | G201: =IFERROR(VLOOKUP(A201,Лист1!A:J,7,0),"") -> 1 | H201: =IFERROR(VLOOKUP(A201,Лист1!A:J,8,0),"") -> LFS | I201: =IFERROR(VLOOKUP(A201,Лист1!A:J,9,0),"") -> 06200 | J201: https://www.obo.global/search/?searchparam=6113230 | K201: =IFERROR(VLOOKUP(A201,Лист1!A:K,10,0),"") -> https://www.obo.global/search/?searchparam=6113230
... 4881 more rows

Sheet техническая (hidden)
A1: Пов-ний код | B1: Колек-ція | C1: Код SI1 | E1: Опис SI1 | G1: Опис SI2 | H1: Пов-ний код | N1: eur | O1: =Курс!G17 -> 04.12.2023 | P1: =LEFT(Курс!A20,7) -> 39,6582 | AD1: art | AE1: stock | AF1: PER
I2: Знижка | N2: OBO1 | O2: OBO2 | P2: OBO3 | Q2: OBO4 | R2: OBO1/3 | S2: OBO3/1 | Z2: =IFERROR(VLOOKUP('OBO специфікація'!A9,Лист1!A:J,9,0),"") -> 04250 | AD2: ='OBO специфікація'!A9 -> 6005535 | AE2: =VLOOKUP(AD2,stock!A:F,6,0) ->  | AF2: =VLOOKUP(AD2,Лист1!A:J,7,0) -> 3
A3: 01100 | B3: OBO1 | C3: 01 | D3: VBS | E3: Системи кріплень та монтажу | F3: 100 | G3: Система розподільних коробок | H3: 01100 | I3: =$N$3 -> 0 | N3: =IFERROR('OBO специфікація'!H2,"") -> 0 | O3: =IFERROR('OBO специфікація'!I2,"0") -> 0 | P3: =IFERROR(IF('OBO специфікація'!J2=0.3,0.3,'OBO специфікація'!J2),"") -> 0 | Q3: =IFERROR('OBO специфікація'!K2,"0") -> 0 | R3: =R5 -> 0 | S3: =IFERROR(IF($P$3=0.35,P3-0.02,IF(P3=0.4,P3-0.05,IF(P3>0.35,P3,IF(P3=0.2,P3,P3)))),"") -> 0 | Z3: =IFERROR(VLOOKUP('OBO специфікація'!A10,Лист1!A:J,9,0),"") -> 04250 | AD3: ='OBO специфікація'!A10 -> 6005607 | AE3: =VLOOKUP(AD3,stock!A:F,6,0) ->  | AF3: =VLOOKUP(AD3,Лист1!A:J,7,0) -> 25
A4: 01110 | B4: OBO1 | F4: 110 | G4: Монтажні коробки | H4: 01110 | I4: 0 | Z4: =IFERROR(VLOOKUP('OBO специфікація'!A11,Лист1!A:J,9,0),"") ->  | AD4: ='OBO специфікація'!A11 -> 0 | AE4: =VLOOKUP(AD4,stock!A:F,6,0) ->  | AF4: =VLOOKUP(AD4,Лист1!A:J,7,0) -> 
A5: 01120 | B5: OBO1 | F5: 120 | G5: Клемні колодки/ зажими | H5: 01120 | I5: 0 | R5: =S3 -> 0 | Z5: =IFERROR(VLOOKUP('OBO специфікація'!A12,Лист1!A:J,9,0),"") ->  | AD5: ='OBO специфікація'!A12 -> 0 | AE5: =VLOOKUP(AD5,stock!A:F,6,0) ->  | AF5: =VLOOKUP(AD5,Лист1!A:J,7,0) -> 
A6: 01130 | B6: OBO1 | F6: 130 | G6: Кабельні вводи | H6: 01130 | I6: 0 | Z6: =IFERROR(VLOOKUP('OBO специфікація'!A13,Лист1!A:J,9,0),"") ->  | AD6: ='OBO специфікація'!A13 -> 0 | AE6: =VLOOKUP(AD6,stock!A:F,6,0) ->  | AF6: =VLOOKUP(AD6,Лист1!A:J,7,0) -> 
A7: 01150 | B7: OBO1 | F7: 150 | G7: Кріплення кабелю та труб, пластикові | H7: 01150 | I7: =$N$3 -> 0 | Z7: =IFERROR(VLOOKUP('OBO специфікація'!A14,Лист1!A:J,9,0),"") ->  | AD7: ='OBO специфікація'!A14 -> 0 | AE7: =VLOOKUP(AD7,stock!A:F,6,0) ->  | AF7: =VLOOKUP(AD7,Лист1!A:J,7,0) -> 
A8: 01160 | B8: OBO1 | F8: 160 | G8: Кріплення кабелю та труб, металеві | H8: 01160 | I8: 0 | Z8: =IFERROR(VLOOKUP('OBO специфікація'!A15,Лист1!A:J,9,0),"") ->  | AD8: ='OBO специфікація'!A15 -> 0 | AE8: =VLOOKUP(AD8,stock!A:F,6,0) ->  | AF8: =VLOOKUP(AD8,Лист1!A:J,7,0) -> 
A9: 01170 | B9: OBO1 | F9: 170 | G9: Cистеми прокладки кабелю та монтажу | H9: 01170 | I9: 0 | Z9: =IFERROR(VLOOKUP('OBO специфікація'!A16,Лист1!A:J,9,0),"") ->  | AD9: ='OBO специфікація'!A16 -> 0 | AE9: =VLOOKUP(AD9,stock!A:F,6,0) ->  | AF9: =VLOOKUP(AD9,Лист1!A:J,7,0) -> 
A10: 01190 | B10: OBO1 | F10: 190 | G10: Системи труб | H10: 01190 | I10: 0 | Z10: =IFERROR(VLOOKUP('OBO специфікація'!A17,Лист1!A:J,9,0),"") ->  | AD10: ='OBO специфікація'!A17 -> 0 | AE10: =VLOOKUP(AD10,stock!A:F,6,0) ->  | AF10: =VLOOKUP(AD10,Лист1!A:J,7,0) -> 
A11: 05100 | B11: OBO1/4 | C11: 05 | D11: BSS | E11: Системи, переш-коджаючі поширенню вогню | F11: 100 | G11: Вогнестійкі кабельні проходки S90 | H11: 05100 | I11: 0 | Z11: =IFERROR(VLOOKUP('OBO специфікація'!A18,Лист1!A:J,9,0),"") ->  | AD11: ='OBO специфікація'!A18 -> 0 | AE11: =VLOOKUP(AD11,stock!A:F,6,0) ->  | AF11: =VLOOKUP(AD11,Лист1!A:J,7,0) -> 
A12: 05130 | B12: OBO1/4 | F12: 130 | G12: Cистеми оповіщення та евакуації при пожежі | H12: 05130 | I12: 0 | Z12: =IFERROR(VLOOKUP('OBO специфікація'!A19,Лист1!A:J,9,0),"") ->  | AD12: ='OBO специфікація'!A19 -> 0 | AE12: =VLOOKUP(AD12,stock!A:F,6,0) ->  | AF12: =VLOOKUP(AD12,Лист1!A:J,7,0) -> 
A13: 05150 | B13: OBO1/4 | F13: 150 | G13: Система вогнестійких кабельних коробів (металеві) | H13: 05150 | I13: 0 | Z13: =IFERROR(VLOOKUP('OBO специфікація'!A20,Лист1!A:J,9,0),"") ->  | AD13: ='OBO специфікація'!A20 -> 0 | AE13: =VLOOKUP(AD13,stock!A:F,6,0) ->  | AF13: =VLOOKUP(AD13,Лист1!A:J,7,0) -> 
A14: 05170 | B14: OBO1/4 | F14: 170 | G14: Система вогнестійких кабельних коробів (бетон) | H14: 05170 | I14: 0 | Z14: =IFERROR(VLOOKUP('OBO специфікація'!A21,Лист1!A:J,9,0),"") ->  | AD14: ='OBO специфікація'!A21 -> 0 | AE14: =VLOOKUP(AD14,stock!A:F,6,0) ->  | AF14: =VLOOKUP(AD14,Лист1!A:J,7,0) -> 
A15: 05200 | B15: OBO1/4 | F15: 200 | G15: Система вогнестійких підвісів та кріплення | H15: 05200 | I15: 0 | Z15: =IFERROR(VLOOKUP('OBO специфікація'!A22,Лист1!A:J,9,0),"") ->  | AD15: ='OBO специфікація'!A22 -> 0 | AE15: =VLOOKUP(AD15,stock!A:F,6,0) ->  | AF15: =VLOOKUP(AD15,Лист1!A:J,7,0) -> 
A16: 05250 | B16: OBO1/4 | G16: Розподільчі коробки системи Р30-Р90 | H16: 05250 | I16: 0 | Z16: =IFERROR(VLOOKUP('OBO специфікація'!A23,Лист1!A:J,9,0),"") ->  | AD16: ='OBO специфікація'!A23 -> 0 | AE16: =VLOOKUP(AD16,stock!A:F,6,0) ->  | AF16: =VLOOKUP(AD16,Лист1!A:J,7,0) -> 
A17: 05300 | B17: OBO1/4 | F17: 300 | G17: Вогнестійкі анкерні кріплення | H17: 05300 | I17: 0 | Z17: =IFERROR(VLOOKUP('OBO специфікація'!A24,Лист1!A:J,9,0),"") ->  | AD17: ='OBO специфікація'!A24 -> 0 | AE17: =VLOOKUP(AD17,stock!A:F,6,0) ->  | AF17: =VLOOKUP(AD17,Лист1!A:J,7,0) -> 
A18: 06100 | B18: OBO1/3 | F18: 100 | G18: Система пластикових кабельних коробів | H18: 06100 | I18: =R5 -> 0 | Z18: =IFERROR(VLOOKUP('OBO специфікація'!A25,Лист1!A:J,9,0),"") ->  | AD18: ='OBO специфікація'!A25 -> 0 | AE18: =VLOOKUP(AD18,stock!A:F,6,0) ->  | AF18: =VLOOKUP(AD18,Лист1!A:J,7,0) -> 
A19: 02100 | B19: OBO2 | G19: Захист від імпульсних перенапруг | H19: 02100 | I19: =$O$3 -> 0 | Z19: =IFERROR(VLOOKUP('OBO специфікація'!A26,Лист1!A:J,9,0),"") ->  | AD19: ='OBO специфікація'!A26 -> 0 | AE19: =VLOOKUP(AD19,stock!A:F,6,0) ->  | AF19: =VLOOKUP(AD19,Лист1!A:J,7,0) -> 
A20: 02150 | B20: OBO3/1 | C20: 06 | D20: LFS | E20: Системи кабельних коробів | F20: 150 | G20: Система зрівнювання потенціалу | H20: 02150 | I20: =$O$3 -> 0 | Z20: =IFERROR(VLOOKUP('OBO специфікація'!A27,Лист1!A:J,9,0),"") ->  | AD20: ='OBO специфікація'!A27 -> 0 | AE20: =VLOOKUP(AD20,stock!A:F,6,0) ->  | AF20: =VLOOKUP(AD20,Лист1!A:J,7,0) -> 
A21: 02200 | B21: OBO3/1 | F21: 200 | G21: Система заземлення | H21: 02200 | I21: 0 | Z21: =IFERROR(VLOOKUP('OBO специфікація'!A28,Лист1!A:J,9,0),"") ->  | AD21: ='OBO специфікація'!A28 -> 0 | AE21: =VLOOKUP(AD21,stock!A:F,6,0) ->  | AF21: =VLOOKUP(AD21,Лист1!A:J,7,0) -> 
A22: 02250 | B22: OBO3/1 | F22: 250 | G22: Система зовнішнього блискавкозахисту | H22: 02250 | I22: 0 | Z22: =IFERROR(VLOOKUP('OBO специфікація'!A29,Лист1!A:J,9,0),"") ->  | AD22: ='OBO специфікація'!A29 -> 0 | AE22: =VLOOKUP(AD22,stock!A:F,6,0) ->  | AF22: =VLOOKUP(AD22,Лист1!A:J,7,0) -> 
A23: 06100 | B23: OBO3 | F23: 100 | G23: Система пластикових кабельних коробів | H23: 06100 | I23: =R5 -> 0 | Z23: =IFERROR(VLOOKUP('OBO специфікація'!A30,Лист1!A:J,9,0),"") ->  | AD23: ='OBO специфікація'!A30 -> 0 | AE23: =VLOOKUP(AD23,stock!A:F,6,0) ->  | AF23: =VLOOKUP(AD23,Лист1!A:J,7,0) -> 
A24: 06180 | B24: OBO3 | F24: 180 | G24: Система розподільних коробів | H24: 06180 | I24: =$S$3 -> 0 | Z24: =IFERROR(VLOOKUP('OBO специфікація'!A31,Лист1!A:J,9,0),"") ->  | AD24: ='OBO специфікація'!A31 -> 0 | AE24: =VLOOKUP(AD24,stock!A:F,6,0) ->  | AF24: =VLOOKUP(AD24,Лист1!A:J,7,0) -> 
A25: 06200 | B25: OBO3 | F25: 200 | G25: Системи пластикових кабельних коробів Rapid 45 | H25: 06200 | I25: 0 | Z25: =IFERROR(VLOOKUP('OBO специфікація'!A32,Лист1!A:J,9,0),"") ->  | AD25: ='OBO специфікація'!A32 -> 0 | AE25: =VLOOKUP(AD25,stock!A:F,6,0) ->  | AF25: =VLOOKUP(AD25,Лист1!A:J,7,0) -> 
A26: 06140 | B26: OBO3 | F26: 140 | G26: Система металевих кабельних коробів LKM | H26: 06140 | I26: 0 | Z26: =IFERROR(VLOOKUP('OBO специфікація'!A33,Лист1!A:J,9,0),"") ->  | AD26: ='OBO специфікація'!A33 -> 0 | AE26: =VLOOKUP(AD26,stock!A:F,6,0) ->  | AF26: =VLOOKUP(AD26,Лист1!A:J,7,0) -> 
A27: 06160 | B27: OBO3 | F27: 160 | G27: Системи плінтусних коробів SKL | H27: 06160 | I27: =$P$3 -> 0 | Z27: =IFERROR(VLOOKUP('OBO специфікація'!A34,Лист1!A:J,9,0),"") ->  | AD27: ='OBO специфікація'!A34 -> 0 | AE27: =VLOOKUP(AD27,stock!A:F,6,0) ->  | AF27: =VLOOKUP(AD27,Лист1!A:J,7,0) -> 
A28: 06300 | B28: OBO3 | F28: 300 | G28: Системи стальних кабельних коробів Rapid 80 | H28: 06300 | I28: 0 | Z28: =IFERROR(VLOOKUP('OBO специфікація'!A35,Лист1!A:J,9,0),"") ->  | AD28: ='OBO специфікація'!A35 -> 0 | AE28: =VLOOKUP(AD28,stock!A:F,6,0) ->  | AF28: =VLOOKUP(AD28,Лист1!A:J,7,0) -> 
A29: 06400 | B29: OBO3/1 | C29: 07 | D29: EGS | E29: Системи електро-установчих виробів | F29: 400 | G29: Системи алюмінієвих кабельних коробів Rapid 45 / GAD | H29: 06400 | I29: 0 | Z29: =IFERROR(VLOOKUP('OBO специфікація'!A36,Лист1!A:J,9,0),"") ->  | AD29: ='OBO специфікація'!A36 -> 0 | AE29: =VLOOKUP(AD29,stock!A:F,6,0) ->  | AF29: =VLOOKUP(AD29,Лист1!A:J,7,0) -> 
A30: 06450 | B30: OBO3/1 | F30: 450 | G30: Системи електромонтажних сервісних стійок та міні-колон | H30: 06450 | I30: 0 | Z30: =IFERROR(VLOOKUP('OBO специфікація'!A37,Лист1!A:J,9,0),"") ->  | AD30: ='OBO специфікація'!A37 -> 0 | AE30: =VLOOKUP(AD30,stock!A:F,6,0) ->  | AF30: =VLOOKUP(AD30,Лист1!A:J,7,0) -> 
A31: 06500 | B31: OBO3/1 | F31: 500 | G31: Аксесуари системи сервісних стоек | H31: 06500 | I31: 0 | Z31: =IFERROR(VLOOKUP('OBO специфікація'!A38,Лист1!A:J,9,0),"") ->  | AD31: ='OBO специфікація'!A38 -> 0 | AE31: =VLOOKUP(AD31,stock!A:F,6,0) ->  | AF31: =VLOOKUP(AD31,Лист1!A:J,7,0) -> 
A32: 16100 | B32: OBO3/1 | F32: 100 | G32: Система пластикових кабельних коробів REHAU | H32: 16100 | I32: 0 | Z32: =IFERROR(VLOOKUP('OBO специфікація'!A39,Лист1!A:J,9,0),"") ->  | AD32: ='OBO специфікація'!A39 -> 0 | AE32: =VLOOKUP(AD32,stock!A:F,6,0) ->  | AF32: =VLOOKUP(AD32,Лист1!A:J,7,0) -> 
A33: 16140 | B33: OBO3 | F33: 140 | G33: Система металевих кабельних коробів REHAU | H33: 16140 | I33: 0 | Z33: =IFERROR(VLOOKUP('OBO специфікація'!A40,Лист1!A:J,9,0),"") ->  | AD33: ='OBO специфікація'!A40 -> 0 | AE33: =VLOOKUP(AD33,stock!A:F,6,0) ->  | AF33: =VLOOKUP(AD33,Лист1!A:J,7,0) -> 
A34: 16160 | B34: OBO3 | F34: 160 | G34: Системи плінтусних коробів REHAU | H34: 16160 | I34: 0 | Z34: =IFERROR(VLOOKUP('OBO специфікація'!A41,Лист1!A:J,9,0),"") ->  | AD34: ='OBO специфікація'!A41 -> 0 | AE34: =VLOOKUP(AD34,stock!A:F,6,0) ->  | AF34: =VLOOKUP(AD34,Лист1!A:J,7,0) -> 
A35: 16180 | B35: OBO3 | F35: 180 | G35: Система розподільних коробів REHAU | H35: 16180 | I35: =$S$3 -> 0 | Z35: =IFERROR(VLOOKUP('OBO специфікація'!A42,Лист1!A:J,9,0),"") ->  | AD35: ='OBO специфікація'!A42 -> 0 | AE35: =VLOOKUP(AD35,stock!A:F,6,0) ->  | AF35: =VLOOKUP(AD35,Лист1!A:J,7,0) -> 
A36: 16200 | B36: OBO3 | C36: 08 | D36: UFS | E36: Системи прокладки кабеля під підлогою | F36: 200 | G36: Системи пластикових кабельних коробів V REHAU | H36: 16200 | I36: 0 | Z36: =IFERROR(VLOOKUP('OBO специфікація'!A43,Лист1!A:J,9,0),"") ->  | AD36: ='OBO специфікація'!A43 -> 0 | AE36: =VLOOKUP(AD36,stock!A:F,6,0) ->  | AF36: =VLOOKUP(AD36,Лист1!A:J,7,0) -> 
A37: 16220 | B37: OBO3 | F37: 220 | G37: Системи пластикових кабельних коробів B REHAU | H37: 16220 | I37: 0 | Z37: =IFERROR(VLOOKUP('OBO специфікація'!A44,Лист1!A:J,9,0),"") ->  | AD37: ='OBO специфікація'!A44 -> 0 | AE37: =VLOOKUP(AD37,stock!A:F,6,0) ->  | AF37: =VLOOKUP(AD37,Лист1!A:J,7,0) -> 
A38: 16300 | B38: OBO3 | F38: 300 | G38: Системи стальних кабельних коробів для електроустановки REHAU | H38: 16300 | I38: =$P$3 -> 0 | Z38: =IFERROR(VLOOKUP('OBO специфікація'!A45,Лист1!A:J,9,0),"") ->  | AD38: ='OBO специфікація'!A45 -> 0 | AE38: =VLOOKUP(AD38,stock!A:F,6,0) ->  | AF38: =VLOOKUP(AD38,Лист1!A:J,7,0) -> 
A39: 16400 | B39: OBO3 | F39: 400 | G39: Системи алюмініевих кабельних коробів для електроустановки REHAU | H39: 16400 | I39: 0 | Z39: =IFERROR(VLOOKUP('OBO специфікація'!A46,Лист1!A:J,9,0),"") ->  | AD39: ='OBO специфікація'!A46 -> 0 | AE39: =VLOOKUP(AD39,stock!A:F,6,0) ->  | AF39: =VLOOKUP(AD39,Лист1!A:J,7,0) -> 
A40: 16450 | B40: OBO3 | F40: 450 | G40: Системи електромонтажних сервісних стійок та міні-колон REHAU | H40: 16450 | I40: 0 | Z40: =IFERROR(VLOOKUP('OBO специфікація'!A47,Лист1!A:J,9,0),"") ->  | AD40: ='OBO специфікація'!A47 -> 0 | AE40: =VLOOKUP(AD40,stock!A:F,6,0) ->  | AF40: =VLOOKUP(AD40,Лист1!A:J,7,0) -> 
A41: 16500 | B41: OBO3 | F41: 500 | G41: Аксесуари системи сервісних стійок REHAU | H41: 16500 | I41: 0 | Z41: =IFERROR(VLOOKUP('OBO специфікація'!A48,Лист1!A:J,9,0),"") ->  | AD41: ='OBO специфікація'!A48 -> 0 | AE41: =VLOOKUP(AD41,stock!A:F,6,0) ->  | AF41: =VLOOKUP(AD41,Лист1!A:J,7,0) -> 
A42: 07110 | B42: OBO3 | F42: 110 | G42: Розетки електричні серії Modul 45 | H42: 07110 | I42: 0 | Z42: =IFERROR(VLOOKUP('OBO специфікація'!A49,Лист1!A:J,9,0),"") ->  | AD42: ='OBO специфікація'!A49 -> 0 | AE42: =VLOOKUP(AD42,stock!A:F,6,0) ->  | AF42: =VLOOKUP(AD42,Лист1!A:J,7,0) -> 
A43: 07120 | B43: OBO3 | F43: 120 | G43: Розетки мультимедійні, вимикачі та з'еднання серії Modul 45 | H43: 07120 | I43: 0 | Z43: =IFERROR(VLOOKUP('OBO специфікація'!A50,Лист1!A:J,9,0),"") ->  | AD43: ='OBO специфікація'!A50 -> 0 | AE43: =VLOOKUP(AD43,stock!A:F,6,0) ->  | AF43: =VLOOKUP(AD43,Лист1!A:J,7,0) -> 
A44: 07130 | B44: OBO3 | F44: 130 | G44: Інформаційні розетки Modul 45 | H44: 07130 | I44: 0 | Z44: =IFERROR(VLOOKUP('OBO специфікація'!A51,Лист1!A:J,9,0),"") ->  | AD44: ='OBO специфікація'!A51 -> 0 | AE44: =VLOOKUP(AD44,stock!A:F,6,0) ->  | AF44: =VLOOKUP(AD44,Лист1!A:J,7,0) -> 
A45: 07140 | B45: OBO3 | F45: 140 | G45: Рішення для прихованого і зовнішнього монтажу Modul 45 | H45: 07140 | I45: =$S$3 -> 0 | Z45: =IFERROR(VLOOKUP('OBO специфікація'!A52,Лист1!A:J,9,0),"") ->  | AD45: ='OBO специфікація'!A52 -> 0 | AE45: =VLOOKUP(AD45,stock!A:F,6,0) ->  | AF45: =VLOOKUP(AD45,Лист1!A:J,7,0) -> 
A46: 07230 | B46: OBO3 | F46: 230 | G46: Рішення для обладнання робочих місць | H46: 07230 | I46: =$P$3 -> 0 | Z46: =IFERROR(VLOOKUP('OBO специфікація'!A53,Лист1!A:J,9,0),"") ->  | AD46: ='OBO специфікація'!A53 -> 0 | AE46: =VLOOKUP(AD46,stock!A:F,6,0) ->  | AF46: =VLOOKUP(AD46,Лист1!A:J,7,0) -> 
A47: 07240 | B47: OBO3 | C47: 04 | D47: KTS | E47: Кабеленесучі системи | F47: 240 | G47: Промислові і спеціальні системи | H47: 07240 | I47: 0 | Z47: =IFERROR(VLOOKUP('OBO специфікація'!A54,Лист1!A:J,9,0),"") ->  | AD47: ='OBO специфікація'!A54 -> 0 | AE47: =VLOOKUP(AD47,stock!A:F,6,0) ->  | AF47: =VLOOKUP(AD47,Лист1!A:J,7,0) -> 
A48: 07250 | B48: OBO3 | F48: 250 | G48: Системи енерго-розподільників | H48: 07250 | I48: 0 | Z48: =IFERROR(VLOOKUP('OBO специфікація'!A55,Лист1!A:J,9,0),"") ->  | AD48: ='OBO специфікація'!A55 -> 0 | AE48: =VLOOKUP(AD48,stock!A:F,6,0) ->  | AF48: =VLOOKUP(AD48,Лист1!A:J,7,0) -> 
A49: 17300 | B49: OBO3 | F49: 300 | G49: Електроутсановчі вироби SIGNA REHAU | H49: 17300 | I49: 0 | Z49: =IFERROR(VLOOKUP('OBO специфікація'!A56,Лист1!A:J,9,0),"") ->  | AD49: ='OBO специфікація'!A56 -> 0 | AE49: =VLOOKUP(AD49,stock!A:F,6,0) ->  | AF49: =VLOOKUP(AD49,Лист1!A:J,7,0) -> 
A50: 17310 | B50: OBO3 | F50: 310 | G50: Електроутсановчі вироби SIGNO CUBICO REHAU | H50: 17310 | I50: 0 | Z50: =IFERROR(VLOOKUP('OBO специфікація'!A57,Лист1!A:J,9,0),"") ->  | AD50: ='OBO специфікація'!A57 -> 0 | AE50: =VLOOKUP(AD50,stock!A:F,6,0) ->  | AF50: =VLOOKUP(AD50,Лист1!A:J,7,0) -> 
A51: 17320 | B51: OBO3 | F51: 320 | G51: Електроутсановчі вироби Conexel² STD (M45 NF) | H51: 17320 | I51: 0 | Z51: =IFERROR(VLOOKUP('OBO специфікація'!A58,Лист1!A:J,9,0),"") ->  | AD51: ='OBO специфікація'!A58 -> 0 | AE51: =VLOOKUP(AD51,stock!A:F,6,0) ->  | AF51: =VLOOKUP(AD51,Лист1!A:J,7,0) -> 
A52: 08100 | B52: OBO3 | F52: 100 | G52: Система прихованої установки для заливної підлоги | H52: 08100 | I52: 0 | Z52: =IFERROR(VLOOKUP('OBO специфікація'!A59,Лист1!A:J,9,0),"") ->  | AD52: ='OBO специфікація'!A59 -> 0 | AE52: =VLOOKUP(AD52,stock!A:F,6,0) ->  | AF52: =VLOOKUP(AD52,Лист1!A:J,7,0) -> 
A53: 08150 | B53: OBO3 | F53: 150 | G53: Система відкритих кабельних каналів для установки в рівень з заливною підлогою | H53: 08150 | I53: 0 | Z53: =IFERROR(VLOOKUP('OBO специфікація'!A60,Лист1!A:J,9,0),"") ->  | AD53: ='OBO специфікація'!A60 -> 0 | AE53: =VLOOKUP(AD53,stock!A:F,6,0) ->  | AF53: =VLOOKUP(AD53,Лист1!A:J,7,0) -> 
A54: 08160 | B54: OBO3 | F54: 160 | G54: Система закритих кабельних каналів для установки в рівень з заливною підлогою | H54: 08160 | I54: 0 | Z54: =IFERROR(VLOOKUP('OBO специфікація'!A61,Лист1!A:J,9,0),"") ->  | AD54: ='OBO специфікація'!A61 -> 0 | AE54: =VLOOKUP(AD54,stock!A:F,6,0) ->  | AF54: =VLOOKUP(AD54,Лист1!A:J,7,0) -> 
A55: 08170 | B55: OBO3 | F55: 170 | G55: Аксесуари для кабельних каналів заливної підлоги | H55: 08170 | I55: 0 | Z55: =IFERROR(VLOOKUP('OBO специфікація'!A62,Лист1!A:J,9,0),"") ->  | AD55: ='OBO специфікація'!A62 -> 0 | AE55: =VLOOKUP(AD55,stock!A:F,6,0) ->  | AF55: =VLOOKUP(AD55,Лист1!A:J,7,0) -> 
A56: 08200 | B56: OBO3 | C56: 01 | D56: VBS | F56: 200 | G56: Аксесуари системи кабельних каналів для фальш-підлоги | H56: 08200 | I56: 0 | Z56: =IFERROR(VLOOKUP('OBO специфікація'!A63,Лист1!A:J,9,0),"") ->  | AD56: ='OBO специфікація'!A63 -> 0 | AE56: =VLOOKUP(AD56,stock!A:F,6,0) ->  | AF56: =VLOOKUP(AD56,Лист1!A:J,7,0) -> 
A57: 08220 | B57: OBO3 | F57: 220 | G57: Система кабельних каналів для установки на підлогу | H57: 08220 | I57: 0 | Z57: =IFERROR(VLOOKUP('OBO специфікація'!A64,Лист1!A:J,9,0),"") ->  | AD57: ='OBO специфікація'!A64 -> 0 | AE57: =VLOOKUP(AD57,stock!A:F,6,0) ->  | AF57: =VLOOKUP(AD57,Лист1!A:J,7,0) -> 
A58: 08250 | B58: OBO3 | F58: 250 | G58: Системи люків GES та підлогових башт | H58: 08250 | I58: 0 | Z58: =IFERROR(VLOOKUP('OBO специфікація'!A65,Лист1!A:J,9,0),"") ->  | AD58: ='OBO специфікація'!A65 -> 0 | AE58: =VLOOKUP(AD58,stock!A:F,6,0) ->  | AF58: =VLOOKUP(AD58,Лист1!A:J,7,0) -> 
A59: 08260 | B59: OBO3 | F59: 260 | G59: Системи касетних рамок | H59: 08260 | I59: 0 | Z59: =IFERROR(VLOOKUP('OBO специфікація'!A66,Лист1!A:J,9,0),"") ->  | AD59: ='OBO специфікація'!A66 -> 0 | AE59: =VLOOKUP(AD59,stock!A:F,6,0) ->  | AF59: =VLOOKUP(AD59,Лист1!A:J,7,0) -> 
A60: 08270 | B60: OBO3 | F60: 270 | G60: Системи люків UDHOME | H60: 08270 | I60: 0 | Z60: =IFERROR(VLOOKUP('OBO специфікація'!A67,Лист1!A:J,9,0),"") ->  | AD60: ='OBO специфікація'!A67 -> 0 | AE60: =VLOOKUP(AD60,stock!A:F,6,0) ->  | AF60: =VLOOKUP(AD60,Лист1!A:J,7,0) -> 
A61: 08280 | B61: OBO3 | F61: 280 | G61: Системи люків GES R2 | H61: 08280 | I61: 0 | Z61: =IFERROR(VLOOKUP('OBO специфікація'!A68,Лист1!A:J,9,0),"") ->  | AD61: ='OBO специфікація'!A68 -> 0 | AE61: =VLOOKUP(AD61,stock!A:F,6,0) ->  | AF61: =VLOOKUP(AD61,Лист1!A:J,7,0) -> 
A62: 08290 | B62: OBO3 | F62: 290 | G62: Інсталяційні аксесуари | H62: 08290 | I62: 0 | Z62: =IFERROR(VLOOKUP('OBO специфікація'!A69,Лист1!A:J,9,0),"") ->  | AD62: ='OBO специфікація'!A69 -> 0 | AE62: =VLOOKUP(AD62,stock!A:F,6,0) ->  | AF62: =VLOOKUP(AD62,Лист1!A:J,7,0) -> 
A63: 04100 | C63: 04 | D63: KTS | E63: Кабеленесучі системи | F63: 100 | G63: Система лотків RKS | H63: 04100 | I63: =$Q$3 -> 0 | Z63: =IFERROR(VLOOKUP('OBO специфікація'!A70,Лист1!A:J,9,0),"") ->  | AD63: ='OBO специфікація'!A70 -> 0 | AE63: =VLOOKUP(AD63,stock!A:F,6,0) ->  | AF63: =VLOOKUP(AD63,Лист1!A:J,7,0) -> 
A64: 04150 | F64: 150 | G64: Монтажні аксесуари | H64: 04150 | I64: =$Q$3 -> 0 | Z64: =IFERROR(VLOOKUP('OBO специфікація'!A71,Лист1!A:J,9,0),"") ->  | AD64: ='OBO специфікація'!A71 -> 0 | AE64: =VLOOKUP(AD64,stock!A:F,6,0) ->  | AF64: =VLOOKUP(AD64,Лист1!A:J,7,0) -> 
A65: 04200 | F65: 200 | G65: Системи листових кабельних лотків | H65: 04200 | I65: 0 | Z65: =IFERROR(VLOOKUP('OBO специфікація'!A72,Лист1!A:J,9,0),"") ->  | AD65: ='OBO специфікація'!A72 -> 0 | AE65: =VLOOKUP(AD65,stock!A:F,6,0) ->  | AF65: =VLOOKUP(AD65,Лист1!A:J,7,0) -> 
A66: 04250 | F66: 250 | G66: Системи дротяних лотків | H66: 04250 | I66: 0 | Z66: =IFERROR(VLOOKUP('OBO специфікація'!A73,Лист1!A:J,9,0),"") ->  | AD66: ='OBO специфікація'!A73 -> 0 | AE66: =VLOOKUP(AD66,stock!A:F,6,0) ->  | AF66: =VLOOKUP(AD66,Лист1!A:J,7,0) -> 
A67: 04300 | F67: 300 | G67: Системи кабельних лотків драбинного типу | H67: 04300 | I67: 0 | Z67: =IFERROR(VLOOKUP('OBO специфікація'!A74,Лист1!A:J,9,0),"") ->  | AD67: ='OBO специфікація'!A74 -> 0 | AE67: =VLOOKUP(AD67,stock!A:F,6,0) ->  | AF67: =VLOOKUP(AD67,Лист1!A:J,7,0) -> 
A68: 04320 | F68: 320 | G68: Системи кабельних лотків для великих відстаней | H68: 04320 | I68: 0 | Z68: =IFERROR(VLOOKUP('OBO специфікація'!A75,Лист1!A:J,9,0),"") ->  | AD68: ='OBO специфікація'!A75 -> 0 | AE68: =VLOOKUP(AD68,stock!A:F,6,0) ->  | AF68: =VLOOKUP(AD68,Лист1!A:J,7,0) -> 
A69: 04400 | F69: 400 | G69: Модульні системи | H69: 04400 | I69: 0 | Z69: =IFERROR(VLOOKUP('OBO специфікація'!A76,Лист1!A:J,9,0),"") ->  | AD69: ='OBO специфікація'!A76 -> 0 | AE69: =VLOOKUP(AD69,stock!A:F,6,0) ->  | AF69: =VLOOKUP(AD69,Лист1!A:J,7,0) -> 
A70: 04450 | F70: 450 | G70: Системи кабельних лотків для інсталляції світильників | H70: 04450 | I70: 0 | Z70: =IFERROR(VLOOKUP('OBO специфікація'!A77,Лист1!A:J,9,0),"") ->  | AD70: ='OBO специфікація'!A77 -> 0 | AE70: =VLOOKUP(AD70,stock!A:F,6,0) ->  | AF70: =VLOOKUP(AD70,Лист1!A:J,7,0) -> 
A71: 01200 | F71: 200 | G71: Балочні зажими | H71: 01200 | I71: 0 | Z71: =IFERROR(VLOOKUP('OBO специфікація'!A78,Лист1!A:J,9,0),"") ->  | AD71: ='OBO специфікація'!A78 -> 0 | AE71: =VLOOKUP(AD71,stock!A:F,6,0) ->  | AF71: =VLOOKUP(AD71,Лист1!A:J,7,0) -> 
A72: 01250 | F72: 250 | G72: Профільні рейки | H72: 01250 | I72: 0 | Z72: =IFERROR(VLOOKUP('OBO специфікація'!A79,Лист1!A:J,9,0),"") ->  | AD72: ='OBO специфікація'!A79 -> 0 | AE72: =VLOOKUP(AD72,stock!A:F,6,0) ->  | AF72: =VLOOKUP(AD72,Лист1!A:J,7,0) -> 
A73: 01270 | F73: 270 | G73: Зажими для профільних рейок | H73: 01270 | I73: 0 | Z73: =IFERROR(VLOOKUP('OBO специфікація'!A80,Лист1!A:J,9,0),"") ->  | AD73: ='OBO специфікація'!A80 -> 0 | AE73: =VLOOKUP(AD73,stock!A:F,6,0) ->  | AF73: =VLOOKUP(AD73,Лист1!A:J,7,0) -> 
A74: 01300 | F74: 300 | G74: Гвинтові та забивні системи | H74: 01300 | I74: 0 | Z74: =IFERROR(VLOOKUP('OBO специфікація'!A81,Лист1!A:J,9,0),"") ->  | AD74: ='OBO специфікація'!A81 -> 0 | AE74: =VLOOKUP(AD74,stock!A:F,6,0) ->  | AF74: =VLOOKUP(AD74,Лист1!A:J,7,0) -> 
Z75: =IFERROR(VLOOKUP('OBO специфікація'!A82,Лист1!A:J,9,0),"") ->  | AD75: ='OBO специфікація'!A82 -> 0 | AE75: =VLOOKUP(AD75,stock!A:F,6,0) ->  | AF75: =VLOOKUP(AD75,Лист1!A:J,7,0) -> 
Z76: =IFERROR(VLOOKUP('OBO специфікація'!A83,Лист1!A:J,9,0),"") ->  | AD76: ='OBO специфікація'!A83 -> 0 | AE76: =VLOOKUP(AD76,stock!A:F,6,0) ->  | AF76: =VLOOKUP(AD76,Лист1!A:J,7,0) -> 
Z77: =IFERROR(VLOOKUP('OBO специфікація'!A84,Лист1!A:J,9,0),"") ->  | AD77: ='OBO специфікація'!A84 -> 0 | AE77: =VLOOKUP(AD77,stock!A:F,6,0) ->  | AF77: =VLOOKUP(AD77,Лист1!A:J,7,0) -> 
Z78: =IFERROR(VLOOKUP('OBO специфікація'!A85,Лист1!A:J,9,0),"") ->  | AD78: ='OBO специфікація'!A85 -> 0 | AE78: =VLOOKUP(AD78,stock!A:F,6,0) ->  | AF78: =VLOOKUP(AD78,Лист1!A:J,7,0) -> 
Z79: =IFERROR(VLOOKUP('OBO специфікація'!A86,Лист1!A:J,9,0),"") ->  | AD79: ='OBO специфікація'!A86 -> 0 | AE79: =VLOOKUP(AD79,stock!A:F,6,0) ->  | AF79: =VLOOKUP(AD79,Лист1!A:J,7,0) -> 
Z80: =IFERROR(VLOOKUP('OBO специфікація'!A87,Лист1!A:J,9,0),"") ->  | AD80: ='OBO специфікація'!A87 -> 0 | AE80: =VLOOKUP(AD80,stock!A:F,6,0) ->  | AF80: =VLOOKUP(AD80,Лист1!A:J,7,0) -> 
Z81: =IFERROR(VLOOKUP('OBO специфікація'!A88,Лист1!A:J,9,0),"") ->  | AD81: ='OBO специфікація'!A88 -> 0 | AE81: =VLOOKUP(AD81,stock!A:F,6,0) ->  | AF81: =VLOOKUP(AD81,Лист1!A:J,7,0) -> 
Z82: =IFERROR(VLOOKUP('OBO специфікація'!A89,Лист1!A:J,9,0),"") ->  | AD82: ='OBO специфікація'!A89 -> 0 | AE82: =VLOOKUP(AD82,stock!A:F,6,0) ->  | AF82: =VLOOKUP(AD82,Лист1!A:J,7,0) -> 
Z83: =IFERROR(VLOOKUP('OBO специфікація'!A90,Лист1!A:J,9,0),"") ->  | AD83: ='OBO специфікація'!A90 -> 0 | AE83: =VLOOKUP(AD83,stock!A:F,6,0) ->  | AF83: =VLOOKUP(AD83,Лист1!A:J,7,0) -> 
Z84: =IFERROR(VLOOKUP('OBO специфікація'!A91,Лист1!A:J,9,0),"") ->  | AD84: ='OBO специфікація'!A91 -> 0 | AE84: =VLOOKUP(AD84,stock!A:F,6,0) ->  | AF84: =VLOOKUP(AD84,Лист1!A:J,7,0) -> 
Z85: =IFERROR(VLOOKUP('OBO специфікація'!A92,Лист1!A:J,9,0),"") ->  | AD85: ='OBO специфікація'!A92 -> 0 | AE85: =VLOOKUP(AD85,stock!A:F,6,0) ->  | AF85: =VLOOKUP(AD85,Лист1!A:J,7,0) -> 
Z86: =IFERROR(VLOOKUP('OBO специфікація'!A93,Лист1!A:J,9,0),"") ->  | AD86: ='OBO специфікація'!A93 -> 0 | AE86: =VLOOKUP(AD86,stock!A:F,6,0) ->  | AF86: =VLOOKUP(AD86,Лист1!A:J,7,0) -> 
Z87: =IFERROR(VLOOKUP('OBO специфікація'!A94,Лист1!A:J,9,0),"") ->  | AD87: ='OBO специфікація'!A94 -> 0 | AE87: =VLOOKUP(AD87,stock!A:F,6,0) ->  | AF87: =VLOOKUP(AD87,Лист1!A:J,7,0) -> 
Z88: =IFERROR(VLOOKUP('OBO специфікація'!A95,Лист1!A:J,9,0),"") ->  | AD88: ='OBO специфікація'!A95 -> 0 | AE88: =VLOOKUP(AD88,stock!A:F,6,0) ->  | AF88: =VLOOKUP(AD88,Лист1!A:J,7,0) -> 
Z89: =IFERROR(VLOOKUP('OBO специфікація'!A96,Лист1!A:J,9,0),"") ->  | AD89: ='OBO специфікація'!A96 -> 0 | AE89: =VLOOKUP(AD89,stock!A:F,6,0) ->  | AF89: =VLOOKUP(AD89,Лист1!A:J,7,0) -> 
Z90: =IFERROR(VLOOKUP('OBO специфікація'!A97,Лист1!A:J,9,0),"") ->  | AD90: ='OBO специфікація'!A97 -> 0 | AE90: =VLOOKUP(AD90,stock!A:F,6,0) ->  | AF90: =VLOOKUP(AD90,Лист1!A:J,7,0) -> 
Z91: =IFERROR(VLOOKUP('OBO специфікація'!A98,Лист1!A:J,9,0),"") ->  | AD91: ='OBO специфікація'!A98 -> 0 | AE91: =VLOOKUP(AD91,stock!A:F,6,0) ->  | AF91: =VLOOKUP(AD91,Лист1!A:J,7,0) -> 
Z92: =IFERROR(VLOOKUP('OBO специфікація'!A99,Лист1!A:J,9,0),"") ->  | AD92: ='OBO специфікація'!A99 -> 0 | AE92: =VLOOKUP(AD92,stock!A:F,6,0) ->  | AF92: =VLOOKUP(AD92,Лист1!A:J,7,0) -> 
Z93: =IFERROR(VLOOKUP('OBO специфікація'!A100,Лист1!A:J,9,0),"") ->  | AD93: ='OBO специфікація'!A100 -> 0 | AE93: =VLOOKUP(AD93,stock!A:F,6,0) ->  | AF93: =VLOOKUP(AD93,Лист1!A:J,7,0) -> 
Z94: =IFERROR(VLOOKUP('OBO специфікація'!A101,Лист1!A:J,9,0),"") ->  | AD94: ='OBO специфікація'!A101 -> 0 | AE94: =VLOOKUP(AD94,stock!A:F,6,0) ->  | AF94: =VLOOKUP(AD94,Лист1!A:J,7,0) -> 
Z95: =IFERROR(VLOOKUP('OBO специфікація'!A102,Лист1!A:J,9,0),"") ->  | AD95: ='OBO специфікація'!A102 -> 0 | AE95: =VLOOKUP(AD95,stock!A:F,6,0) ->  | AF95: =VLOOKUP(AD95,Лист1!A:J,7,0) -> 
Z96: =IFERROR(VLOOKUP('OBO специфікація'!A103,Лист1!A:J,9,0),"") ->  | AD96: ='OBO специфікація'!A103 -> 0 | AE96: =VLOOKUP(AD96,stock!A:F,6,0) ->  | AF96: =VLOOKUP(AD96,Лист1!A:J,7,0) -> 
Z97: =IFERROR(VLOOKUP('OBO специфікація'!A104,Лист1!A:J,9,0),"") ->  | AD97: ='OBO специфікація'!A104 -> 0 | AE97: =VLOOKUP(AD97,stock!A:F,6,0) ->  | AF97: =VLOOKUP(AD97,Лист1!A:J,7,0) -> 
Z98: =IFERROR(VLOOKUP('OBO специфікація'!A105,Лист1!A:J,9,0),"") ->  | AD98: ='OBO специфікація'!A105 -> 0 | AE98: =VLOOKUP(AD98,stock!A:F,6,0) ->  | AF98: =VLOOKUP(AD98,Лист1!A:J,7,0) -> 
Z99: =IFERROR(VLOOKUP('OBO специфікація'!A106,Лист1!A:J,9,0),"") ->  | AD99: ='OBO специфікація'!A106 -> 0 | AE99: =VLOOKUP(AD99,stock!A:F,6,0) ->  | AF99: =VLOOKUP(AD99,Лист1!A:J,7,0) -> 
Z100: =IFERROR(VLOOKUP('OBO специфікація'!A107,Лист1!A:J,9,0),"") ->  | AD100: ='OBO специфікація'!A107 -> 0 | AE100: =VLOOKUP(AD100,stock!A:F,6,0) ->  | AF100: =VLOOKUP(AD100,Лист1!A:J,7,0) -> 
Z101: =IFERROR(VLOOKUP('OBO специфікація'!A108,Лист1!A:J,9,0),"") ->  | AD101: ='OBO специфікація'!A108 -> 0 | AE101: =VLOOKUP(AD101,stock!A:F,6,0) ->  | AF101: =VLOOKUP(AD101,Лист1!A:J,7,0) -> 
Z102: =IFERROR(VLOOKUP('OBO специфікація'!A109,Лист1!A:J,9,0),"") ->  | AD102: ='OBO специфікація'!A109 -> 0 | AE102: =VLOOKUP(AD102,stock!A:F,6,0) ->  | AF102: =VLOOKUP(AD102,Лист1!A:J,7,0) -> 
Z103: =IFERROR(VLOOKUP('OBO специфікація'!A110,Лист1!A:J,9,0),"") ->  | AD103: ='OBO специфікація'!A110 -> 0 | AE103: =VLOOKUP(AD103,stock!A:F,6,0) ->  | AF103: =VLOOKUP(AD103,Лист1!A:J,7,0) -> 
Z104: =IFERROR(VLOOKUP('OBO специфікація'!A111,Лист1!A:J,9,0),"") ->  | AD104: ='OBO специфікація'!A111 -> 0 | AE104: =VLOOKUP(AD104,stock!A:F,6,0) ->  | AF104: =VLOOKUP(AD104,Лист1!A:J,7,0) -> 
Z105: =IFERROR(VLOOKUP('OBO специфікація'!A112,Лист1!A:J,9,0),"") ->  | AD105: ='OBO специфікація'!A112 -> 0 | AE105: =VLOOKUP(AD105,stock!A:F,6,0) ->  | AF105: =VLOOKUP(AD105,Лист1!A:J,7,0) -> 
Z106: =IFERROR(VLOOKUP('OBO специфікація'!A113,Лист1!A:J,9,0),"") ->  | AD106: ='OBO специфікація'!A113 -> 0 | AE106: =VLOOKUP(AD106,stock!A:F,6,0) ->  | AF106: =VLOOKUP(AD106,Лист1!A:J,7,0) -> 
Z107: =IFERROR(VLOOKUP('OBO специфікація'!A114,Лист1!A:J,9,0),"") ->  | AD107: ='OBO специфікація'!A114 -> 0 | AE107: =VLOOKUP(AD107,stock!A:F,6,0) ->  | AF107: =VLOOKUP(AD107,Лист1!A:J,7,0) -> 
Z108: =IFERROR(VLOOKUP('OBO специфікація'!A115,Лист1!A:J,9,0),"") ->  | AD108: ='OBO специфікація'!A115 -> 0 | AE108: =VLOOKUP(AD108,stock!A:F,6,0) ->  | AF108: =VLOOKUP(AD108,Лист1!A:J,7,0) -> 
Z109: =IFERROR(VLOOKUP('OBO специфікація'!A116,Лист1!A:J,9,0),"") ->  | AD109: ='OBO специфікація'!A116 -> 0 | AE109: =VLOOKUP(AD109,stock!A:F,6,0) ->  | AF109: =VLOOKUP(AD109,Лист1!A:J,7,0) -> 
Z110: =IFERROR(VLOOKUP('OBO специфікація'!A117,Лист1!A:J,9,0),"") ->  | AD110: ='OBO специфікація'!A117 -> 0 | AE110: =VLOOKUP(AD110,stock!A:F,6,0) ->  | AF110: =VLOOKUP(AD110,Лист1!A:J,7,0) -> 
Z111: =IFERROR(VLOOKUP('OBO специфікація'!A118,Лист1!A:J,9,0),"") ->  | AD111: ='OBO специфікація'!A118 -> 0 | AE111: =VLOOKUP(AD111,stock!A:F,6,0) ->  | AF111: =VLOOKUP(AD111,Лист1!A:J,7,0) -> 
Z112: =IFERROR(VLOOKUP('OBO специфікація'!A119,Лист1!A:J,9,0),"") ->  | AD112: ='OBO специфікація'!A119 -> 0 | AE112: =VLOOKUP(AD112,stock!A:F,6,0) ->  | AF112: =VLOOKUP(AD112,Лист1!A:J,7,0) -> 
Z113: =IFERROR(VLOOKUP('OBO специфікація'!A120,Лист1!A:J,9,0),"") ->  | AD113: ='OBO специфікація'!A120 -> 0 | AE113: =VLOOKUP(AD113,stock!A:F,6,0) ->  | AF113: =VLOOKUP(AD113,Лист1!A:J,7,0) -> 
Z114: =IFERROR(VLOOKUP('OBO специфікація'!A121,Лист1!A:J,9,0),"") ->  | AD114: ='OBO специфікація'!A121 -> 0 | AE114: =VLOOKUP(AD114,stock!A:F,6,0) ->  | AF114: =VLOOKUP(AD114,Лист1!A:J,7,0) -> 
Z115: =IFERROR(VLOOKUP('OBO специфікація'!A122,Лист1!A:J,9,0),"") ->  | AD115: ='OBO специфікація'!A122 -> 0 | AE115: =VLOOKUP(AD115,stock!A:F,6,0) ->  | AF115: =VLOOKUP(AD115,Лист1!A:J,7,0) -> 
Z116: =IFERROR(VLOOKUP('OBO специфікація'!A123,Лист1!A:J,9,0),"") ->  | AD116: ='OBO специфікація'!A123 -> 0 | AE116: =VLOOKUP(AD116,stock!A:F,6,0) ->  | AF116: =VLOOKUP(AD116,Лист1!A:J,7,0) -> 
Z117: =IFERROR(VLOOKUP('OBO специфікація'!A124,Лист1!A:J,9,0),"") ->  | AD117: ='OBO специфікація'!A124 -> 0 | AE117: =VLOOKUP(AD117,stock!A:F,6,0) ->  | AF117: =VLOOKUP(AD117,Лист1!A:J,7,0) -> 
Z118: =IFERROR(VLOOKUP('OBO специфікація'!A125,Лист1!A:J,9,0),"") ->  | AD118: ='OBO специфікація'!A125 -> 0 | AE118: =VLOOKUP(AD118,stock!A:F,6,0) ->  | AF118: =VLOOKUP(AD118,Лист1!A:J,7,0) -> 
Z119: =IFERROR(VLOOKUP('OBO специфікація'!A126,Лист1!A:J,9,0),"") ->  | AD119: ='OBO специфікація'!A126 -> 0 | AE119: =VLOOKUP(AD119,stock!A:F,6,0) ->  | AF119: =VLOOKUP(AD119,Лист1!A:J,7,0) -> 
Z120: =IFERROR(VLOOKUP('OBO специфікація'!A127,Лист1!A:J,9,0),"") ->  | AD120: ='OBO специфікація'!A127 -> 0 | AE120: =VLOOKUP(AD120,stock!A:F,6,0) ->  | AF120: =VLOOKUP(AD120,Лист1!A:J,7,0) -> 
Z121: =IFERROR(VLOOKUP('OBO специфікація'!A128,Лист1!A:J,9,0),"") ->  | AD121: ='OBO специфікація'!A128 -> 0 | AE121: =VLOOKUP(AD121,stock!A:F,6,0) ->  | AF121: =VLOOKUP(AD121,Лист1!A:J,7,0) -> 
Z122: =IFERROR(VLOOKUP('OBO специфікація'!A129,Лист1!A:J,9,0),"") ->  | AD122: ='OBO специфікація'!A129 -> 0 | AE122: =VLOOKUP(AD122,stock!A:F,6,0) ->  | AF122: =VLOOKUP(AD122,Лист1!A:J,7,0) -> 
Z123: =IFERROR(VLOOKUP('OBO специфікація'!A130,Лист1!A:J,9,0),"") ->  | AD123: ='OBO специфікація'!A130 -> 0 | AE123: =VLOOKUP(AD123,stock!A:F,6,0) ->  | AF123: =VLOOKUP(AD123,Лист1!A:J,7,0) -> 
Z124: =IFERROR(VLOOKUP('OBO специфікація'!A131,Лист1!A:J,9,0),"") ->  | AD124: ='OBO специфікація'!A131 -> 0 | AE124: =VLOOKUP(AD124,stock!A:F,6,0) ->  | AF124: =VLOOKUP(AD124,Лист1!A:J,7,0) -> 
Z125: =IFERROR(VLOOKUP('OBO специфікація'!A132,Лист1!A:J,9,0),"") ->  | AD125: ='OBO специфікація'!A132 -> 0 | AE125: =VLOOKUP(AD125,stock!A:F,6,0) ->  | AF125: =VLOOKUP(AD125,Лист1!A:J,7,0) -> 
Z126: =IFERROR(VLOOKUP('OBO специфікація'!A133,Лист1!A:J,9,0),"") ->  | AD126: ='OBO специфікація'!A133 -> 0 | AE126: =VLOOKUP(AD126,stock!A:F,6,0) ->  | AF126: =VLOOKUP(AD126,Лист1!A:J,7,0) -> 
Z127: =IFERROR(VLOOKUP('OBO специфікація'!A134,Лист1!A:J,9,0),"") ->  | AD127: ='OBO специфікація'!A134 -> 0 | AE127: =VLOOKUP(AD127,stock!A:F,6,0) ->  | AF127: =VLOOKUP(AD127,Лист1!A:J,7,0) -> 
Z128: =IFERROR(VLOOKUP('OBO специфікація'!A135,Лист1!A:J,9,0),"") ->  | AD128: ='OBO специфікація'!A135 -> 0 | AE128: =VLOOKUP(AD128,stock!A:F,6,0) ->  | AF128: =VLOOKUP(AD128,Лист1!A:J,7,0) -> 
Z129: =IFERROR(VLOOKUP('OBO специфікація'!A136,Лист1!A:J,9,0),"") ->  | AD129: ='OBO специфікація'!A136 -> 0 | AE129: =VLOOKUP(AD129,stock!A:F,6,0) ->  | AF129: =VLOOKUP(AD129,Лист1!A:J,7,0) -> 
Z130: =IFERROR(VLOOKUP('OBO специфікація'!A137,Лист1!A:J,9,0),"") ->  | AD130: ='OBO специфікація'!A137 -> 0 | AE130: =VLOOKUP(AD130,stock!A:F,6,0) ->  | AF130: =VLOOKUP(AD130,Лист1!A:J,7,0) -> 
Z131: =IFERROR(VLOOKUP('OBO специфікація'!A138,Лист1!A:J,9,0),"") ->  | AD131: ='OBO специфікація'!A138 -> 0 | AE131: =VLOOKUP(AD131,stock!A:F,6,0) ->  | AF131: =VLOOKUP(AD131,Лист1!A:J,7,0) -> 
Z132: =IFERROR(VLOOKUP('OBO специфікація'!A139,Лист1!A:J,9,0),"") ->  | AD132: ='OBO специфікація'!A139 -> 0 | AE132: =VLOOKUP(AD132,stock!A:F,6,0) ->  | AF132: =VLOOKUP(AD132,Лист1!A:J,7,0) -> 
Z133: =IFERROR(VLOOKUP('OBO специфікація'!A140,Лист1!A:J,9,0),"") ->  | AD133: ='OBO специфікація'!A140 -> 0 | AE133: =VLOOKUP(AD133,stock!A:F,6,0) ->  | AF133: =VLOOKUP(AD133,Лист1!A:J,7,0) -> 
Z134: =IFERROR(VLOOKUP('OBO специфікація'!A141,Лист1!A:J,9,0),"") ->  | AD134: ='OBO специфікація'!A141 -> 0 | AE134: =VLOOKUP(AD134,stock!A:F,6,0) ->  | AF134: =VLOOKUP(AD134,Лист1!A:J,7,0) -> 
Z135: =IFERROR(VLOOKUP('OBO специфікація'!A142,Лист1!A:J,9,0),"") ->  | AD135: ='OBO специфікація'!A142 -> 0 | AE135: =VLOOKUP(AD135,stock!A:F,6,0) ->  | AF135: =VLOOKUP(AD135,Лист1!A:J,7,0) -> 
Z136: =IFERROR(VLOOKUP('OBO специфікація'!A143,Лист1!A:J,9,0),"") ->  | AD136: ='OBO специфікація'!A143 -> 0 | AE136: =VLOOKUP(AD136,stock!A:F,6,0) ->  | AF136: =VLOOKUP(AD136,Лист1!A:J,7,0) -> 
Z137: =IFERROR(VLOOKUP('OBO специфікація'!A144,Лист1!A:J,9,0),"") ->  | AD137: ='OBO специфікація'!A144 -> 0 | AE137: =VLOOKUP(AD137,stock!A:F,6,0) ->  | AF137: =VLOOKUP(AD137,Лист1!A:J,7,0) -> 
Z138: =IFERROR(VLOOKUP('OBO специфікація'!A145,Лист1!A:J,9,0),"") ->  | AD138: ='OBO специфікація'!A145 -> 0 | AE138: =VLOOKUP(AD138,stock!A:F,6,0) ->  | AF138: =VLOOKUP(AD138,Лист1!A:J,7,0) -> 
Z139: =IFERROR(VLOOKUP('OBO специфікація'!A146,Лист1!A:J,9,0),"") ->  | AD139: ='OBO специфікація'!A146 -> 0 | AE139: =VLOOKUP(AD139,stock!A:F,6,0) ->  | AF139: =VLOOKUP(AD139,Лист1!A:J,7,0) -> 
Z140: =IFERROR(VLOOKUP('OBO специфікація'!A147,Лист1!A:J,9,0),"") ->  | AD140: ='OBO специфікація'!A147 -> 0 | AE140: =VLOOKUP(AD140,stock!A:F,6,0) ->  | AF140: =VLOOKUP(AD140,Лист1!A:J,7,0) -> 
Z141: =IFERROR(VLOOKUP('OBO специфікація'!A148,Лист1!A:J,9,0),"") ->  | AD141: ='OBO специфікація'!A148 -> 0 | AE141: =VLOOKUP(AD141,stock!A:F,6,0) ->  | AF141: =VLOOKUP(AD141,Лист1!A:J,7,0) -> 
Z142: =IFERROR(VLOOKUP('OBO специфікація'!A149,Лист1!A:J,9,0),"") ->  | AD142: ='OBO специфікація'!A149 -> 0 | AE142: =VLOOKUP(AD142,stock!A:F,6,0) ->  | AF142: =VLOOKUP(AD142,Лист1!A:J,7,0) -> 
Z143: =IFERROR(VLOOKUP('OBO специфікація'!A150,Лист1!A:J,9,0),"") ->  | AD143: ='OBO специфікація'!A150 -> 0 | AE143: =VLOOKUP(AD143,stock!A:F,6,0) ->  | AF143: =VLOOKUP(AD143,Лист1!A:J,7,0) -> 
Z144: =IFERROR(VLOOKUP('OBO специфікація'!A151,Лист1!A:J,9,0),"") ->  | AD144: ='OBO специфікація'!A151 -> 0 | AE144: =VLOOKUP(AD144,stock!A:F,6,0) ->  | AF144: =VLOOKUP(AD144,Лист1!A:J,7,0) -> 
Z145: =IFERROR(VLOOKUP('OBO специфікація'!A152,Лист1!A:J,9,0),"") ->  | AD145: ='OBO специфікація'!A152 -> 0 | AE145: =VLOOKUP(AD145,stock!A:F,6,0) ->  | AF145: =VLOOKUP(AD145,Лист1!A:J,7,0) -> 
Z146: =IFERROR(VLOOKUP('OBO специфікація'!A153,Лист1!A:J,9,0),"") ->  | AD146: ='OBO специфікація'!A153 -> 0 | AE146: =VLOOKUP(AD146,stock!A:F,6,0) ->  | AF146: =VLOOKUP(AD146,Лист1!A:J,7,0) -> 
Z147: =IFERROR(VLOOKUP('OBO специфікація'!A154,Лист1!A:J,9,0),"") ->  | AD147: ='OBO специфікація'!A154 -> 0 | AE147: =VLOOKUP(AD147,stock!A:F,6,0) ->  | AF147: =VLOOKUP(AD147,Лист1!A:J,7,0) -> 
Z148: =IFERROR(VLOOKUP('OBO специфікація'!A155,Лист1!A:J,9,0),"") ->  | AD148: ='OBO специфікація'!A155 -> 0 | AE148: =VLOOKUP(AD148,stock!A:F,6,0) ->  | AF148: =VLOOKUP(AD148,Лист1!A:J,7,0) -> 
Z149: =IFERROR(VLOOKUP('OBO специфікація'!A156,Лист1!A:J,9,0),"") ->  | AD149: ='OBO специфікація'!A156 -> 0 | AE149: =VLOOKUP(AD149,stock!A:F,6,0) ->  | AF149: =VLOOKUP(AD149,Лист1!A:J,7,0) -> 
Z150: =IFERROR(VLOOKUP('OBO специфікація'!A157,Лист1!A:J,9,0),"") ->  | AD150: ='OBO специфікація'!A157 -> 0 | AE150: =VLOOKUP(AD150,stock!A:F,6,0) ->  | AF150: =VLOOKUP(AD150,Лист1!A:J,7,0) -> 
Z151: =IFERROR(VLOOKUP('OBO специфікація'!A158,Лист1!A:J,9,0),"") ->  | AD151: ='OBO специфікація'!A158 -> 0 | AE151: =VLOOKUP(AD151,stock!A:F,6,0) ->  | AF151: =VLOOKUP(AD151,Лист1!A:J,7,0) -> 
Z152: =IFERROR(VLOOKUP('OBO специфікація'!A159,Лист1!A:J,9,0),"") ->  | AD152: ='OBO специфікація'!A159 -> 0 | AE152: =VLOOKUP(AD152,stock!A:F,6,0) ->  | AF152: =VLOOKUP(AD152,Лист1!A:J,7,0) -> 
Z153: =IFERROR(VLOOKUP('OBO специфікація'!A160,Лист1!A:J,9,0),"") ->  | AD153: ='OBO специфікація'!A160 -> 0 | AE153: =VLOOKUP(AD153,stock!A:F,6,0) ->  | AF153: =VLOOKUP(AD153,Лист1!A:J,7,0) -> 
Z154: =IFERROR(VLOOKUP('OBO специфікація'!A161,Лист1!A:J,9,0),"") ->  | AD154: ='OBO специфікація'!A161 -> 0 | AE154: =VLOOKUP(AD154,stock!A:F,6,0) ->  | AF154: =VLOOKUP(AD154,Лист1!A:J,7,0) -> 
Z155: =IFERROR(VLOOKUP('OBO специфікація'!A162,Лист1!A:J,9,0),"") ->  | AD155: ='OBO специфікація'!A162 -> 0 | AE155: =VLOOKUP(AD155,stock!A:F,6,0) ->  | AF155: =VLOOKUP(AD155,Лист1!A:J,7,0) -> 
Z156: =IFERROR(VLOOKUP('OBO специфікація'!A163,Лист1!A:J,9,0),"") ->  | AD156: ='OBO специфікація'!A163 -> 0 | AE156: =VLOOKUP(AD156,stock!A:F,6,0) ->  | AF156: =VLOOKUP(AD156,Лист1!A:J,7,0) -> 
Z157: =IFERROR(VLOOKUP('OBO специфікація'!A164,Лист1!A:J,9,0),"") ->  | AD157: ='OBO специфікація'!A164 -> 0 | AE157: =VLOOKUP(AD157,stock!A:F,6,0) ->  | AF157: =VLOOKUP(AD157,Лист1!A:J,7,0) -> 
Z158: =IFERROR(VLOOKUP('OBO специфікація'!A165,Лист1!A:J,9,0),"") ->  | AD158: ='OBO специфікація'!A165 -> 0 | AE158: =VLOOKUP(AD158,stock!A:F,6,0) ->  | AF158: =VLOOKUP(AD158,Лист1!A:J,7,0) -> 
Z159: =IFERROR(VLOOKUP('OBO специфікація'!A166,Лист1!A:J,9,0),"") ->  | AD159: ='OBO специфікація'!A166 -> 0 | AE159: =VLOOKUP(AD159,stock!A:F,6,0) ->  | AF159: =VLOOKUP(AD159,Лист1!A:J,7,0) -> 
Z160: =IFERROR(VLOOKUP('OBO специфікація'!A167,Лист1!A:J,9,0),"") ->  | AD160: ='OBO специфікація'!A167 -> 0 | AE160: =VLOOKUP(AD160,stock!A:F,6,0) ->  | AF160: =VLOOKUP(AD160,Лист1!A:J,7,0) -> 
Z161: =IFERROR(VLOOKUP('OBO специфікація'!A168,Лист1!A:J,9,0),"") ->  | AD161: ='OBO специфікація'!A168 -> 0 | AE161: =VLOOKUP(AD161,stock!A:F,6,0) ->  | AF161: =VLOOKUP(AD161,Лист1!A:J,7,0) -> 
Z162: =IFERROR(VLOOKUP('OBO специфікація'!A169,Лист1!A:J,9,0),"") ->  | AD162: ='OBO специфікація'!A169 -> 0 | AE162: =VLOOKUP(AD162,stock!A:F,6,0) ->  | AF162: =VLOOKUP(AD162,Лист1!A:J,7,0) -> 
Z163: =IFERROR(VLOOKUP('OBO специфікація'!A170,Лист1!A:J,9,0),"") ->  | AD163: ='OBO специфікація'!A170 -> 0 | AE163: =VLOOKUP(AD163,stock!A:F,6,0) ->  | AF163: =VLOOKUP(AD163,Лист1!A:J,7,0) -> 
Z164: =IFERROR(VLOOKUP('OBO специфікація'!A171,Лист1!A:J,9,0),"") ->  | AD164: ='OBO специфікація'!A171 -> 0 | AE164: =VLOOKUP(AD164,stock!A:F,6,0) ->  | AF164: =VLOOKUP(AD164,Лист1!A:J,7,0) -> 
Z165: =IFERROR(VLOOKUP('OBO специфікація'!A172,Лист1!A:J,9,0),"") ->  | AD165: ='OBO специфікація'!A172 -> 0 | AE165: =VLOOKUP(AD165,stock!A:F,6,0) ->  | AF165: =VLOOKUP(AD165,Лист1!A:J,7,0) -> 
Z166: =IFERROR(VLOOKUP('OBO специфікація'!A173,Лист1!A:J,9,0),"") ->  | AD166: ='OBO специфікація'!A173 -> 0 | AE166: =VLOOKUP(AD166,stock!A:F,6,0) ->  | AF166: =VLOOKUP(AD166,Лист1!A:J,7,0) -> 
Z167: =IFERROR(VLOOKUP('OBO специфікація'!A174,Лист1!A:J,9,0),"") ->  | AD167: ='OBO специфікація'!A174 -> 0 | AE167: =VLOOKUP(AD167,stock!A:F,6,0) ->  | AF167: =VLOOKUP(AD167,Лист1!A:J,7,0) -> 
Z168: =IFERROR(VLOOKUP('OBO специфікація'!A175,Лист1!A:J,9,0),"") ->  | AD168: ='OBO специфікація'!A175 -> 0 | AE168: =VLOOKUP(AD168,stock!A:F,6,0) ->  | AF168: =VLOOKUP(AD168,Лист1!A:J,7,0) -> 
Z169: =IFERROR(VLOOKUP('OBO специфікація'!A176,Лист1!A:J,9,0),"") ->  | AD169: ='OBO специфікація'!A176 -> 0 | AE169: =VLOOKUP(AD169,stock!A:F,6,0) ->  | AF169: =VLOOKUP(AD169,Лист1!A:J,7,0) -> 
Z170: =IFERROR(VLOOKUP('OBO специфікація'!A177,Лист1!A:J,9,0),"") ->  | AD170: ='OBO специфікація'!A177 -> 0 | AE170: =VLOOKUP(AD170,stock!A:F,6,0) ->  | AF170: =VLOOKUP(AD170,Лист1!A:J,7,0) -> 
Z171: =IFERROR(VLOOKUP('OBO специфікація'!A178,Лист1!A:J,9,0),"") ->  | AD171: ='OBO специфікація'!A178 -> 0 | AE171: =VLOOKUP(AD171,stock!A:F,6,0) ->  | AF171: =VLOOKUP(AD171,Лист1!A:J,7,0) -> 
Z172: =IFERROR(VLOOKUP('OBO специфікація'!A179,Лист1!A:J,9,0),"") ->  | AD172: ='OBO специфікація'!A179 -> 0 | AE172: =VLOOKUP(AD172,stock!A:F,6,0) ->  | AF172: =VLOOKUP(AD172,Лист1!A:J,7,0) -> 
Z173: =IFERROR(VLOOKUP('OBO специфікація'!A180,Лист1!A:J,9,0),"") ->  | AD173: ='OBO специфікація'!A180 -> 0 | AE173: =VLOOKUP(AD173,stock!A:F,6,0) ->  | AF173: =VLOOKUP(AD173,Лист1!A:J,7,0) -> 
Z174: =IFERROR(VLOOKUP('OBO специфікація'!A181,Лист1!A:J,9,0),"") ->  | AD174: ='OBO специфікація'!A181 -> 0 | AE174: =VLOOKUP(AD174,stock!A:F,6,0) ->  | AF174: =VLOOKUP(AD174,Лист1!A:J,7,0) -> 
Z175: =IFERROR(VLOOKUP('OBO специфікація'!A182,Лист1!A:J,9,0),"") ->  | AD175: ='OBO специфікація'!A182 -> 0 | AE175: =VLOOKUP(AD175,stock!A:F,6,0) ->  | AF175: =VLOOKUP(AD175,Лист1!A:J,7,0) -> 
Z176: =IFERROR(VLOOKUP('OBO специфікація'!A183,Лист1!A:J,9,0),"") ->  | AD176: ='OBO специфікація'!A183 -> 0 | AE176: =VLOOKUP(AD176,stock!A:F,6,0) ->  | AF176: =VLOOKUP(AD176,Лист1!A:J,7,0) -> 
Z177: =IFERROR(VLOOKUP('OBO специфікація'!A184,Лист1!A:J,9,0),"") ->  | AD177: ='OBO специфікація'!A184 -> 0 | AE177: =VLOOKUP(AD177,stock!A:F,6,0) ->  | AF177: =VLOOKUP(AD177,Лист1!A:J,7,0) -> 
Z178: =IFERROR(VLOOKUP('OBO специфікація'!A185,Лист1!A:J,9,0),"") ->  | AD178: ='OBO специфікація'!A185 -> 0 | AE178: =VLOOKUP(AD178,stock!A:F,6,0) ->  | AF178: =VLOOKUP(AD178,Лист1!A:J,7,0) -> 
Z179: =IFERROR(VLOOKUP('OBO специфікація'!A186,Лист1!A:J,9,0),"") ->  | AD179: ='OBO специфікація'!A186 -> 0 | AE179: =VLOOKUP(AD179,stock!A:F,6,0) ->  | AF179: =VLOOKUP(AD179,Лист1!A:J,7,0) -> 
Z180: =IFERROR(VLOOKUP('OBO специфікація'!A187,Лист1!A:J,9,0),"") ->  | AD180: ='OBO специфікація'!A187 -> 0 | AE180: =VLOOKUP(AD180,stock!A:F,6,0) ->  | AF180: =VLOOKUP(AD180,Лист1!A:J,7,0) -> 
Z181: =IFERROR(VLOOKUP('OBO специфікація'!A188,Лист1!A:J,9,0),"") ->  | AD181: ='OBO специфікація'!A188 -> 0 | AE181: =VLOOKUP(AD181,stock!A:F,6,0) ->  | AF181: =VLOOKUP(AD181,Лист1!A:J,7,0) -> 
Z182: =IFERROR(VLOOKUP('OBO специфікація'!A189,Лист1!A:J,9,0),"") ->  | AD182: ='OBO специфікація'!A189 -> 0 | AE182: =VLOOKUP(AD182,stock!A:F,6,0) ->  | AF182: =VLOOKUP(AD182,Лист1!A:J,7,0) -> 
Z183: =IFERROR(VLOOKUP('OBO специфікація'!A190,Лист1!A:J,9,0),"") ->  | AD183: ='OBO специфікація'!A190 -> 0 | AE183: =VLOOKUP(AD183,stock!A:F,6,0) ->  | AF183: =VLOOKUP(AD183,Лист1!A:J,7,0) -> 
Z184: =IFERROR(VLOOKUP('OBO специфікація'!A191,Лист1!A:J,9,0),"") ->  | AD184: ='OBO специфікація'!A191 -> 0 | AE184: =VLOOKUP(AD184,stock!A:F,6,0) ->  | AF184: =VLOOKUP(AD184,Лист1!A:J,7,0) -> 
Z185: =IFERROR(VLOOKUP('OBO специфікація'!A192,Лист1!A:J,9,0),"") ->  | AD185: ='OBO специфікація'!A192 -> 0 | AE185: =VLOOKUP(AD185,stock!A:F,6,0) ->  | AF185: =VLOOKUP(AD185,Лист1!A:J,7,0) -> 
Z186: =IFERROR(VLOOKUP('OBO специфікація'!A193,Лист1!A:J,9,0),"") ->  | AD186: ='OBO специфікація'!A193 -> 0 | AE186: =VLOOKUP(AD186,stock!A:F,6,0) ->  | AF186: =VLOOKUP(AD186,Лист1!A:J,7,0) -> 
Z187: =IFERROR(VLOOKUP('OBO специфікація'!A194,Лист1!A:J,9,0),"") ->  | AD187: ='OBO специфікація'!A194 -> 0 | AE187: =VLOOKUP(AD187,stock!A:F,6,0) ->  | AF187: =VLOOKUP(AD187,Лист1!A:J,7,0) -> 
Z188: =IFERROR(VLOOKUP('OBO специфікація'!A195,Лист1!A:J,9,0),"") ->  | AD188: ='OBO специфікація'!A195 -> 0 | AE188: =VLOOKUP(AD188,stock!A:F,6,0) ->  | AF188: =VLOOKUP(AD188,Лист1!A:J,7,0) -> 
Z189: =IFERROR(VLOOKUP('OBO специфікація'!A196,Лист1!A:J,9,0),"") ->  | AD189: ='OBO специфікація'!A196 -> 0 | AE189: =VLOOKUP(AD189,stock!A:F,6,0) ->  | AF189: =VLOOKUP(AD189,Лист1!A:J,7,0) -> 
Z190: =IFERROR(VLOOKUP('OBO специфікація'!A197,Лист1!A:J,9,0),"") ->  | AD190: ='OBO специфікація'!A197 -> 0 | AE190: =VLOOKUP(AD190,stock!A:F,6,0) ->  | AF190: =VLOOKUP(AD190,Лист1!A:J,7,0) -> 
Z191: =IFERROR(VLOOKUP('OBO специфікація'!A198,Лист1!A:J,9,0),"") ->  | AD191: ='OBO специфікація'!A198 -> 0 | AE191: =VLOOKUP(AD191,stock!A:F,6,0) ->  | AF191: =VLOOKUP(AD191,Лист1!A:J,7,0) -> 
Z192: =IFERROR(VLOOKUP('OBO специфікація'!A199,Лист1!A:J,9,0),"") ->  | AD192: ='OBO специфікація'!A199 -> 0 | AE192: =VLOOKUP(AD192,stock!A:F,6,0) ->  | AF192: =VLOOKUP(AD192,Лист1!A:J,7,0) -> 
Z193: =IFERROR(VLOOKUP('OBO специфікація'!A200,Лист1!A:J,9,0),"") ->  | AD193: ='OBO специфікація'!A200 -> 0 | AE193: =VLOOKUP(AD193,stock!A:F,6,0) ->  | AF193: =VLOOKUP(AD193,Лист1!A:J,7,0) -> 
Z194: =IFERROR(VLOOKUP('OBO специфікація'!A201,Лист1!A:J,9,0),"") ->  | AD194: ='OBO специфікація'!A201 -> 0 | AE194: =VLOOKUP(AD194,stock!A:F,6,0) ->  | AF194: =VLOOKUP(AD194,Лист1!A:J,7,0) -> 
Z195: =IFERROR(VLOOKUP('OBO специфікація'!A202,Лист1!A:J,9,0),"") ->  | AD195: ='OBO специфікація'!A202 -> 0 | AE195: =VLOOKUP(AD195,stock!A:F,6,0) ->  | AF195: =VLOOKUP(AD195,Лист1!A:J,7,0) -> 
Z196: =IFERROR(VLOOKUP('OBO специфікація'!A203,Лист1!A:J,9,0),"") ->  | AD196: ='OBO специфікація'!A203 -> 0 | AE196: =VLOOKUP(AD196,stock!A:F,6,0) ->  | AF196: =VLOOKUP(AD196,Лист1!A:J,7,0) -> 
Z197: =IFERROR(VLOOKUP('OBO специфікація'!A204,Лист1!A:J,9,0),"") ->  | AD197: ='OBO специфікація'!A204 -> 0 | AE197: =VLOOKUP(AD197,stock!A:F,6,0) ->  | AF197: =VLOOKUP(AD197,Лист1!A:J,7,0) -> 
